Workbook

Sheet методология
D5: =MAIN!D2 -> Финансовая модель
D6: =MAIN!D3 -> Проект: разработка онлайн сервиса
D7: МЕТОДОЛОГИЯ
F10: место в документе
F11: лист | H11: ячейки | L11: описание
F14: для всех листов | G14: * | L14: ячейки для ручного внесения данных
F16: для всех листов | G16: * | I16: ^ | L16: ячейки для внесения данных из выпадающих списков из листа "справочники"
F18: MAIN | H18: N11 | L18: из выпадающего списка необходимо выбрать месяц старта проекта
H20: N13 | L20: необходимо задать вручную из выпадающего списка горизонт расчетов финмодели
H22: N19 | L22: из выпадающего списка необходимо выбрать режим налогообложения
H24: N21 | L24: необходимо задать вручную размер ставки НДС
H26: Y21-Y23 | L26: после внесения всех основных данных проекта в ячейке Y21 будет отображен размер кассового разрыва проекта, после чего необходимо в ячейке Y23 указать предполагаемый размер инвестиций в проект
H28: Y46-Y48 | L28: после указания предполагаемого размера инвестиций в ячейке Y46 будет отображен размер кассового разрыва проекта с учетом инвестиций, после чего финмодель будет автоматически рассчитывать кредитование кассового разрыва путем применения овердрафтовой схемы кредитования, предполагаемую ставку по которому необходимо указать в ячейке Y48
H30: Y57 | L30: необходимо задать ставку дисконтирования, по которой инвестор планирует оценивать проект
H32: N26-N34 | L32: в данном блоке ячеек пользователь распределяет заданный в ячейке Y23 объем финансирования по источникам; в ячейке N26 задается процентная доля, которая поступит из внешних источников (например, банковский кредит или внешние инвесторы), соответственно в ячейке N30 отобразится доля финансирования, которая поступит из собственных средств Инициатора проекта; в ячейке N34 инициатор проекта указывает стоимость своего собственного капитала
H34: N39-N43 | L34: в ячейках N39, N41 и N43 пользователю предлагается задать соответственно годовую ставку по внешним заимствованиям, срок внешнего заимствования и "каникулы" (отсрочку) в кол-ве месяцев по выплате тела займа (проценты выплачиваются в модели с первого месяца
H36: N46-N184 | L36: в указанных ячейках пользователю предлагается задать различные операционные параметры бизнес-проекта, которые поступают в расчетную часть модели, а именно во вкладку "Calc" - "показатели читаются буквально, как пишутся"
F38: CALC | H38: стр47-388 | L38: блок этих строк представляет собой типовой блок
L39: для задания маржинальной части продаж и соответствующих прямых расходов для отдельно выделенного направления продаж / продукта / т.п.; таких блоков изначально задано в модели два; если необходимо выделить большее количество блоков, то достаточно второй типовой блок (стр.389-730) скопировать ниже - стр.730
H41: N48 | L41: здесь вручную пользователь задает название "Направление продаж - 1" (Продажа аппаратов), данные по продажам которого будут задаваться и рассчитываться в модели в типовом блоке строк 47-338 (см. предыдущую запись)
H43: T51,T53 | L43: из выпадающего списка необходимо выбрать месяцы старта и окончания продаж "Направления продаж - 1" (Продажа аппаратов)
H45: T55 | L45: задаем максимальный ежемесячный объем продаж - в нашем случае здесь стоит формула, зависящая от целевого объема рынка подписчиков на онлайн-сервис, который определяется ячейкой N48 вкладки "MAIN"
H47: стр60-74 | L47: в этом типовом блоке строк задаются параметры количества продаж "Направления продаж - 1" (Продажа аппаратов)
H49: стр60 | L49: если количество продаж "Направления продаж - 1" пользователь желает задавать вручную, то в этой строке, начиная со столбца AA предоставляется такая возможность
H51: стр62-63 | L51: если количество продаж "Направления продаж - 1" пользователь желает задавать посредством сперва задания количества в первый месяц, а потом для каждого месяца вручную проставлять проценты прироста "месяц к месяцу", то в этих строках, начиная со столбца AA предоставляется такая возможность
H53: стр65-71 | L53: если количество продаж "Направления продаж - 1" пользователь желает задавать посредством формул линейной, геометрической или экспоненциальной прогрессии, то в указанных строках пользователю необходимо задать соответствующие параметры
H55: T65 | L55: задается вручную стартовое количество продаж "Направления продаж - 1" для применения формул прогрессии
H57: T65 | L57: из выпадающего списка задается скорость прироста количества продаж "Направления продаж - 1" для применения формул прогрессии
H59: T69 | L59: вручную пользователю предлагается задать коэффициент прироста количества продаж "Направления продаж - 1" для применения формул прогрессии
H61: T71 | L61: из выпадающего списка задается частота прироста количества продаж "Направления продаж - 1" для применения формул прогрессии
H63: стр74 | L63: производится расчет количества продаж "Направления продаж - 1" , причем порядок приоритетности применения той или иной схемы задания количества продаж следующий: вручную, приросты, формула прогрессии
H65: стр78,79 | L65: здесь пользователю предлагается задать долевое распределение продаж "Направления продаж - 1" по степени ликвидности, причем строка 73 считается как 100% минус строки 78 и 79
H67: стр83-97 | L67: в этом типовом блоке строк по аналогии с заданием количества продаж, описанным выше, задаются средние чеки продаж "Направления продаж - 1"
H69: T99,100 | L69: здесь пользователю предлагается задать уровень скидок в процентах к регулярным ликвидным продажам для продаж низкой ликвидности
H71: T112 | L71: здесь пользователю предлагается задать период оборачиваемости в количестве дней дебиторской задолженности для расчета поступлений денежных средств в строке 114 на основе рассчитанных продаж (вкл.НДС) из строки 105
H73: стр117-130 | L73: в модели предполагается два взаимоисключающих подхода к заданию себестоимости продаж: либо путем задания ненулевой маржинальности продаж в ячейке T117, либо (в случае если в ячейке T117 ноль или пусто) путем непосредственного задания компонент или ингредиентов себестоимости в ячейках N126-N130 (можно добавлять их количество) и соответственно их стоимостных значений в строках 126-130, начиная со столбца AA, приходящихся на одну продажу или одну единицу продукции "Направления продаж - 1"
H75: стр143-145 | L75: в случае если задана ненулевая маржинальность продаж в ячейке T117, то пользователю необходимо задать долевое распределение себестоимости по себестоимостным ингредиентам в строках 143-145, начиная со столбца AA, доля первого себестоимостного ингредиента в строке 142 автоматически рассчитывается как 100% минус строки 143-145
H77: T160-162 | L77: здесь пользователю предлагается задать периоды оборачиваемости в количестве дней готовой продукции (аппараты или услуги/работы) в продажах
H79: T175-179 | L79: здесь пользователю предлагается задать оборачиваемость отдельных ингредиентов себестоимости в рамках производственного цикла
H81: T200-204 | L81: здесь пользователю предлагается задать периоды оборачиваемости в количестве дней кредиторской задолженности перед поставщиками для каждого себестоимостного ингредиента
H83: стр248-362 | L83: далее в указанных строках пользователю предлагается задать прямые переменные и постоянные издержки, связанные напрямую с продажами "Направления продаж-1" по аналогии с тем, как были заданы потоки количества продаж и средние чеки; в случае если необходимо добавить дополнительные статьи затрат, то достаточно скопировать типовые блоки соответствующих расходов
H85: стр389-730 | L85: далее по аналогии задаются параметры продаж для очередного направления продаж - Продажа годовых подписок на онлайн сервис
L87: и т.д. по аналогии задаются общие переменные и постоянные расходы и капитальные затраты
F89: CAPEX | L89: здесь пользователь задает
L90: план-график в разрезе месяцев и статей затрат (K15-K29) капитальные затраты (общие суммы в ячейках T15-T29 и их процентное распределение в строках 15-29, начиная со столбца AA) - в нашем случае на создание производства интерактивных аппаратов и ПО онлайн сервиса, а также на ввод всего этого производства в эксплуатацию; после чего эти данные поставляются во вкладку "Calc", в строки 1205-1219 для включения капитальных затрат в общую конву расчетов финансовой модели
F92: HR | L92: здесь пользователь задает
L93: штатное расписание; после чего эти данные поставляются во вкладку "CALC", в строки 835-891 для включения штатного расписания в общую конву расчетов финансовой модели
F95: Reports-M | L95: здесь в ежемесячной детализации формируются основные классические
L96: финансовые отчеты: PL-БДР; CF-БДДС; BS-Баланс - все данные поставляются из листа "Calc"
F99: Reports | L99: здесь в ежегодной детализации формируются основные классические
L100: финансовые отчеты: PL-БДР; CF-БДДС; BS-Баланс - все данные поставляются из листа "Reports_М"
F102: sens | L102: здесь пользователю предлагается произвести анализ чувствительности финмодели
F104: MAIN | H104: стлбY-BE | L104: здесь формируются ключевые результаты финмодели
F106: LISTS | L106: здесь собраны все выпадающие списки финмодели
F108: BP | L108: Презентация проекта, а также материал для формирования финблока бизнес-плана

Sheet BP
R4: стр. | S4: =T4 -> 1 | T4: =MAX(T$1:T3)+1 -> 1
D5: РЕЗЮМЕ ПРОЕКТА
C7: ФИНАНСОВЫЕ ПАРАМЕТРЫ И РЕЗУЛЬТАТЫ
C9: Старт проекта | H9: =MAIN!$N$11 -> 2021-01-01
C11: Горизонт расчетов | H11: =MAIN!$N$13 -> 2026-12-01
C13: Инвестиционная фаза Проекта | H13: =MAIN!$N$11 -> 2021-01-01 | J13: =CAPEX!$T$95 -> 2021-07-01
C15: Операционная фаза Проекта | H15: =$H$13 -> 2021-01-01 | J15: =MAIN!$N$13 -> 2026-12-01
C17: Капитальные затраты Проекта составляют в тыс.руб.: | J17: =CAPEX!T12/1000 -> 100000
C18: в том числе
C19: =CAPEX!K15 -> Работы по созданию онлайн сервиса - 1 | J19: =CAPEX!T15/1000 -> 10000
C20: =CAPEX!K16 -> Работы по созданию онлайн сервиса - 2 | J20: =CAPEX!T16/1000 -> 10000
C21: =CAPEX!K17 -> Работы по созданию онлайн сервиса - 3 | J21: =CAPEX!T17/1000 -> 10000
C22: =CAPEX!K18 -> Работы по созданию онлайн сервиса - 4 | J22: =CAPEX!T18/1000 -> 10000
C23: =CAPEX!K19 -> Работы по созданию онлайн сервиса - 5 | J23: =CAPEX!T19/1000 -> 10000
C24: =CAPEX!K20 -> Работы по созданию онлайн сервиса - 6 | J24: =CAPEX!T20/1000 -> 10000
C25: =CAPEX!K21 -> Работы по созданию онлайн сервиса - 7 | J25: =CAPEX!T21/1000 -> 10000
C26: =CAPEX!K22 -> Работы по созданию онлайн сервиса - 8 | J26: =CAPEX!T22/1000 -> 10000
C27: =CAPEX!K23 -> Работы по созданию онлайн сервиса - 9 | J27: =CAPEX!T23/1000 -> 10000
C28: =CAPEX!K24 -> Работы по созданию онлайн сервиса - 10 | J28: =CAPEX!T24/1000 -> 10000
L30: 2021 | M30: =L30+1 -> 2022 | N30: =M30+1 -> 2023 | O30: =N30+1 -> 2024 | P30: =O30+1 -> 2025 | Q30: =P30+1 -> 2026
J31: итого | L31: =MAIN!$AB$8 -> 1 год | M31: =MAIN!$AC$8 -> 2 год | N31: =MAIN!AD$8 -> 3 год | O31: =MAIN!AE$8 -> 4 год | P31: =MAIN!AF$8 -> 5 год | Q31: =MAIN!AG$8 -> 6 год
C32: Финансовый поток проекта, тыс.руб. | J32: =MAIN!$Y$11/1000 -> 378872.9814 | L32: =MAIN!$AB$11/1000 -> -129399.3742 | M32: =MAIN!$AC$11/1000 -> -16288.25102 | N32: =MAIN!AD$11/1000 -> 21644.33819 | O32: =MAIN!AE$11/1000 -> 84906.13763 | P32: =MAIN!AF$11/1000 -> 166437.4504 | Q32: =MAIN!AG$11/1000 -> 251572.6804
C34: Внутренняя норма доходности (IRR): | J34: =MAIN!$Y$13 -> 0.3765330339
C35: Окупаемость без учета финансирования (PBP): | J35: =MAIN!$Y$15 -> 4.333333333 | K35: лет
C37: =MAIN!T21 -> Кассовый разрыв проекта | J37: =MAIN!$Y$21/1000 -> 147020.3103 | K37: тыс.руб.
C39: Размер необходимого финансирования: | J39: =MAIN!$Y$23/1000 -> 160000 | K39: тыс.руб.
C40: в том числе источники
C41: 1 Кредит Банка | J41: =MAIN!$N$28/1000 -> 128000 | K41: тыс.руб.
C42: 2 Собственные средства учредителя | J42: =MAIN!$N$32/1000 -> 32000 | K42: тыс.руб.
L43: 2021 | M43: =L43+1 -> 2022 | N43: =M43+1 -> 2023 | O43: =N43+1 -> 2024 | P43: =O43+1 -> 2025 | Q43: =P43+1 -> 2026
J44: итого | L44: =MAIN!$AB$8 -> 1 год | M44: =MAIN!$AC$8 -> 2 год | N44: =MAIN!AD$8 -> 3 год | O44: =MAIN!AE$8 -> 4 год | P44: =MAIN!AF$8 -> 5 год | Q44: =MAIN!AG$8 -> 6 год
C45: Итоговый Финпоток проекта, тыс.руб. | J45: =MAIN!$Y$82/1000 -> 339780.5252 | L45: =(MAIN!$AA$82+MAIN!$AB$82)/1000 -> 21640.62576 | M45: =MAIN!$AC$82/1000 -> -21640.62576 | N45: =MAIN!AD$82/1000 -> 0 | O45: =MAIN!AE$82/1000 -> 14807.43136 | P45: =MAIN!AF$82/1000 -> 134923.3764 | Q45: =MAIN!AG$82/1000 -> 190049.7174
C47: Средневзвеш. стоимость капитала (WACC): | J47: =MAIN!$Y$96 -> 0.08531669537
C48: Окупаемость с уч. финансирования (DPBP): | J48: =MAIN!$Y$90 -> 5.666666667 | K48: лет
L49: 2021 | M49: =L49+1 -> 2022 | N49: =M49+1 -> 2023
J50: итого | L50: =MAIN!$AB$8 -> 1 год | M50: =MAIN!$AC$8 -> 2 год | N50: =MAIN!AD$8 -> 3 год | O50: =MAIN!AE$8 -> 4 год | P50: =MAIN!AF$8 -> 5 год | Q50: =MAIN!AG$8 -> 6 год
C51: Приведенная ст-сть NPV(WACC), тыс.руб. | J51: =MAIN!$Y$98/1000 -> 209527.4691 | L51: =(MAIN!$AA$98+MAIN!$AB$98)/1000 -> -119227.2954 | M51: =MAIN!$AC$98/1000 -> -13828.06735 | N51: =MAIN!AD$98/1000 -> 16930.69787 | O51: =MAIN!AE$98/1000 -> 61194.60702 | P51: =MAIN!AF$98/1000 -> 110527.0645 | Q51: =MAIN!AG$98/1000 -> 153930.4625
C53: Дисконтированная рентабельность инвестиций (ROI): | J53: =MAIN!$Y$100 -> 1.086116089
R63: стр. | S63: =T63 -> 2 | T63: =MAX(T$1:T62)+1 -> 2
D65: ФИНАНСОВЫЙ АНАЛИЗ
I66: =MAIN!AB6 -> 44197 | J66: =MAIN!AC6 -> 44562 | K66: =MAIN!AD6 -> 44927 | L66: =MAIN!AE6 -> 45292 | M66: =MAIN!AF6 -> 45658 | N66: =MAIN!AG6 -> 46023 | O66: =MAIN!AH6 -> 46388 | P66: =MAIN!AI6 -> 46753 | Q66: =MAIN!AJ6 -> 47119 | R66: =MAIN!AK6 -> 47484 | S66: =MAIN!AL6 -> 47849
C67: БЮДЖЕТ ДОХОДОВ В НАТУРАЛЬНЫХ ЕДИНИЦАХ | I67: =MAIN!AB7 -> 44561 | J67: =MAIN!AC7 -> 44926 | K67: =MAIN!AD7 -> 45291 | L67: =MAIN!AE7 -> 45657 | M67: =MAIN!AF7 -> 46022 | N67: =MAIN!AG7 -> 46387 | O67: =MAIN!AH7 -> 46752 | P67: =MAIN!AI7 -> 47118 | Q67: =MAIN!AJ7 -> 47483 | R67: =MAIN!AK7 -> 47848 | S67: =MAIN!AL7 -> 48213
J68: =MAIN!AC8 -> 2 год | K68: =MAIN!AD8 -> 3 год | L68: =MAIN!AE8 -> 4 год
C69: в количестве штук | H69: итого | I69: 2021 | J69: =I69+1 -> 2022 | K69: =J69+1 -> 2023 | L69: 2024 | M69: =L69+1 -> 2025 | N69: =M69+1 -> 2026
C71: =Reports!C5 -> Продажа аппаратов | H71: =SUM(I71:S71) -> 44763.2 | I71: =SUMIFS(Calc!$74:$74,Calc!$8:$8,">="&I$66,Calc!$8:$8,"<="&I$67) -> 976 | J71: =SUMIFS(Calc!$74:$74,Calc!$8:$8,">="&J$66,Calc!$8:$8,"<="&J$67) -> 3063.2 | K71: =SUMIFS(Calc!$74:$74,Calc!$8:$8,">="&K$66,Calc!$8:$8,"<="&K$67) -> 5780 | L71: =SUMIFS(Calc!$74:$74,Calc!$8:$8,">="&L$66,Calc!$8:$8,"<="&L$67) -> 9224 | M71: =SUMIFS(Calc!$74:$74,Calc!$8:$8,">="&M$66,Calc!$8:$8,"<="&M$67) -> 11648 | N71: =SUMIFS(Calc!$74:$74,Calc!$8:$8,">="&N$66,Calc!$8:$8,"<="&N$67) -> 14072
C73: =Reports!C6 -> Продажа годовых подписок на онлайн сервис | H73: =SUM(I73:S73) -> 72341.37454 | I73: =SUMIFS(Calc!$416:$416,Calc!$8:$8,">="&I$66,Calc!$8:$8,"<="&I$67)/12 -> 185.7625 | J73: =SUMIFS(Calc!$416:$416,Calc!$8:$8,">="&J$66,Calc!$8:$8,"<="&J$67)/12 -> 1481.918667 | K73: =SUMIFS(Calc!$416:$416,Calc!$8:$8,">="&K$66,Calc!$8:$8,"<="&K$67)/12 -> 5027.263375 | L73: =SUMIFS(Calc!$416:$416,Calc!$8:$8,">="&L$66,Calc!$8:$8,"<="&L$67)/12 -> 12330.79333 | M73: =SUMIFS(Calc!$416:$416,Calc!$8:$8,">="&M$66,Calc!$8:$8,"<="&M$67)/12 -> 21202.07667 | N73: =SUMIFS(Calc!$416:$416,Calc!$8:$8,">="&N$66,Calc!$8:$8,"<="&N$67)/12 -> 32113.56
C93: БЮДЖЕТ ДОХОДОВ В ТЫС.РУБ.
H95: итого | I95: 2021 | J95: =I95+1 -> 2022 | K95: =J95+1 -> 2023 | L95: 2024 | M95: =L95+1 -> 2025 | N95: =M95+1 -> 2026
C97: Бюджет доходов | H97: =SUM(I97:S97) -> 731361.4459 | I97: =SUM(I98:I101) -> 4228.3375 | J97: =SUM(J98:J101) -> 20333.71359 | K97: =SUM(K98:K101) -> 56451.316 | L97: =SUM(L98:L101) -> 126353.1346 | M97: =SUM(M98:M101) -> 209516.519 | N97: 314478.4252
C98: в т.ч.
C99: =Reports!C5 -> Продажа аппаратов | H99: =SUM(I99:S99) -> 160082.3818 | I99: =SUMIFS(Calc!$105:$105,Calc!$8:$8,">="&I$66,Calc!$8:$8,"<="&I$67)/1000 -> 2928 | J99: =SUMIFS(Calc!$105:$105,Calc!$8:$8,">="&J$66,Calc!$8:$8,"<="&J$67)/1000 -> 9649.08 | K99: =SUMIFS(Calc!$105:$105,Calc!$8:$8,">="&K$66,Calc!$8:$8,"<="&K$67)/1000 -> 19117.35 | L99: =SUMIFS(Calc!$105:$105,Calc!$8:$8,">="&L$66,Calc!$8:$8,"<="&L$67)/1000 -> 32033.799 | M99: =SUMIFS(Calc!$105:$105,Calc!$8:$8,">="&M$66,Calc!$8:$8,"<="&M$67)/1000 -> 42474.6504 | N99: =SUMIFS(Calc!$105:$105,Calc!$8:$8,">="&N$66,Calc!$8:$8,"<="&N$67)/1000 -> 53879.50244
C100: =Reports!C6 -> Продажа годовых подписок на онлайн сервис | H100: =SUM(I100:S100) -> 571279.0641 | I100: =SUMIFS(Calc!$447:$447,Calc!$8:$8,">="&I$66,Calc!$8:$8,"<="&I$67)/1000 -> 1300.3375 | J100: =SUMIFS(Calc!$447:$447,Calc!$8:$8,">="&J$66,Calc!$8:$8,"<="&J$67)/1000 -> 10684.63359 | K100: =SUMIFS(Calc!$447:$447,Calc!$8:$8,">="&K$66,Calc!$8:$8,"<="&K$67)/1000 -> 37333.966 | L100: =SUMIFS(Calc!$447:$447,Calc!$8:$8,">="&L$66,Calc!$8:$8,"<="&L$67)/1000 -> 94319.33565 | M100: =SUMIFS(Calc!$447:$447,Calc!$8:$8,">="&M$66,Calc!$8:$8,"<="&M$67)/1000 -> 167041.8686 | N100: =SUMIFS(Calc!$447:$447,Calc!$8:$8,">="&N$66,Calc!$8:$8,"<="&N$67)/1000 -> 260598.9228
R128: стр. | S128: =T128 -> 3 | T128: =MAX(T$1:T127)+1 -> 3
C131: ПРОГНОЗНАЯ СЕБЕСТОИМОСТЬ ПРОДАЖ В ТЫС.РУБ.
H133: итого | I133: 2021 | J133: =I133+1 -> 2022 | K133: =J133+1 -> 2023 | L133: 2024 | M133: =L133+1 -> 2025 | N133: =M133+1 -> 2026
C135: Себестоимость | H135: =SUM(I135:S135) -> 57096.04952 | I135: =SUM(I136:I139) -> 1044.32 | J135: =SUM(J136:J139) -> 3441.5052 | K135: =SUM(K136:K139) -> 6818.5215 | L135: =SUM(L136:L139) -> 11425.38831 | M135: =SUM(M136:M139) -> 15149.29198 | N135: 19217.02254
C136: в т.ч.
C137: =Reports!C5 -> Продажа аппаратов | H137: =SUM(I137:S137) -> 57096.04952 | I137: =SUMIFS(Calc!$132:$132,Calc!$8:$8,">="&I$66,Calc!$8:$8,"<="&I$67)/1000 -> 1044.32 | J137: =SUMIFS(Calc!$132:$132,Calc!$8:$8,">="&J$66,Calc!$8:$8,"<="&J$67)/1000 -> 3441.5052 | K137: =SUMIFS(Calc!$132:$132,Calc!$8:$8,">="&K$66,Calc!$8:$8,"<="&K$67)/1000 -> 6818.5215 | L137: =SUMIFS(Calc!$132:$132,Calc!$8:$8,">="&L$66,Calc!$8:$8,"<="&L$67)/1000 -> 11425.38831 | M137: =SUMIFS(Calc!$132:$132,Calc!$8:$8,">="&M$66,Calc!$8:$8,"<="&M$67)/1000 -> 15149.29198 | N137: =SUMIFS(Calc!$132:$132,Calc!$8:$8,">="&N$66,Calc!$8:$8,"<="&N$67)/1000 -> 19217.02254
C138: =Reports!C6 -> Продажа годовых подписок на онлайн сервис | H138: =SUM(I138:S138) -> 0 | I138: =SUMIFS(Calc!$474:$474,Calc!$8:$8,">="&I$66,Calc!$8:$8,"<="&I$67)/1000 -> 0 | J138: =SUMIFS(Calc!$474:$474,Calc!$8:$8,">="&J$66,Calc!$8:$8,"<="&J$67)/1000 -> 0 | K138: =SUMIFS(Calc!$474:$474,Calc!$8:$8,">="&K$66,Calc!$8:$8,"<="&K$67)/1000 -> 0 | L138: =SUMIFS(Calc!$474:$474,Calc!$8:$8,">="&L$66,Calc!$8:$8,"<="&L$67)/1000 -> 0 | M138: =SUMIFS(Calc!$474:$474,Calc!$8:$8,">="&M$66,Calc!$8:$8,"<="&M$67)/1000 -> 0 | N138: =SUMIFS(Calc!$474:$474,Calc!$8:$8,">="&N$66,Calc!$8:$8,"<="&N$67)/1000 -> 0
C159: БЮДЖЕТ ЗАКУПОК МАТЕРИАЛОВ И КОМПЛЕКТУЮЩИХ
C160: В РАЗРЕЗЕ АППАРАТОВ, В ТЫС.РУБ.
H162: итого | I162: 2021 | J162: =I162+1 -> 2022 | K162: =J162+1 -> 2023 | L162: 2024 | M162: =L162+1 -> 2025 | N162: =M162+1 -> 2026
C164: План закупок в разрезе интерактивных блоков | H164: =SUM(I164:S164) -> 57096.04952 | I164: =SUM(I165:I170) -> 1148.60327 | J164: =SUM(J165:J170) -> 3564.038042 | K164: =SUM(K165:K170) -> 6987.828456 | L164: =SUM(L165:L170) -> 11566.92985 | M164: =SUM(M165:M170) -> 15303.99736 | N164: 18524.65255
C165: в т.ч.
C166: =Calc!N194 -> с/ст ингредиент 1.1 | H166: =SUM(I166:S166) -> 26680.39697 | I166: =SUMIFS(Calc!194:194,Calc!$2:$2,I$162)/1000 -> 536.7305 | J166: =SUMIFS(Calc!194:194,Calc!$8:$8,">="&J$66,Calc!$8:$8,"<="&J$67)/1000 -> 1665.438337 | K166: =SUMIFS(Calc!194:194,Calc!$8:$8,">="&K$66,Calc!$8:$8,"<="&K$67)/1000 -> 3265.3404 | L166: =SUMIFS(Calc!194:194,Calc!$8:$8,">="&L$66,Calc!$8:$8,"<="&L$67)/1000 -> 5405.107404 | M166: =SUMIFS(Calc!194:194,Calc!$8:$8,">="&M$66,Calc!$8:$8,"<="&M$67)/1000 -> 7151.400634 | N166: =SUMIFS(Calc!194:194,Calc!$8:$8,">="&N$66,Calc!$8:$8,"<="&N$67)/1000 -> 8656.379698
C167: =Calc!N195 -> с/ст ингредиент 1.2 | H167: 21344.31758 | I167: =SUMIFS(Calc!195:195,Calc!$2:$2,I$162)/1000 -> 429.3844 | J167: =SUMIFS(Calc!195:195,Calc!$8:$8,">="&J$66,Calc!$8:$8,"<="&J$67)/1000 -> 1332.35067 | K167: =SUMIFS(Calc!195:195,Calc!$8:$8,">="&K$66,Calc!$8:$8,"<="&K$67)/1000 -> 2612.27232 | L167: =SUMIFS(Calc!195:195,Calc!$8:$8,">="&L$66,Calc!$8:$8,"<="&L$67)/1000 -> 4324.085924 | M167: =SUMIFS(Calc!195:195,Calc!$8:$8,">="&M$66,Calc!$8:$8,"<="&M$67)/1000 -> 5721.120507 | N167: =SUMIFS(Calc!195:195,Calc!$8:$8,">="&N$66,Calc!$8:$8,"<="&N$67)/1000 -> 6925.103758
C168: =Calc!N196 -> с/ст ингредиент 1.3 | H168: 5336.079395 | I168: =SUMIFS(Calc!196:196,Calc!$2:$2,I$162)/1000 -> 107.3461 | J168: =SUMIFS(Calc!196:196,Calc!$8:$8,">="&J$66,Calc!$8:$8,"<="&J$67)/1000 -> 333.0876675 | K168: =SUMIFS(Calc!196:196,Calc!$8:$8,">="&K$66,Calc!$8:$8,"<="&K$67)/1000 -> 653.06808 | L168: =SUMIFS(Calc!196:196,Calc!$8:$8,">="&L$66,Calc!$8:$8,"<="&L$67)/1000 -> 1081.021481 | M168: =SUMIFS(Calc!196:196,Calc!$8:$8,">="&M$66,Calc!$8:$8,"<="&M$67)/1000 -> 1430.280127 | N168: =SUMIFS(Calc!196:196,Calc!$8:$8,">="&N$66,Calc!$8:$8,"<="&N$67)/1000 -> 1731.27594
C169: =Calc!N197 -> с/ст ингредиент 1.4 | H169: 2668.039697 | I169: =SUMIFS(Calc!197:197,Calc!$2:$2,I$162)/1000 -> 53.67305 | J169: =SUMIFS(Calc!197:197,Calc!$8:$8,">="&J$66,Calc!$8:$8,"<="&J$67)/1000 -> 166.5438337 | K169: =SUMIFS(Calc!197:197,Calc!$8:$8,">="&K$66,Calc!$8:$8,"<="&K$67)/1000 -> 326.53404 | L169: =SUMIFS(Calc!197:197,Calc!$8:$8,">="&L$66,Calc!$8:$8,"<="&L$67)/1000 -> 540.5107404 | M169: =SUMIFS(Calc!197:197,Calc!$8:$8,">="&M$66,Calc!$8:$8,"<="&M$67)/1000 -> 715.1400634 | N169: =SUMIFS(Calc!197:197,Calc!$8:$8,">="&N$66,Calc!$8:$8,"<="&N$67)/1000 -> 865.6379698
C170: =Calc!N198 -> с/ст ингредиент 1.5 | H170: 1067.215879 | I170: =SUMIFS(Calc!198:198,Calc!$2:$2,I$162)/1000 -> 21.46922 | J170: =SUMIFS(Calc!198:198,Calc!$8:$8,">="&J$66,Calc!$8:$8,"<="&J$67)/1000 -> 66.6175335 | K170: =SUMIFS(Calc!198:198,Calc!$8:$8,">="&K$66,Calc!$8:$8,"<="&K$67)/1000 -> 130.613616 | L170: =SUMIFS(Calc!198:198,Calc!$8:$8,">="&L$66,Calc!$8:$8,"<="&L$67)/1000 -> 216.2042962 | M170: =SUMIFS(Calc!198:198,Calc!$8:$8,">="&M$66,Calc!$8:$8,"<="&M$67)/1000 -> 286.0560254 | N170: =SUMIFS(Calc!198:198,Calc!$8:$8,">="&N$66,Calc!$8:$8,"<="&N$67)/1000 -> 346.2551879
C174: БЮДЖЕТ ПЕРЕМЕННЫХ ПРЯМЫХ РАСХОДОВ В РАЗРЕЗЕ АППАРАТОВ, В ТЫС.РУБ.
H176: итого | I176: 2021 | J176: =I176+1 -> 2022 | K176: =J176+1 -> 2023 | L176: 2024 | M176: =L176+1 -> 2025 | N176: =M176+1 -> 2026
C178: План прямых расходов по аппаратам | H178: =SUM(I178:S178) -> 12806.59055 | I178: =SUM(I179:I182) -> 234.24 | J178: 771.9264 | K178: 1529.388 | L178: 2562.70392 | M178: =SUM(M179:M182) -> 3397.972032 | N178: 4310.360195
C179: в т.ч.
C180: =Calc!$N$249 -> Командировочные и представительские расходы | H180: =SUM(I180:S180) -> 4802.471455 | I180: =SUMIFS(Calc!$259:$259,Calc!$2:$2,I$162)/1000 -> 87.84 | J180: =SUMIFS(Calc!$259:$259,Calc!$8:$8,">="&J$66,Calc!$8:$8,"<="&J$67)/1000 -> 289.4724 | K180: =SUMIFS(Calc!$259:$259,Calc!$8:$8,">="&K$66,Calc!$8:$8,"<="&K$67)/1000 -> 573.5205 | L180: =SUMIFS(Calc!$259:$259,Calc!$8:$8,">="&L$66,Calc!$8:$8,"<="&L$67)/1000 -> 961.01397 | M180: =SUMIFS(Calc!$259:$259,Calc!$8:$8,">="&M$66,Calc!$8:$8,"<="&M$67)/1000 -> 1274.239512 | N180: =SUMIFS(Calc!$259:$259,Calc!$8:$8,">="&N$66,Calc!$8:$8,"<="&N$67)/1000 -> 1616.385073
C181: =Calc!$N$267 -> Расходы на текущий ремонт и обслуживание оборудования | H181: =SUM(I181:S181) -> 6403.295274 | I181: =SUMIFS(Calc!$277:$277,Calc!$2:$2,I$162)/1000 -> 117.12 | J181: =SUMIFS(Calc!$277:$277,Calc!$8:$8,">="&J$66,Calc!$8:$8,"<="&J$67)/1000 -> 385.9632 | K181: =SUMIFS(Calc!$277:$277,Calc!$8:$8,">="&K$66,Calc!$8:$8,"<="&K$67)/1000 -> 764.694 | L181: =SUMIFS(Calc!$277:$277,Calc!$8:$8,">="&L$66,Calc!$8:$8,"<="&L$67)/1000 -> 1281.35196 | M181: =SUMIFS(Calc!$277:$277,Calc!$8:$8,">="&M$66,Calc!$8:$8,"<="&M$67)/1000 -> 1698.986016 | N181: =SUMIFS(Calc!$277:$277,Calc!$8:$8,">="&N$66,Calc!$8:$8,"<="&N$67)/1000 -> 2155.180098
C182: =Calc!$N$285 -> Прочие материальные расходы | H182: =SUM(I182:S182) -> 1600.823818 | I182: =SUMIFS(Calc!$295:$295,Calc!$2:$2,I$162)/1000 -> 29.28 | J182: =SUMIFS(Calc!$295:$295,Calc!$8:$8,">="&J$66,Calc!$8:$8,"<="&J$67)/1000 -> 96.4908 | K182: =SUMIFS(Calc!$295:$295,Calc!$8:$8,">="&K$66,Calc!$8:$8,"<="&K$67)/1000 -> 191.1735 | L182: =SUMIFS(Calc!$295:$295,Calc!$8:$8,">="&L$66,Calc!$8:$8,"<="&L$67)/1000 -> 320.33799 | M182: =SUMIFS(Calc!$295:$295,Calc!$8:$8,">="&M$66,Calc!$8:$8,"<="&M$67)/1000 -> 424.746504 | N182: =SUMIFS(Calc!$295:$295,Calc!$8:$8,">="&N$66,Calc!$8:$8,"<="&N$67)/1000 -> 538.7950244
C185: БЮДЖЕТ ПЕРЕМЕННЫХ ПРЯМЫХ РАСХОДОВ В РАЗРЕЗЕ ПОДПИСОК НА СЕРВИС, В ТЫС.РУБ.
H187: итого | I187: 2021 | J187: =I187+1 -> 2022 | K187: =J187+1 -> 2023 | L187: =K187+1 -> 2024 | M187: =L187+1 -> 2025 | N187: =M187+1 -> 2026
C189: План прямых расходов по подпискам | H189: =SUM(I189:S189) -> 14281.9766 | I189: =SUM(I190:I193) -> 32.5084375 | J189: 267.1158397 | K189: 933.34915 | L189: 2357.983391 | M189: =SUM(M190:M193) -> 4176.046714 | N189: 6514.97307
C190: в т.ч.
C191: =Calc!$N$591 -> Консультационные расходы | H191: =SUM(I191:S191) -> 5712.790641 | I191: =SUMIFS(Calc!$601:$601,Calc!$2:$2,I$162)/1000 -> 13.003375 | J191: =SUMIFS(Calc!$601:$601,Calc!$8:$8,">="&J$66,Calc!$8:$8,"<="&J$67)/1000 -> 106.8463359 | K191: =SUMIFS(Calc!$601:$601,Calc!$8:$8,">="&K$66,Calc!$8:$8,"<="&K$67)/1000 -> 373.33966 | L191: =SUMIFS(Calc!$601:$601,Calc!$8:$8,">="&L$66,Calc!$8:$8,"<="&L$67)/1000 -> 943.1933565 | M191: =SUMIFS(Calc!$601:$601,Calc!$8:$8,">="&M$66,Calc!$8:$8,"<="&M$67)/1000 -> 1670.418686 | N191: =SUMIFS(Calc!$601:$601,Calc!$8:$8,">="&N$66,Calc!$8:$8,"<="&N$67)/1000 -> 2605.989228
C192: =Calc!$N$609 -> Представительские расходы | H192: =SUM(I192:S192) -> 5712.790641 | I192: =SUMIFS(Calc!$619:$619,Calc!$2:$2,I$162)/1000 -> 13.003375 | J192: =SUMIFS(Calc!$619:$619,Calc!$8:$8,">="&J$66,Calc!$8:$8,"<="&J$67)/1000 -> 106.8463359 | K192: =SUMIFS(Calc!$619:$619,Calc!$8:$8,">="&K$66,Calc!$8:$8,"<="&K$67)/1000 -> 373.33966 | L192: =SUMIFS(Calc!$619:$619,Calc!$8:$8,">="&L$66,Calc!$8:$8,"<="&L$67)/1000 -> 943.1933565 | M192: =SUMIFS(Calc!$619:$619,Calc!$8:$8,">="&M$66,Calc!$8:$8,"<="&M$67)/1000 -> 1670.418686 | N192: =SUMIFS(Calc!$619:$619,Calc!$8:$8,">="&N$66,Calc!$8:$8,"<="&N$67)/1000 -> 2605.989228
C193: =Calc!$N$627 -> Прочие прямые расходы на подписки | H193: =SUM(I193:S193) -> 2856.39532 | I193: =SUMIFS(Calc!$637:$637,Calc!$2:$2,I$162)/1000 -> 6.5016875 | J193: =SUMIFS(Calc!$637:$637,Calc!$8:$8,">="&J$66,Calc!$8:$8,"<="&J$67)/1000 -> 53.42316793 | K193: =SUMIFS(Calc!$637:$637,Calc!$8:$8,">="&K$66,Calc!$8:$8,"<="&K$67)/1000 -> 186.66983 | L193: =SUMIFS(Calc!$637:$637,Calc!$8:$8,">="&L$66,Calc!$8:$8,"<="&L$67)/1000 -> 471.5966782 | M193: =SUMIFS(Calc!$637:$637,Calc!$8:$8,">="&M$66,Calc!$8:$8,"<="&M$67)/1000 -> 835.2093428 | N193: =SUMIFS(Calc!$637:$637,Calc!$8:$8,">="&N$66,Calc!$8:$8,"<="&N$67)/1000 -> 1302.994614
C196: БЮДЖЕТ ПЕРЕМЕННЫХ ОБЩИХ РАСХОДОВ, В ТЫС.РУБ.
H198: итого | I198: 2021 | J198: =I198+1 -> 2022 | K198: =J198+1 -> 2023 | L198: 2024 | M198: =L198+1 -> 2025 | N198: =M198+1 -> 2026
C200: План общих переменных расходов | H200: =SUM(I200:S200) -> 43881.68676 | I200: =SUM(I201:I205) -> 253.70025 | J200: 1220.022815 | K200: 3387.07896 | L200: 7581.188079 | M200: =SUM(M201:M205) -> 12570.99114 | N200: 18868.70551
C201: в т.ч.
C202: =Calc!$N$742 -> Маркетинговые расходы | H202: =SUM(I202:S202) -> 21940.84338 | I202: =SUMIFS(Calc!$752:$752,Calc!$2:$2,I$162)/1000 -> 126.850125 | J202: =SUMIFS(Calc!$752:$752,Calc!$8:$8,">="&J$66,Calc!$8:$8,"<="&J$67)/1000 -> 610.0114076 | K202: =SUMIFS(Calc!$752:$752,Calc!$8:$8,">="&K$66,Calc!$8:$8,"<="&K$67)/1000 -> 1693.53948 | L202: =SUMIFS(Calc!$752:$752,Calc!$8:$8,">="&L$66,Calc!$8:$8,"<="&L$67)/1000 -> 3790.594039 | M202: =SUMIFS(Calc!$752:$752,Calc!$8:$8,">="&M$66,Calc!$8:$8,"<="&M$67)/1000 -> 6285.495569 | N202: =SUMIFS(Calc!$752:$752,Calc!$8:$8,">="&N$66,Calc!$8:$8,"<="&N$67)/1000 -> 9434.352757
C203: =Calc!$N$760 -> Расходы на иннновации и модернизацию | H203: =SUM(I203:S203) -> 14627.22892 | I203: =SUMIFS(Calc!$770:$770,Calc!$2:$2,I$162)/1000 -> 84.56675 | J203: =SUMIFS(Calc!$770:$770,Calc!$8:$8,">="&J$66,Calc!$8:$8,"<="&J$67)/1000 -> 406.6742717 | K203: =SUMIFS(Calc!$770:$770,Calc!$8:$8,">="&K$66,Calc!$8:$8,"<="&K$67)/1000 -> 1129.02632 | L203: =SUMIFS(Calc!$770:$770,Calc!$8:$8,">="&L$66,Calc!$8:$8,"<="&L$67)/1000 -> 2527.062693 | M203: =SUMIFS(Calc!$770:$770,Calc!$8:$8,">="&M$66,Calc!$8:$8,"<="&M$67)/1000 -> 4190.330379 | N203: =SUMIFS(Calc!$770:$770,Calc!$8:$8,">="&N$66,Calc!$8:$8,"<="&N$67)/1000 -> 6289.568505
C204: =Calc!$N$778 -> Прочие переменные расходы | H204: 7313.614459 | I204: =SUMIFS(Calc!$788:$788,Calc!$2:$2,I$162)/1000 -> 42.283375 | J204: =SUMIFS(Calc!$788:$788,Calc!$8:$8,">="&J$66,Calc!$8:$8,"<="&J$67)/1000 -> 203.3371359 | K204: =SUMIFS(Calc!$788:$788,Calc!$8:$8,">="&K$66,Calc!$8:$8,"<="&K$67)/1000 -> 564.51316 | L204: =SUMIFS(Calc!$788:$788,Calc!$8:$8,">="&L$66,Calc!$8:$8,"<="&L$67)/1000 -> 1263.531346 | M204: =SUMIFS(Calc!$788:$788,Calc!$8:$8,">="&M$66,Calc!$8:$8,"<="&M$67)/1000 -> 2095.16519 | N204: =SUMIFS(Calc!$788:$788,Calc!$8:$8,">="&N$66,Calc!$8:$8,"<="&N$67)/1000 -> 3144.784252
C207: ИТОГО БЮДЖЕТ ПЕРЕМЕННЫХ РАСХОДОВ, В ТЫС.РУБ.
H209: итого | I209: 2021 | J209: =I209+1 -> 2022 | K209: =J209+1 -> 2023 | L209: 2024 | M209: =L209+1 -> 2025 | N209: =M209+1 -> 2026
C211: План переменных расходов | H211: =SUM(I211:S211) -> 70970.2539 | I211: =SUM(I212:I221) -> 520.4486875 | J211: =SUM(J212:J221) -> 2259.065055 | K211: =SUM(K212:K221) -> 5849.81611 | L211: =SUM(L212:L221) -> 12501.87539 | M211: =SUM(M212:M221) -> 20145.00988 | N211: 29694.03878
C212: в т.ч.
C213: =C180 -> Командировочные и представительские расходы | H213: =SUM(I213:S213) -> 10515.2621 | I213: =I180+I191 -> 100.843375 | J213: =J180+J191 -> 396.3187359 | K213: =K180+K191 -> 946.86016 | L213: 1904.207326 | M213: =M180+M191 -> 2944.658198 | N213: 4222.374301
C214: =C191 -> Консультационные расходы | H214: =SUM(I214:S214) -> 5712.790641 | I214: =I191 -> 13.003375 | J214: =J191 -> 106.8463359 | K214: 373.33966 | L214: 943.1933565 | M214: =M191 -> 1670.418686 | N214: 2605.989228
C215: =C181 -> Расходы на текущий ремонт и обслуживание оборудования | H215: =SUM(I215:S215) -> 6403.295274 | I215: =I181 -> 117.12 | J215: =J181 -> 385.9632 | K215: =K181 -> 764.694 | L215: =L181 -> 1281.35196 | M215: =M181 -> 1698.986016 | N215: 2155.180098
C216: Прочие материальные расходы | H216: 1600.823818 | I216: =I182 -> 29.28 | J216: 96.4908 | K216: 191.1735 | L216: 320.33799 | M216: =M182 -> 424.746504 | N216: 538.7950244
C217: =C193 -> Прочие прямые расходы на подписки | H217: =SUM(I217:S217) -> 2856.39532 | I217: =I193 -> 6.5016875 | J217: =J193 -> 53.42316793 | K217: 186.66983 | L217: 471.5966782 | M217: =M193 -> 835.2093428 | N217: 1302.994614
C218: =Calc!$N$742 -> Маркетинговые расходы | H218: =SUM(I218:S218) -> 21940.84338 | I218: =I202 -> 126.850125 | J218: 610.0114076 | K218: 1693.53948 | L218: 3790.594039 | M218: =M202 -> 6285.495569 | N218: 9434.352757
C219: =Calc!$N$760 -> Расходы на иннновации и модернизацию | H219: =SUM(I219:S219) -> 14627.22892 | I219: 84.56675 | J219: 406.6742717 | K219: 1129.02632 | L219: 2527.062693 | M219: =M203 -> 4190.330379 | N219: 6289.568505
C220: =Calc!$N$778 -> Прочие переменные расходы | H220: 7313.614459 | I220: 42.283375 | J220: 203.3371359 | K220: 564.51316 | L220: 1263.531346 | M220: =M204 -> 2095.16519 | N220: 3144.784252
C241: ИТОГО БЮДЖЕТ ПОСТОЯННЫХ РАСХОДОВ, В ТЫС.РУБ.
H243: итого | I243: 2021 | J243: =I243+1 -> 2022 | K243: =J243+1 -> 2023 | L243: 2024 | M243: =L243+1 -> 2025 | N243: =M243+1 -> 2026
C245: План постоянных расходов | H245: =SUM(I245:S245) -> 315929.8474 | I245: =SUM(I246:I258) -> 53417.72 | J245: =SUM(J246:J258) -> 48788.0088 | K245: =SUM(K246:K258) -> 50559.23306 | L245: =SUM(L246:L258) -> 52413.66882 | M245: 54356.76985 | N245: 56394.44684
C246: в т.ч.
C247: =Calc!$N$829 -> ФОТ, вкл. НДФЛ | H247: =SUM(I247:S247) -> 228866.5466 | I247: =SUMIFS(Calc!$898:$898,Calc!$2:$2,I$162)/1000 -> 32660 | J247: =SUMIFS(Calc!$898:$898,Calc!$8:$8,">="&J$66,Calc!$8:$8,"<="&J$67)/1000 -> 36956.4 | K247: =SUMIFS(Calc!$898:$898,Calc!$8:$8,">="&K$66,Calc!$8:$8,"<="&K$67)/1000 -> 38065.092 | L247: =SUMIFS(Calc!$898:$898,Calc!$8:$8,">="&L$66,Calc!$8:$8,"<="&L$67)/1000 -> 39207.04476 | M247: =SUMIFS(Calc!$898:$898,Calc!$8:$8,">="&M$66,Calc!$8:$8,"<="&M$67)/1000 -> 40383.2561 | N247: =SUMIFS(Calc!$898:$898,Calc!$8:$8,">="&N$66,Calc!$8:$8,"<="&N$67)/1000 -> 41594.75379
C248: =Calc!$N$960 -> Соцсборы с ФОТ | H248: =SUM(I248:S248) -> 32499.04962 | I248: =SUMIFS(Calc!$967:$967,Calc!$2:$2,I$162)/1000 -> 4637.72 | J248: =SUMIFS(Calc!$967:$967,Calc!$8:$8,">="&J$66,Calc!$8:$8,"<="&J$67)/1000 -> 5247.8088 | K248: =SUMIFS(Calc!$967:$967,Calc!$8:$8,">="&K$66,Calc!$8:$8,"<="&K$67)/1000 -> 5405.243064 | L248: =SUMIFS(Calc!$967:$967,Calc!$8:$8,">="&L$66,Calc!$8:$8,"<="&L$67)/1000 -> 5567.400356 | M248: =SUMIFS(Calc!$967:$967,Calc!$8:$8,">="&M$66,Calc!$8:$8,"<="&M$67)/1000 -> 5734.422367 | N248: =SUMIFS(Calc!$967:$967,Calc!$8:$8,">="&N$66,Calc!$8:$8,"<="&N$67)/1000 -> 5906.455038
C249: =Calc!$N$975 -> Расходы на текущий ремонт и обслуживание производства | H249: 7959.570555 | I249: =SUMIFS(Calc!$987:$987,Calc!$2:$2,I$162)/1000 -> 1200 | J249: =SUMIFS(Calc!$987:$987,Calc!$8:$8,">="&J$66,Calc!$8:$8,"<="&J$67)/1000 -> 1248 | K249: =SUMIFS(Calc!$987:$987,Calc!$8:$8,">="&K$66,Calc!$8:$8,"<="&K$67)/1000 -> 1297.92 | L249: =SUMIFS(Calc!$987:$987,Calc!$8:$8,">="&L$66,Calc!$8:$8,"<="&L$67)/1000 -> 1349.8368 | M249: =SUMIFS(Calc!$987:$987,Calc!$8:$8,">="&M$66,Calc!$8:$8,"<="&M$67)/1000 -> 1403.830272 | N249: =SUMIFS(Calc!$987:$987,Calc!$8:$8,">="&N$66,Calc!$8:$8,"<="&N$67)/1000 -> 1459.983483
C250: =Calc!$N$995 -> Аренда офиса | H250: =SUM(I250:S250) -> 27776.196 | I250: =SUMIFS(Calc!$1007:$1007,Calc!$2:$2,I$162)/1000 -> 3600 | J250: =SUMIFS(Calc!$1007:$1007,Calc!$8:$8,">="&J$66,Calc!$8:$8,"<="&J$67)/1000 -> 3960 | K250: =SUMIFS(Calc!$1007:$1007,Calc!$8:$8,">="&K$66,Calc!$8:$8,"<="&K$67)/1000 -> 4356 | L250: =SUMIFS(Calc!$1007:$1007,Calc!$8:$8,">="&L$66,Calc!$8:$8,"<="&L$67)/1000 -> 4791.6 | M250: =SUMIFS(Calc!$1007:$1007,Calc!$8:$8,">="&M$66,Calc!$8:$8,"<="&M$67)/1000 -> 5270.76 | N250: =SUMIFS(Calc!$1007:$1007,Calc!$8:$8,">="&N$66,Calc!$8:$8,"<="&N$67)/1000 -> 5797.836
C251: =Calc!$N$1015 -> Расходы на персонал | H251: =SUM(I251:S251) -> 2448.688613 | I251: =SUMIFS(Calc!$1027:$1027,Calc!$2:$2,I$162)/1000 -> 360 | J251: =SUMIFS(Calc!$1027:$1027,Calc!$8:$8,">="&J$66,Calc!$8:$8,"<="&J$67)/1000 -> 378 | K251: =SUMIFS(Calc!$1027:$1027,Calc!$8:$8,">="&K$66,Calc!$8:$8,"<="&K$67)/1000 -> 396.9 | L251: =SUMIFS(Calc!$1027:$1027,Calc!$8:$8,">="&L$66,Calc!$8:$8,"<="&L$67)/1000 -> 416.745 | M251: =SUMIFS(Calc!$1027:$1027,Calc!$8:$8,">="&M$66,Calc!$8:$8,"<="&M$67)/1000 -> 437.58225 | N251: =SUMIFS(Calc!$1027:$1027,Calc!$8:$8,">="&N$66,Calc!$8:$8,"<="&N$67)/1000 -> 459.4613625
C252: =Calc!$N$1035 -> Услуги связи | H252: 1476.483614 | I252: =SUMIFS(Calc!$1047:$1047,Calc!$2:$2,I$162)/1000 -> 240 | J252: =SUMIFS(Calc!$1047:$1047,Calc!$8:$8,">="&J$66,Calc!$8:$8,"<="&J$67)/1000 -> 242.4 | K252: =SUMIFS(Calc!$1047:$1047,Calc!$8:$8,">="&K$66,Calc!$8:$8,"<="&K$67)/1000 -> 244.824 | L252: =SUMIFS(Calc!$1047:$1047,Calc!$8:$8,">="&L$66,Calc!$8:$8,"<="&L$67)/1000 -> 247.27224 | M252: =SUMIFS(Calc!$1047:$1047,Calc!$8:$8,">="&M$66,Calc!$8:$8,"<="&M$67)/1000 -> 249.7449624 | N252: =SUMIFS(Calc!$1047:$1047,Calc!$8:$8,">="&N$66,Calc!$8:$8,"<="&N$67)/1000 -> 252.242412
C253: =Calc!$N$1055 -> Расходы на создание рекламной продукции | H253: 10000 | I253: =SUMIFS(Calc!$1067:$1067,Calc!$2:$2,I$162)/1000 -> 10000 | J253: =SUMIFS(Calc!$1067:$1067,Calc!$8:$8,">="&J$66,Calc!$8:$8,"<="&J$67)/1000 -> 0 | K253: =SUMIFS(Calc!$1067:$1067,Calc!$8:$8,">="&K$66,Calc!$8:$8,"<="&K$67)/1000 -> 0 | L253: =SUMIFS(Calc!$1067:$1067,Calc!$8:$8,">="&L$66,Calc!$8:$8,"<="&L$67)/1000 -> 0 | M253: =SUMIFS(Calc!$1067:$1067,Calc!$8:$8,">="&M$66,Calc!$8:$8,"<="&M$67)/1000 -> 0 | N253: =SUMIFS(Calc!$1067:$1067,Calc!$8:$8,">="&N$66,Calc!$8:$8,"<="&N$67)/1000 -> 0
C254: =Calc!$N$1075 -> Канцелярские и хозрасходы | H254: =SUM(I254:S254) -> 1513.949031 | I254: =SUMIFS(Calc!$1087:$1087,Calc!$2:$2,I$162)/1000 -> 240 | J254: =SUMIFS(Calc!$1087:$1087,Calc!$8:$8,">="&J$66,Calc!$8:$8,"<="&J$67)/1000 -> 244.8 | K254: =SUMIFS(Calc!$1087:$1087,Calc!$8:$8,">="&K$66,Calc!$8:$8,"<="&K$67)/1000 -> 249.696 | L254: =SUMIFS(Calc!$1087:$1087,Calc!$8:$8,">="&L$66,Calc!$8:$8,"<="&L$67)/1000 -> 254.68992 | M254: =SUMIFS(Calc!$1087:$1087,Calc!$8:$8,">="&M$66,Calc!$8:$8,"<="&M$67)/1000 -> 259.7837184 | N254: =SUMIFS(Calc!$1087:$1087,Calc!$8:$8,">="&N$66,Calc!$8:$8,"<="&N$67)/1000 -> 264.9793928
C255: =Calc!$N$1097 -> Банковские расходы | H255: =SUM(I255:S255) -> 776.2091861 | I255: =SUMIFS(Calc!$1109:$1109,Calc!$2:$2,I$162)/1000 -> 120 | J255: =SUMIFS(Calc!$1109:$1109,Calc!$8:$8,">="&J$66,Calc!$8:$8,"<="&J$67)/1000 -> 123.6 | K255: =SUMIFS(Calc!$1109:$1109,Calc!$8:$8,">="&K$66,Calc!$8:$8,"<="&K$67)/1000 -> 127.308 | L255: =SUMIFS(Calc!$1109:$1109,Calc!$8:$8,">="&L$66,Calc!$8:$8,"<="&L$67)/1000 -> 131.12724 | M255: =SUMIFS(Calc!$1109:$1109,Calc!$8:$8,">="&M$66,Calc!$8:$8,"<="&M$67)/1000 -> 135.0610572 | N255: =SUMIFS(Calc!$1109:$1109,Calc!$8:$8,">="&N$66,Calc!$8:$8,"<="&N$67)/1000 -> 139.1128889
C256: =Calc!$N$1119 -> Юридические расходы | H256: 1224.344306 | I256: =SUMIFS(Calc!$1131:$1131,Calc!$2:$2,I$162)/1000 -> 180 | J256: =SUMIFS(Calc!$1131:$1131,Calc!$8:$8,">="&J$66,Calc!$8:$8,"<="&J$67)/1000 -> 189 | K256: =SUMIFS(Calc!$1131:$1131,Calc!$8:$8,">="&K$66,Calc!$8:$8,"<="&K$67)/1000 -> 198.45 | L256: =SUMIFS(Calc!$1131:$1131,Calc!$8:$8,">="&L$66,Calc!$8:$8,"<="&L$67)/1000 -> 208.3725 | M256: =SUMIFS(Calc!$1131:$1131,Calc!$8:$8,">="&M$66,Calc!$8:$8,"<="&M$67)/1000 -> 218.791125 | N256: =SUMIFS(Calc!$1131:$1131,Calc!$8:$8,">="&N$66,Calc!$8:$8,"<="&N$67)/1000 -> 229.7306813
C257: =Calc!$N$1141 -> Расходы на сайт | H257: =SUM(I257:S257) -> 1388.8098 | I257: =SUMIFS(Calc!$1153:$1153,Calc!$2:$2,I$162)/1000 -> 180 | J257: =SUMIFS(Calc!$1153:$1153,Calc!$8:$8,">="&J$66,Calc!$8:$8,"<="&J$67)/1000 -> 198 | K257: =SUMIFS(Calc!$1153:$1153,Calc!$8:$8,">="&K$66,Calc!$8:$8,"<="&K$67)/1000 -> 217.8 | L257: =SUMIFS(Calc!$1153:$1153,Calc!$8:$8,">="&L$66,Calc!$8:$8,"<="&L$67)/1000 -> 239.58 | M257: =SUMIFS(Calc!$1153:$1153,Calc!$8:$8,">="&M$66,Calc!$8:$8,"<="&M$67)/1000 -> 263.538 | N257: =SUMIFS(Calc!$1153:$1153,Calc!$8:$8,">="&N$66,Calc!$8:$8,"<="&N$67)/1000 -> 289.8918
R285: стр. | S285: =T285 -> 4 | T285: =MAX(T$1:T284)+1 -> 4
D287: ФИНАНСОВЫЙ АНАЛИЗ
C289: ПРОГНОЗНЫЙ ОТЧЕТ О ФИНАНСОВЫХ РЕЗУЛЬТАТАХ
E291: в тыс.руб. | H291: итого | I291: =I243 -> 2021 | J291: =J243 -> 2022 | K291: 2023 | L291: 2024 | M291: =M243 -> 2025 | N291: 2026
C292: =Reports!C3 -> Выручка | H292: =Reports!E3/1000 -> 609467.8716 | I292: =Reports!G3/1000 -> 3523.614583 | J292: =Reports!H3/1000 -> 16944.76132 | K292: =Reports!I3/1000 -> 47042.76333 | L292: =Reports!J3/1000 -> 105294.2789 | M292: =Reports!K3/1000 -> 174597.0991 | N292: =Reports!L3/1000 -> 262065.3544
C293: =Reports!C4 -> в т.ч.
C294: =Reports!C5 -> Продажа аппаратов | H294: =Reports!E5/1000 -> 133401.9849 | I294: =Reports!G5/1000 -> 2440 | J294: =Reports!H5/1000 -> 8040.9 | K294: =Reports!I5/1000 -> 15931.125 | L294: =Reports!J5/1000 -> 26694.8325 | M294: =Reports!K5/1000 -> 35395.542 | N294: =Reports!L5/1000 -> 44899.58537
C295: =Reports!C6 -> Продажа годовых подписок на онлайн сервис | H295: =Reports!E6/1000 -> 476065.8867 | I295: =Reports!G6/1000 -> 1083.614583 | J295: =Reports!H6/1000 -> 8903.861322 | K295: =Reports!I6/1000 -> 31111.63833 | L295: =Reports!J6/1000 -> 78599.44637 | M295: =Reports!K6/1000 -> 139201.5571 | N295: =Reports!L6/1000 -> 217165.769
C296: =Reports!C9 -> Себестоимость | H296: =Reports!E9/1000 -> 47580.04127 | I296: =Reports!G9/1000 -> 870.2666667 | J296: =Reports!H9/1000 -> 2867.921 | K296: =Reports!I9/1000 -> 5682.10125 | L296: =Reports!J9/1000 -> 9521.156925 | M296: =Reports!K9/1000 -> 12624.40998 | N296: =Reports!L9/1000 -> 16014.18545
C297: =Reports!C10 -> Валовая прибыль | H297: =Reports!E10/1000 -> 561887.8303 | I297: =Reports!G10/1000 -> 2653.347917 | J297: =Reports!H10/1000 -> 14076.84032 | K297: =Reports!I10/1000 -> 41360.66208 | L297: =Reports!J10/1000 -> 95773.12195 | M297: =Reports!K10/1000 -> 161972.6891 | N297: =Reports!L10/1000 -> 246051.1689
C298: =Reports!C11 -> Рентабельность продаж | H298: =Reports!E11 -> 0.9219318302 | I298: =Reports!G11 -> 0.7530187692 | J298: =Reports!H11 -> 0.8307488111 | K298: =Reports!I11 -> 0.8792141267 | L298: =Reports!J11 -> 0.9095757431 | M298: =Reports!K11 -> 0.9276940451 | N298: =Reports!L11 -> 0.9388923977
C299: =Reports!C12 -> Начисление прямых расходов | H299: =Reports!E12/1000 -> 22573.80596 | I299: =Reports!G12/1000 -> 222.2903646 | J299: =Reports!H12/1000 -> 865.8685331 | K299: =Reports!I12/1000 -> 2052.280958 | L299: =Reports!J12/1000 -> 4100.572759 | M299: =Reports!K12/1000 -> 6311.682288 | N299: =Reports!L12/1000 -> 9021.111054
C300: =Reports!C13 -> Прибыль от коммерческой деятельности | H300: =Reports!E13/1000 -> 539314.0244 | I300: =Reports!G13/1000 -> 2431.057552 | J300: =Reports!H13/1000 -> 13210.97179 | K300: =Reports!I13/1000 -> 39308.38113 | L300: =Reports!J13/1000 -> 91672.54919 | M300: =Reports!K13/1000 -> 155661.0069 | N300: =Reports!L13/1000 -> 237030.0579
C301: =Reports!C14 -> Рентабельность коммерческой деятельности | H301: =Reports!E14 -> 0.8848932807 | I301: =Reports!G14 -> 0.6899328785 | J301: =Reports!H14 -> 0.7796493287 | K301: =Reports!I14 -> 0.8355882678 | L301: =Reports!J14 -> 0.8706318156 | M301: =Reports!K14 -> 0.8915440614 | N301: =Reports!L14 -> 0.9044692628
C302: =Reports!C15 -> Начисление переменных расходов | H302: =Reports!E15/1000 -> 36568.0723 | I302: =Reports!G15/1000 -> 211.416875 | J302: =Reports!H15/1000 -> 1016.685679 | K302: =Reports!I15/1000 -> 2822.5658 | L302: =Reports!J15/1000 -> 6317.656732 | M302: =Reports!K15/1000 -> 10475.82595 | N302: =Reports!L15/1000 -> 15723.92126
C303: =Reports!C16 -> Маржинальная прибыль | H303: =Reports!E16/1000 -> 502745.9521 | I303: =Reports!G16/1000 -> 2219.640677 | J303: =Reports!H16/1000 -> 12194.28611 | K303: =Reports!I16/1000 -> 36485.81533 | L303: =Reports!J16/1000 -> 85354.89246 | M303: =Reports!K16/1000 -> 145185.1809 | N303: =Reports!L16/1000 -> 221306.1366
C304: =Reports!C17 -> Рентабельность до постоянных расходов | H304: =Reports!E17 -> 0.8248932807 | I304: =Reports!G17 -> 0.6299328785 | J304: =Reports!H17 -> 0.7196493287 | K304: =Reports!I17 -> 0.7755882678 | L304: =Reports!J17 -> 0.8106318156 | M304: =Reports!K17 -> 0.8315440614 | N304: =Reports!L17 -> 0.8444692628
C305: =Reports!C18 -> Начисление постоянных расходов | H305: =Reports!E18/1000 -> 311594.5397 | I305: =Reports!G18/1000 -> 51351.05333 | J305: =Reports!H18/1000 -> 48371.3088 | K305: =Reports!I18/1000 -> 50124.96806 | L305: =Reports!J18/1000 -> 51960.91941 | M305: =Reports!K18/1000 -> 53884.55813 | N305: =Reports!L18/1000 -> 55901.73199
C307: =Reports!C20 -> EBITDA | H307: =Reports!E20/1000 -> 191151.4124 | I307: =Reports!G20/1000 -> -49131.41266 | J307: =Reports!H20/1000 -> -36177.02269 | K307: =Reports!I20/1000 -> -13639.15274 | L307: =Reports!J20/1000 -> 33393.97305 | M307: =Reports!K20/1000 -> 91300.62278 | N307: =Reports!L20/1000 -> 165404.4046
C308: =Reports!C21 -> Рентабельность операционной деятельности | H308: =Reports!E21 -> 0.3136365693 | I308: =Reports!G21 -> -13.94346955 | J308: =Reports!H21 -> -2.134997478 | K308: =Reports!I21 -> -0.2899309431 | L308: =Reports!J21 -> 0.3171489791 | M308: =Reports!K21 -> 0.5229217624 | N308: =Reports!L21 -> 0.631157083
C309: =Reports!C22 -> начисление %% по кредиту за период | H309: =Reports!E22/1000 -> 39092.45623 | I309: =Reports!G22/1000 -> 8960 | J309: =Reports!H22/1000 -> 9130.352976 | K309: =Reports!I22/1000 -> 9938.285587 | L309: =Reports!J22/1000 -> 6915.669519 | M309: =Reports!K22/1000 -> 3069.62963 | N309: =Reports!L22/1000 -> 1078.518519
C310: =Reports!C23 -> Начисление налога на имущество | H310: =Reports!E23/1000 -> 2523.003472 | I310: =Reports!G23/1000 -> 400.6076389 | J310: =Reports!H23/1000 -> 549.4791667 | K310: =Reports!I23/1000 -> 486.9791667 | L310: =Reports!J23/1000 -> 424.4791667 | M310: =Reports!K23/1000 -> 361.9791667 | N310: =Reports!L23/1000 -> 299.4791667
C311: =Reports!C24 -> Налог на прибыль | H311: =Reports!E24/1000 -> 20309.96831 | I311: =Reports!G24/1000 -> 0 | J311: =Reports!H24/1000 -> 0 | K311: =Reports!I24/1000 -> 0 | L311: =Reports!J24/1000 -> 0 | M311: =Reports!K24/1000 -> 0 | N311: =Reports!L24/1000 -> 20309.96831
C312: =Reports!C25 -> Амортизация | H312: =Reports!E25/1000 -> 47986.11111 | I312: =Reports!G25/1000 -> 6319.444444 | J312: =Reports!H25/1000 -> 8333.333333 | K312: =Reports!I25/1000 -> 8333.333333 | L312: =Reports!J25/1000 -> 8333.333333 | M312: =Reports!K25/1000 -> 8333.333333 | N312: =Reports!L25/1000 -> 8333.333333
C313: =Reports!C26 -> Чистая прибыль | H313: =Reports!E26/1000 -> 81239.87323 | I313: =Reports!G26/1000 -> -64811.46474 | J313: =Reports!H26/1000 -> -54190.18817 | K313: =Reports!I26/1000 -> -32397.75082 | L313: =Reports!J26/1000 -> 17720.49103 | M313: =Reports!K26/1000 -> 79535.68065 | N313: =Reports!L26/1000 -> 135383.1053
C314: Рентабельность проекта | H314: =IF(H292=0,0,H313/H292) -> 0.1332964 | I314: =IF(I292=0,0,I313/I292) -> -18.39346024 | J314: =IF(J292=0,0,J313/J292) -> -3.198049659 | K314: =IF(K292=0,0,K313/K292) -> -0.6886872396 | L314: =IF(L292=0,0,L313/L292) -> 0.1682949085 | M314: =IF(M292=0,0,M313/M292) -> 0.4555383855 | N314: 0.5166005465
R321: стр. | S321: =T321 -> 5 | T321: =MAX(T$1:T320)+1 -> 5
D323: ФИНАНСОВЫЙ АНАЛИЗ
C325: ПРОГНОЗНЫЙ ОТЧЕТ О ДВИЖЕНИИ ДЕНЕЖНЫХ СРЕДСТВ
E327: в тыс.руб. | H327: итого | I327: =I291 -> 2021 | J327: =J291 -> 2022 | K327: =K291 -> 2023 | L327: =L291 -> 2024 | M327: =M291 -> 2025 | N327: 2026
C328: =Reports!C28 -> Поступление ДС | H328: =Reports!E28/1000 -> 1018350.475 | I328: =Reports!G28/1000 -> 9662 | J328: =Reports!H28/1000 -> 38602.172 | K328: =Reports!I28/1000 -> 91806.66446 | L328: =Reports!J28/1000 -> 177385.1436 | M328: =Reports!K28/1000 -> 284032.4404 | N328: =Reports!L28/1000 -> 416862.0549
C329: =Reports!C29 -> в т.ч.
C330: =Reports!C29 -> в т.ч. | H330: =Reports!E29/1000 -> 0 | I330: =Reports!G29/1000 -> 0 | J330: =Reports!H29/1000 -> 0 | K330: =Reports!I29/1000 -> 0 | L330: =Reports!J29/1000 -> 0 | M330: =Reports!K29/1000 -> 0 | N330: =Reports!L29/1000 -> 0
C331: =Reports!C30 -> Продажа аппаратов | H331: =Reports!E30/1000 -> 158760.1541 | I331: =Reports!G30/1000 -> 2830 | J331: =Reports!H30/1000 -> 9479.54 | K331: =Reports!I30/1000 -> 18886.3395 | L331: =Reports!J30/1000 -> 31722.012 | M331: =Reports!K30/1000 -> 42229.92847 | N331: =Reports!L30/1000 -> 53612.33417
C332: =Reports!C31 -> Продажа годовых подписок на онлайн сервис | H332: =Reports!E31/1000 -> 859590.3212 | I332: =Reports!G31/1000 -> 6832 | J332: =Reports!H31/1000 -> 29122.632 | K332: =Reports!I31/1000 -> 72920.32496 | L332: =Reports!J31/1000 -> 145663.1316 | M332: =Reports!K31/1000 -> 241802.5119 | N332: =Reports!L31/1000 -> 363249.7207
C333: =Reports!C34 -> Оплаты за комплектующие и проч. с/ст ингредиенты | H333: =Reports!E34/1000 -> 56969.50499 | I333: =Reports!G34/1000 -> 1118.530878 | J333: =Reports!H34/1000 -> 3523.497557 | K333: =Reports!I34/1000 -> 6932.123372 | L333: =Reports!J34/1000 -> 11509.00358 | M333: =Reports!K34/1000 -> 15249.87745 | N333: =Reports!L34/1000 -> 18636.47215
C334: =Reports!C35 -> Оплата прямых расходов | H334: =Reports!E35/1000 -> 27044.93364 | I334: =Reports!G35/1000 -> 263.5144375 | J334: =Reports!H35/1000 -> 1033.44742 | K334: =Reports!I35/1000 -> 2455.113804 | L334: =Reports!J35/1000 -> 4910.39834 | M334: =Reports!K35/1000 -> 7565.942922 | N334: =Reports!L35/1000 -> 10816.51671
C335: =Reports!C36 -> Оплата переменных расходов | H335: =Reports!E36/1000 -> 43378.56175 | I335: =Reports!G36/1000 -> 243.8349167 | J335: =Reports!H36/1000 -> 1190.052266 | K335: =Reports!I36/1000 -> 3324.689157 | L335: =Reports!J36/1000 -> 7464.853194 | M335: =Reports!K36/1000 -> 12444.14521 | N335: =Reports!L36/1000 -> 18710.98701
C336: =Reports!C37 -> Оплата постоянных расходов | H336: =Reports!E37/1000 -> 315859.13 | I336: =Reports!G37/1000 -> 53359.38667 | J336: =Reports!H37/1000 -> 48785.72547 | K336: =Reports!I37/1000 -> 50556.8569 | L336: =Reports!J37/1000 -> 52411.19599 | M336: =Reports!K37/1000 -> 54354.19638 | N336: =Reports!L37/1000 -> 56391.76856
C337: =Reports!C38 -> Оплата НДС по операционной деят-ти | H337: =Reports!E38/1000 -> 92545.3644 | I337: =Reports!G38/1000 -> -1657.83363 | J337: =Reports!H38/1000 -> 1808.221148 | K337: =Reports!I38/1000 -> 6406.563877 | L337: =Reports!J38/1000 -> 15759.07574 | M337: =Reports!K38/1000 -> 27618.84884 | N337: =Reports!L38/1000 -> 42610.48843
C338: =Reports!C40 -> Финпоток по операционной деятельности | H338: =Reports!E40/1000 -> 482552.9806 | I338: =Reports!G40/1000 -> -43665.43327 | J338: =Reports!H40/1000 -> -17738.77186 | K338: =Reports!I40/1000 -> 22131.31735 | L338: =Reports!J40/1000 -> 85330.6168 | M338: =Reports!K40/1000 -> 166799.4296 | N338: =Reports!L40/1000 -> 269695.822
C339: =Reports!C41 -> Возмещение ндс по капзатратам | H339: =Reports!E41/1000 -> 16666.66667 | I339: =Reports!G41/1000 -> 14666.66667 | J339: =Reports!H41/1000 -> 2000 | K339: =Reports!I41/1000 -> 0 | L339: =Reports!J41/1000 -> 0 | M339: =Reports!K41/1000 -> 0 | N339: =Reports!L41/1000 -> 0
C340: =Reports!C42 -> Оплата капитальных затрат | H340: =Reports!E42/1000 -> 100000 | I340: =Reports!G42/1000 -> 100000 | J340: =Reports!H42/1000 -> 0 | K340: =Reports!I42/1000 -> 0 | L340: =Reports!J42/1000 -> 0 | M340: =Reports!K42/1000 -> 0 | N340: =Reports!L42/1000 -> 0
C341: =Reports!C43 -> Оплата налога на имущество | H341: =Reports!E43/1000 -> 2523.003472 | I341: =Reports!G43/1000 -> 400.6076389 | J341: =Reports!H43/1000 -> 549.4791667 | K341: =Reports!I43/1000 -> 486.9791667 | L341: =Reports!J43/1000 -> 424.4791667 | M341: =Reports!K43/1000 -> 361.9791667 | N341: =Reports!L43/1000 -> 299.4791667
C342: =Reports!C44 -> Оплата налога на прибыль | H342: =Reports!E44/1000 -> 17823.66244 | I342: =Reports!G44/1000 -> 0 | J342: =Reports!H44/1000 -> 0 | K342: =Reports!I44/1000 -> 0 | L342: =Reports!J44/1000 -> 0 | M342: =Reports!K44/1000 -> 0 | N342: =Reports!L44/1000 -> 17823.66244
C343: =Reports!C45 -> Финпоток проекта (по осн. деят-ти) | H343: =Reports!E45/1000 -> 378872.9814 | I343: =Reports!G45/1000 -> -129399.3742 | J343: =Reports!H45/1000 -> -16288.25102 | K343: =Reports!I45/1000 -> 21644.33819 | L343: =Reports!J45/1000 -> 84906.13763 | M343: =Reports!K45/1000 -> 166437.4504 | N343: =Reports!L45/1000 -> 251572.6804
C344: =Reports!C46 -> Поступления кредитных средств за период | H344: =Reports!E46/1000 -> 33810.85202 | I344: =Reports!G46/1000 -> 0 | J344: =Reports!H46/1000 -> 17622.44008 | K344: =Reports!I46/1000 -> 14748.37744 | L344: =Reports!J46/1000 -> 1440.034506 | M344: =Reports!K46/1000 -> 0 | N344: =Reports!L46/1000 -> 0
C345: =Reports!C47 -> Объем возврата кредитных средств за период | H345: =Reports!E47/1000 -> 33810.85202 | I345: =Reports!G47/1000 -> 0 | J345: =Reports!H47/1000 -> 0 | K345: =Reports!I47/1000 -> 0 | L345: =Reports!J47/1000 -> 33810.85202 | M345: =Reports!K47/1000 -> 0 | N345: =Reports!L47/1000 -> 0
C346: =Reports!C48 -> Оплата %% по кредиту | H346: =Reports!E48/1000 -> 5119.122896 | I346: =Reports!G48/1000 -> 0 | J346: =Reports!H48/1000 -> 0 | K346: =Reports!I48/1000 -> 896.4193254 | L346: =Reports!J48/1000 -> 4222.703571 | M346: =Reports!K48/1000 -> 0 | N346: =Reports!L48/1000 -> 0
C347: =Reports!C49 -> Финпоток по финансовой деятельности | H347: =Reports!E49/1000 -> -5119.122896 | I347: =Reports!G49/1000 -> 0 | J347: =Reports!H49/1000 -> 17622.44008 | K347: =Reports!I49/1000 -> 13851.95811 | L347: =Reports!J49/1000 -> -36593.52109 | M347: =Reports!K49/1000 -> 0 | N347: =Reports!L49/1000 -> 0
C348: =Reports!C50 -> Поступление финансирования от Банка | H348: =Reports!E50/1000 -> 128000 | I348: =Reports!G50/1000 -> 128000 | J348: =Reports!H50/1000 -> 0 | K348: =Reports!I50/1000 -> 0 | L348: =Reports!J50/1000 -> 0 | M348: =Reports!K50/1000 -> 0 | N348: =Reports!L50/1000 -> 0
C349: =Reports!C51 -> Поступление финансирования от Учредителя | H349: =Reports!E51/1000 -> 32000 | I349: =Reports!G51/1000 -> 32000 | J349: =Reports!H51/1000 -> 0 | K349: =Reports!I51/1000 -> 0 | L349: =Reports!J51/1000 -> 0 | M349: =Reports!K51/1000 -> 0 | N349: =Reports!L51/1000 -> 0
C350: =Reports!C52 -> Возврат кредита Банку | H350: =Reports!E52/1000 -> 128000 | I350: =Reports!G52/1000 -> 0 | J350: =Reports!H52/1000 -> 14222.22222 | K350: =Reports!I52/1000 -> 28444.44444 | L350: =Reports!J52/1000 -> 28444.44444 | M350: =Reports!K52/1000 -> 28444.44444 | N350: =Reports!L52/1000 -> 28444.44444
C351: =Reports!C53 -> Оплата %% по кредиту Банка | H351: =Reports!E53/1000 -> 33973.33333 | I351: =Reports!G53/1000 -> 8960 | J351: =Reports!H53/1000 -> 8752.592593 | K351: =Reports!I53/1000 -> 7051.851852 | L351: =Reports!J53/1000 -> 5060.740741 | M351: =Reports!K53/1000 -> 3069.62963 | N351: =Reports!L53/1000 -> 1078.518519
C352: =Reports!C54 -> Возврат инвестиций Учредителю | H352: =Reports!E54/1000 -> 32000 | I352: =Reports!G54/1000 -> 0 | J352: =Reports!H54/1000 -> 0 | K352: =Reports!I54/1000 -> 0 | L352: =Reports!J54/1000 -> 0 | M352: =Reports!K54/1000 -> 0 | N352: =Reports!L54/1000 -> 32000
C353: =Reports!C55 -> Финпоток по инвестиционной деятельности | H353: =Reports!E55/1000 -> -33973.33333 | I353: =Reports!G55/1000 -> 151040 | J353: =Reports!H55/1000 -> -22974.81481 | K353: =Reports!I55/1000 -> -35496.2963 | L353: =Reports!J55/1000 -> -33505.18519 | M353: =Reports!K55/1000 -> -31514.07407 | N353: =Reports!L55/1000 -> -61522.96296
C355: =Reports!C57 -> Финпоток | H355: =Reports!E57/1000 -> 339780.5252 | I355: =Reports!G57/1000 -> 21640.62576 | J355: =Reports!H57/1000 -> -21640.62576 | K355: =Reports!I57/1000 -> 0 | L355: =Reports!J57/1000 -> 14807.43136 | M355: =Reports!K57/1000 -> 134923.3764 | N355: =Reports!L57/1000 -> 190049.7174
C356: =Reports!C58 -> Финпоток накопительным итогом | H356: =Reports!E58/1000 -> 339780.5252 | I356: =Reports!G58/1000 -> 21640.62576 | J356: =Reports!H58/1000 -> 0 | K356: =Reports!I58/1000 -> 0 | L356: =Reports!J58/1000 -> 14807.43136 | M356: =Reports!K58/1000 -> 149730.8077 | N356: =Reports!L58/1000 -> 339780.5252
R364: стр. | S364: =T364 -> 6 | T364: =MAX(T$1:T363)+1 -> 6
D366: ФИНАНСОВЫЙ АНАЛИЗ
C368: ПРОГНОЗНЫЙ БАЛАНС ПРОЕКТА
E370: в тыс.руб. | H370: итого | I370: =I327 -> 2021 | J370: =J327 -> 2022 | K370: 2023 | L370: 2024 | M370: =M327 -> 2025 | N370: 2026
C371: =Reports!C61 -> АКТИВЫ | H371: =Reports!E61/1000 -> 376449.9751 | I371: =Reports!G61/1000 -> 100839.4174 | J371: =Reports!H61/1000 -> 69137.10898 | K371: =Reports!I61/1000 -> 61175.87528 | L371: =Reports!J61/1000 -> 68079.71159 | M371: =Reports!K61/1000 -> 195043.3977 | N371: =Reports!L61/1000 -> 376449.9751
C372: =Reports!C62 -> в т.ч.
C373: =Reports!C63 -> Капитальные затраты на балансе | H373: =Reports!E63/1000 -> 35347.22222 | I373: =Reports!G63/1000 -> 77013.88889 | J373: =Reports!H63/1000 -> 68680.55556 | K373: =Reports!I63/1000 -> 60347.22222 | L373: =Reports!J63/1000 -> 52013.88889 | M373: =Reports!K63/1000 -> 43680.55556 | N373: =Reports!L63/1000 -> 35347.22222
C374: =Reports!C64 -> Остаток ДС на конец периода | H374: =Reports!E64/1000 -> 339780.5252 | I374: =Reports!G64/1000 -> 21640.62576 | J374: =Reports!H64/1000 -> 0 | K374: =Reports!I64/1000 -> 0 | L374: =Reports!J64/1000 -> 14807.43136 | M374: =Reports!K64/1000 -> 149730.8077 | N374: =Reports!L64/1000 -> 339780.5252
C375: =Reports!C65 -> Дебиторская задолженность | H375: =Reports!E65/1000 -> 1322.227699 | I375: =Reports!G65/1000 -> 98 | J375: =Reports!H65/1000 -> 267.54 | K375: =Reports!I65/1000 -> 498.5505 | L375: =Reports!J65/1000 -> 810.3375 | M375: =Reports!K65/1000 -> 1055.059425 | N375: =Reports!L65/1000 -> 1322.227699
C376: =Reports!C66 -> Авансы выданные | H376: =Reports!E66/1000 -> 0 | I376: =Reports!G66/1000 -> 0 | J376: =Reports!H66/1000 -> 0 | K376: =Reports!I66/1000 -> 0 | L376: =Reports!J66/1000 -> 0 | M376: =Reports!K66/1000 -> 0 | N376: =Reports!L66/1000 -> 0
C377: =Reports!C67 -> Запасы готовой продукции | H377: =Reports!E67/1000 -> 0 | I377: =Reports!G67/1000 -> 25.99654167 | J377: =Reports!H67/1000 -> 56.54247812 | K377: =Reports!I67/1000 -> 98.74862813 | L377: =Reports!J67/1000 -> 134.0331989 | M377: =Reports!K67/1000 -> 172.5993552 | N377: =Reports!L67/1000 -> 0
C378: =Reports!C68 -> Запасы комплектующих | H378: =Reports!E68/1000 -> 7.450580597e-12 | I378: =Reports!G68/1000 -> 60.90618333 | J378: =Reports!H68/1000 -> 132.4709487 | K378: =Reports!I68/1000 -> 231.3539288 | L378: =Reports!J68/1000 -> 314.0206374 | M378: =Reports!K68/1000 -> 404.3756322 | N378: =Reports!L68/1000 -> 7.450580597e-12
C379: =Reports!C69 -> Дебиторская задолженность по ндс | H379: =Reports!E69/1000 -> 0 | I379: =Reports!G69/1000 -> 2000 | J379: =Reports!H69/1000 -> 0 | K379: =Reports!I69/1000 -> 0 | L379: =Reports!J69/1000 -> 0 | M379: =Reports!K69/1000 -> 0 | N379: =Reports!L69/1000 -> 0
C381: =Reports!C71 -> ПАССИВЫ | H381: =Reports!E71/1000 -> 88182.35144 | I381: =Reports!G71/1000 -> 100839.4174 | J381: =Reports!H71/1000 -> 69137.10898 | K381: =Reports!I71/1000 -> 61175.87528 | L381: =Reports!J71/1000 -> 68079.71159 | M381: =Reports!K71/1000 -> 195043.3977 | N381: =Reports!L71/1000 -> 376449.9751
C382: =Reports!C72 -> в т.ч.
C383: =Reports!C73 -> Капитал (чистая прибыль накопит. итогом) | H383: =Reports!E73/1000 -> 81239.87323 | I383: =Reports!G73/1000 -> -64811.46474 | J383: =Reports!H73/1000 -> -119001.6529 | K383: =Reports!I73/1000 -> -151399.4037 | L383: =Reports!J73/1000 -> -133678.9127 | M383: =Reports!K73/1000 -> -54143.23205 | N383: =Reports!L73/1000 -> 81239.87323
C384: =Reports!C74 -> Остаток задолженности перед Банком на конец периода | H384: =Reports!E74/1000 -> 0 | I384: =Reports!G74/1000 -> 128000 | J384: =Reports!H74/1000 -> 113777.7778 | K384: =Reports!I74/1000 -> 85333.33333 | L384: =Reports!J74/1000 -> 56888.88889 | M384: =Reports!K74/1000 -> 28444.44444 | N384: =Reports!L74/1000 -> 0
C385: =Reports!C75 -> Кред. задолж-сть по инвестициям Учредителя | H385: =Reports!E75/1000 -> 0 | I385: =Reports!G75/1000 -> 32000 | J385: =Reports!H75/1000 -> 32000 | K385: =Reports!I75/1000 -> 32000 | L385: =Reports!J75/1000 -> 32000 | M385: =Reports!K75/1000 -> 32000 | N385: =Reports!L75/1000 -> 0
C386: =Reports!C76 -> Кредиторская задолженнсоть по с/ст | H386: =Reports!E76/1000 -> 126.5445365 | I386: =Reports!G76/1000 -> 30.07239161 | J386: =Reports!H76/1000 -> 70.61287692 | K386: =Reports!I76/1000 -> 126.3179606 | L386: =Reports!J76/1000 -> 184.244227 | M386: =Reports!K76/1000 -> 238.3641351 | N386: =Reports!L76/1000 -> 126.5445365
C387: =Reports!C77 -> Авансы полученные | H387: =Reports!E77/1000 -> 43.63351406 | I387: =Reports!G77/1000 -> 5531.6625 | J387: =Reports!H77/1000 -> 23969.66091 | K387: =Reports!I77/1000 -> 59556.01987 | L387: =Reports!J77/1000 -> 110899.8159 | M387: =Reports!K77/1000 -> 185660.4592 | N387: =Reports!L77/1000 -> 288311.2572
C388: =Reports!C78 -> Кредиторская задолженнсоть по прямым расходам | H388: =Reports!E78/1000 -> 43.63351406 | I388: =Reports!G78/1000 -> 3.234 | J388: =Reports!H78/1000 -> 8.82882 | K388: =Reports!I78/1000 -> 16.4521665 | L388: =Reports!J78/1000 -> 26.7411375 | M388: =Reports!K78/1000 -> 34.81696102 | N388: =Reports!L78/1000 -> 43.63351406
C389: =Reports!C79 -> Кредиторская задолженнсоть по переменным расходам | H389: =Reports!E79/1000 -> 503.1250027 | I389: =Reports!G79/1000 -> 9.865333333 | J389: =Reports!H79/1000 -> 39.8358828 | K389: =Reports!I79/1000 -> 102.2256856 | L389: =Reports!J79/1000 -> 218.5605703 | M389: =Reports!K79/1000 -> 345.4064961 | N389: =Reports!L79/1000 -> 503.1250027
C390: =Reports!C80 -> Кредиторская задолженность по оплате НДС | H390: =Reports!E80/1000 -> 3668.518358 | I390: =Reports!G80/1000 -> 17.71455361 | J390: =Reports!H80/1000 -> 211.2284871 | K390: =Reports!I80/1000 -> 639.3448492 | L390: =Reports!J80/1000 -> 1474.90793 | M390: =Reports!K80/1000 -> 2395.099325 | N390: =Reports!L80/1000 -> 3668.518358
C391: =Reports!C81 -> Кредиторская задолженность по постоянным расходам | H391: =Reports!E81/1000 -> 70.71741977 | I391: =Reports!G81/1000 -> 58.33333333 | J391: =Reports!H81/1000 -> 60.61666667 | K391: =Reports!I81/1000 -> 62.99283333 | L391: =Reports!J81/1000 -> 65.46566167 | M391: =Reports!K81/1000 -> 68.03913928 | N391: =Reports!L81/1000 -> 70.71741977
C392: =Reports!C82 -> Кредиторская задолженность по капзатратам | H392: =Reports!E82/1000 -> 0 | I392: =Reports!G82/1000 -> 0 | J392: =Reports!H82/1000 -> 0 | K392: =Reports!I82/1000 -> 0 | L392: =Reports!J82/1000 -> 0 | M392: =Reports!K82/1000 -> 0 | N392: =Reports!L82/1000 -> 0
... 4 more rows

Sheet MAIN
AA1: 0 | AB1: =IF(OR($N$13="",$N$13<1),"",1) -> 1 | AC1: =IF(AB1="","",IF(AB1+1>$N$13,"",AB1+1)) -> 2 | AD1: =IF(AC1="","",IF(AC1+1>$N$13,"",AC1+1)) -> 3 | AE1: =IF(AD1="","",IF(AD1+1>$N$13,"",AD1+1)) -> 4 | AF1: =IF(AE1="","",IF(AE1+1>$N$13,"",AE1+1)) -> 5 | AG1: =IF(AF1="","",IF(AF1+1>$N$13,"",AF1+1)) -> 6 | AH1: =IF(AG1="","",IF(AG1+1>$N$13,"",AG1+1)) -> 7 | AI1: =IF(AH1="","",IF(AH1+1>$N$13,"",AH1+1)) -> 8 | AJ1: =IF(AI1="","",IF(AI1+1>$N$13,"",AI1+1)) -> 9 | AK1: =IF(AJ1="","",IF(AJ1+1>$N$13,"",AJ1+1)) -> 10 | AL1: =IF(AK1="","",IF(AK1+1>$N$13,"",AK1+1)) -> 11 | AM1: =IF(AL1="","",IF(AL1+1>$N$13,"",AL1+1)) -> 12
C2: * | D2: Финансовая модель
C3: * | D3: Проект: разработка онлайн сервиса
C4: * | D4: Главная панель
C5: * | D5: Баз. сценарий
D6: * | E6: Ключевые условия | R6: * | S6: Ключевые результаты | Y6: +7(985)201-6607 | AB6: =IF(OR($N$11="",$N$11=0),"",$N$11) -> 2021-01-01 | AC6: =IF(OR(AB7="",AC$1=""),"",AB7+1) -> 2022-01-01 | AD6: =IF(OR(AC7="",AD$1=""),"",AC7+1) -> 2023-01-01 | AE6: =IF(OR(AD7="",AE$1=""),"",AD7+1) -> 2024-01-01 | AF6: =IF(OR(AE7="",AF$1=""),"",AE7+1) -> 2025-01-01 | AG6: =IF(OR(AF7="",AG$1=""),"",AF7+1) -> 2026-01-01 | AH6: =IF(OR(AG7="",AH$1=""),"",AG7+1) -> 2027-01-01 | AI6: =IF(OR(AH7="",AI$1=""),"",AH7+1) -> 2028-01-01 | AJ6: =IF(OR(AI7="",AJ$1=""),"",AI7+1) -> 2029-01-01 | AK6: =IF(OR(AJ7="",AK$1=""),"",AJ7+1) -> 2030-01-01 | AL6: =IF(OR(AK7="",AL$1=""),"",AK7+1) -> 2031-01-01 | AM6: =IF(OR(AL7="",AM$1=""),"",AL7+1) -> 2032-01-01
AB7: =IF(OR(AB6="",AB$1=""),"",EOMONTH(AB6,12-MONTH(AB6))) -> 2021-12-31 | AC7: =IF(OR(AC6="",AC$1=""),"",EOMONTH(AC6,11)) -> 2022-12-31 | AD7: =IF(OR(AD6="",AD$1=""),"",EOMONTH(AD6,11)) -> 2023-12-31 | AE7: =IF(OR(AE6="",AE$1=""),"",EOMONTH(AE6,11)) -> 2024-12-31 | AF7: 2025-12-31 | AG7: 2026-12-31 | AH7: 2027-12-31 | AI7: 2028-12-31 | AJ7: 2029-12-31 | AK7: 2030-12-31 | AL7: 2031-12-31 | AM7: 2032-12-31
E8: * | F8: показатель | J8: * | K8: ед.изм. | M8: * | N8: значение | T8: =$F$8 -> показатель | V8: =$K$8 -> ед.изм. | X8: * | Y8: итого | AA8: старт | AB8: =IF(AB$1="","",AB$1&" год") -> 1 год | AC8: =IF(AC$1="","",AC$1&" год") -> 2 год | AD8: 3 год | AE8: 4 год | AF8: 5 год | AG8: 6 год | AH8: 7 год | AI8: 8 год | AJ8: 9 год | AK8: 10 год | AL8: 11 год | AM8: 12 год
E11: * | F11: месяц старта проекта | K11: месяц | M11: * | N11: 2021-01-01 | O11: ^ | T11: =Calc!$H$1340 -> Финпоток проекта (по осн. деят-ти) | V11: руб. | Y11: =SUM($AA11:$AN11) -> 378872981.4 | AB11: =IF(AB$1="",0,SUMIFS(Calc!$1340:$1340,Calc!$8:$8,">="&AB$6,Calc!$8:$8,"<="&AB$7)) -> -129399374.2 | AC11: =IF(AC$1="",0,SUMIFS(Calc!$1340:$1340,Calc!$8:$8,">="&AC$6,Calc!$8:$8,"<="&AC$7)) -> -16288251.02 | AD11: =IF(AD$1="",0,SUMIFS(Calc!$1340:$1340,Calc!$8:$8,">="&AD$6,Calc!$8:$8,"<="&AD$7)) -> 21644338.19 | AE11: =IF(AE$1="",0,SUMIFS(Calc!$1340:$1340,Calc!$8:$8,">="&AE$6,Calc!$8:$8,"<="&AE$7)) -> 84906137.63 | AF11: =IF(AF$1="",0,SUMIFS(Calc!$1340:$1340,Calc!$8:$8,">="&AF$6,Calc!$8:$8,"<="&AF$7)) -> 166437450.4 | AG11: =IF(AG$1="",0,SUMIFS(Calc!$1340:$1340,Calc!$8:$8,">="&AG$6,Calc!$8:$8,"<="&AG$7)) -> 251572680.4 | AH11: =IF(AH$1="",0,SUMIFS(Calc!$1340:$1340,Calc!$8:$8,">="&AH$6,Calc!$8:$8,"<="&AH$7)) -> 0 | AI11: =IF(AI$1="",0,SUMIFS(Calc!$1340:$1340,Calc!$8:$8,">="&AI$6,Calc!$8:$8,"<="&AI$7)) -> 0 | AJ11: =IF(AJ$1="",0,SUMIFS(Calc!$1340:$1340,Calc!$8:$8,">="&AJ$6,Calc!$8:$8,"<="&AJ$7)) -> 0 | AK11: =IF(AK$1="",0,SUMIFS(Calc!$1340:$1340,Calc!$8:$8,">="&AK$6,Calc!$8:$8,"<="&AK$7)) -> 0 | AL11: =IF(AL$1="",0,SUMIFS(Calc!$1340:$1340,Calc!$8:$8,">="&AL$6,Calc!$8:$8,"<="&AL$7)) -> 0 | AM11: =IF(AM$1="",0,SUMIFS(Calc!$1340:$1340,Calc!$8:$8,">="&AM$6,Calc!$8:$8,"<="&AM$7)) -> 0
E13: * | F13: горизонт расчетов | K13: кол-во лет | M13: * | N13: 2026-12-01 | O13: ^ | R13: * | T13: IRR проекта | V13: % | Y13: =IFERROR(IRR(AA11:AN11),0) -> 0.3765330339
E15: * | F15: Срок капитальных затрат | K15: кол-во мес | N15: =CAPEX!$W$98 -> 7 | T15: =Calc!$H$1347 -> PBP - простой срок окупаемости проекта | V15: кол-во лет | Y15: =IF(SUMIFS(Calc!$W:$W,Calc!$H:$H,$T15,Calc!$N:$N,Y$8)/12=0,"не окупается",SUMIFS(Calc!$W:$W,Calc!$H:$H,$T15,Calc!$N:$N,Y$8)/12) -> 4.333333333
T17: =Calc!$H$1351 -> CFADS | V17: руб. | Y17: =SUM($AA17:$AN17) -> 81239873.23 | AB17: =IF(AB$1="",0,SUMIFS(Calc!$1351:$1351,Calc!$8:$8,">="&AB$6,Calc!$8:$8,"<="&AB$7)) -> 0 | AC17: =IF(AC$1="",0,SUMIFS(Calc!$1351:$1351,Calc!$8:$8,">="&AC$6,Calc!$8:$8,"<="&AC$7)) -> 0 | AD17: =IF(AD$1="",0,SUMIFS(Calc!$1351:$1351,Calc!$8:$8,">="&AD$6,Calc!$8:$8,"<="&AD$7)) -> 0 | AE17: =IF(AE$1="",0,SUMIFS(Calc!$1351:$1351,Calc!$8:$8,">="&AE$6,Calc!$8:$8,"<="&AE$7)) -> 0 | AF17: =IF(AF$1="",0,SUMIFS(Calc!$1351:$1351,Calc!$8:$8,">="&AF$6,Calc!$8:$8,"<="&AF$7)) -> 0 | AG17: =IF(AG$1="",0,SUMIFS(Calc!$1351:$1351,Calc!$8:$8,">="&AG$6,Calc!$8:$8,"<="&AG$7)) -> 81239873.23 | AH17: =IF(AH$1="",0,SUMIFS(Calc!$1351:$1351,Calc!$8:$8,">="&AH$6,Calc!$8:$8,"<="&AH$7)) -> 0 | AI17: =IF(AI$1="",0,SUMIFS(Calc!$1351:$1351,Calc!$8:$8,">="&AI$6,Calc!$8:$8,"<="&AI$7)) -> 0 | AJ17: =IF(AJ$1="",0,SUMIFS(Calc!$1351:$1351,Calc!$8:$8,">="&AJ$6,Calc!$8:$8,"<="&AJ$7)) -> 0 | AK17: =IF(AK$1="",0,SUMIFS(Calc!$1351:$1351,Calc!$8:$8,">="&AK$6,Calc!$8:$8,"<="&AK$7)) -> 0 | AL17: =IF(AL$1="",0,SUMIFS(Calc!$1351:$1351,Calc!$8:$8,">="&AL$6,Calc!$8:$8,"<="&AL$7)) -> 0 | AM17: =IF(AM$1="",0,SUMIFS(Calc!$1351:$1351,Calc!$8:$8,">="&AM$6,Calc!$8:$8,"<="&AM$7)) -> 0
F19: =Lists!$N$6 -> режим налогообложения | K19: вып.спис. | M19: * | N19: ОСНО | O19: ^ | T19: =Calc!$H$1288 -> Оплата капитальных затрат | Y19: =SUM($AA19:$AN19) -> 100000000 | AB19: =IF(AB$1="",0,SUMIFS(Calc!$1288:$1288,Calc!$8:$8,">="&AB$6,Calc!$8:$8,"<="&AB$7)) -> 100000000 | AC19: =IF(AC$1="",0,SUMIFS(Calc!$1288:$1288,Calc!$8:$8,">="&AC$6,Calc!$8:$8,"<="&AC$7)) -> 0 | AD19: =IF(AD$1="",0,SUMIFS(Calc!$1288:$1288,Calc!$8:$8,">="&AD$6,Calc!$8:$8,"<="&AD$7)) -> 0 | AE19: =IF(AE$1="",0,SUMIFS(Calc!$1288:$1288,Calc!$8:$8,">="&AE$6,Calc!$8:$8,"<="&AE$7)) -> 0 | AF19: =IF(AF$1="",0,SUMIFS(Calc!$1288:$1288,Calc!$8:$8,">="&AF$6,Calc!$8:$8,"<="&AF$7)) -> 0 | AG19: =IF(AG$1="",0,SUMIFS(Calc!$1288:$1288,Calc!$8:$8,">="&AG$6,Calc!$8:$8,"<="&AG$7)) -> 0 | AH19: =IF(AH$1="",0,SUMIFS(Calc!$1288:$1288,Calc!$8:$8,">="&AH$6,Calc!$8:$8,"<="&AH$7)) -> 0 | AI19: =IF(AI$1="",0,SUMIFS(Calc!$1288:$1288,Calc!$8:$8,">="&AI$6,Calc!$8:$8,"<="&AI$7)) -> 0 | AJ19: =IF(AJ$1="",0,SUMIFS(Calc!$1288:$1288,Calc!$8:$8,">="&AJ$6,Calc!$8:$8,"<="&AJ$7)) -> 0 | AK19: =IF(AK$1="",0,SUMIFS(Calc!$1288:$1288,Calc!$8:$8,">="&AK$6,Calc!$8:$8,"<="&AK$7)) -> 0 | AL19: =IF(AL$1="",0,SUMIFS(Calc!$1288:$1288,Calc!$8:$8,">="&AL$6,Calc!$8:$8,"<="&AL$7)) -> 0 | AM19: =IF(AM$1="",0,SUMIFS(Calc!$1288:$1288,Calc!$8:$8,">="&AM$6,Calc!$8:$8,"<="&AM$7)) -> 0
E21: * | F21: ставка НДС | K21: % | M21: * | N21: 0.2 | T21: =Calc!$H$1354 -> Кассовый разрыв проекта | V21: руб. | Y21: =SUMIFS(Calc!$W:$W,Calc!$H:$H,$T21,Calc!$N:$N,Y$8) -> 147020310.3
E23: * | F23: ставка НДС для финмодели | K23: % | N23: =IF(OR($N$19=Lists!$N$10,$N$19=Lists!$N$11),0,$N$21) -> 0.2 | R23: * | T23: Общий размер инвестиций | V23: руб. | X23: * | Y23: 160000000
E26: * | F26: Участие Банка | K26: % | M26: * | N26: 0.8 | T26: =Calc!$H$1357 -> Поступление финансирования от Банка | V26: руб. | Y26: =SUM($AA26:$AN26) -> 128000000 | AA26: =Calc!$Z$1357 -> 128000000 | AB26: =IF(AB$1="",0,SUMIFS(Calc!$1357:$1357,Calc!$8:$8,">="&AB$6,Calc!$8:$8,"<="&AB$7)) -> 0 | AC26: =IF(AC$1="",0,SUMIFS(Calc!$1357:$1357,Calc!$8:$8,">="&AC$6,Calc!$8:$8,"<="&AC$7)) -> 0 | AD26: =IF(AD$1="",0,SUMIFS(Calc!$1357:$1357,Calc!$8:$8,">="&AD$6,Calc!$8:$8,"<="&AD$7)) -> 0 | AE26: =IF(AE$1="",0,SUMIFS(Calc!$1357:$1357,Calc!$8:$8,">="&AE$6,Calc!$8:$8,"<="&AE$7)) -> 0 | AF26: =IF(AF$1="",0,SUMIFS(Calc!$1357:$1357,Calc!$8:$8,">="&AF$6,Calc!$8:$8,"<="&AF$7)) -> 0 | AG26: =IF(AG$1="",0,SUMIFS(Calc!$1357:$1357,Calc!$8:$8,">="&AG$6,Calc!$8:$8,"<="&AG$7)) -> 0 | AH26: =IF(AH$1="",0,SUMIFS(Calc!$1357:$1357,Calc!$8:$8,">="&AH$6,Calc!$8:$8,"<="&AH$7)) -> 0 | AI26: =IF(AI$1="",0,SUMIFS(Calc!$1357:$1357,Calc!$8:$8,">="&AI$6,Calc!$8:$8,"<="&AI$7)) -> 0 | AJ26: =IF(AJ$1="",0,SUMIFS(Calc!$1357:$1357,Calc!$8:$8,">="&AJ$6,Calc!$8:$8,"<="&AJ$7)) -> 0 | AK26: =IF(AK$1="",0,SUMIFS(Calc!$1357:$1357,Calc!$8:$8,">="&AK$6,Calc!$8:$8,"<="&AK$7)) -> 0 | AL26: =IF(AL$1="",0,SUMIFS(Calc!$1357:$1357,Calc!$8:$8,">="&AL$6,Calc!$8:$8,"<="&AL$7)) -> 0 | AM26: =IF(AM$1="",0,SUMIFS(Calc!$1357:$1357,Calc!$8:$8,">="&AM$6,Calc!$8:$8,"<="&AM$7)) -> 0
E28: * | F28: Размер кредита от Банка | K28: руб. | N28: =$Y$23*N26 -> 128000000 | T28: =Calc!$H$1360 -> Возврат кредита Банку | V28: руб. | Y28: =SUM($AA28:$AN28) -> 128000000 | AA28: =Calc!$Z$1360 -> 0 | AB28: =IF(AB$1="",0,SUMIFS(Calc!$1360:$1360,Calc!$8:$8,">="&AB$6,Calc!$8:$8,"<="&AB$7)) -> 0 | AC28: =IF(AC$1="",0,SUMIFS(Calc!$1360:$1360,Calc!$8:$8,">="&AC$6,Calc!$8:$8,"<="&AC$7)) -> 14222222.22 | AD28: =IF(AD$1="",0,SUMIFS(Calc!$1360:$1360,Calc!$8:$8,">="&AD$6,Calc!$8:$8,"<="&AD$7)) -> 28444444.44 | AE28: =IF(AE$1="",0,SUMIFS(Calc!$1360:$1360,Calc!$8:$8,">="&AE$6,Calc!$8:$8,"<="&AE$7)) -> 28444444.44 | AF28: =IF(AF$1="",0,SUMIFS(Calc!$1360:$1360,Calc!$8:$8,">="&AF$6,Calc!$8:$8,"<="&AF$7)) -> 28444444.44 | AG28: =IF(AG$1="",0,SUMIFS(Calc!$1360:$1360,Calc!$8:$8,">="&AG$6,Calc!$8:$8,"<="&AG$7)) -> 28444444.44 | AH28: =IF(AH$1="",0,SUMIFS(Calc!$1360:$1360,Calc!$8:$8,">="&AH$6,Calc!$8:$8,"<="&AH$7)) -> 0 | AI28: =IF(AI$1="",0,SUMIFS(Calc!$1360:$1360,Calc!$8:$8,">="&AI$6,Calc!$8:$8,"<="&AI$7)) -> 0 | AJ28: =IF(AJ$1="",0,SUMIFS(Calc!$1360:$1360,Calc!$8:$8,">="&AJ$6,Calc!$8:$8,"<="&AJ$7)) -> 0 | AK28: =IF(AK$1="",0,SUMIFS(Calc!$1360:$1360,Calc!$8:$8,">="&AK$6,Calc!$8:$8,"<="&AK$7)) -> 0 | AL28: =IF(AL$1="",0,SUMIFS(Calc!$1360:$1360,Calc!$8:$8,">="&AL$6,Calc!$8:$8,"<="&AL$7)) -> 0 | AM28: =IF(AM$1="",0,SUMIFS(Calc!$1360:$1360,Calc!$8:$8,">="&AM$6,Calc!$8:$8,"<="&AM$7)) -> 0
E30: * | F30: Участие Учредителя в финансировании | K30: % | N30: =100%-N26 -> 0.2 | T30: =Calc!$H$1369 -> Оплата %% по кредиту Банка | V30: руб. | Y30: =SUM($AA30:$AN30) -> 33973333.33 | AA30: =Calc!$Z$1369 -> 0 | AB30: =IF(AB$1="",0,SUMIFS(Calc!$1369:$1369,Calc!$8:$8,">="&AB$6,Calc!$8:$8,"<="&AB$7)) -> 8960000 | AC30: =IF(AC$1="",0,SUMIFS(Calc!$1369:$1369,Calc!$8:$8,">="&AC$6,Calc!$8:$8,"<="&AC$7)) -> 8752592.593 | AD30: =IF(AD$1="",0,SUMIFS(Calc!$1369:$1369,Calc!$8:$8,">="&AD$6,Calc!$8:$8,"<="&AD$7)) -> 7051851.852 | AE30: =IF(AE$1="",0,SUMIFS(Calc!$1369:$1369,Calc!$8:$8,">="&AE$6,Calc!$8:$8,"<="&AE$7)) -> 5060740.741 | AF30: =IF(AF$1="",0,SUMIFS(Calc!$1369:$1369,Calc!$8:$8,">="&AF$6,Calc!$8:$8,"<="&AF$7)) -> 3069629.63 | AG30: =IF(AG$1="",0,SUMIFS(Calc!$1369:$1369,Calc!$8:$8,">="&AG$6,Calc!$8:$8,"<="&AG$7)) -> 1078518.519 | AH30: =IF(AH$1="",0,SUMIFS(Calc!$1369:$1369,Calc!$8:$8,">="&AH$6,Calc!$8:$8,"<="&AH$7)) -> 0 | AI30: =IF(AI$1="",0,SUMIFS(Calc!$1369:$1369,Calc!$8:$8,">="&AI$6,Calc!$8:$8,"<="&AI$7)) -> 0 | AJ30: =IF(AJ$1="",0,SUMIFS(Calc!$1369:$1369,Calc!$8:$8,">="&AJ$6,Calc!$8:$8,"<="&AJ$7)) -> 0 | AK30: =IF(AK$1="",0,SUMIFS(Calc!$1369:$1369,Calc!$8:$8,">="&AK$6,Calc!$8:$8,"<="&AK$7)) -> 0 | AL30: =IF(AL$1="",0,SUMIFS(Calc!$1369:$1369,Calc!$8:$8,">="&AL$6,Calc!$8:$8,"<="&AL$7)) -> 0 | AM30: =IF(AM$1="",0,SUMIFS(Calc!$1369:$1369,Calc!$8:$8,">="&AM$6,Calc!$8:$8,"<="&AM$7)) -> 0
E32: * | F32: Размер финансирования от Учредителя | K32: руб. | N32: =$Y$23*N30 -> 32000000 | T32: =Calc!$H$1373 -> Финпоток проекта с учетом кредита Банка | V32: руб. | Y32: =SUM($AA32:$AN32) -> 344899648.1 | AA32: =Calc!$Z$1373 -> 128000000 | AB32: =IF(AB$1="",0,SUMIFS(Calc!$1373:$1373,Calc!$8:$8,">="&AB$6,Calc!$8:$8,"<="&AB$7)) -> -138359374.2 | AC32: =IF(AC$1="",0,SUMIFS(Calc!$1373:$1373,Calc!$8:$8,">="&AC$6,Calc!$8:$8,"<="&AC$7)) -> -39263065.84 | AD32: =IF(AD$1="",0,SUMIFS(Calc!$1373:$1373,Calc!$8:$8,">="&AD$6,Calc!$8:$8,"<="&AD$7)) -> -13851958.11 | AE32: =IF(AE$1="",0,SUMIFS(Calc!$1373:$1373,Calc!$8:$8,">="&AE$6,Calc!$8:$8,"<="&AE$7)) -> 51400952.45 | AF32: =IF(AF$1="",0,SUMIFS(Calc!$1373:$1373,Calc!$8:$8,">="&AF$6,Calc!$8:$8,"<="&AF$7)) -> 134923376.4 | AG32: =IF(AG$1="",0,SUMIFS(Calc!$1373:$1373,Calc!$8:$8,">="&AG$6,Calc!$8:$8,"<="&AG$7)) -> 222049717.4 | AH32: =IF(AH$1="",0,SUMIFS(Calc!$1373:$1373,Calc!$8:$8,">="&AH$6,Calc!$8:$8,"<="&AH$7)) -> 0 | AI32: =IF(AI$1="",0,SUMIFS(Calc!$1373:$1373,Calc!$8:$8,">="&AI$6,Calc!$8:$8,"<="&AI$7)) -> 0 | AJ32: =IF(AJ$1="",0,SUMIFS(Calc!$1373:$1373,Calc!$8:$8,">="&AJ$6,Calc!$8:$8,"<="&AJ$7)) -> 0 | AK32: =IF(AK$1="",0,SUMIFS(Calc!$1373:$1373,Calc!$8:$8,">="&AK$6,Calc!$8:$8,"<="&AK$7)) -> 0 | AL32: =IF(AL$1="",0,SUMIFS(Calc!$1373:$1373,Calc!$8:$8,">="&AL$6,Calc!$8:$8,"<="&AL$7)) -> 0 | AM32: =IF(AM$1="",0,SUMIFS(Calc!$1373:$1373,Calc!$8:$8,">="&AM$6,Calc!$8:$8,"<="&AM$7)) -> 0
E34: * | F34: Стоимость капитала Учредителя | K34: %г | M34: * | N34: 0.12
F37: Условия кредита Банка: | T37: =Calc!$H$1378 -> Кассовый разрыв проекта с уч. Банка | Y37: =SUMIFS(Calc!$W:$W,Calc!$H:$H,$T37,Calc!$N:$N,Y$8) -> 64914432.7
E39: * | F39: Ставка по кредиту Банка | K39: %г | M39: * | N39: 0.07 | T39: =Calc!$H$1381 -> Поступление финансирования от Учредителя | V39: руб. | Y39: =SUM($AA39:$AN39) -> 32000000 | AA39: =Calc!$Z$1381 -> 32000000 | AB39: =IF(AB$1="",0,SUMIFS(Calc!$1381:$1381,Calc!$8:$8,">="&AB$6,Calc!$8:$8,"<="&AB$7)) -> 0 | AC39: =IF(AC$1="",0,SUMIFS(Calc!$1381:$1381,Calc!$8:$8,">="&AC$6,Calc!$8:$8,"<="&AC$7)) -> 0 | AD39: =IF(AD$1="",0,SUMIFS(Calc!$1381:$1381,Calc!$8:$8,">="&AD$6,Calc!$8:$8,"<="&AD$7)) -> 0 | AE39: =IF(AE$1="",0,SUMIFS(Calc!$1381:$1381,Calc!$8:$8,">="&AE$6,Calc!$8:$8,"<="&AE$7)) -> 0 | AF39: =IF(AF$1="",0,SUMIFS(Calc!$1381:$1381,Calc!$8:$8,">="&AF$6,Calc!$8:$8,"<="&AF$7)) -> 0 | AG39: =IF(AG$1="",0,SUMIFS(Calc!$1381:$1381,Calc!$8:$8,">="&AG$6,Calc!$8:$8,"<="&AG$7)) -> 0 | AH39: =IF(AH$1="",0,SUMIFS(Calc!$1381:$1381,Calc!$8:$8,">="&AH$6,Calc!$8:$8,"<="&AH$7)) -> 0 | AI39: =IF(AI$1="",0,SUMIFS(Calc!$1381:$1381,Calc!$8:$8,">="&AI$6,Calc!$8:$8,"<="&AI$7)) -> 0 | AJ39: =IF(AJ$1="",0,SUMIFS(Calc!$1381:$1381,Calc!$8:$8,">="&AJ$6,Calc!$8:$8,"<="&AJ$7)) -> 0 | AK39: =IF(AK$1="",0,SUMIFS(Calc!$1381:$1381,Calc!$8:$8,">="&AK$6,Calc!$8:$8,"<="&AK$7)) -> 0 | AL39: =IF(AL$1="",0,SUMIFS(Calc!$1381:$1381,Calc!$8:$8,">="&AL$6,Calc!$8:$8,"<="&AL$7)) -> 0 | AM39: =IF(AM$1="",0,SUMIFS(Calc!$1381:$1381,Calc!$8:$8,">="&AM$6,Calc!$8:$8,"<="&AM$7)) -> 0
E41: * | F41: Срок кредита Банка | K41: кол-во лет | M41: * | N41: 6 | T41: =Calc!$H$1384 -> Финпоток проекта с учетом всех инвестиций | V41: руб. | Y41: =SUM($AA41:$AN41) -> 376899648.1 | AA41: =AA26+AA39 -> 160000000 | AB41: =IF(AB$1="",0,SUMIFS(Calc!$1384:$1384,Calc!$8:$8,">="&AB$6,Calc!$8:$8,"<="&AB$7)) -> -138359374.2 | AC41: =IF(AC$1="",0,SUMIFS(Calc!$1384:$1384,Calc!$8:$8,">="&AC$6,Calc!$8:$8,"<="&AC$7)) -> -39263065.84 | AD41: =IF(AD$1="",0,SUMIFS(Calc!$1384:$1384,Calc!$8:$8,">="&AD$6,Calc!$8:$8,"<="&AD$7)) -> -13851958.11 | AE41: =IF(AE$1="",0,SUMIFS(Calc!$1384:$1384,Calc!$8:$8,">="&AE$6,Calc!$8:$8,"<="&AE$7)) -> 51400952.45 | AF41: =IF(AF$1="",0,SUMIFS(Calc!$1384:$1384,Calc!$8:$8,">="&AF$6,Calc!$8:$8,"<="&AF$7)) -> 134923376.4 | AG41: =IF(AG$1="",0,SUMIFS(Calc!$1384:$1384,Calc!$8:$8,">="&AG$6,Calc!$8:$8,"<="&AG$7)) -> 222049717.4 | AH41: =IF(AH$1="",0,SUMIFS(Calc!$1384:$1384,Calc!$8:$8,">="&AH$6,Calc!$8:$8,"<="&AH$7)) -> 0 | AI41: =IF(AI$1="",0,SUMIFS(Calc!$1384:$1384,Calc!$8:$8,">="&AI$6,Calc!$8:$8,"<="&AI$7)) -> 0 | AJ41: =IF(AJ$1="",0,SUMIFS(Calc!$1384:$1384,Calc!$8:$8,">="&AJ$6,Calc!$8:$8,"<="&AJ$7)) -> 0 | AK41: =IF(AK$1="",0,SUMIFS(Calc!$1384:$1384,Calc!$8:$8,">="&AK$6,Calc!$8:$8,"<="&AK$7)) -> 0 | AL41: =IF(AL$1="",0,SUMIFS(Calc!$1384:$1384,Calc!$8:$8,">="&AL$6,Calc!$8:$8,"<="&AL$7)) -> 0 | AM41: =IF(AM$1="",0,SUMIFS(Calc!$1384:$1384,Calc!$8:$8,">="&AM$6,Calc!$8:$8,"<="&AM$7)) -> 0
E43: * | F43: Срок "каникул" на возврат кредита | K43: кол-во мес | M43: * | N43: 18
E46: * | F46: месяц ввода в экспл. производства аппаратов | K46: месяц | N46: =CAPEX!$T$95 -> 2021-07-01 | T46: =Calc!$H$1390 -> Кассовый разрыв проекта с уч. всех инвестиций | Y46: =SUMIFS(Calc!$W:$W,Calc!$H:$H,$T46,Calc!$N:$N,Y$8) -> 32914432.7
E48: * | F48: Целевой рынок в кол-ве подписчиков | K48: подписчики | M48: * | N48: 200000 | R48: * | T48: Ставка кредита на пополнение оборотных средств, %г | V48: % | X48: * | Y48: 0.1
E50: * | F50: Продажи аппаратов в 1й мес | K50: шт/мес | M50: * | N50: 100 | R50: * | T50: LTV (кредитное плечо) | V50: % | Y50: =IF(Y23+Y46=0,0,Y46/(Y23+Y46)) -> 0.1706167457
E52: * | F52: Прирост продаж аппаратов | K52: шт | M52: * | N52: 60 | T52: =Calc!$H$1423 -> Финпоток проекта с уч. кред. плеча | V52: руб. | Y52: =SUM($AA52:$AN52) -> 373753858.5 | AB52: =IF(AB$1="",0,SUMIFS(Calc!$1423:$1423,Calc!$8:$8,">="&AB$6,Calc!$8:$8,"<="&AB$7)) -> -129399374.2 | AC52: =IF(AC$1="",0,SUMIFS(Calc!$1423:$1423,Calc!$8:$8,">="&AC$6,Calc!$8:$8,"<="&AC$7)) -> 1334189.056 | AD52: =IF(AD$1="",0,SUMIFS(Calc!$1423:$1423,Calc!$8:$8,">="&AD$6,Calc!$8:$8,"<="&AD$7)) -> 35496296.3 | AE52: =IF(AE$1="",0,SUMIFS(Calc!$1423:$1423,Calc!$8:$8,">="&AE$6,Calc!$8:$8,"<="&AE$7)) -> 48312616.55 | AF52: =IF(AF$1="",0,SUMIFS(Calc!$1423:$1423,Calc!$8:$8,">="&AF$6,Calc!$8:$8,"<="&AF$7)) -> 166437450.4 | AG52: =IF(AG$1="",0,SUMIFS(Calc!$1423:$1423,Calc!$8:$8,">="&AG$6,Calc!$8:$8,"<="&AG$7)) -> 251572680.4 | AH52: =IF(AH$1="",0,SUMIFS(Calc!$1423:$1423,Calc!$8:$8,">="&AH$6,Calc!$8:$8,"<="&AH$7)) -> 0 | AI52: =IF(AI$1="",0,SUMIFS(Calc!$1423:$1423,Calc!$8:$8,">="&AI$6,Calc!$8:$8,"<="&AI$7)) -> 0 | AJ52: =IF(AJ$1="",0,SUMIFS(Calc!$1423:$1423,Calc!$8:$8,">="&AJ$6,Calc!$8:$8,"<="&AJ$7)) -> 0 | AK52: =IF(AK$1="",0,SUMIFS(Calc!$1423:$1423,Calc!$8:$8,">="&AK$6,Calc!$8:$8,"<="&AK$7)) -> 0 | AL52: =IF(AL$1="",0,SUMIFS(Calc!$1423:$1423,Calc!$8:$8,">="&AL$6,Calc!$8:$8,"<="&AL$7)) -> 0 | AM52: =IF(AM$1="",0,SUMIFS(Calc!$1423:$1423,Calc!$8:$8,">="&AM$6,Calc!$8:$8,"<="&AM$7)) -> 0
E54: * | F54: Частота прироста продаж аппаратов | K54: кол-во мес | M54: * | N54: 3 | O54: ^ | R54: * | T54: IRR проекта с учетом кредитного плеча | V54: % | Y54: =IFERROR(IRR(AA52:AN52),0) -> 0.3926991825
E57: * | F57: Стоимость продажи аппаратов | K57: руб. | M57: * | N57: 3000 | R57: * | T57: Ставка дисконтирования инвесторов, %г | V57: % | X57: * | Y57: 0.12
E59: * | F59: Стоимость годовой подписки на онлайн сервис | K59: руб. | M59: * | N59: 7000 | R59: * | T59: коэффициент дисконтирования | V59: руб. | AA59: 1 | AB59: =IF(AB$1="",0,AA59*(1+$Y$57)) -> 1.12 | AC59: 1.2544 | AD59: 1.404928 | AE59: =IF(AE$1="",0,AD59*(1+$Y$57)) -> 1.57351936 | AF59: =IF(AF$1="",0,AE59*(1+$Y$57)) -> 1.762341683 | AG59: =IF(AG$1="",0,AF59*(1+$Y$57)) -> 1.973822685 | AH59: =IF(AH$1="",0,AG59*(1+$Y$57)) -> 2.210681407 | AI59: =IF(AI$1="",0,AH59*(1+$Y$57)) -> 2.475963176 | AJ59: =IF(AJ$1="",0,AI59*(1+$Y$57)) -> 2.773078757 | AK59: =IF(AK$1="",0,AJ59*(1+$Y$57)) -> 3.105848208 | AL59: =IF(AL$1="",0,AK59*(1+$Y$57)) -> 3.478549993 | AM59: =IF(AM$1="",0,AL59*(1+$Y$57)) -> 3.895975993
E61: * | F61: Ежег. индексация стоим-сти аппаратов | K61: % | M61: * | N61: 0.05 | R61: * | T61: NPV проекта | V61: руб. | Y61: =SUM($AA61:$AN61) -> 162740976.6 | AB61: =IF(AB$1="",0,IF(AB59=0,0,AB11/AB59)) -> -115535155.6 | AC61: -12984893.99 | AD61: 15406012.4 | AE61: =IF(AE$1="",0,IF(AE59=0,0,AE11/AE59)) -> 53959385.43 | AF61: 94441079.18 | AG61: 127454549.1 | AH61: 0 | AI61: 0 | AJ61: 0 | AK61: 0 | AL61: 0 | AM61: 0
E63: * | F63: Ежег. индексац. стоим-сти подписки на сервис | K63: % | M63: * | N63: 0.03 | R63: * | T63: NPV проекта с учетом плеча | V63: руб. | Y63: =SUM($AA63:$AN63) -> 163393183.9 | AB63: =IF(AB$1="",0,IF(AB$59=0,0,AB52/AB$59)) -> -115535155.6 | AC63: 1063607.347 | AD63: 25265562.57 | AE63: =IF(AE$1="",0,IF(AE$59=0,0,AE52/AE$59)) -> 30703541.23 | AF63: 94441079.18 | AG63: 127454549.1 | AH63: 0 | AI63: 0 | AJ63: 0 | AK63: 0 | AL63: 0 | AM63: 0
E66: * | F66: Ежег. индексация себ.ст-сти аппаратов | K66: % | M66: * | N66: 0.05 | R66: * | T66: Итоговые результаты
E68: * | F68: Коэфф. сезонности спроса на онлайн сервис | J68: 1 | K68: коэф% | M68: * | N68: 0.5 | T68: =Calc!$H$19 -> Выручка | V68: руб. | Y68: =SUM($AA68:$AN68) -> 609467871.6 | AB68: =IF(AB$1="",0,SUMIFS(Calc!$19:$19,Calc!$8:$8,">="&AB$6,Calc!$8:$8,"<="&AB$7)) -> 3523614.583 | AC68: =IF(AC$1="",0,SUMIFS(Calc!$19:$19,Calc!$8:$8,">="&AC$6,Calc!$8:$8,"<="&AC$7)) -> 16944761.32 | AD68: =IF(AD$1="",0,SUMIFS(Calc!$19:$19,Calc!$8:$8,">="&AD$6,Calc!$8:$8,"<="&AD$7)) -> 47042763.33 | AE68: =IF(AE$1="",0,SUMIFS(Calc!$19:$19,Calc!$8:$8,">="&AE$6,Calc!$8:$8,"<="&AE$7)) -> 105294278.9 | AF68: =IF(AF$1="",0,SUMIFS(Calc!$19:$19,Calc!$8:$8,">="&AF$6,Calc!$8:$8,"<="&AF$7)) -> 174597099.1 | AG68: =IF(AG$1="",0,SUMIFS(Calc!$19:$19,Calc!$8:$8,">="&AG$6,Calc!$8:$8,"<="&AG$7)) -> 262065354.4 | AH68: =IF(AH$1="",0,SUMIFS(Calc!$19:$19,Calc!$8:$8,">="&AH$6,Calc!$8:$8,"<="&AH$7)) -> 0 | AI68: =IF(AI$1="",0,SUMIFS(Calc!$19:$19,Calc!$8:$8,">="&AI$6,Calc!$8:$8,"<="&AI$7)) -> 0 | AJ68: =IF(AJ$1="",0,SUMIFS(Calc!$19:$19,Calc!$8:$8,">="&AJ$6,Calc!$8:$8,"<="&AJ$7)) -> 0 | AK68: =IF(AK$1="",0,SUMIFS(Calc!$19:$19,Calc!$8:$8,">="&AK$6,Calc!$8:$8,"<="&AK$7)) -> 0 | AL68: =IF(AL$1="",0,SUMIFS(Calc!$19:$19,Calc!$8:$8,">="&AL$6,Calc!$8:$8,"<="&AL$7)) -> 0 | AM68: =IF(AM$1="",0,SUMIFS(Calc!$19:$19,Calc!$8:$8,">="&AM$6,Calc!$8:$8,"<="&AM$7)) -> 0
F70: =$F$68 -> Коэфф. сезонности спроса на онлайн сервис | J70: =J68+1 -> 2 | K70: коэф% | M70: * | N70: 0.7 | T70: =Calc!$H$1276 -> Чистая прибыль | V70: руб. | Y70: =SUM($AA70:$AN70) -> 81239873.23 | AB70: =IF(AB$1="",0,SUMIFS(Calc!$1276:$1276,Calc!$8:$8,">="&AB$6,Calc!$8:$8,"<="&AB$7)) -> -64811464.74 | AC70: =IF(AC$1="",0,SUMIFS(Calc!$1276:$1276,Calc!$8:$8,">="&AC$6,Calc!$8:$8,"<="&AC$7)) -> -54190188.17 | AD70: =IF(AD$1="",0,SUMIFS(Calc!$1276:$1276,Calc!$8:$8,">="&AD$6,Calc!$8:$8,"<="&AD$7)) -> -32397750.82 | AE70: =IF(AE$1="",0,SUMIFS(Calc!$1276:$1276,Calc!$8:$8,">="&AE$6,Calc!$8:$8,"<="&AE$7)) -> 17720491.03 | AF70: =IF(AF$1="",0,SUMIFS(Calc!$1276:$1276,Calc!$8:$8,">="&AF$6,Calc!$8:$8,"<="&AF$7)) -> 79535680.65 | AG70: =IF(AG$1="",0,SUMIFS(Calc!$1276:$1276,Calc!$8:$8,">="&AG$6,Calc!$8:$8,"<="&AG$7)) -> 135383105.3 | AH70: =IF(AH$1="",0,SUMIFS(Calc!$1276:$1276,Calc!$8:$8,">="&AH$6,Calc!$8:$8,"<="&AH$7)) -> 0 | AI70: =IF(AI$1="",0,SUMIFS(Calc!$1276:$1276,Calc!$8:$8,">="&AI$6,Calc!$8:$8,"<="&AI$7)) -> 0 | AJ70: =IF(AJ$1="",0,SUMIFS(Calc!$1276:$1276,Calc!$8:$8,">="&AJ$6,Calc!$8:$8,"<="&AJ$7)) -> 0 | AK70: =IF(AK$1="",0,SUMIFS(Calc!$1276:$1276,Calc!$8:$8,">="&AK$6,Calc!$8:$8,"<="&AK$7)) -> 0 | AL70: =IF(AL$1="",0,SUMIFS(Calc!$1276:$1276,Calc!$8:$8,">="&AL$6,Calc!$8:$8,"<="&AL$7)) -> 0 | AM70: =IF(AM$1="",0,SUMIFS(Calc!$1276:$1276,Calc!$8:$8,">="&AM$6,Calc!$8:$8,"<="&AM$7)) -> 0
F72: =$F$68 -> Коэфф. сезонности спроса на онлайн сервис | J72: =J70+1 -> 3 | K72: коэф% | M72: * | N72: 0.8 | T72: =Calc!$H$1430 -> Финпоток до возврата инвестиций Учредителю | V72: руб. | Y72: =SUM($AA72:$AN72) -> 371780525.2 | AA72: =Calc!$Z$1430 -> 160000000 | AB72: =IF(AB$1="",0,SUMIFS(Calc!$1430:$1430,Calc!$8:$8,">="&AB$6,Calc!$8:$8,"<="&AB$7)) -> -138359374.2 | AC72: =IF(AC$1="",0,SUMIFS(Calc!$1430:$1430,Calc!$8:$8,">="&AC$6,Calc!$8:$8,"<="&AC$7)) -> -21640625.76 | AD72: =IF(AD$1="",0,SUMIFS(Calc!$1430:$1430,Calc!$8:$8,">="&AD$6,Calc!$8:$8,"<="&AD$7)) -> 0 | AE72: =IF(AE$1="",0,SUMIFS(Calc!$1430:$1430,Calc!$8:$8,">="&AE$6,Calc!$8:$8,"<="&AE$7)) -> 14807431.36 | AF72: =IF(AF$1="",0,SUMIFS(Calc!$1430:$1430,Calc!$8:$8,">="&AF$6,Calc!$8:$8,"<="&AF$7)) -> 134923376.4 | AG72: =IF(AG$1="",0,SUMIFS(Calc!$1430:$1430,Calc!$8:$8,">="&AG$6,Calc!$8:$8,"<="&AG$7)) -> 222049717.4 | AH72: =IF(AH$1="",0,SUMIFS(Calc!$1430:$1430,Calc!$8:$8,">="&AH$6,Calc!$8:$8,"<="&AH$7)) -> 0 | AI72: =IF(AI$1="",0,SUMIFS(Calc!$1430:$1430,Calc!$8:$8,">="&AI$6,Calc!$8:$8,"<="&AI$7)) -> 0 | AJ72: =IF(AJ$1="",0,SUMIFS(Calc!$1430:$1430,Calc!$8:$8,">="&AJ$6,Calc!$8:$8,"<="&AJ$7)) -> 0 | AK72: =IF(AK$1="",0,SUMIFS(Calc!$1430:$1430,Calc!$8:$8,">="&AK$6,Calc!$8:$8,"<="&AK$7)) -> 0 | AL72: =IF(AL$1="",0,SUMIFS(Calc!$1430:$1430,Calc!$8:$8,">="&AL$6,Calc!$8:$8,"<="&AL$7)) -> 0 | AM72: =IF(AM$1="",0,SUMIFS(Calc!$1430:$1430,Calc!$8:$8,">="&AM$6,Calc!$8:$8,"<="&AM$7)) -> 0
F74: =$F$68 -> Коэфф. сезонности спроса на онлайн сервис | J74: =J72+1 -> 4 | K74: коэф% | M74: * | N74: 1 | T74: =Calc!$H$1279 -> Капитал (чистая прибыль накопит. итогом) | V74: руб. | Y74: =SUMIFS($AA74:$AN74,$AA$1:$AN$1,MAX($AA$1:$AN$1)) -> 0 | AB74: =IF(AB$1="",0,SUMIFS(Calc!$1279:$1279,Calc!$8:$8,EOMONTH(AB$7,-1)+1)) -> -64811464.74 | AC74: =IF(AC$1="",0,SUMIFS(Calc!$1279:$1279,Calc!$8:$8,EOMONTH(AC$7,-1)+1)) -> -119001652.9 | AD74: =IF(AD$1="",0,SUMIFS(Calc!$1279:$1279,Calc!$8:$8,EOMONTH(AD$7,-1)+1)) -> -151399403.7 | AE74: =IF(AE$1="",0,SUMIFS(Calc!$1279:$1279,Calc!$8:$8,EOMONTH(AE$7,-1)+1)) -> -133678912.7 | AF74: =IF(AF$1="",0,SUMIFS(Calc!$1279:$1279,Calc!$8:$8,EOMONTH(AF$7,-1)+1)) -> -54143232.05 | AG74: =IF(AG$1="",0,SUMIFS(Calc!$1279:$1279,Calc!$8:$8,EOMONTH(AG$7,-1)+1)) -> 81239873.23 | AH74: =IF(AH$1="",0,SUMIFS(Calc!$1279:$1279,Calc!$8:$8,EOMONTH(AH$7,-1)+1)) -> 0 | AI74: =IF(AI$1="",0,SUMIFS(Calc!$1279:$1279,Calc!$8:$8,EOMONTH(AI$7,-1)+1)) -> 0 | AJ74: =IF(AJ$1="",0,SUMIFS(Calc!$1279:$1279,Calc!$8:$8,EOMONTH(AJ$7,-1)+1)) -> 0 | AK74: =IF(AK$1="",0,SUMIFS(Calc!$1279:$1279,Calc!$8:$8,EOMONTH(AK$7,-1)+1)) -> 0 | AL74: =IF(AL$1="",0,SUMIFS(Calc!$1279:$1279,Calc!$8:$8,EOMONTH(AL$7,-1)+1)) -> 0 | AM74: =IF(AM$1="",0,SUMIFS(Calc!$1279:$1279,Calc!$8:$8,EOMONTH(AM$7,-1)+1)) -> 0
F76: =$F$68 -> Коэфф. сезонности спроса на онлайн сервис | J76: =J74+1 -> 5 | K76: коэф% | M76: * | N76: 0.85 | T76: =Calc!$H$1432 -> Финпоток до возвр. инв-ций Учредителю нак. итогом | V76: руб. | Y76: =SUMIFS($AA76:$AN76,$AA$1:$AN$1,MAX($AA$1:$AN$1)) -> 0 | AB76: =IF(AB$1="",0,SUMIFS(Calc!$1432:$1432,Calc!$8:$8,EOMONTH(AB$7,-1)+1)) -> 21640625.76 | AC76: =IF(AC$1="",0,SUMIFS(Calc!$1432:$1432,Calc!$8:$8,EOMONTH(AC$7,-1)+1)) -> 0 | AD76: =IF(AD$1="",0,SUMIFS(Calc!$1432:$1432,Calc!$8:$8,EOMONTH(AD$7,-1)+1)) -> 0 | AE76: =IF(AE$1="",0,SUMIFS(Calc!$1432:$1432,Calc!$8:$8,EOMONTH(AE$7,-1)+1)) -> 14807431.36 | AF76: =IF(AF$1="",0,SUMIFS(Calc!$1432:$1432,Calc!$8:$8,EOMONTH(AF$7,-1)+1)) -> 149730807.7 | AG76: =IF(AG$1="",0,SUMIFS(Calc!$1432:$1432,Calc!$8:$8,EOMONTH(AG$7,-1)+1)) -> 371780525.2 | AH76: =IF(AH$1="",0,SUMIFS(Calc!$1432:$1432,Calc!$8:$8,EOMONTH(AH$7,-1)+1)) -> 0 | AI76: =IF(AI$1="",0,SUMIFS(Calc!$1432:$1432,Calc!$8:$8,EOMONTH(AI$7,-1)+1)) -> 0 | AJ76: =IF(AJ$1="",0,SUMIFS(Calc!$1432:$1432,Calc!$8:$8,EOMONTH(AJ$7,-1)+1)) -> 0 | AK76: =IF(AK$1="",0,SUMIFS(Calc!$1432:$1432,Calc!$8:$8,EOMONTH(AK$7,-1)+1)) -> 0 | AL76: =IF(AL$1="",0,SUMIFS(Calc!$1432:$1432,Calc!$8:$8,EOMONTH(AL$7,-1)+1)) -> 0 | AM76: =IF(AM$1="",0,SUMIFS(Calc!$1432:$1432,Calc!$8:$8,EOMONTH(AM$7,-1)+1)) -> 0
F78: =$F$68 -> Коэфф. сезонности спроса на онлайн сервис | J78: =J76+1 -> 6 | K78: коэф% | M78: * | N78: 1 | T78: =Calc!$H$1436 -> Free Cash Flow (FCF) до возврата инвестиций Учредителю | V78: руб. | Y78: =SUM($AA78:$AN78) -> 81239873.23 | AB78: =IF(AB$1="",0,SUMIFS(Calc!$1436:$1436,Calc!$8:$8,">="&AB$6,Calc!$8:$8,"<="&AB$7)) -> 0 | AC78: =IF(AC$1="",0,SUMIFS(Calc!$1436:$1436,Calc!$8:$8,">="&AC$6,Calc!$8:$8,"<="&AC$7)) -> 0 | AD78: =IF(AD$1="",0,SUMIFS(Calc!$1436:$1436,Calc!$8:$8,">="&AD$6,Calc!$8:$8,"<="&AD$7)) -> 0 | AE78: =IF(AE$1="",0,SUMIFS(Calc!$1436:$1436,Calc!$8:$8,">="&AE$6,Calc!$8:$8,"<="&AE$7)) -> 0 | AF78: =IF(AF$1="",0,SUMIFS(Calc!$1436:$1436,Calc!$8:$8,">="&AF$6,Calc!$8:$8,"<="&AF$7)) -> 0 | AG78: =IF(AG$1="",0,SUMIFS(Calc!$1436:$1436,Calc!$8:$8,">="&AG$6,Calc!$8:$8,"<="&AG$7)) -> 81239873.23 | AH78: =IF(AH$1="",0,SUMIFS(Calc!$1436:$1436,Calc!$8:$8,">="&AH$6,Calc!$8:$8,"<="&AH$7)) -> 0 | AI78: =IF(AI$1="",0,SUMIFS(Calc!$1436:$1436,Calc!$8:$8,">="&AI$6,Calc!$8:$8,"<="&AI$7)) -> 0 | AJ78: =IF(AJ$1="",0,SUMIFS(Calc!$1436:$1436,Calc!$8:$8,">="&AJ$6,Calc!$8:$8,"<="&AJ$7)) -> 0 | AK78: =IF(AK$1="",0,SUMIFS(Calc!$1436:$1436,Calc!$8:$8,">="&AK$6,Calc!$8:$8,"<="&AK$7)) -> 0 | AL78: =IF(AL$1="",0,SUMIFS(Calc!$1436:$1436,Calc!$8:$8,">="&AL$6,Calc!$8:$8,"<="&AL$7)) -> 0 | AM78: =IF(AM$1="",0,SUMIFS(Calc!$1436:$1436,Calc!$8:$8,">="&AM$6,Calc!$8:$8,"<="&AM$7)) -> 0
F80: =$F$68 -> Коэфф. сезонности спроса на онлайн сервис | J80: =J78+1 -> 7 | K80: коэф% | M80: * | N80: 1 | T80: =Calc!$H$1439 -> Возврат инвестиций Учредителю | V80: руб. | Y80: =SUM($AA80:$AN80) -> 32000000 | AB80: =IF(AB$1="",0,SUMIFS(Calc!$1439:$1439,Calc!$8:$8,">="&AB$6,Calc!$8:$8,"<="&AB$7)) -> 0 | AC80: =IF(AC$1="",0,SUMIFS(Calc!$1439:$1439,Calc!$8:$8,">="&AC$6,Calc!$8:$8,"<="&AC$7)) -> 0 | AD80: =IF(AD$1="",0,SUMIFS(Calc!$1439:$1439,Calc!$8:$8,">="&AD$6,Calc!$8:$8,"<="&AD$7)) -> 0 | AE80: =IF(AE$1="",0,SUMIFS(Calc!$1439:$1439,Calc!$8:$8,">="&AE$6,Calc!$8:$8,"<="&AE$7)) -> 0 | AF80: =IF(AF$1="",0,SUMIFS(Calc!$1439:$1439,Calc!$8:$8,">="&AF$6,Calc!$8:$8,"<="&AF$7)) -> 0 | AG80: =IF(AG$1="",0,SUMIFS(Calc!$1439:$1439,Calc!$8:$8,">="&AG$6,Calc!$8:$8,"<="&AG$7)) -> 32000000 | AH80: =IF(AH$1="",0,SUMIFS(Calc!$1439:$1439,Calc!$8:$8,">="&AH$6,Calc!$8:$8,"<="&AH$7)) -> 0 | AI80: =IF(AI$1="",0,SUMIFS(Calc!$1439:$1439,Calc!$8:$8,">="&AI$6,Calc!$8:$8,"<="&AI$7)) -> 0 | AJ80: =IF(AJ$1="",0,SUMIFS(Calc!$1439:$1439,Calc!$8:$8,">="&AJ$6,Calc!$8:$8,"<="&AJ$7)) -> 0 | AK80: =IF(AK$1="",0,SUMIFS(Calc!$1439:$1439,Calc!$8:$8,">="&AK$6,Calc!$8:$8,"<="&AK$7)) -> 0 | AL80: =IF(AL$1="",0,SUMIFS(Calc!$1439:$1439,Calc!$8:$8,">="&AL$6,Calc!$8:$8,"<="&AL$7)) -> 0 | AM80: =IF(AM$1="",0,SUMIFS(Calc!$1439:$1439,Calc!$8:$8,">="&AM$6,Calc!$8:$8,"<="&AM$7)) -> 0
F82: =$F$68 -> Коэфф. сезонности спроса на онлайн сервис | J82: =J80+1 -> 8 | K82: коэф% | M82: * | N82: 1 | T82: =Calc!$H$1446 -> Финпоток | V82: руб. | Y82: =SUM($AA82:$AN82) -> 339780525.2 | AA82: =Calc!$Z$1446 -> 160000000 | AB82: =IF(AB$1="",0,SUMIFS(Calc!$1446:$1446,Calc!$8:$8,">="&AB$6,Calc!$8:$8,"<="&AB$7)) -> -138359374.2 | AC82: =IF(AC$1="",0,SUMIFS(Calc!$1446:$1446,Calc!$8:$8,">="&AC$6,Calc!$8:$8,"<="&AC$7)) -> -21640625.76 | AD82: =IF(AD$1="",0,SUMIFS(Calc!$1446:$1446,Calc!$8:$8,">="&AD$6,Calc!$8:$8,"<="&AD$7)) -> 0 | AE82: =IF(AE$1="",0,SUMIFS(Calc!$1446:$1446,Calc!$8:$8,">="&AE$6,Calc!$8:$8,"<="&AE$7)) -> 14807431.36 | AF82: =IF(AF$1="",0,SUMIFS(Calc!$1446:$1446,Calc!$8:$8,">="&AF$6,Calc!$8:$8,"<="&AF$7)) -> 134923376.4 | AG82: =IF(AG$1="",0,SUMIFS(Calc!$1446:$1446,Calc!$8:$8,">="&AG$6,Calc!$8:$8,"<="&AG$7)) -> 190049717.4 | AH82: =IF(AH$1="",0,SUMIFS(Calc!$1446:$1446,Calc!$8:$8,">="&AH$6,Calc!$8:$8,"<="&AH$7)) -> 0 | AI82: =IF(AI$1="",0,SUMIFS(Calc!$1446:$1446,Calc!$8:$8,">="&AI$6,Calc!$8:$8,"<="&AI$7)) -> 0 | AJ82: =IF(AJ$1="",0,SUMIFS(Calc!$1446:$1446,Calc!$8:$8,">="&AJ$6,Calc!$8:$8,"<="&AJ$7)) -> 0 | AK82: =IF(AK$1="",0,SUMIFS(Calc!$1446:$1446,Calc!$8:$8,">="&AK$6,Calc!$8:$8,"<="&AK$7)) -> 0 | AL82: =IF(AL$1="",0,SUMIFS(Calc!$1446:$1446,Calc!$8:$8,">="&AL$6,Calc!$8:$8,"<="&AL$7)) -> 0 | AM82: =IF(AM$1="",0,SUMIFS(Calc!$1446:$1446,Calc!$8:$8,">="&AM$6,Calc!$8:$8,"<="&AM$7)) -> 0
F84: =$F$68 -> Коэфф. сезонности спроса на онлайн сервис | J84: =J82+1 -> 9 | K84: коэф% | M84: * | N84: 0.9 | T84: =Calc!$H$1448 -> Остаток ДС на конец периода | V84: руб. | Y84: =SUMIFS($AA84:$AN84,$AA$1:$AN$1,MAX($AA$1:$AN$1)) -> 0 | AB84: =IF(AB$1="",0,SUMIFS(Calc!$1448:$1448,Calc!$8:$8,EOMONTH(AB$7,-1)+1)) -> 21640625.76 | AC84: =IF(AC$1="",0,SUMIFS(Calc!$1448:$1448,Calc!$8:$8,EOMONTH(AC$7,-1)+1)) -> 0 | AD84: =IF(AD$1="",0,SUMIFS(Calc!$1448:$1448,Calc!$8:$8,EOMONTH(AD$7,-1)+1)) -> 0 | AE84: =IF(AE$1="",0,SUMIFS(Calc!$1448:$1448,Calc!$8:$8,EOMONTH(AE$7,-1)+1)) -> 14807431.36 | AF84: =IF(AF$1="",0,SUMIFS(Calc!$1448:$1448,Calc!$8:$8,EOMONTH(AF$7,-1)+1)) -> 149730807.7 | AG84: =IF(AG$1="",0,SUMIFS(Calc!$1448:$1448,Calc!$8:$8,EOMONTH(AG$7,-1)+1)) -> 339780525.2 | AH84: =IF(AH$1="",0,SUMIFS(Calc!$1448:$1448,Calc!$8:$8,EOMONTH(AH$7,-1)+1)) -> 0 | AI84: =IF(AI$1="",0,SUMIFS(Calc!$1448:$1448,Calc!$8:$8,EOMONTH(AI$7,-1)+1)) -> 0 | AJ84: =IF(AJ$1="",0,SUMIFS(Calc!$1448:$1448,Calc!$8:$8,EOMONTH(AJ$7,-1)+1)) -> 0 | AK84: =IF(AK$1="",0,SUMIFS(Calc!$1448:$1448,Calc!$8:$8,EOMONTH(AK$7,-1)+1)) -> 0 | AL84: =IF(AL$1="",0,SUMIFS(Calc!$1448:$1448,Calc!$8:$8,EOMONTH(AL$7,-1)+1)) -> 0 | AM84: =IF(AM$1="",0,SUMIFS(Calc!$1448:$1448,Calc!$8:$8,EOMONTH(AM$7,-1)+1)) -> 0
F86: =$F$68 -> Коэфф. сезонности спроса на онлайн сервис | J86: =J84+1 -> 10 | K86: коэф% | M86: * | N86: 0.85 | T86: =Calc!$H$1452 -> Free Cash Flow (FCF) | V86: руб. | Y86: =SUM($AA86:$AN86) -> 49239873.23 | AB86: =IF(AB$1="",0,SUMIFS(Calc!$1452:$1452,Calc!$8:$8,">="&AB$6,Calc!$8:$8,"<="&AB$7)) -> 0 | AC86: =IF(AC$1="",0,SUMIFS(Calc!$1452:$1452,Calc!$8:$8,">="&AC$6,Calc!$8:$8,"<="&AC$7)) -> 0 | AD86: =IF(AD$1="",0,SUMIFS(Calc!$1452:$1452,Calc!$8:$8,">="&AD$6,Calc!$8:$8,"<="&AD$7)) -> 0 | AE86: =IF(AE$1="",0,SUMIFS(Calc!$1452:$1452,Calc!$8:$8,">="&AE$6,Calc!$8:$8,"<="&AE$7)) -> 0 | AF86: =IF(AF$1="",0,SUMIFS(Calc!$1452:$1452,Calc!$8:$8,">="&AF$6,Calc!$8:$8,"<="&AF$7)) -> 0 | AG86: =IF(AG$1="",0,SUMIFS(Calc!$1452:$1452,Calc!$8:$8,">="&AG$6,Calc!$8:$8,"<="&AG$7)) -> 49239873.23 | AH86: =IF(AH$1="",0,SUMIFS(Calc!$1452:$1452,Calc!$8:$8,">="&AH$6,Calc!$8:$8,"<="&AH$7)) -> 0 | AI86: =IF(AI$1="",0,SUMIFS(Calc!$1452:$1452,Calc!$8:$8,">="&AI$6,Calc!$8:$8,"<="&AI$7)) -> 0 | AJ86: =IF(AJ$1="",0,SUMIFS(Calc!$1452:$1452,Calc!$8:$8,">="&AJ$6,Calc!$8:$8,"<="&AJ$7)) -> 0 | AK86: =IF(AK$1="",0,SUMIFS(Calc!$1452:$1452,Calc!$8:$8,">="&AK$6,Calc!$8:$8,"<="&AK$7)) -> 0 | AL86: =IF(AL$1="",0,SUMIFS(Calc!$1452:$1452,Calc!$8:$8,">="&AL$6,Calc!$8:$8,"<="&AL$7)) -> 0 | AM86: =IF(AM$1="",0,SUMIFS(Calc!$1452:$1452,Calc!$8:$8,">="&AM$6,Calc!$8:$8,"<="&AM$7)) -> 0
F88: =$F$68 -> Коэфф. сезонности спроса на онлайн сервис | J88: =J86+1 -> 11 | K88: коэф% | M88: * | N88: 0.8 | R88: * | T88: DFCF | V88: руб. | Y88: =SUM($AA88:$AN88) -> 24946452.18 | AB88: =IF(AB$1="",0,IF(AB$59=0,0,AB86/AB$59)) -> 0 | AC88: 0 | AD88: 0 | AE88: =IF(AE$1="",0,IF(AE$59=0,0,AE86/AE$59)) -> 0 | AF88: 0 | AG88: 24946452.18 | AH88: 0 | AI88: 0 | AJ88: 0 | AK88: 0 | AL88: 0 | AM88: 0
F90: =$F$68 -> Коэфф. сезонности спроса на онлайн сервис | J90: =J88+1 -> 12 | K90: коэф% | M90: * | N90: 0.7 | T90: =Calc!$H$1456 -> DPBP | V90: кол-во лет | Y90: =SUMIFS(Calc!$W:$W,Calc!$H:$H,$T90,Calc!$N:$N,Y$8)/12 -> 5.666666667
F92: Ежегодные корректирующие продажи коэффициенты: | R92: * | T92: средневзвешенная ставка капитала | V92: % | Y92: =IF(($N$28+$N$32+$Y$46+Y$74)=0,0,($N$39*$N$28+$Y$57*$N$32+$Y$48*$Y$46+IF(Y$68-Y$70=0,0,Y$70/(Y$68-Y$70))*Y$74)/($N$28+$N$32+$Y$46+Y$74)) -> 0.08341233491 | AB92: =IF(OR(AB$1="",Calc!$Z$1357+Calc!$Z$1381+Calc!$Z$1406+AA$74=0),0,($N$39*Calc!$Z$1357+$Y$57*Calc!$Z$1381+$Y$48*Calc!$Z$1406+IF(AB$68-AB$70=0,0,AB$70/(AB$68-AB$70))*AA$74)/(Calc!$Z$1357+Calc!$Z$1381+Calc!$Z$1406+AA$74)) -> 0.08 | AC92: =IF(OR(AC$1="",SUMIFS(Calc!$1363:$1363,Calc!$8:$8,EOMONTH(AB$7,-1)+1)+SUMIFS(Calc!$1443:$1443,Calc!$8:$8,EOMONTH(AB$7,-1)+1)+SUMIFS(Calc!$1406:$1406,Calc!$8:$8,EOMONTH(AB$7,-1)+1)+AB$74=0),0,($N$39*SUMIFS(Calc!$1363:$1363,Calc!$8:$8,EOMONTH(AB$7,-1)+1)+$Y$57*SUMIFS(Calc!$1443:$1443,Calc!$8:$8,EOMONTH(AB$7,-1)+1)+$Y$48*SUMIFS(Calc!$1406:$1406,Calc!$8:$8,EOMONTH(AB$7,-1)+1)+IF(AC$68-AC$70=0,0,AC$70/(AC$68-AC$70))*AB$74)/(SUMIFS(Calc!$1363:$1363,Calc!$8:$8,EOMONTH(AB$7,-1)+1)+SUMIFS(Calc!$1443:$1443,Calc!$8:$8,EOMONTH(AB$7,-1)+1)+SUMIFS(Calc!$1406:$1406,Calc!$8:$8,EOMONTH(AB$7,-1)+1)+AB$74)) -> 0.6531563315 | AD92: =IF(OR(AD$1="",SUMIFS(Calc!$1363:$1363,Calc!$8:$8,EOMONTH(AC$7,-1)+1)+SUMIFS(Calc!$1443:$1443,Calc!$8:$8,EOMONTH(AC$7,-1)+1)+SUMIFS(Calc!$1406:$1406,Calc!$8:$8,EOMONTH(AC$7,-1)+1)+AC$74=0),0,($N$39*SUMIFS(Calc!$1363:$1363,Calc!$8:$8,EOMONTH(AC$7,-1)+1)+$Y$57*SUMIFS(Calc!$1443:$1443,Calc!$8:$8,EOMONTH(AC$7,-1)+1)+$Y$48*SUMIFS(Calc!$1406:$1406,Calc!$8:$8,EOMONTH(AC$7,-1)+1)+IF(AD$68-AD$70=0,0,AD$70/(AD$68-AD$70))*AC$74)/(SUMIFS(Calc!$1363:$1363,Calc!$8:$8,EOMONTH(AC$7,-1)+1)+SUMIFS(Calc!$1443:$1443,Calc!$8:$8,EOMONTH(AC$7,-1)+1)+SUMIFS(Calc!$1406:$1406,Calc!$8:$8,EOMONTH(AC$7,-1)+1)+AC$74)) -> 1.398658323 | AE92: =IF(OR(AE$1="",SUMIFS(Calc!$1363:$1363,Calc!$8:$8,EOMONTH(AD$7,-1)+1)+SUMIFS(Calc!$1443:$1443,Calc!$8:$8,EOMONTH(AD$7,-1)+1)+SUMIFS(Calc!$1406:$1406,Calc!$8:$8,EOMONTH(AD$7,-1)+1)+AD$74=0),0,($N$39*SUMIFS(Calc!$1363:$1363,Calc!$8:$8,EOMONTH(AD$7,-1)+1)+$Y$57*SUMIFS(Calc!$1443:$1443,Calc!$8:$8,EOMONTH(AD$7,-1)+1)+$Y$48*SUMIFS(Calc!$1406:$1406,Calc!$8:$8,EOMONTH(AD$7,-1)+1)+IF(AE$68-AE$70=0,0,AE$70/(AE$68-AE$70))*AD$74)/(SUMIFS(Calc!$1363:$1363,Calc!$8:$8,EOMONTH(AD$7,-1)+1)+SUMIFS(Calc!$1443:$1443,Calc!$8:$8,EOMONTH(AD$7,-1)+1)+SUMIFS(Calc!$1406:$1406,Calc!$8:$8,EOMONTH(AD$7,-1)+1)+AD$74)) -> 10.37316745 | AF92: =IF(OR(AF$1="",SUMIFS(Calc!$1363:$1363,Calc!$8:$8,EOMONTH(AE$7,-1)+1)+SUMIFS(Calc!$1443:$1443,Calc!$8:$8,EOMONTH(AE$7,-1)+1)+SUMIFS(Calc!$1406:$1406,Calc!$8:$8,EOMONTH(AE$7,-1)+1)+AE$74=0),0,($N$39*SUMIFS(Calc!$1363:$1363,Calc!$8:$8,EOMONTH(AE$7,-1)+1)+$Y$57*SUMIFS(Calc!$1443:$1443,Calc!$8:$8,EOMONTH(AE$7,-1)+1)+$Y$48*SUMIFS(Calc!$1406:$1406,Calc!$8:$8,EOMONTH(AE$7,-1)+1)+IF(AF$68-AF$70=0,0,AF$70/(AF$68-AF$70))*AE$74)/(SUMIFS(Calc!$1363:$1363,Calc!$8:$8,EOMONTH(AE$7,-1)+1)+SUMIFS(Calc!$1443:$1443,Calc!$8:$8,EOMONTH(AE$7,-1)+1)+SUMIFS(Calc!$1406:$1406,Calc!$8:$8,EOMONTH(AE$7,-1)+1)+AE$74)) -> 2.322477417 | AG92: =IF(OR(AG$1="",SUMIFS(Calc!$1363:$1363,Calc!$8:$8,EOMONTH(AF$7,-1)+1)+SUMIFS(Calc!$1443:$1443,Calc!$8:$8,EOMONTH(AF$7,-1)+1)+SUMIFS(Calc!$1406:$1406,Calc!$8:$8,EOMONTH(AF$7,-1)+1)+AF$74=0),0,($N$39*SUMIFS(Calc!$1363:$1363,Calc!$8:$8,EOMONTH(AF$7,-1)+1)+$Y$57*SUMIFS(Calc!$1443:$1443,Calc!$8:$8,EOMONTH(AF$7,-1)+1)+$Y$48*SUMIFS(Calc!$1406:$1406,Calc!$8:$8,EOMONTH(AF$7,-1)+1)+IF(AG$68-AG$70=0,0,AG$70/(AG$68-AG$70))*AF$74)/(SUMIFS(Calc!$1363:$1363,Calc!$8:$8,EOMONTH(AF$7,-1)+1)+SUMIFS(Calc!$1443:$1443,Calc!$8:$8,EOMONTH(AF$7,-1)+1)+SUMIFS(Calc!$1406:$1406,Calc!$8:$8,EOMONTH(AF$7,-1)+1)+AF$74)) -> -8.257270404 | AH92: =IF(OR(AH$1="",SUMIFS(Calc!$1363:$1363,Calc!$8:$8,EOMONTH(AG$7,-1)+1)+SUMIFS(Calc!$1443:$1443,Calc!$8:$8,EOMONTH(AG$7,-1)+1)+SUMIFS(Calc!$1406:$1406,Calc!$8:$8,EOMONTH(AG$7,-1)+1)+AG$74=0),0,($N$39*SUMIFS(Calc!$1363:$1363,Calc!$8:$8,EOMONTH(AG$7,-1)+1)+$Y$57*SUMIFS(Calc!$1443:$1443,Calc!$8:$8,EOMONTH(AG$7,-1)+1)+$Y$48*SUMIFS(Calc!$1406:$1406,Calc!$8:$8,EOMONTH(AG$7,-1)+1)+IF(AH$68-AH$70=0,0,AH$70/(AH$68-AH$70))*AG$74)/(SUMIFS(Calc!$1363:$1363,Calc!$8:$8,EOMONTH(AG$7,-1)+1)+SUMIFS(Calc!$1443:$1443,Calc!$8:$8,EOMONTH(AG$7,-1)+1)+SUMIFS(Calc!$1406:$1406,Calc!$8:$8,EOMONTH(AG$7,-1)+1)+AG$74)) -> 0 | AI92: =IF(OR(AI$1="",SUMIFS(Calc!$1363:$1363,Calc!$8:$8,EOMONTH(AH$7,-1)+1)+SUMIFS(Calc!$1443:$1443,Calc!$8:$8,EOMONTH(AH$7,-1)+1)+SUMIFS(Calc!$1406:$1406,Calc!$8:$8,EOMONTH(AH$7,-1)+1)+AH$74=0),0,($N$39*SUMIFS(Calc!$1363:$1363,Calc!$8:$8,EOMONTH(AH$7,-1)+1)+$Y$57*SUMIFS(Calc!$1443:$1443,Calc!$8:$8,EOMONTH(AH$7,-1)+1)+$Y$48*SUMIFS(Calc!$1406:$1406,Calc!$8:$8,EOMONTH(AH$7,-1)+1)+IF(AI$68-AI$70=0,0,AI$70/(AI$68-AI$70))*AH$74)/(SUMIFS(Calc!$1363:$1363,Calc!$8:$8,EOMONTH(AH$7,-1)+1)+SUMIFS(Calc!$1443:$1443,Calc!$8:$8,EOMONTH(AH$7,-1)+1)+SUMIFS(Calc!$1406:$1406,Calc!$8:$8,EOMONTH(AH$7,-1)+1)+AH$74)) -> 0 | AJ92: =IF(OR(AJ$1="",SUMIFS(Calc!$1363:$1363,Calc!$8:$8,EOMONTH(AI$7,-1)+1)+SUMIFS(Calc!$1443:$1443,Calc!$8:$8,EOMONTH(AI$7,-1)+1)+SUMIFS(Calc!$1406:$1406,Calc!$8:$8,EOMONTH(AI$7,-1)+1)+AI$74=0),0,($N$39*SUMIFS(Calc!$1363:$1363,Calc!$8:$8,EOMONTH(AI$7,-1)+1)+$Y$57*SUMIFS(Calc!$1443:$1443,Calc!$8:$8,EOMONTH(AI$7,-1)+1)+$Y$48*SUMIFS(Calc!$1406:$1406,Calc!$8:$8,EOMONTH(AI$7,-1)+1)+IF(AJ$68-AJ$70=0,0,AJ$70/(AJ$68-AJ$70))*AI$74)/(SUMIFS(Calc!$1363:$1363,Calc!$8:$8,EOMONTH(AI$7,-1)+1)+SUMIFS(Calc!$1443:$1443,Calc!$8:$8,EOMONTH(AI$7,-1)+1)+SUMIFS(Calc!$1406:$1406,Calc!$8:$8,EOMONTH(AI$7,-1)+1)+AI$74)) -> 0 | AK92: =IF(OR(AK$1="",SUMIFS(Calc!$1363:$1363,Calc!$8:$8,EOMONTH(AJ$7,-1)+1)+SUMIFS(Calc!$1443:$1443,Calc!$8:$8,EOMONTH(AJ$7,-1)+1)+SUMIFS(Calc!$1406:$1406,Calc!$8:$8,EOMONTH(AJ$7,-1)+1)+AJ$74=0),0,($N$39*SUMIFS(Calc!$1363:$1363,Calc!$8:$8,EOMONTH(AJ$7,-1)+1)+$Y$57*SUMIFS(Calc!$1443:$1443,Calc!$8:$8,EOMONTH(AJ$7,-1)+1)+$Y$48*SUMIFS(Calc!$1406:$1406,Calc!$8:$8,EOMONTH(AJ$7,-1)+1)+IF(AK$68-AK$70=0,0,AK$70/(AK$68-AK$70))*AJ$74)/(SUMIFS(Calc!$1363:$1363,Calc!$8:$8,EOMONTH(AJ$7,-1)+1)+SUMIFS(Calc!$1443:$1443,Calc!$8:$8,EOMONTH(AJ$7,-1)+1)+SUMIFS(Calc!$1406:$1406,Calc!$8:$8,EOMONTH(AJ$7,-1)+1)+AJ$74)) -> 0 | AL92: =IF(OR(AL$1="",SUMIFS(Calc!$1363:$1363,Calc!$8:$8,EOMONTH(AK$7,-1)+1)+SUMIFS(Calc!$1443:$1443,Calc!$8:$8,EOMONTH(AK$7,-1)+1)+SUMIFS(Calc!$1406:$1406,Calc!$8:$8,EOMONTH(AK$7,-1)+1)+AK$74=0),0,($N$39*SUMIFS(Calc!$1363:$1363,Calc!$8:$8,EOMONTH(AK$7,-1)+1)+$Y$57*SUMIFS(Calc!$1443:$1443,Calc!$8:$8,EOMONTH(AK$7,-1)+1)+$Y$48*SUMIFS(Calc!$1406:$1406,Calc!$8:$8,EOMONTH(AK$7,-1)+1)+IF(AL$68-AL$70=0,0,AL$70/(AL$68-AL$70))*AK$74)/(SUMIFS(Calc!$1363:$1363,Calc!$8:$8,EOMONTH(AK$7,-1)+1)+SUMIFS(Calc!$1443:$1443,Calc!$8:$8,EOMONTH(AK$7,-1)+1)+SUMIFS(Calc!$1406:$1406,Calc!$8:$8,EOMONTH(AK$7,-1)+1)+AK$74)) -> 0 | AM92: =IF(OR(AM$1="",SUMIFS(Calc!$1363:$1363,Calc!$8:$8,EOMONTH(AL$7,-1)+1)+SUMIFS(Calc!$1443:$1443,Calc!$8:$8,EOMONTH(AL$7,-1)+1)+SUMIFS(Calc!$1406:$1406,Calc!$8:$8,EOMONTH(AL$7,-1)+1)+AL$74=0),0,($N$39*SUMIFS(Calc!$1363:$1363,Calc!$8:$8,EOMONTH(AL$7,-1)+1)+$Y$57*SUMIFS(Calc!$1443:$1443,Calc!$8:$8,EOMONTH(AL$7,-1)+1)+$Y$48*SUMIFS(Calc!$1406:$1406,Calc!$8:$8,EOMONTH(AL$7,-1)+1)+IF(AM$68-AM$70=0,0,AM$70/(AM$68-AM$70))*AL$74)/(SUMIFS(Calc!$1363:$1363,Calc!$8:$8,EOMONTH(AL$7,-1)+1)+SUMIFS(Calc!$1443:$1443,Calc!$8:$8,EOMONTH(AL$7,-1)+1)+SUMIFS(Calc!$1406:$1406,Calc!$8:$8,EOMONTH(AL$7,-1)+1)+AL$74)) -> 0
F94: год: | I94: 2021 | K94: коэф% | M94: * | N94: 0.5 | R94: * | T94: DSCR | V94: коэф | Y94: =IF(Y28+Y30=0,0,(Y86+Y28+Y30)/(Y28+Y30)) -> 1.303999876 | AB94: =IF(OR(AB$1="",AB28+AB30=0),0,(AB86+AB28+AB30)/(AB28+AB30)) -> 1 | AC94: =IF(OR(AC$1="",AC28+AC30=0),0,(AC86+AC28+AC30)/(AC28+AC30)) -> 1 | AD94: 1 | AE94: =IF(OR(AE$1="",AE28+AE30=0),0,(AE86+AE28+AE30)/(AE28+AE30)) -> 1 | AF94: 1 | AG94: 2.667849981 | AH94: 0 | AI94: 0 | AJ94: 0 | AK94: 0 | AL94: 0 | AM94: 0
F96: год: | I96: =I94+1 -> 2022 | K96: коэф% | M96: * | N96: 0.7 | R96: * | T96: WACC | V96: % | Y96: =IF((N28+N32+IF(Y70<0,0,Y70)+Y46)=0,0,(N39*(N28/(N28+N32+IF(Y70<0,0,Y70)+Y46))+Y48*(Y46/(N28+N32+IF(Y70<0,0,Y70)+Y46)))*(1-Lists!$AE$11)+((N32+IF(Y70<0,0,Y70))/(N28+N32+IF(Y70<0,0,Y70)+Y46))*N34) -> 0.08531669537
F98: год: | I98: =I96+1 -> 2023 | K98: коэф% | M98: * | N98: 0.85 | R98: * | T98: NPV(WACC) | V98: руб. | Y98: =SUM($AA98:$AN98) -> 209527469.1 | AB98: =IF(AB$1="",0,AB11/POWER((1+$Y$96),AB$1)) -> -119227295.4 | AC98: -13828067.35 | AD98: 16930697.87 | AE98: =IF(AE$1="",0,AE11/POWER((1+$Y$96),AE$1)) -> 61194607.02 | AF98: 110527064.5 | AG98: 153930462.5 | AH98: 0 | AI98: 0 | AJ98: 0 | AK98: 0 | AL98: 0 | AM98: 0
F100: год: | I100: =I98+1 -> 2024 | K100: коэф% | M100: * | N100: 1 | R100: * | T100: ROI | V100: % | Y100: =IF(Y23+Y46=0,0,Y98/(Y23+Y46)) -> 1.086116089
F102: год: | I102: =I100+1 -> 2025 | K102: коэф% | M102: * | N102: 1
F104: год: | I104: =I102+1 -> 2026 | K104: коэф% | M104: * | N104: 1
F106: год: | I106: =I104+1 -> 2027 | K106: коэф% | M106: * | N106: 1
F108: год: | I108: =I106+1 -> 2028 | K108: коэф% | M108: * | N108: 1
F110: год: | I110: =I108+1 -> 2029 | K110: коэф% | M110: * | N110: 1
E114: * | F114: Оборачиваемость ДЗ по аппаратам | K114: дни | M114: * | N114: 10
E116: * | F116: Оборач-сть готовой продукции в продажах | K116: дни | M116: * | N116: 7
E118: * | F118: Произв. оборачив-сть по аппаратам | K118: дни | M118: * | N118: 15
E120: * | F120: Оборач-сть кредиторской задолженности | K120: дни | M120: * | N120: 7
F123: Себестоимость 1-ого аппарата:
E124: * | F124: с/ст ингредиент 1.1 | K124: шт/блок | M124: * | N124: 1
E125: * | F125: с/ст ингредиент 1.2 | K125: шт/блок | M125: * | N125: 1
E126: * | F126: с/ст ингредиент 1.3 | K126: шт/блок | M126: * | N126: 1
E127: * | F127: с/ст ингредиент 1.4 | K127: шт/блок | M127: * | N127: 1
E128: * | F128: с/ст ингредиент 1.5 | K128: шт/блок | M128: * | N128: 1
F129: стоимость комплектующих/ингредиентов:
F130: =F124 -> с/ст ингредиент 1.1 | K130: руб./шт | M130: * | N130: 500
F131: =F125 -> с/ст ингредиент 1.2 | K131: руб./шт | M131: * | N131: 400
F132: =F126 -> с/ст ингредиент 1.3 | K132: руб./шт | M132: * | N132: 100
F133: =F127 -> с/ст ингредиент 1.4 | K133: руб./шт | M133: * | N133: 50
F134: =F128 -> с/ст ингредиент 1.5 | K134: руб./шт | M134: * | N134: 20
F135: =F123 -> Себестоимость 1-ого аппарата:
F136: =F130 -> с/ст ингредиент 1.1 | K136: руб./блок | N136: =N124*N130 -> 500
F137: =F131 -> с/ст ингредиент 1.2 | K137: руб./блок | N137: =N125*N131 -> 400
F138: =F132 -> с/ст ингредиент 1.3 | K138: руб./блок | N138: =N126*N132 -> 100
F139: =F133 -> с/ст ингредиент 1.4 | K139: руб./блок | N139: =N127*N133 -> 50
F140: =F134 -> с/ст ингредиент 1.5 | K140: руб./блок | N140: =N128*N134 -> 20
F141: Себестоимость годовой подписки на онлайн сервис:
E142: * | F142: с/ст ингредиент 2.1 | K142: шт/ подписка | M142: *
E143: * | F143: с/ст ингредиент 2.2 | K143: шт/ подписка | M143: *
E144: * | F144: с/ст ингредиент 2.3 | K144: шт/ подписка | M144: *
E145: * | F145: с/ст ингредиент 2.4 | K145: шт/ подписка | M145: *
E146: * | F146: с/ст ингредиент 2.5 | K146: шт/ подписка | M146: *
F147: стоимость с/ст ингредиентов:
F148: =F142 -> с/ст ингредиент 2.1 | K148: руб./шт | M148: *
F149: =F143 -> с/ст ингредиент 2.2 | K149: руб./шт | M149: *
F150: =F144 -> с/ст ингредиент 2.3 | K150: руб./шт | M150: *
F151: =F145 -> с/ст ингредиент 2.4 | K151: руб./шт | M151: *
F152: =F146 -> с/ст ингредиент 2.5 | K152: руб./шт | M152: *
F153: =F141 -> Себестоимость годовой подписки на онлайн сервис:
F154: =F148 -> с/ст ингредиент 2.1 | K154: руб./ подписка | N154: =N142*N148 -> 0
F155: =F149 -> с/ст ингредиент 2.2 | K155: руб./ подписка | N155: =N143*N149 -> 0
F156: =F150 -> с/ст ингредиент 2.3 | K156: руб./ подписка | N156: 0
F157: =F151 -> с/ст ингредиент 2.4 | K157: руб./ подписка | N157: 0
F158: =F152 -> с/ст ингредиент 2.5 | K158: руб./ подписка | N158: 0
F160: Прямые переменные расходы при пр-ве аппаратов
E161: * | F161: % в продажах команд. и представ. расх-ов | K161: % | M161: * | N161: 0.03
E162: * | F162: % в продажах расх-ов на ТО и рем-нт оборуд. | K162: % | M162: * | N162: 0.04
E163: * | F163: % в продажах прочих материал. расх-ов | K163: % | M163: * | N163: 0.01
F165: Прямые переменные расходы при реализации подписок
E166: * | F166: % в продажах консультац. расх-ов | K166: % | M166: * | N166: 0.01
E167: * | F167: % в продажах представительских расх-ов | K167: % | M167: * | N167: 0.01
E168: * | F168: % в продажах проч. прям. расх-ов на подписки | K168: % | M168: * | N168: 0.005
F170: Общие переменные расходы
E171: * | F171: % в продажах маркетинговых расх-ов | K171: % | M171: * | N171: 0.03
E172: * | F172: % в продажах расх-ов на инновации | K172: % | M172: * | N172: 0.02
E173: * | F173: % в продажах прочих переменных расх-ов | K173: % | M173: * | N173: 0.01
F175: Постоянные расходы
E176: * | F176: Расходы на текущий ремонт и обслуживание производства | K176: руб./мес. | M176: * | N176: 100000
E177: * | F177: Аренда офиса | K177: руб./мес. | M177: * | N177: 300000
E178: * | F178: Расходы на персонал | K178: руб./мес. | M178: * | N178: 30000
E179: * | F179: Услуги связи | K179: руб./мес. | M179: * | N179: 20000
E180: * | F180: Расходы на создание рекламной продукции | K180: руб. всего | M180: * | N180: 10000000
E181: * | F181: Канцелярские и хозрасходы | K181: руб./мес. | M181: * | N181: 20000
E182: * | F182: Банковские расходы | K182: руб./мес. | M182: * | N182: 10000
E183: * | F183: Юридические расходы | K183: руб./мес. | M183: * | N183: 15000
E184: * | F184: Расходы на сайт | K184: руб./мес. | M184: * | N184: 15000

Sheet sens
O1: 1 | P1: =O1+1 -> 2 | Q1: =P1+1 -> 3 | R1: 4 | S1: 5
D2: =MAIN!$D$2 -> Финансовая модель
D3: =MAIN!$D$3 -> Проект: разработка онлайн сервиса
F5: * | G5: Анализ чувствительности
O7: сценарии
K8: =MAIN!$F$8 -> показатель | O8: пессимистич. | P8: умеренно пессим. | Q8: базовый | R8: умеренно оптимист. | S8: оптимистич.
H12: Анализ чувствительности к изменению стоимости аппаратов | O12: 1 | P12: 2 | Q12: 3 | R12: 4 | S12: 5
K15: Изменение стоимости интерактивных блоков | N15: * | O15: -0.2 | P15: -0.07 | Q15: 0 | R15: 0.07 | S15: 0.2
K16: Стоимость интерактивных блоков | O16: =$Q16*(1+O15) -> 2400 | P16: =$Q16*(1+P15) -> 2790 | Q16: =MAIN!$N$57 -> 3000 | R16: =$Q16*(1+R15) -> 3210 | S16: =$Q16*(1+S15) -> 3600
Q17: 3000
K18: Результат:
K20: Изменение финансового потока | O20: =IF($Q21=0,0,(O21-$Q21)/$Q21) -> -0.04795215684 | P20: =IF($Q21=0,0,(P21-$Q21)/$Q21) -> -0.01678857843 | Q20: =IF($Q21=0,0,(Q21-$Q21)/$Q21) -> 0 | R20: =IF($Q21=0,0,(R21-$Q21)/$Q21) -> 0.01679941353 | S20: =IF($Q21=0,0,(S21-$Q21)/$Q21) -> 0.04801740235
K21: =MAIN!$T$11 -> Финпоток проекта (по осн. деят-ти) | O21: 360705204.8 | P21: 372512242.6 | Q21: =SUMIFS(MAIN!$Y:$Y,MAIN!$T:$T,$K21) -> 378872981.4 | R21: 385237825.3 | S21: 397065477.8
K22: Изменение IRR проекта | O22: =O23-$Q23 -> -0.01731923291 | P22: =P23-$Q23 -> -0.006056895989 | Q22: =Q23-$Q23 -> 0 | R22: =R23-$Q23 -> 0.006052793998 | S22: =S23-$Q23 -> 0.01728126431
K23: IRR проекта | O23: 0.359213801 | P23: 0.3704761379 | Q23: =SUMIFS(MAIN!$Y:$Y,MAIN!$T:$T,$K23) -> 0.3765330339 | R23: 0.3825858279 | S23: 0.3938142982
K24: Изменение выручки | O24: =IF($Q25=0,0,(O25-$Q25)/$Q25) -> -0.0437765438 | P24: =IF($Q25=0,0,(P25-$Q25)/$Q25) -> -0.01532179033 | Q24: =IF($Q25=0,0,(Q25-$Q25)/$Q25) -> 0 | R24: =IF($Q25=0,0,(R25-$Q25)/$Q25) -> 0.01532179033 | S24: =IF($Q25=0,0,(S25-$Q25)/$Q25) -> 0.0437765438
K25: =MAIN!$T$68 -> Выручка | O25: 582787474.6 | P25: 600129732.7 | Q25: =SUMIFS(MAIN!$Y:$Y,MAIN!$T:$T,$K25) -> 609467871.6 | R25: 618806010.5 | S25: 636148268.6
K26: Изменение чистой прибыли | O26: =IF($Q27=0,0,(O27-$Q27)/$Q27) -> -0.2346106976 | P26: =IF($Q27=0,0,(P27-$Q27)/$Q27) -> -0.08201443612 | Q26: =IF($Q27=0,0,(Q27-$Q27)/$Q27) -> 0 | R26: =IF($Q27=0,0,(R27-$Q27)/$Q27) -> 0.08181231232 | S26: =IF($Q27=0,0,(S27-$Q27)/$Q27) -> 0.2333935729
K27: =MAIN!$T$70 -> Чистая прибыль | O27: 62180129.9 | P27: 74577030.84 | Q27: =SUMIFS(MAIN!$Y:$Y,MAIN!$T:$T,$K27) -> 81239873.23 | R27: 87886295.11 | S27: 100200737.5
K28: Изменение NPV(WACC) | O28: =IF($Q29=0,0,(O29-$Q29)/$Q29) -> -0.04290024942 | P28: =IF($Q29=0,0,(P29-$Q29)/$Q29) -> -0.01514874603 | Q28: =IF($Q29=0,0,(Q29-$Q29)/$Q29) -> 0 | R28: =IF($Q29=0,0,(R29-$Q29)/$Q29) -> 0.0152933355 | S28: =IF($Q29=0,0,(S29-$Q29)/$Q29) -> 0.04402631658
K29: =MAIN!$T$98 -> NPV(WACC) | O29: 200538688.4 | P29: 206353390.7 | Q29: =SUMIFS(MAIN!$Y:$Y,MAIN!$T:$T,$K29) -> 209527469.1 | R29: 212731843 | S29: 218752191.8
K30: Изменение PBP | O30: =IF($Q31=0,0,(O31-$Q31)/$Q31) -> 0.01923076923 | P30: =IF($Q31=0,0,(P31-$Q31)/$Q31) -> 0.01923076923 | Q30: =IF($Q31=0,0,(Q31-$Q31)/$Q31) -> 0 | R30: =IF($Q31=0,0,(R31-$Q31)/$Q31) -> 0 | S30: =IF($Q31=0,0,(S31-$Q31)/$Q31) -> 0
K31: =MAIN!$T$15 -> PBP - простой срок окупаемости проекта | O31: 4.416666667 | P31: 4.416666667 | Q31: =SUMIFS(MAIN!$Y:$Y,MAIN!$T:$T,$K31) -> 4.333333333 | R31: 4.333333333 | S31: 4.333333333
K32: Изменение DPBP | O32: =IF($Q33=0,0,(O33-$Q33)/$Q33) -> 0.02941176471 | P32: =IF($Q33=0,0,(P33-$Q33)/$Q33) -> 0.01470588235 | Q32: =IF($Q33=0,0,(Q33-$Q33)/$Q33) -> 0 | R32: =IF($Q33=0,0,(R33-$Q33)/$Q33) -> 0 | S32: =IF($Q33=0,0,(S33-$Q33)/$Q33) -> -0.01470588235
K33: =MAIN!$T$90 -> DPBP | O33: 5.833333333 | P33: 5.75 | Q33: =SUMIFS(MAIN!$Y:$Y,MAIN!$T:$T,$K33) -> 5.666666667 | R33: 5.666666667 | S33: 5.583333333
K34: Изменение ROI | O34: =O35-$Q35 -> -0.0713269227 | P34: -0.02550049773 | Q34: 0 | R34: 0.02609767841 | S34: 0.07614410146
K35: =MAIN!$T$100 -> ROI | O35: 1.014789166 | P35: 1.060615591 | Q35: =SUMIFS(MAIN!$Y:$Y,MAIN!$T:$T,$K35) -> 1.086116089 | R35: 1.112213767 | S35: 1.16226019
H86: Анализ чувствительности к изменению постоянных расходов | O86: 1 | P86: 2 | Q86: 3 | R86: 4 | S86: 5
K89: Изменение постоянных расходов (без ФОТ и соцсборов) | N89: * | O89: 0.2 | P89: 0.07 | Q89: 0 | R89: -0.07 | S89: -0.2
K90: Уровень постоянных расходов | O90: =$Q90*(1+O89) -> 60274732.14 | P90: =$Q90*(1+P89) -> 53744969.49 | Q90: =Reports!$E$18-Calc!$W$898-Calc!$W$952-Calc!$W$967 -> 50228943.45 | R90: =$Q90*(1+R89) -> 46712917.41 | S90: =$Q90*(1+S89) -> 40183154.76
Q91: 0
K92: Результат:
K94: Изменение финансового потока | O94: =IF($Q95=0,0,(O95-$Q95)/$Q95) -> -0.02065327682 | P94: =IF($Q95=0,0,(P95-$Q95)/$Q95) -> -0.007289994045 | Q94: =IF($Q95=0,0,(Q95-$Q95)/$Q95) -> 0 | R94: =IF($Q95=0,0,(R95-$Q95)/$Q95) -> 0.007243451902 | S94: =IF($Q95=0,0,(S95-$Q95)/$Q95) -> 0.02071459236
K95: =MAIN!$T$11 -> Финпоток проекта (по осн. деят-ти) | O95: 371048012.8 | P95: 376110999.6 | Q95: =SUMIFS(MAIN!$Y:$Y,MAIN!$T:$T,$K95) -> 378872981.4 | R95: 381617329.6 | S95: 386721180.8
K96: Изменение IRR проекта | O96: =O97-$Q97 -> -0.0130387593 | P96: =P97-$Q97 -> -0.004677400509 | Q96: =Q97-$Q97 -> 0 | R96: =R97-$Q97 -> 0.004665169012 | S96: =S97-$Q97 -> 0.01347371738
K97: IRR проекта | O97: 0.3634942746 | P97: 0.3718556334 | Q97: =SUMIFS(MAIN!$Y:$Y,MAIN!$T:$T,$K97) -> 0.3765330339 | R97: 0.3811982029 | S97: 0.3900067513
K98: Изменение выручки | O98: =IF($Q99=0,0,(O99-$Q99)/$Q99) -> 0 | P98: =IF($Q99=0,0,(P99-$Q99)/$Q99) -> 0 | Q98: =IF($Q99=0,0,(Q99-$Q99)/$Q99) -> 0 | R98: =IF($Q99=0,0,(R99-$Q99)/$Q99) -> 0 | S98: =IF($Q99=0,0,(S99-$Q99)/$Q99) -> 0
K99: =MAIN!$T$68 -> Выручка | O99: 609467871.6 | P99: 609467871.6 | Q99: =SUMIFS(MAIN!$Y:$Y,MAIN!$T:$T,$K99) -> 609467871.6 | R99: 609467871.6 | S99: 609467871.6
K100: Изменение чистой прибыли | O100: =IF($Q101=0,0,(O101-$Q101)/$Q101) -> -0.1104329789 | P100: =IF($Q101=0,0,(P101-$Q101)/$Q101) -> -0.03860337804 | Q100: =IF($Q101=0,0,(Q101-$Q101)/$Q101) -> 0 | R100: =IF($Q101=0,0,(R101-$Q101)/$Q101) -> 0.03837536195 | S100: =IF($Q101=0,0,(S101-$Q101)/$Q101) -> 0.109289166
K101: =MAIN!$T$70 -> Чистая прибыль | O101: 72268312.03 | P101: 78103739.69 | Q101: =SUMIFS(MAIN!$Y:$Y,MAIN!$T:$T,$K101) -> 81239873.23 | R101: 84357482.77 | S101: 90118511.22
K102: Изменение NPV(WACC) | O102: =IF($Q103=0,0,(O103-$Q103)/$Q103) -> -0.02166985087 | P102: =IF($Q103=0,0,(P103-$Q103)/$Q103) -> -0.007726575903 | Q102: =IF($Q103=0,0,(Q103-$Q103)/$Q103) -> 0 | R102: =IF($Q103=0,0,(R103-$Q103)/$Q103) -> 0.007651262678 | S102: =IF($Q103=0,0,(S103-$Q103)/$Q103) -> 0.02194512256
K103: =MAIN!$T$98 -> NPV(WACC) | O103: 204987040.1 | P103: 207908539.2 | Q103: =SUMIFS(MAIN!$Y:$Y,MAIN!$T:$T,$K103) -> 209527469.1 | R103: 211130618.8 | S103: 214125575.1
K104: Изменение PBP | O104: =IF($Q105=0,0,(O105-$Q105)/$Q105) -> 0.01923076923 | P104: =IF($Q105=0,0,(P105-$Q105)/$Q105) -> 0 | Q104: =IF($Q105=0,0,(Q105-$Q105)/$Q105) -> 0 | R104: =IF($Q105=0,0,(R105-$Q105)/$Q105) -> 0 | S104: =IF($Q105=0,0,(S105-$Q105)/$Q105) -> 0
K105: =MAIN!$T$15 -> PBP - простой срок окупаемости проекта | O105: 4.416666667 | P105: 4.333333333 | Q105: =SUMIFS(MAIN!$Y:$Y,MAIN!$T:$T,$K105) -> 4.333333333 | R105: 4.333333333 | S105: 4.333333333
K106: Изменение DPBP | O106: =IF($Q107=0,0,(O107-$Q107)/$Q107) -> 0.01470588235 | P106: =IF($Q107=0,0,(P107-$Q107)/$Q107) -> 0.01470588235 | Q106: =IF($Q107=0,0,(Q107-$Q107)/$Q107) -> 0 | R106: =IF($Q107=0,0,(R107-$Q107)/$Q107) -> 0 | S106: =IF($Q107=0,0,(S107-$Q107)/$Q107) -> 0
K107: =MAIN!$T$90 -> DPBP | O107: 5.75 | P107: 5.75 | Q107: =SUMIFS(MAIN!$Y:$Y,MAIN!$T:$T,$K107) -> 5.666666667 | R107: 5.666666667 | S107: 5.666666667
K108: Изменение ROI | O108: =O109-$Q109 -> -0.05296723834 | P108: -0.01902881873 | Q108: 0 | R108: 0.0193319565 | S108: 0.05638121995
K109: =MAIN!$T$100 -> ROI | O109: 1.03314885 | P109: 1.06708727 | Q109: =SUMIFS(MAIN!$Y:$Y,MAIN!$T:$T,$K109) -> 1.086116089 | R109: 1.105448045 | S109: 1.142497309

Sheet CAPEX
AA1: 1 | AB1: =AA1+1 -> 2 | AC1: =AB1+1 -> 3 | AD1: 4 | AE1: 5 | AF1: 6 | AG1: 7 | AH1: 8 | AI1: 9 | AJ1: 10 | AK1: 11 | AL1: 12 | AM1: 13 | AN1: 14 | AO1: 15 | AP1: 16 | AQ1: 17 | AR1: 18 | AS1: 19 | AT1: 20 | AU1: 21 | AV1: 22 | AW1: 23 | AX1: =AW1+1 -> 24 | AY1: =AX1+1 -> 25 | AZ1: =AY1+1 -> 26 | BA1: =AZ1+1 -> 27 | BB1: =BA1+1 -> 28 | BC1: =BB1+1 -> 29 | BD1: =BC1+1 -> 30 | BE1: =BD1+1 -> 31 | BF1: =BE1+1 -> 32 | BG1: =BF1+1 -> 33 | BH1: =BG1+1 -> 34 | BI1: =BH1+1 -> 35 | BJ1: =BI1+1 -> 36 | BK1: =BJ1+1 -> 37 | BL1: =BK1+1 -> 38 | BM1: =BL1+1 -> 39 | BN1: =BM1+1 -> 40 | BO1: =BN1+1 -> 41 | BP1: =BO1+1 -> 42 | BQ1: =BP1+1 -> 43 | BR1: =BQ1+1 -> 44 | BS1: =BR1+1 -> 45 | BT1: =BS1+1 -> 46 | BU1: =BT1+1 -> 47 | BV1: =BU1+1 -> 48 | BW1: =BV1+1 -> 49 | BX1: =BW1+1 -> 50 | BY1: =BX1+1 -> 51 | BZ1: =BY1+1 -> 52 | CA1: =BZ1+1 -> 53 | CB1: =CA1+1 -> 54 | CC1: =CB1+1 -> 55 | CD1: =CC1+1 -> 56 | CE1: =CD1+1 -> 57 | CF1: =CE1+1 -> 58 | CG1: =CF1+1 -> 59 | CH1: =CG1+1 -> 60 | CI1: =CH1+1 -> 61 | CJ1: =CI1+1 -> 62 | CK1: =CJ1+1 -> 63 | CL1: =CK1+1 -> 64 | CM1: =CL1+1 -> 65 | CN1: =CM1+1 -> 66 | CO1: =CN1+1 -> 67 | CP1: =CO1+1 -> 68 | CQ1: =CP1+1 -> 69 | CR1: =CQ1+1 -> 70 | CS1: =CR1+1 -> 71 | CT1: =CS1+1 -> 72 | CU1: =CT1+1 -> 73 | CV1: =CU1+1 -> 74 | CW1: =CV1+1 -> 75 | CX1: =CW1+1 -> 76 | CY1: =CX1+1 -> 77 | CZ1: =CY1+1 -> 78 | DA1: =CZ1+1 -> 79 | DB1: =DA1+1 -> 80 | DC1: =DB1+1 -> 81 | DD1: =DC1+1 -> 82 | DE1: =DD1+1 -> 83 | DF1: =DE1+1 -> 84 | DG1: =DF1+1 -> 85 | DH1: =DG1+1 -> 86 | DI1: =DH1+1 -> 87 | DJ1: =DI1+1 -> 88 | DK1: =DJ1+1 -> 89 | DL1: =DK1+1 -> 90 | DM1: =DL1+1 -> 91 | DN1: =DM1+1 -> 92 | DO1: =DN1+1 -> 93 | DP1: =DO1+1 -> 94 | DQ1: =DP1+1 -> 95 | DR1: =DQ1+1 -> 96 | DS1: =DR1+1 -> 97 | DT1: =DS1+1 -> 98 | DU1: =DT1+1 -> 99 | DV1: =DU1+1 -> 100 | DW1: =DV1+1 -> 101 | DX1: =DW1+1 -> 102 | DY1: =DX1+1 -> 103 | DZ1: =DY1+1 -> 104 | EA1: =DZ1+1 -> 105 | EB1: =EA1+1 -> 106 | EC1: =EB1+1 -> 107 | ED1: =EC1+1 -> 108 | EE1: =ED1+1 -> 109 | EF1: =EE1+1 -> 110 | EG1: =EF1+1 -> 111 | EH1: =EG1+1 -> 112 | EI1: =EH1+1 -> 113 | EJ1: =EI1+1 -> 114 | EK1: =EJ1+1 -> 115 | EL1: =EK1+1 -> 116 | EM1: =EL1+1 -> 117 | EN1: =EM1+1 -> 118 | EO1: =EN1+1 -> 119 | EP1: =EO1+1 -> 120 | EQ1: =EP1+1 -> 121 | ER1: =EQ1+1 -> 122 | ES1: =ER1+1 -> 123 | ET1: =ES1+1 -> 124 | EU1: =ET1+1 -> 125 | EV1: =EU1+1 -> 126 | EW1: =EV1+1 -> 127 | EX1: =EW1+1 -> 128 | EY1: =EX1+1 -> 129 | EZ1: =EY1+1 -> 130 | FA1: =EZ1+1 -> 131 | FB1: =FA1+1 -> 132 | FC1: =FB1+1 -> 133 | FD1: =FC1+1 -> 134 | FE1: =FD1+1 -> 135 | FF1: =FE1+1 -> 136 | FG1: =FF1+1 -> 137 | FH1: =FG1+1 -> 138 | FI1: =FH1+1 -> 139 | FJ1: =FI1+1 -> 140 | FK1: =FJ1+1 -> 141 | FL1: =FK1+1 -> 142 | FM1: =FL1+1 -> 143 | FN1: =FM1+1 -> 144 | FO1: =FN1+1 -> 145 | FP1: =FO1+1 -> 146
D2: =MAIN!$D$2 -> Финансовая модель
D3: =MAIN!$D$3 -> Проект: разработка онлайн сервиса
F5: * | G5: Капитальные затраты проекта
AA7: 1-ый месяц модели
B8: коммент | H8: =MAIN!$F$8 -> показатель | M8: * | N8: =Calc!$N$8 -> детализация | Q8: =MAIN!$K$8 -> ед.изм. | T8: =MAIN!$N$8 -> значение | W8: =MAIN!$Y$8 -> итого | Z8: старт | AA8: =IF(OR(MAIN!$N$11="",MAIN!$N$11=0),"",MAIN!$N$11) -> 2021-01-01 | AB8: =IF(AA8="","",IF(AA$1-$AA$1+1>=12*MAIN!$N$13,"",EOMONTH(AA8,0)+1)) -> 2021-02-01 | AC8: =IF(AB8="","",IF(AB$1-$AA$1+1>=12*MAIN!$N$13,"",EOMONTH(AB8,0)+1)) -> 2021-03-01 | AD8: =IF(AC8="","",IF(AC$1-$AA$1+1>=12*MAIN!$N$13,"",EOMONTH(AC8,0)+1)) -> 2021-04-01 | AE8: =IF(AD8="","",IF(AD$1-$AA$1+1>=12*MAIN!$N$13,"",EOMONTH(AD8,0)+1)) -> 2021-05-01 | AF8: =IF(AE8="","",IF(AE$1-$AA$1+1>=12*MAIN!$N$13,"",EOMONTH(AE8,0)+1)) -> 2021-06-01 | AG8: =IF(AF8="","",IF(AF$1-$AA$1+1>=12*MAIN!$N$13,"",EOMONTH(AF8,0)+1)) -> 2021-07-01 | AH8: =IF(AG8="","",IF(AG$1-$AA$1+1>=12*MAIN!$N$13,"",EOMONTH(AG8,0)+1)) -> 2021-08-01 | AI8: =IF(AH8="","",IF(AH$1-$AA$1+1>=12*MAIN!$N$13,"",EOMONTH(AH8,0)+1)) -> 2021-09-01 | AJ8: =IF(AI8="","",IF(AI$1-$AA$1+1>=12*MAIN!$N$13,"",EOMONTH(AI8,0)+1)) -> 2021-10-01 | AK8: =IF(AJ8="","",IF(AJ$1-$AA$1+1>=12*MAIN!$N$13,"",EOMONTH(AJ8,0)+1)) -> 2021-11-01 | AL8: =IF(AK8="","",IF(AK$1-$AA$1+1>=12*MAIN!$N$13,"",EOMONTH(AK8,0)+1)) -> 2021-12-01 | AM8: =IF(AL8="","",IF(AL$1-$AA$1+1>=12*MAIN!$N$13,"",EOMONTH(AL8,0)+1)) -> 2022-01-01 | AN8: =IF(AM8="","",IF(AM$1-$AA$1+1>=12*MAIN!$N$13,"",EOMONTH(AM8,0)+1)) -> 2022-02-01 | AO8: =IF(AN8="","",IF(AN$1-$AA$1+1>=12*MAIN!$N$13,"",EOMONTH(AN8,0)+1)) -> 2022-03-01 | AP8: =IF(AO8="","",IF(AO$1-$AA$1+1>=12*MAIN!$N$13,"",EOMONTH(AO8,0)+1)) -> 2022-04-01 | AQ8: =IF(AP8="","",IF(AP$1-$AA$1+1>=12*MAIN!$N$13,"",EOMONTH(AP8,0)+1)) -> 2022-05-01 | AR8: =IF(AQ8="","",IF(AQ$1-$AA$1+1>=12*MAIN!$N$13,"",EOMONTH(AQ8,0)+1)) -> 2022-06-01 | AS8: =IF(AR8="","",IF(AR$1-$AA$1+1>=12*MAIN!$N$13,"",EOMONTH(AR8,0)+1)) -> 2022-07-01 | AT8: =IF(AS8="","",IF(AS$1-$AA$1+1>=12*MAIN!$N$13,"",EOMONTH(AS8,0)+1)) -> 2022-08-01 | AU8: =IF(AT8="","",IF(AT$1-$AA$1+1>=12*MAIN!$N$13,"",EOMONTH(AT8,0)+1)) -> 2022-09-01 | AV8: =IF(AU8="","",IF(AU$1-$AA$1+1>=12*MAIN!$N$13,"",EOMONTH(AU8,0)+1)) -> 2022-10-01 | AW8: =IF(AV8="","",IF(AV$1-$AA$1+1>=12*MAIN!$N$13,"",EOMONTH(AV8,0)+1)) -> 2022-11-01 | AX8: =IF(AW8="","",IF(AW$1-$AA$1+1>=12*MAIN!$N$13,"",EOMONTH(AW8,0)+1)) -> 2022-12-01 | AY8: =IF(AX8="","",IF(AX$1-$AA$1+1>=12*MAIN!$N$13,"",EOMONTH(AX8,0)+1)) -> 2023-01-01 | AZ8: =IF(AY8="","",IF(AY$1-$AA$1+1>=12*MAIN!$N$13,"",EOMONTH(AY8,0)+1)) -> 2023-02-01 | BA8: =IF(AZ8="","",IF(AZ$1-$AA$1+1>=12*MAIN!$N$13,"",EOMONTH(AZ8,0)+1)) -> 2023-03-01 | BB8: =IF(BA8="","",IF(BA$1-$AA$1+1>=12*MAIN!$N$13,"",EOMONTH(BA8,0)+1)) -> 2023-04-01 | BC8: =IF(BB8="","",IF(BB$1-$AA$1+1>=12*MAIN!$N$13,"",EOMONTH(BB8,0)+1)) -> 2023-05-01 | BD8: =IF(BC8="","",IF(BC$1-$AA$1+1>=12*MAIN!$N$13,"",EOMONTH(BC8,0)+1)) -> 2023-06-01 | BE8: =IF(BD8="","",IF(BD$1-$AA$1+1>=12*MAIN!$N$13,"",EOMONTH(BD8,0)+1)) -> 2023-07-01 | BF8: =IF(BE8="","",IF(BE$1-$AA$1+1>=12*MAIN!$N$13,"",EOMONTH(BE8,0)+1)) -> 2023-08-01 | BG8: =IF(BF8="","",IF(BF$1-$AA$1+1>=12*MAIN!$N$13,"",EOMONTH(BF8,0)+1)) -> 2023-09-01 | BH8: =IF(BG8="","",IF(BG$1-$AA$1+1>=12*MAIN!$N$13,"",EOMONTH(BG8,0)+1)) -> 2023-10-01 | BI8: =IF(BH8="","",IF(BH$1-$AA$1+1>=12*MAIN!$N$13,"",EOMONTH(BH8,0)+1)) -> 2023-11-01 | BJ8: =IF(BI8="","",IF(BI$1-$AA$1+1>=12*MAIN!$N$13,"",EOMONTH(BI8,0)+1)) -> 2023-12-01 | BK8: =IF(BJ8="","",IF(BJ$1-$AA$1+1>=12*MAIN!$N$13,"",EOMONTH(BJ8,0)+1)) -> 2024-01-01 | BL8: =IF(BK8="","",IF(BK$1-$AA$1+1>=12*MAIN!$N$13,"",EOMONTH(BK8,0)+1)) -> 2024-02-01 | BM8: =IF(BL8="","",IF(BL$1-$AA$1+1>=12*MAIN!$N$13,"",EOMONTH(BL8,0)+1)) -> 2024-03-01 | BN8: =IF(BM8="","",IF(BM$1-$AA$1+1>=12*MAIN!$N$13,"",EOMONTH(BM8,0)+1)) -> 2024-04-01 | BO8: =IF(BN8="","",IF(BN$1-$AA$1+1>=12*MAIN!$N$13,"",EOMONTH(BN8,0)+1)) -> 2024-05-01 | BP8: =IF(BO8="","",IF(BO$1-$AA$1+1>=12*MAIN!$N$13,"",EOMONTH(BO8,0)+1)) -> 2024-06-01 | BQ8: =IF(BP8="","",IF(BP$1-$AA$1+1>=12*MAIN!$N$13,"",EOMONTH(BP8,0)+1)) -> 2024-07-01 | BR8: =IF(BQ8="","",IF(BQ$1-$AA$1+1>=12*MAIN!$N$13,"",EOMONTH(BQ8,0)+1)) -> 2024-08-01 | BS8: =IF(BR8="","",IF(BR$1-$AA$1+1>=12*MAIN!$N$13,"",EOMONTH(BR8,0)+1)) -> 2024-09-01 | BT8: =IF(BS8="","",IF(BS$1-$AA$1+1>=12*MAIN!$N$13,"",EOMONTH(BS8,0)+1)) -> 2024-10-01 | BU8: =IF(BT8="","",IF(BT$1-$AA$1+1>=12*MAIN!$N$13,"",EOMONTH(BT8,0)+1)) -> 2024-11-01 | BV8: =IF(BU8="","",IF(BU$1-$AA$1+1>=12*MAIN!$N$13,"",EOMONTH(BU8,0)+1)) -> 2024-12-01 | BW8: =IF(BV8="","",IF(BV$1-$AA$1+1>=12*MAIN!$N$13,"",EOMONTH(BV8,0)+1)) -> 2025-01-01 | BX8: =IF(BW8="","",IF(BW$1-$AA$1+1>=12*MAIN!$N$13,"",EOMONTH(BW8,0)+1)) -> 2025-02-01 | BY8: =IF(BX8="","",IF(BX$1-$AA$1+1>=12*MAIN!$N$13,"",EOMONTH(BX8,0)+1)) -> 2025-03-01 | BZ8: =IF(BY8="","",IF(BY$1-$AA$1+1>=12*MAIN!$N$13,"",EOMONTH(BY8,0)+1)) -> 2025-04-01 | CA8: =IF(BZ8="","",IF(BZ$1-$AA$1+1>=12*MAIN!$N$13,"",EOMONTH(BZ8,0)+1)) -> 2025-05-01 | CB8: =IF(CA8="","",IF(CA$1-$AA$1+1>=12*MAIN!$N$13,"",EOMONTH(CA8,0)+1)) -> 2025-06-01 | CC8: =IF(CB8="","",IF(CB$1-$AA$1+1>=12*MAIN!$N$13,"",EOMONTH(CB8,0)+1)) -> 2025-07-01 | CD8: =IF(CC8="","",IF(CC$1-$AA$1+1>=12*MAIN!$N$13,"",EOMONTH(CC8,0)+1)) -> 2025-08-01 | CE8: =IF(CD8="","",IF(CD$1-$AA$1+1>=12*MAIN!$N$13,"",EOMONTH(CD8,0)+1)) -> 2025-09-01 | CF8: =IF(CE8="","",IF(CE$1-$AA$1+1>=12*MAIN!$N$13,"",EOMONTH(CE8,0)+1)) -> 2025-10-01 | CG8: =IF(CF8="","",IF(CF$1-$AA$1+1>=12*MAIN!$N$13,"",EOMONTH(CF8,0)+1)) -> 2025-11-01 | CH8: =IF(CG8="","",IF(CG$1-$AA$1+1>=12*MAIN!$N$13,"",EOMONTH(CG8,0)+1)) -> 2025-12-01 | CI8: =IF(CH8="","",IF(CH$1-$AA$1+1>=12*MAIN!$N$13,"",EOMONTH(CH8,0)+1)) -> 2026-01-01 | CJ8: =IF(CI8="","",IF(CI$1-$AA$1+1>=12*MAIN!$N$13,"",EOMONTH(CI8,0)+1)) -> 2026-02-01 | CK8: =IF(CJ8="","",IF(CJ$1-$AA$1+1>=12*MAIN!$N$13,"",EOMONTH(CJ8,0)+1)) -> 2026-03-01 | CL8: =IF(CK8="","",IF(CK$1-$AA$1+1>=12*MAIN!$N$13,"",EOMONTH(CK8,0)+1)) -> 2026-04-01 | CM8: =IF(CL8="","",IF(CL$1-$AA$1+1>=12*MAIN!$N$13,"",EOMONTH(CL8,0)+1)) -> 2026-05-01 | CN8: =IF(CM8="","",IF(CM$1-$AA$1+1>=12*MAIN!$N$13,"",EOMONTH(CM8,0)+1)) -> 2026-06-01 | CO8: =IF(CN8="","",IF(CN$1-$AA$1+1>=12*MAIN!$N$13,"",EOMONTH(CN8,0)+1)) -> 2026-07-01 | CP8: =IF(CO8="","",IF(CO$1-$AA$1+1>=12*MAIN!$N$13,"",EOMONTH(CO8,0)+1)) -> 2026-08-01 | CQ8: =IF(CP8="","",IF(CP$1-$AA$1+1>=12*MAIN!$N$13,"",EOMONTH(CP8,0)+1)) -> 2026-09-01 | CR8: =IF(CQ8="","",IF(CQ$1-$AA$1+1>=12*MAIN!$N$13,"",EOMONTH(CQ8,0)+1)) -> 2026-10-01 | CS8: =IF(CR8="","",IF(CR$1-$AA$1+1>=12*MAIN!$N$13,"",EOMONTH(CR8,0)+1)) -> 2026-11-01 | CT8: =IF(CS8="","",IF(CS$1-$AA$1+1>=12*MAIN!$N$13,"",EOMONTH(CS8,0)+1)) -> 2026-12-01 | CU8: =IF(CT8="","",IF(CT$1-$AA$1+1>=12*MAIN!$N$13,"",EOMONTH(CT8,0)+1)) -> 2027-01-01 | CV8: =IF(CU8="","",IF(CU$1-$AA$1+1>=12*MAIN!$N$13,"",EOMONTH(CU8,0)+1)) -> 2027-02-01 | CW8: =IF(CV8="","",IF(CV$1-$AA$1+1>=12*MAIN!$N$13,"",EOMONTH(CV8,0)+1)) -> 2027-03-01 | CX8: =IF(CW8="","",IF(CW$1-$AA$1+1>=12*MAIN!$N$13,"",EOMONTH(CW8,0)+1)) -> 2027-04-01 | CY8: =IF(CX8="","",IF(CX$1-$AA$1+1>=12*MAIN!$N$13,"",EOMONTH(CX8,0)+1)) -> 2027-05-01 | CZ8: =IF(CY8="","",IF(CY$1-$AA$1+1>=12*MAIN!$N$13,"",EOMONTH(CY8,0)+1)) -> 2027-06-01 | DA8: =IF(CZ8="","",IF(CZ$1-$AA$1+1>=12*MAIN!$N$13,"",EOMONTH(CZ8,0)+1)) -> 2027-07-01 | DB8: =IF(DA8="","",IF(DA$1-$AA$1+1>=12*MAIN!$N$13,"",EOMONTH(DA8,0)+1)) -> 2027-08-01 | DC8: =IF(DB8="","",IF(DB$1-$AA$1+1>=12*MAIN!$N$13,"",EOMONTH(DB8,0)+1)) -> 2027-09-01 | DD8: =IF(DC8="","",IF(DC$1-$AA$1+1>=12*MAIN!$N$13,"",EOMONTH(DC8,0)+1)) -> 2027-10-01 | DE8: =IF(DD8="","",IF(DD$1-$AA$1+1>=12*MAIN!$N$13,"",EOMONTH(DD8,0)+1)) -> 2027-11-01 | DF8: =IF(DE8="","",IF(DE$1-$AA$1+1>=12*MAIN!$N$13,"",EOMONTH(DE8,0)+1)) -> 2027-12-01 | DG8: =IF(DF8="","",IF(DF$1-$AA$1+1>=12*MAIN!$N$13,"",EOMONTH(DF8,0)+1)) -> 2028-01-01 | DH8: =IF(DG8="","",IF(DG$1-$AA$1+1>=12*MAIN!$N$13,"",EOMONTH(DG8,0)+1)) -> 2028-02-01 | DI8: =IF(DH8="","",IF(DH$1-$AA$1+1>=12*MAIN!$N$13,"",EOMONTH(DH8,0)+1)) -> 2028-03-01 | DJ8: =IF(DI8="","",IF(DI$1-$AA$1+1>=12*MAIN!$N$13,"",EOMONTH(DI8,0)+1)) -> 2028-04-01 | DK8: =IF(DJ8="","",IF(DJ$1-$AA$1+1>=12*MAIN!$N$13,"",EOMONTH(DJ8,0)+1)) -> 2028-05-01 | DL8: =IF(DK8="","",IF(DK$1-$AA$1+1>=12*MAIN!$N$13,"",EOMONTH(DK8,0)+1)) -> 2028-06-01 | DM8: =IF(DL8="","",IF(DL$1-$AA$1+1>=12*MAIN!$N$13,"",EOMONTH(DL8,0)+1)) -> 2028-07-01 | DN8: =IF(DM8="","",IF(DM$1-$AA$1+1>=12*MAIN!$N$13,"",EOMONTH(DM8,0)+1)) -> 2028-08-01 | DO8: =IF(DN8="","",IF(DN$1-$AA$1+1>=12*MAIN!$N$13,"",EOMONTH(DN8,0)+1)) -> 2028-09-01 | DP8: =IF(DO8="","",IF(DO$1-$AA$1+1>=12*MAIN!$N$13,"",EOMONTH(DO8,0)+1)) -> 2028-10-01 | DQ8: =IF(DP8="","",IF(DP$1-$AA$1+1>=12*MAIN!$N$13,"",EOMONTH(DP8,0)+1)) -> 2028-11-01 | DR8: =IF(DQ8="","",IF(DQ$1-$AA$1+1>=12*MAIN!$N$13,"",EOMONTH(DQ8,0)+1)) -> 2028-12-01 | DS8: =IF(DR8="","",IF(DR$1-$AA$1+1>=12*MAIN!$N$13,"",EOMONTH(DR8,0)+1)) -> 2029-01-01 | DT8: =IF(DS8="","",IF(DS$1-$AA$1+1>=12*MAIN!$N$13,"",EOMONTH(DS8,0)+1)) -> 2029-02-01 | DU8: =IF(DT8="","",IF(DT$1-$AA$1+1>=12*MAIN!$N$13,"",EOMONTH(DT8,0)+1)) -> 2029-03-01 | DV8: =IF(DU8="","",IF(DU$1-$AA$1+1>=12*MAIN!$N$13,"",EOMONTH(DU8,0)+1)) -> 2029-04-01 | DW8: =IF(DV8="","",IF(DV$1-$AA$1+1>=12*MAIN!$N$13,"",EOMONTH(DV8,0)+1)) -> 2029-05-01 | DX8: =IF(DW8="","",IF(DW$1-$AA$1+1>=12*MAIN!$N$13,"",EOMONTH(DW8,0)+1)) -> 2029-06-01 | DY8: =IF(DX8="","",IF(DX$1-$AA$1+1>=12*MAIN!$N$13,"",EOMONTH(DX8,0)+1)) -> 2029-07-01 | DZ8: =IF(DY8="","",IF(DY$1-$AA$1+1>=12*MAIN!$N$13,"",EOMONTH(DY8,0)+1)) -> 2029-08-01 | EA8: =IF(DZ8="","",IF(DZ$1-$AA$1+1>=12*MAIN!$N$13,"",EOMONTH(DZ8,0)+1)) -> 2029-09-01 | EB8: =IF(EA8="","",IF(EA$1-$AA$1+1>=12*MAIN!$N$13,"",EOMONTH(EA8,0)+1)) -> 2029-10-01 | EC8: =IF(EB8="","",IF(EB$1-$AA$1+1>=12*MAIN!$N$13,"",EOMONTH(EB8,0)+1)) -> 2029-11-01 | ED8: =IF(EC8="","",IF(EC$1-$AA$1+1>=12*MAIN!$N$13,"",EOMONTH(EC8,0)+1)) -> 2029-12-01 | EE8: =IF(ED8="","",IF(ED$1-$AA$1+1>=12*MAIN!$N$13,"",EOMONTH(ED8,0)+1)) -> 2030-01-01 | EF8: =IF(EE8="","",IF(EE$1-$AA$1+1>=12*MAIN!$N$13,"",EOMONTH(EE8,0)+1)) -> 2030-02-01 | EG8: =IF(EF8="","",IF(EF$1-$AA$1+1>=12*MAIN!$N$13,"",EOMONTH(EF8,0)+1)) -> 2030-03-01 | EH8: =IF(EG8="","",IF(EG$1-$AA$1+1>=12*MAIN!$N$13,"",EOMONTH(EG8,0)+1)) -> 2030-04-01 | EI8: =IF(EH8="","",IF(EH$1-$AA$1+1>=12*MAIN!$N$13,"",EOMONTH(EH8,0)+1)) -> 2030-05-01 | EJ8: =IF(EI8="","",IF(EI$1-$AA$1+1>=12*MAIN!$N$13,"",EOMONTH(EI8,0)+1)) -> 2030-06-01 | EK8: =IF(EJ8="","",IF(EJ$1-$AA$1+1>=12*MAIN!$N$13,"",EOMONTH(EJ8,0)+1)) -> 2030-07-01 | EL8: =IF(EK8="","",IF(EK$1-$AA$1+1>=12*MAIN!$N$13,"",EOMONTH(EK8,0)+1)) -> 2030-08-01 | EM8: =IF(EL8="","",IF(EL$1-$AA$1+1>=12*MAIN!$N$13,"",EOMONTH(EL8,0)+1)) -> 2030-09-01 | EN8: =IF(EM8="","",IF(EM$1-$AA$1+1>=12*MAIN!$N$13,"",EOMONTH(EM8,0)+1)) -> 2030-10-01 | EO8: =IF(EN8="","",IF(EN$1-$AA$1+1>=12*MAIN!$N$13,"",EOMONTH(EN8,0)+1)) -> 2030-11-01 | EP8: =IF(EO8="","",IF(EO$1-$AA$1+1>=12*MAIN!$N$13,"",EOMONTH(EO8,0)+1)) -> 2030-12-01 | EQ8: =IF(EP8="","",IF(EP$1-$AA$1+1>=12*MAIN!$N$13,"",EOMONTH(EP8,0)+1)) -> 2031-01-01 | ER8: =IF(EQ8="","",IF(EQ$1-$AA$1+1>=12*MAIN!$N$13,"",EOMONTH(EQ8,0)+1)) -> 2031-02-01 | ES8: =IF(ER8="","",IF(ER$1-$AA$1+1>=12*MAIN!$N$13,"",EOMONTH(ER8,0)+1)) -> 2031-03-01 | ET8: =IF(ES8="","",IF(ES$1-$AA$1+1>=12*MAIN!$N$13,"",EOMONTH(ES8,0)+1)) -> 2031-04-01 | EU8: =IF(ET8="","",IF(ET$1-$AA$1+1>=12*MAIN!$N$13,"",EOMONTH(ET8,0)+1)) -> 2031-05-01 | EV8: =IF(EU8="","",IF(EU$1-$AA$1+1>=12*MAIN!$N$13,"",EOMONTH(EU8,0)+1)) -> 2031-06-01 | EW8: =IF(EV8="","",IF(EV$1-$AA$1+1>=12*MAIN!$N$13,"",EOMONTH(EV8,0)+1)) -> 2031-07-01 | EX8: =IF(EW8="","",IF(EW$1-$AA$1+1>=12*MAIN!$N$13,"",EOMONTH(EW8,0)+1)) -> 2031-08-01 | EY8: =IF(EX8="","",IF(EX$1-$AA$1+1>=12*MAIN!$N$13,"",EOMONTH(EX8,0)+1)) -> 2031-09-01 | EZ8: =IF(EY8="","",IF(EY$1-$AA$1+1>=12*MAIN!$N$13,"",EOMONTH(EY8,0)+1)) -> 2031-10-01 | FA8: =IF(EZ8="","",IF(EZ$1-$AA$1+1>=12*MAIN!$N$13,"",EOMONTH(EZ8,0)+1)) -> 2031-11-01 | FB8: =IF(FA8="","",IF(FA$1-$AA$1+1>=12*MAIN!$N$13,"",EOMONTH(FA8,0)+1)) -> 2031-12-01 | FC8: =IF(FB8="","",IF(FB$1-$AA$1+1>=12*MAIN!$N$13,"",EOMONTH(FB8,0)+1)) -> 2032-01-01 | FD8: =IF(FC8="","",IF(FC$1-$AA$1+1>=12*MAIN!$N$13,"",EOMONTH(FC8,0)+1)) -> 2032-02-01 | FE8: =IF(FD8="","",IF(FD$1-$AA$1+1>=12*MAIN!$N$13,"",EOMONTH(FD8,0)+1)) -> 2032-03-01 | FF8: =IF(FE8="","",IF(FE$1-$AA$1+1>=12*MAIN!$N$13,"",EOMONTH(FE8,0)+1)) -> 2032-04-01 | FG8: =IF(FF8="","",IF(FF$1-$AA$1+1>=12*MAIN!$N$13,"",EOMONTH(FF8,0)+1)) -> 2032-05-01 | FH8: =IF(FG8="","",IF(FG$1-$AA$1+1>=12*MAIN!$N$13,"",EOMONTH(FG8,0)+1)) -> 2032-06-01 | FI8: =IF(FH8="","",IF(FH$1-$AA$1+1>=12*MAIN!$N$13,"",EOMONTH(FH8,0)+1)) -> 2032-07-01 | FJ8: =IF(FI8="","",IF(FI$1-$AA$1+1>=12*MAIN!$N$13,"",EOMONTH(FI8,0)+1)) -> 2032-08-01 | FK8: =IF(FJ8="","",IF(FJ$1-$AA$1+1>=12*MAIN!$N$13,"",EOMONTH(FJ8,0)+1)) -> 2032-09-01 | FL8: =IF(FK8="","",IF(FK$1-$AA$1+1>=12*MAIN!$N$13,"",EOMONTH(FK8,0)+1)) -> 2032-10-01 | FM8: =IF(FL8="","",IF(FL$1-$AA$1+1>=12*MAIN!$N$13,"",EOMONTH(FL8,0)+1)) -> 2032-11-01 | FN8: =IF(FM8="","",IF(FM$1-$AA$1+1>=12*MAIN!$N$13,"",EOMONTH(FM8,0)+1)) -> 2032-12-01 | FO8: =IF(FN8="","",IF(FN$1-$AA$1+1>=12*MAIN!$N$13,"",EOMONTH(FN8,0)+1)) -> 2033-01-01 | FP8: =IF(FO8="","",IF(FO$1-$AA$1+1>=12*MAIN!$N$13,"",EOMONTH(FO8,0)+1)) -> 2033-02-01
B12: вкл. ндс | G12: * | H12: Капитальные затраты Проекта | N12: =MAX(N13:N30) -> 10 | T12: =SUM(T13:T30) -> 100000000 | W12: =SUM($Y12:$FQ12) -> 10 | AA12: =IF(AA$8="",0,SUM(AA14:AA30)) -> 1.25 | AB12: 1.25 | AC12: 1.95 | AD12: 1.95 | AE12: 1.2 | AF12: 1.2 | AG12: 1.2 | AH12: 0 | AI12: 0 | AJ12: 0 | AK12: 0 | AL12: 0 | AM12: 0 | AN12: 0 | AO12: 0 | AP12: 0 | AQ12: 0 | AR12: 0 | AS12: 0 | AT12: 0 | AU12: 0 | AV12: 0 | AW12: 0 | AX12: =IF(AX$8="",0,SUM(AX14:AX30)) -> 0 | AY12: 0 | AZ12: 0 | BA12: 0 | BB12: 0 | BC12: 0 | BD12: 0 | BE12: 0 | BF12: 0 | BG12: 0 | BH12: 0 | BI12: 0 | BJ12: 0 | BK12: 0 | BL12: 0 | BM12: 0 | BN12: 0 | BO12: 0 | BP12: 0 | BQ12: 0 | BR12: 0 | BS12: 0 | BT12: 0 | BU12: 0 | BV12: 0 | BW12: 0 | BX12: 0 | BY12: 0 | BZ12: 0 | CA12: 0 | CB12: 0 | CC12: 0 | CD12: 0 | CE12: 0 | CF12: 0 | CG12: 0 | CH12: 0 | CI12: 0 | CJ12: 0 | CK12: 0 | CL12: 0 | CM12: 0 | CN12: 0 | CO12: 0 | CP12: 0 | CQ12: 0 | CR12: 0 | CS12: 0 | CT12: 0 | CU12: 0 | CV12: 0 | CW12: 0 | CX12: 0 | CY12: 0 | CZ12: 0 | DA12: 0 | DB12: 0 | DC12: 0 | DD12: 0 | DE12: 0 | DF12: 0 | DG12: 0 | DH12: 0 | DI12: 0 | DJ12: =IF(DJ$8="",0,SUM(DJ14:DJ30)) -> 0 | DK12: 0 | DL12: 0 | DM12: 0 | DN12: 0 | DO12: 0 | DP12: 0 | DQ12: 0 | DR12: 0 | DS12: 0 | DT12: 0 | DU12: 0 | DV12: 0 | DW12: 0 | DX12: 0 | DY12: 0 | DZ12: 0 | EA12: 0 | EB12: 0 | EC12: 0 | ED12: 0 | EE12: 0 | EF12: 0 | EG12: 0 | EH12: 0 | EI12: 0 | EJ12: 0 | EK12: 0 | EL12: 0 | EM12: 0 | EN12: 0 | EO12: 0 | EP12: 0 | EQ12: 0 | ER12: 0 | ES12: 0 | ET12: 0 | EU12: 0 | EV12: 0 | EW12: 0 | EX12: 0 | EY12: 0 | EZ12: 0 | FA12: 0 | FB12: 0 | FC12: 0 | FD12: 0 | FE12: 0 | FF12: 0 | FG12: 0 | FH12: 0 | FI12: 0 | FJ12: 0 | FK12: 0 | FL12: 0 | FM12: 0 | FN12: 0 | FO12: 0 | FP12: =IF(FP$8="",0,SUM(FP14:FP30)) -> 0
J15: * | K15: Работы по созданию онлайн сервиса - 1 | N15: =IF(OR(K15="",K15=0),0,MAX(N$13:N14)+1) -> 1 | Q15: руб/% | S15: * | T15: 10000000 | W15: =SUM($Y15:$FQ15) -> 1 | Y15: * | AA15: 0.5 | AB15: 0.5
J16: * | K16: Работы по созданию онлайн сервиса - 2 | N16: =IF(OR(K16="",K16=0),0,MAX(N$13:N15)+1) -> 2 | Q16: руб/% | S16: * | T16: 10000000 | W16: 1 | Y16: * | AA16: 0.25 | AB16: 0.25 | AC16: 0.25 | AD16: 0.25
J17: * | K17: Работы по созданию онлайн сервиса - 3 | N17: =IF(OR(K17="",K17=0),0,MAX(N$13:N16)+1) -> 3 | Q17: руб/% | S17: * | T17: 10000000 | W17: 1 | Y17: * | AA17: 0.25 | AB17: 0.25 | AC17: 0.25 | AD17: 0.25
J18: * | K18: Работы по созданию онлайн сервиса - 4 | N18: =IF(OR(K18="",K18=0),0,MAX(N$13:N17)+1) -> 4 | Q18: руб/% | S18: * | T18: 10000000 | W18: 1 | Y18: * | AA18: 0.25 | AB18: 0.25 | AC18: 0.25 | AD18: 0.25
J19: * | K19: Работы по созданию онлайн сервиса - 5 | N19: =IF(OR(K19="",K19=0),0,MAX(N$13:N18)+1) -> 5 | Q19: руб/% | S19: * | T19: 10000000 | W19: 1 | Y19: * | AC19: 0.2 | AD19: 0.2 | AE19: 0.2 | AF19: 0.2 | AG19: 0.2
J20: * | K20: Работы по созданию онлайн сервиса - 6 | N20: =IF(OR(K20="",K20=0),0,MAX(N$13:N19)+1) -> 6 | Q20: руб/% | S20: * | T20: 10000000 | W20: 1 | Y20: * | AC20: 0.2 | AD20: 0.2 | AE20: 0.2 | AF20: 0.2 | AG20: 0.2
J21: * | K21: Работы по созданию онлайн сервиса - 7 | N21: =IF(OR(K21="",K21=0),0,MAX(N$13:N20)+1) -> 7 | Q21: руб/% | S21: * | T21: 10000000 | W21: 1 | Y21: * | AC21: 0.2 | AD21: 0.2 | AE21: 0.2 | AF21: 0.2 | AG21: 0.2
J22: * | K22: Работы по созданию онлайн сервиса - 8 | N22: =IF(OR(K22="",K22=0),0,MAX(N$13:N21)+1) -> 8 | Q22: руб/% | S22: * | T22: 10000000 | W22: 1 | Y22: * | AC22: 0.2 | AD22: 0.2 | AE22: 0.2 | AF22: 0.2 | AG22: 0.2
J23: * | K23: Работы по созданию онлайн сервиса - 9 | N23: =IF(OR(K23="",K23=0),0,MAX(N$13:N22)+1) -> 9 | Q23: руб/% | S23: * | T23: 10000000 | W23: 1 | Y23: * | AC23: 0.2 | AD23: 0.2 | AE23: 0.2 | AF23: 0.2 | AG23: 0.2
J24: * | K24: Работы по созданию онлайн сервиса - 10 | N24: =IF(OR(K24="",K24=0),0,MAX(N$13:N23)+1) -> 10 | Q24: руб/% | S24: * | T24: 10000000 | W24: 1 | Y24: * | AC24: 0.2 | AD24: 0.2 | AE24: 0.2 | AF24: 0.2 | AG24: 0.2
J25: * | N25: =IF(OR(K25="",K25=0),0,MAX(N$13:N24)+1) -> 0 | Q25: руб/% | S25: * | W25: 0 | Y25: *
J26: * | N26: =IF(OR(K26="",K26=0),0,MAX(N$13:N25)+1) -> 0 | Q26: руб/% | S26: * | W26: 0 | Y26: *
J27: * | N27: =IF(OR(K27="",K27=0),0,MAX(N$13:N26)+1) -> 0 | Q27: руб/% | S27: * | W27: 0 | Y27: *
J28: * | N28: =IF(OR(K28="",K28=0),0,MAX(N$13:N27)+1) -> 0 | Q28: руб/% | S28: * | W28: 0 | Y28: *
J29: * | N29: =IF(OR(K29="",K29=0),0,MAX(N$13:N28)+1) -> 0 | Q29: руб/% | S29: * | W29: 0 | Y29: *
Y30: *
B32: вкл. ндс | H32: =H12 -> Капитальные затраты Проекта | N32: =MAX(N33:N50) -> 10 | T32: =SUM(T33:T50) -> 100000000 | W32: =SUM($Y32:$FQ32) -> 100000000 | AA32: =IF(AA$8="",0,SUM(AA34:AA50)) -> 12500000 | AB32: 12500000 | AC32: 19500000 | AD32: 19500000 | AE32: 12000000 | AF32: 12000000 | AG32: 12000000 | AH32: 0 | AI32: 0 | AJ32: 0 | AK32: 0 | AL32: 0 | AM32: 0 | AN32: 0 | AO32: 0 | AP32: 0 | AQ32: 0 | AR32: 0 | AS32: 0 | AT32: 0 | AU32: 0 | AV32: 0 | AW32: 0 | AX32: =IF(AX$8="",0,SUM(AX34:AX50)) -> 0 | AY32: 0 | AZ32: 0 | BA32: 0 | BB32: 0 | BC32: 0 | BD32: 0 | BE32: 0 | BF32: 0 | BG32: 0 | BH32: 0 | BI32: 0 | BJ32: 0 | BK32: 0 | BL32: 0 | BM32: 0 | BN32: 0 | BO32: 0 | BP32: 0 | BQ32: 0 | BR32: 0 | BS32: 0 | BT32: 0 | BU32: 0 | BV32: 0 | BW32: 0 | BX32: 0 | BY32: 0 | BZ32: 0 | CA32: 0 | CB32: 0 | CC32: 0 | CD32: 0 | CE32: 0 | CF32: 0 | CG32: 0 | CH32: 0 | CI32: 0 | CJ32: 0 | CK32: 0 | CL32: 0 | CM32: 0 | CN32: 0 | CO32: 0 | CP32: 0 | CQ32: 0 | CR32: 0 | CS32: 0 | CT32: 0 | CU32: 0 | CV32: 0 | CW32: 0 | CX32: 0 | CY32: 0 | CZ32: 0 | DA32: 0 | DB32: 0 | DC32: 0 | DD32: 0 | DE32: 0 | DF32: 0 | DG32: 0 | DH32: 0 | DI32: 0 | DJ32: =IF(DJ$8="",0,SUM(DJ34:DJ50)) -> 0 | DK32: 0 | DL32: 0 | DM32: 0 | DN32: 0 | DO32: 0 | DP32: 0 | DQ32: 0 | DR32: 0 | DS32: 0 | DT32: 0 | DU32: 0 | DV32: 0 | DW32: 0 | DX32: 0 | DY32: 0 | DZ32: 0 | EA32: 0 | EB32: 0 | EC32: 0 | ED32: 0 | EE32: 0 | EF32: 0 | EG32: 0 | EH32: 0 | EI32: 0 | EJ32: 0 | EK32: 0 | EL32: 0 | EM32: 0 | EN32: 0 | EO32: 0 | EP32: 0 | EQ32: 0 | ER32: 0 | ES32: 0 | ET32: 0 | EU32: 0 | EV32: 0 | EW32: 0 | EX32: 0 | EY32: 0 | EZ32: 0 | FA32: 0 | FB32: 0 | FC32: 0 | FD32: 0 | FE32: 0 | FF32: 0 | FG32: 0 | FH32: 0 | FI32: 0 | FJ32: 0 | FK32: 0 | FL32: 0 | FM32: 0 | FN32: 0 | FO32: 0 | FP32: =IF(FP$8="",0,SUM(FP34:FP50)) -> 0
K35: =K15 -> Работы по созданию онлайн сервиса - 1 | N35: =N15 -> 1 | Q35: руб. | T35: =T15 -> 10000000 | W35: =SUM($Y35:$FQ35) -> 10000000 | AA35: =$T15*AA15 -> 5000000 | AB35: 5000000 | AC35: 0 | AD35: 0 | AE35: 0 | AF35: 0 | AG35: 0 | AH35: 0 | AI35: 0 | AJ35: 0 | AK35: 0 | AL35: 0 | AM35: 0 | AN35: 0 | AO35: 0 | AP35: 0 | AQ35: 0 | AR35: 0 | AS35: 0 | AT35: 0 | AU35: 0 | AV35: 0 | AW35: 0 | AX35: =$T15*AX15 -> 0 | AY35: 0 | AZ35: 0 | BA35: 0 | BB35: 0 | BC35: 0 | BD35: 0 | BE35: 0 | BF35: 0 | BG35: 0 | BH35: 0 | BI35: 0 | BJ35: 0 | BK35: 0 | BL35: 0 | BM35: 0 | BN35: 0 | BO35: 0 | BP35: 0 | BQ35: 0 | BR35: 0 | BS35: 0 | BT35: 0 | BU35: 0 | BV35: 0 | BW35: 0 | BX35: 0 | BY35: 0 | BZ35: 0 | CA35: 0 | CB35: 0 | CC35: 0 | CD35: 0 | CE35: 0 | CF35: 0 | CG35: 0 | CH35: 0 | CI35: 0 | CJ35: 0 | CK35: 0 | CL35: 0 | CM35: 0 | CN35: 0 | CO35: 0 | CP35: 0 | CQ35: 0 | CR35: 0 | CS35: 0 | CT35: 0 | CU35: 0 | CV35: 0 | CW35: 0 | CX35: 0 | CY35: 0 | CZ35: 0 | DA35: 0 | DB35: 0 | DC35: 0 | DD35: 0 | DE35: 0 | DF35: 0 | DG35: 0 | DH35: 0 | DI35: 0 | DJ35: =$T15*DJ15 -> 0 | DK35: 0 | DL35: 0 | DM35: 0 | DN35: 0 | DO35: 0 | DP35: 0 | DQ35: 0 | DR35: 0 | DS35: 0 | DT35: 0 | DU35: 0 | DV35: 0 | DW35: 0 | DX35: 0 | DY35: 0 | DZ35: 0 | EA35: 0 | EB35: 0 | EC35: 0 | ED35: 0 | EE35: 0 | EF35: 0 | EG35: 0 | EH35: 0 | EI35: 0 | EJ35: 0 | EK35: 0 | EL35: 0 | EM35: 0 | EN35: 0 | EO35: 0 | EP35: 0 | EQ35: 0 | ER35: 0 | ES35: 0 | ET35: 0 | EU35: 0 | EV35: 0 | EW35: 0 | EX35: 0 | EY35: 0 | EZ35: 0 | FA35: 0 | FB35: 0 | FC35: 0 | FD35: 0 | FE35: 0 | FF35: 0 | FG35: 0 | FH35: 0 | FI35: 0 | FJ35: 0 | FK35: 0 | FL35: 0 | FM35: 0 | FN35: 0 | FO35: 0 | FP35: =$T15*FP15 -> 0
K36: Работы по созданию онлайн сервиса - 2 | N36: 2 | Q36: руб. | T36: 10000000 | W36: 10000000 | AA36: =$T16*AA16 -> 2500000 | AB36: 2500000 | AC36: 2500000 | AD36: 2500000 | AE36: 0 | AF36: 0 | AG36: 0 | AH36: 0 | AI36: 0 | AJ36: 0 | AK36: 0 | AL36: 0 | AM36: 0 | AN36: 0 | AO36: 0 | AP36: 0 | AQ36: 0 | AR36: 0 | AS36: 0 | AT36: 0 | AU36: 0 | AV36: 0 | AW36: 0 | AX36: =$T16*AX16 -> 0 | AY36: 0 | AZ36: 0 | BA36: 0 | BB36: 0 | BC36: 0 | BD36: 0 | BE36: 0 | BF36: 0 | BG36: 0 | BH36: 0 | BI36: 0 | BJ36: 0 | BK36: 0 | BL36: 0 | BM36: 0 | BN36: 0 | BO36: 0 | BP36: 0 | BQ36: 0 | BR36: 0 | BS36: 0 | BT36: 0 | BU36: 0 | BV36: 0 | BW36: 0 | BX36: 0 | BY36: 0 | BZ36: 0 | CA36: 0 | CB36: 0 | CC36: 0 | CD36: 0 | CE36: 0 | CF36: 0 | CG36: 0 | CH36: 0 | CI36: 0 | CJ36: 0 | CK36: 0 | CL36: 0 | CM36: 0 | CN36: 0 | CO36: 0 | CP36: 0 | CQ36: 0 | CR36: 0 | CS36: 0 | CT36: 0 | CU36: 0 | CV36: 0 | CW36: 0 | CX36: 0 | CY36: 0 | CZ36: 0 | DA36: 0 | DB36: 0 | DC36: 0 | DD36: 0 | DE36: 0 | DF36: 0 | DG36: 0 | DH36: 0 | DI36: 0 | DJ36: =$T16*DJ16 -> 0 | DK36: 0 | DL36: 0 | DM36: 0 | DN36: 0 | DO36: 0 | DP36: 0 | DQ36: 0 | DR36: 0 | DS36: 0 | DT36: 0 | DU36: 0 | DV36: 0 | DW36: 0 | DX36: 0 | DY36: 0 | DZ36: 0 | EA36: 0 | EB36: 0 | EC36: 0 | ED36: 0 | EE36: 0 | EF36: 0 | EG36: 0 | EH36: 0 | EI36: 0 | EJ36: 0 | EK36: 0 | EL36: 0 | EM36: 0 | EN36: 0 | EO36: 0 | EP36: 0 | EQ36: 0 | ER36: 0 | ES36: 0 | ET36: 0 | EU36: 0 | EV36: 0 | EW36: 0 | EX36: 0 | EY36: 0 | EZ36: 0 | FA36: 0 | FB36: 0 | FC36: 0 | FD36: 0 | FE36: 0 | FF36: 0 | FG36: 0 | FH36: 0 | FI36: 0 | FJ36: 0 | FK36: 0 | FL36: 0 | FM36: 0 | FN36: 0 | FO36: 0 | FP36: =$T16*FP16 -> 0
K37: Работы по созданию онлайн сервиса - 3 | N37: 3 | Q37: руб. | T37: 10000000 | W37: 10000000 | AA37: =$T17*AA17 -> 2500000 | AB37: 2500000 | AC37: 2500000 | AD37: 2500000 | AE37: 0 | AF37: 0 | AG37: 0 | AH37: 0 | AI37: 0 | AJ37: 0 | AK37: 0 | AL37: 0 | AM37: 0 | AN37: 0 | AO37: 0 | AP37: 0 | AQ37: 0 | AR37: 0 | AS37: 0 | AT37: 0 | AU37: 0 | AV37: 0 | AW37: 0 | AX37: =$T17*AX17 -> 0 | AY37: 0 | AZ37: 0 | BA37: 0 | BB37: 0 | BC37: 0 | BD37: 0 | BE37: 0 | BF37: 0 | BG37: 0 | BH37: 0 | BI37: 0 | BJ37: 0 | BK37: 0 | BL37: 0 | BM37: 0 | BN37: 0 | BO37: 0 | BP37: 0 | BQ37: 0 | BR37: 0 | BS37: 0 | BT37: 0 | BU37: 0 | BV37: 0 | BW37: 0 | BX37: 0 | BY37: 0 | BZ37: 0 | CA37: 0 | CB37: 0 | CC37: 0 | CD37: 0 | CE37: 0 | CF37: 0 | CG37: 0 | CH37: 0 | CI37: 0 | CJ37: 0 | CK37: 0 | CL37: 0 | CM37: 0 | CN37: 0 | CO37: 0 | CP37: 0 | CQ37: 0 | CR37: 0 | CS37: 0 | CT37: 0 | CU37: 0 | CV37: 0 | CW37: 0 | CX37: 0 | CY37: 0 | CZ37: 0 | DA37: 0 | DB37: 0 | DC37: 0 | DD37: 0 | DE37: 0 | DF37: 0 | DG37: 0 | DH37: 0 | DI37: 0 | DJ37: =$T17*DJ17 -> 0 | DK37: 0 | DL37: 0 | DM37: 0 | DN37: 0 | DO37: 0 | DP37: 0 | DQ37: 0 | DR37: 0 | DS37: 0 | DT37: 0 | DU37: 0 | DV37: 0 | DW37: 0 | DX37: 0 | DY37: 0 | DZ37: 0 | EA37: 0 | EB37: 0 | EC37: 0 | ED37: 0 | EE37: 0 | EF37: 0 | EG37: 0 | EH37: 0 | EI37: 0 | EJ37: 0 | EK37: 0 | EL37: 0 | EM37: 0 | EN37: 0 | EO37: 0 | EP37: 0 | EQ37: 0 | ER37: 0 | ES37: 0 | ET37: 0 | EU37: 0 | EV37: 0 | EW37: 0 | EX37: 0 | EY37: 0 | EZ37: 0 | FA37: 0 | FB37: 0 | FC37: 0 | FD37: 0 | FE37: 0 | FF37: 0 | FG37: 0 | FH37: 0 | FI37: 0 | FJ37: 0 | FK37: 0 | FL37: 0 | FM37: 0 | FN37: 0 | FO37: 0 | FP37: =$T17*FP17 -> 0
K38: Работы по созданию онлайн сервиса - 4 | N38: 4 | Q38: руб. | T38: 10000000 | W38: 10000000 | AA38: =$T18*AA18 -> 2500000 | AB38: 2500000 | AC38: 2500000 | AD38: 2500000 | AE38: 0 | AF38: 0 | AG38: 0 | AH38: 0 | AI38: 0 | AJ38: 0 | AK38: 0 | AL38: 0 | AM38: 0 | AN38: 0 | AO38: 0 | AP38: 0 | AQ38: 0 | AR38: 0 | AS38: 0 | AT38: 0 | AU38: 0 | AV38: 0 | AW38: 0 | AX38: =$T18*AX18 -> 0 | AY38: 0 | AZ38: 0 | BA38: 0 | BB38: 0 | BC38: 0 | BD38: 0 | BE38: 0 | BF38: 0 | BG38: 0 | BH38: 0 | BI38: 0 | BJ38: 0 | BK38: 0 | BL38: 0 | BM38: 0 | BN38: 0 | BO38: 0 | BP38: 0 | BQ38: 0 | BR38: 0 | BS38: 0 | BT38: 0 | BU38: 0 | BV38: 0 | BW38: 0 | BX38: 0 | BY38: 0 | BZ38: 0 | CA38: 0 | CB38: 0 | CC38: 0 | CD38: 0 | CE38: 0 | CF38: 0 | CG38: 0 | CH38: 0 | CI38: 0 | CJ38: 0 | CK38: 0 | CL38: 0 | CM38: 0 | CN38: 0 | CO38: 0 | CP38: 0 | CQ38: 0 | CR38: 0 | CS38: 0 | CT38: 0 | CU38: 0 | CV38: 0 | CW38: 0 | CX38: 0 | CY38: 0 | CZ38: 0 | DA38: 0 | DB38: 0 | DC38: 0 | DD38: 0 | DE38: 0 | DF38: 0 | DG38: 0 | DH38: 0 | DI38: 0 | DJ38: =$T18*DJ18 -> 0 | DK38: 0 | DL38: 0 | DM38: 0 | DN38: 0 | DO38: 0 | DP38: 0 | DQ38: 0 | DR38: 0 | DS38: 0 | DT38: 0 | DU38: 0 | DV38: 0 | DW38: 0 | DX38: 0 | DY38: 0 | DZ38: 0 | EA38: 0 | EB38: 0 | EC38: 0 | ED38: 0 | EE38: 0 | EF38: 0 | EG38: 0 | EH38: 0 | EI38: 0 | EJ38: 0 | EK38: 0 | EL38: 0 | EM38: 0 | EN38: 0 | EO38: 0 | EP38: 0 | EQ38: 0 | ER38: 0 | ES38: 0 | ET38: 0 | EU38: 0 | EV38: 0 | EW38: 0 | EX38: 0 | EY38: 0 | EZ38: 0 | FA38: 0 | FB38: 0 | FC38: 0 | FD38: 0 | FE38: 0 | FF38: 0 | FG38: 0 | FH38: 0 | FI38: 0 | FJ38: 0 | FK38: 0 | FL38: 0 | FM38: 0 | FN38: 0 | FO38: 0 | FP38: =$T18*FP18 -> 0
K39: Работы по созданию онлайн сервиса - 5 | N39: 5 | Q39: руб. | T39: 10000000 | W39: 10000000 | AA39: =$T19*AA19 -> 0 | AB39: 0 | AC39: 2000000 | AD39: 2000000 | AE39: 2000000 | AF39: 2000000 | AG39: 2000000 | AH39: 0 | AI39: 0 | AJ39: 0 | AK39: 0 | AL39: 0 | AM39: 0 | AN39: 0 | AO39: 0 | AP39: 0 | AQ39: 0 | AR39: 0 | AS39: 0 | AT39: 0 | AU39: 0 | AV39: 0 | AW39: 0 | AX39: =$T19*AX19 -> 0 | AY39: 0 | AZ39: 0 | BA39: 0 | BB39: 0 | BC39: 0 | BD39: 0 | BE39: 0 | BF39: 0 | BG39: 0 | BH39: 0 | BI39: 0 | BJ39: 0 | BK39: 0 | BL39: 0 | BM39: 0 | BN39: 0 | BO39: 0 | BP39: 0 | BQ39: 0 | BR39: 0 | BS39: 0 | BT39: 0 | BU39: 0 | BV39: 0 | BW39: 0 | BX39: 0 | BY39: 0 | BZ39: 0 | CA39: 0 | CB39: 0 | CC39: 0 | CD39: 0 | CE39: 0 | CF39: 0 | CG39: 0 | CH39: 0 | CI39: 0 | CJ39: 0 | CK39: 0 | CL39: 0 | CM39: 0 | CN39: 0 | CO39: 0 | CP39: 0 | CQ39: 0 | CR39: 0 | CS39: 0 | CT39: 0 | CU39: 0 | CV39: 0 | CW39: 0 | CX39: 0 | CY39: 0 | CZ39: 0 | DA39: 0 | DB39: 0 | DC39: 0 | DD39: 0 | DE39: 0 | DF39: 0 | DG39: 0 | DH39: 0 | DI39: 0 | DJ39: =$T19*DJ19 -> 0 | DK39: 0 | DL39: 0 | DM39: 0 | DN39: 0 | DO39: 0 | DP39: 0 | DQ39: 0 | DR39: 0 | DS39: 0 | DT39: 0 | DU39: 0 | DV39: 0 | DW39: 0 | DX39: 0 | DY39: 0 | DZ39: 0 | EA39: 0 | EB39: 0 | EC39: 0 | ED39: 0 | EE39: 0 | EF39: 0 | EG39: 0 | EH39: 0 | EI39: 0 | EJ39: 0 | EK39: 0 | EL39: 0 | EM39: 0 | EN39: 0 | EO39: 0 | EP39: 0 | EQ39: 0 | ER39: 0 | ES39: 0 | ET39: 0 | EU39: 0 | EV39: 0 | EW39: 0 | EX39: 0 | EY39: 0 | EZ39: 0 | FA39: 0 | FB39: 0 | FC39: 0 | FD39: 0 | FE39: 0 | FF39: 0 | FG39: 0 | FH39: 0 | FI39: 0 | FJ39: 0 | FK39: 0 | FL39: 0 | FM39: 0 | FN39: 0 | FO39: 0 | FP39: =$T19*FP19 -> 0
K40: Работы по созданию онлайн сервиса - 6 | N40: 6 | Q40: руб. | T40: 10000000 | W40: 10000000 | AA40: =$T20*AA20 -> 0 | AB40: 0 | AC40: 2000000 | AD40: 2000000 | AE40: 2000000 | AF40: 2000000 | AG40: 2000000 | AH40: 0 | AI40: 0 | AJ40: 0 | AK40: 0 | AL40: 0 | AM40: 0 | AN40: 0 | AO40: 0 | AP40: 0 | AQ40: 0 | AR40: 0 | AS40: 0 | AT40: 0 | AU40: 0 | AV40: 0 | AW40: 0 | AX40: =$T20*AX20 -> 0 | AY40: 0 | AZ40: 0 | BA40: 0 | BB40: 0 | BC40: 0 | BD40: 0 | BE40: 0 | BF40: 0 | BG40: 0 | BH40: 0 | BI40: 0 | BJ40: 0 | BK40: 0 | BL40: 0 | BM40: 0 | BN40: 0 | BO40: 0 | BP40: 0 | BQ40: 0 | BR40: 0 | BS40: 0 | BT40: 0 | BU40: 0 | BV40: 0 | BW40: 0 | BX40: 0 | BY40: 0 | BZ40: 0 | CA40: 0 | CB40: 0 | CC40: 0 | CD40: 0 | CE40: 0 | CF40: 0 | CG40: 0 | CH40: 0 | CI40: 0 | CJ40: 0 | CK40: 0 | CL40: 0 | CM40: 0 | CN40: 0 | CO40: 0 | CP40: 0 | CQ40: 0 | CR40: 0 | CS40: 0 | CT40: 0 | CU40: 0 | CV40: 0 | CW40: 0 | CX40: 0 | CY40: 0 | CZ40: 0 | DA40: 0 | DB40: 0 | DC40: 0 | DD40: 0 | DE40: 0 | DF40: 0 | DG40: 0 | DH40: 0 | DI40: 0 | DJ40: =$T20*DJ20 -> 0 | DK40: 0 | DL40: 0 | DM40: 0 | DN40: 0 | DO40: 0 | DP40: 0 | DQ40: 0 | DR40: 0 | DS40: 0 | DT40: 0 | DU40: 0 | DV40: 0 | DW40: 0 | DX40: 0 | DY40: 0 | DZ40: 0 | EA40: 0 | EB40: 0 | EC40: 0 | ED40: 0 | EE40: 0 | EF40: 0 | EG40: 0 | EH40: 0 | EI40: 0 | EJ40: 0 | EK40: 0 | EL40: 0 | EM40: 0 | EN40: 0 | EO40: 0 | EP40: 0 | EQ40: 0 | ER40: 0 | ES40: 0 | ET40: 0 | EU40: 0 | EV40: 0 | EW40: 0 | EX40: 0 | EY40: 0 | EZ40: 0 | FA40: 0 | FB40: 0 | FC40: 0 | FD40: 0 | FE40: 0 | FF40: 0 | FG40: 0 | FH40: 0 | FI40: 0 | FJ40: 0 | FK40: 0 | FL40: 0 | FM40: 0 | FN40: 0 | FO40: 0 | FP40: =$T20*FP20 -> 0
K41: Работы по созданию онлайн сервиса - 7 | N41: 7 | Q41: руб. | T41: 10000000 | W41: 10000000 | AA41: =$T21*AA21 -> 0 | AB41: 0 | AC41: 2000000 | AD41: 2000000 | AE41: 2000000 | AF41: 2000000 | AG41: 2000000 | AH41: 0 | AI41: 0 | AJ41: 0 | AK41: 0 | AL41: 0 | AM41: 0 | AN41: 0 | AO41: 0 | AP41: 0 | AQ41: 0 | AR41: 0 | AS41: 0 | AT41: 0 | AU41: 0 | AV41: 0 | AW41: 0 | AX41: =$T21*AX21 -> 0 | AY41: 0 | AZ41: 0 | BA41: 0 | BB41: 0 | BC41: 0 | BD41: 0 | BE41: 0 | BF41: 0 | BG41: 0 | BH41: 0 | BI41: 0 | BJ41: 0 | BK41: 0 | BL41: 0 | BM41: 0 | BN41: 0 | BO41: 0 | BP41: 0 | BQ41: 0 | BR41: 0 | BS41: 0 | BT41: 0 | BU41: 0 | BV41: 0 | BW41: 0 | BX41: 0 | BY41: 0 | BZ41: 0 | CA41: 0 | CB41: 0 | CC41: 0 | CD41: 0 | CE41: 0 | CF41: 0 | CG41: 0 | CH41: 0 | CI41: 0 | CJ41: 0 | CK41: 0 | CL41: 0 | CM41: 0 | CN41: 0 | CO41: 0 | CP41: 0 | CQ41: 0 | CR41: 0 | CS41: 0 | CT41: 0 | CU41: 0 | CV41: 0 | CW41: 0 | CX41: 0 | CY41: 0 | CZ41: 0 | DA41: 0 | DB41: 0 | DC41: 0 | DD41: 0 | DE41: 0 | DF41: 0 | DG41: 0 | DH41: 0 | DI41: 0 | DJ41: =$T21*DJ21 -> 0 | DK41: 0 | DL41: 0 | DM41: 0 | DN41: 0 | DO41: 0 | DP41: 0 | DQ41: 0 | DR41: 0 | DS41: 0 | DT41: 0 | DU41: 0 | DV41: 0 | DW41: 0 | DX41: 0 | DY41: 0 | DZ41: 0 | EA41: 0 | EB41: 0 | EC41: 0 | ED41: 0 | EE41: 0 | EF41: 0 | EG41: 0 | EH41: 0 | EI41: 0 | EJ41: 0 | EK41: 0 | EL41: 0 | EM41: 0 | EN41: 0 | EO41: 0 | EP41: 0 | EQ41: 0 | ER41: 0 | ES41: 0 | ET41: 0 | EU41: 0 | EV41: 0 | EW41: 0 | EX41: 0 | EY41: 0 | EZ41: 0 | FA41: 0 | FB41: 0 | FC41: 0 | FD41: 0 | FE41: 0 | FF41: 0 | FG41: 0 | FH41: 0 | FI41: 0 | FJ41: 0 | FK41: 0 | FL41: 0 | FM41: 0 | FN41: 0 | FO41: 0 | FP41: =$T21*FP21 -> 0
K42: Работы по созданию онлайн сервиса - 8 | N42: 8 | Q42: руб. | T42: 10000000 | W42: 10000000 | AA42: =$T22*AA22 -> 0 | AB42: 0 | AC42: 2000000 | AD42: 2000000 | AE42: 2000000 | AF42: 2000000 | AG42: 2000000 | AH42: 0 | AI42: 0 | AJ42: 0 | AK42: 0 | AL42: 0 | AM42: 0 | AN42: 0 | AO42: 0 | AP42: 0 | AQ42: 0 | AR42: 0 | AS42: 0 | AT42: 0 | AU42: 0 | AV42: 0 | AW42: 0 | AX42: =$T22*AX22 -> 0 | AY42: 0 | AZ42: 0 | BA42: 0 | BB42: 0 | BC42: 0 | BD42: 0 | BE42: 0 | BF42: 0 | BG42: 0 | BH42: 0 | BI42: 0 | BJ42: 0 | BK42: 0 | BL42: 0 | BM42: 0 | BN42: 0 | BO42: 0 | BP42: 0 | BQ42: 0 | BR42: 0 | BS42: 0 | BT42: 0 | BU42: 0 | BV42: 0 | BW42: 0 | BX42: 0 | BY42: 0 | BZ42: 0 | CA42: 0 | CB42: 0 | CC42: 0 | CD42: 0 | CE42: 0 | CF42: 0 | CG42: 0 | CH42: 0 | CI42: 0 | CJ42: 0 | CK42: 0 | CL42: 0 | CM42: 0 | CN42: 0 | CO42: 0 | CP42: 0 | CQ42: 0 | CR42: 0 | CS42: 0 | CT42: 0 | CU42: 0 | CV42: 0 | CW42: 0 | CX42: 0 | CY42: 0 | CZ42: 0 | DA42: 0 | DB42: 0 | DC42: 0 | DD42: 0 | DE42: 0 | DF42: 0 | DG42: 0 | DH42: 0 | DI42: 0 | DJ42: =$T22*DJ22 -> 0 | DK42: 0 | DL42: 0 | DM42: 0 | DN42: 0 | DO42: 0 | DP42: 0 | DQ42: 0 | DR42: 0 | DS42: 0 | DT42: 0 | DU42: 0 | DV42: 0 | DW42: 0 | DX42: 0 | DY42: 0 | DZ42: 0 | EA42: 0 | EB42: 0 | EC42: 0 | ED42: 0 | EE42: 0 | EF42: 0 | EG42: 0 | EH42: 0 | EI42: 0 | EJ42: 0 | EK42: 0 | EL42: 0 | EM42: 0 | EN42: 0 | EO42: 0 | EP42: 0 | EQ42: 0 | ER42: 0 | ES42: 0 | ET42: 0 | EU42: 0 | EV42: 0 | EW42: 0 | EX42: 0 | EY42: 0 | EZ42: 0 | FA42: 0 | FB42: 0 | FC42: 0 | FD42: 0 | FE42: 0 | FF42: 0 | FG42: 0 | FH42: 0 | FI42: 0 | FJ42: 0 | FK42: 0 | FL42: 0 | FM42: 0 | FN42: 0 | FO42: 0 | FP42: =$T22*FP22 -> 0
K43: Работы по созданию онлайн сервиса - 9 | N43: 9 | Q43: руб. | T43: 10000000 | W43: 10000000 | AA43: =$T23*AA23 -> 0 | AB43: 0 | AC43: 2000000 | AD43: 2000000 | AE43: 2000000 | AF43: 2000000 | AG43: 2000000 | AH43: 0 | AI43: 0 | AJ43: 0 | AK43: 0 | AL43: 0 | AM43: 0 | AN43: 0 | AO43: 0 | AP43: 0 | AQ43: 0 | AR43: 0 | AS43: 0 | AT43: 0 | AU43: 0 | AV43: 0 | AW43: 0 | AX43: =$T23*AX23 -> 0 | AY43: 0 | AZ43: 0 | BA43: 0 | BB43: 0 | BC43: 0 | BD43: 0 | BE43: 0 | BF43: 0 | BG43: 0 | BH43: 0 | BI43: 0 | BJ43: 0 | BK43: 0 | BL43: 0 | BM43: 0 | BN43: 0 | BO43: 0 | BP43: 0 | BQ43: 0 | BR43: 0 | BS43: 0 | BT43: 0 | BU43: 0 | BV43: 0 | BW43: 0 | BX43: 0 | BY43: 0 | BZ43: 0 | CA43: 0 | CB43: 0 | CC43: 0 | CD43: 0 | CE43: 0 | CF43: 0 | CG43: 0 | CH43: 0 | CI43: 0 | CJ43: 0 | CK43: 0 | CL43: 0 | CM43: 0 | CN43: 0 | CO43: 0 | CP43: 0 | CQ43: 0 | CR43: 0 | CS43: 0 | CT43: 0 | CU43: 0 | CV43: 0 | CW43: 0 | CX43: 0 | CY43: 0 | CZ43: 0 | DA43: 0 | DB43: 0 | DC43: 0 | DD43: 0 | DE43: 0 | DF43: 0 | DG43: 0 | DH43: 0 | DI43: 0 | DJ43: =$T23*DJ23 -> 0 | DK43: 0 | DL43: 0 | DM43: 0 | DN43: 0 | DO43: 0 | DP43: 0 | DQ43: 0 | DR43: 0 | DS43: 0 | DT43: 0 | DU43: 0 | DV43: 0 | DW43: 0 | DX43: 0 | DY43: 0 | DZ43: 0 | EA43: 0 | EB43: 0 | EC43: 0 | ED43: 0 | EE43: 0 | EF43: 0 | EG43: 0 | EH43: 0 | EI43: 0 | EJ43: 0 | EK43: 0 | EL43: 0 | EM43: 0 | EN43: 0 | EO43: 0 | EP43: 0 | EQ43: 0 | ER43: 0 | ES43: 0 | ET43: 0 | EU43: 0 | EV43: 0 | EW43: 0 | EX43: 0 | EY43: 0 | EZ43: 0 | FA43: 0 | FB43: 0 | FC43: 0 | FD43: 0 | FE43: 0 | FF43: 0 | FG43: 0 | FH43: 0 | FI43: 0 | FJ43: 0 | FK43: 0 | FL43: 0 | FM43: 0 | FN43: 0 | FO43: 0 | FP43: =$T23*FP23 -> 0
K44: Работы по созданию онлайн сервиса - 10 | N44: 10 | Q44: руб. | T44: 10000000 | W44: 10000000 | AA44: =$T24*AA24 -> 0 | AB44: 0 | AC44: 2000000 | AD44: 2000000 | AE44: 2000000 | AF44: 2000000 | AG44: 2000000 | AH44: 0 | AI44: 0 | AJ44: 0 | AK44: 0 | AL44: 0 | AM44: 0 | AN44: 0 | AO44: 0 | AP44: 0 | AQ44: 0 | AR44: 0 | AS44: 0 | AT44: 0 | AU44: 0 | AV44: 0 | AW44: 0 | AX44: =$T24*AX24 -> 0 | AY44: 0 | AZ44: 0 | BA44: 0 | BB44: 0 | BC44: 0 | BD44: 0 | BE44: 0 | BF44: 0 | BG44: 0 | BH44: 0 | BI44: 0 | BJ44: 0 | BK44: 0 | BL44: 0 | BM44: 0 | BN44: 0 | BO44: 0 | BP44: 0 | BQ44: 0 | BR44: 0 | BS44: 0 | BT44: 0 | BU44: 0 | BV44: 0 | BW44: 0 | BX44: 0 | BY44: 0 | BZ44: 0 | CA44: 0 | CB44: 0 | CC44: 0 | CD44: 0 | CE44: 0 | CF44: 0 | CG44: 0 | CH44: 0 | CI44: 0 | CJ44: 0 | CK44: 0 | CL44: 0 | CM44: 0 | CN44: 0 | CO44: 0 | CP44: 0 | CQ44: 0 | CR44: 0 | CS44: 0 | CT44: 0 | CU44: 0 | CV44: 0 | CW44: 0 | CX44: 0 | CY44: 0 | CZ44: 0 | DA44: 0 | DB44: 0 | DC44: 0 | DD44: 0 | DE44: 0 | DF44: 0 | DG44: 0 | DH44: 0 | DI44: 0 | DJ44: =$T24*DJ24 -> 0 | DK44: 0 | DL44: 0 | DM44: 0 | DN44: 0 | DO44: 0 | DP44: 0 | DQ44: 0 | DR44: 0 | DS44: 0 | DT44: 0 | DU44: 0 | DV44: 0 | DW44: 0 | DX44: 0 | DY44: 0 | DZ44: 0 | EA44: 0 | EB44: 0 | EC44: 0 | ED44: 0 | EE44: 0 | EF44: 0 | EG44: 0 | EH44: 0 | EI44: 0 | EJ44: 0 | EK44: 0 | EL44: 0 | EM44: 0 | EN44: 0 | EO44: 0 | EP44: 0 | EQ44: 0 | ER44: 0 | ES44: 0 | ET44: 0 | EU44: 0 | EV44: 0 | EW44: 0 | EX44: 0 | EY44: 0 | EZ44: 0 | FA44: 0 | FB44: 0 | FC44: 0 | FD44: 0 | FE44: 0 | FF44: 0 | FG44: 0 | FH44: 0 | FI44: 0 | FJ44: 0 | FK44: 0 | FL44: 0 | FM44: 0 | FN44: 0 | FO44: 0 | FP44: =$T24*FP24 -> 0
K45: 0 | N45: 0 | Q45: руб. | T45: 0 | W45: 0 | AA45: =$T25*AA25 -> 0 | AB45: 0 | AC45: 0 | AD45: 0 | AE45: 0 | AF45: 0 | AG45: 0 | AH45: 0 | AI45: 0 | AJ45: 0 | AK45: 0 | AL45: 0 | AM45: 0 | AN45: 0 | AO45: 0 | AP45: 0 | AQ45: 0 | AR45: 0 | AS45: 0 | AT45: 0 | AU45: 0 | AV45: 0 | AW45: 0 | AX45: =$T25*AX25 -> 0 | AY45: 0 | AZ45: 0 | BA45: 0 | BB45: 0 | BC45: 0 | BD45: 0 | BE45: 0 | BF45: 0 | BG45: 0 | BH45: 0 | BI45: 0 | BJ45: 0 | BK45: 0 | BL45: 0 | BM45: 0 | BN45: 0 | BO45: 0 | BP45: 0 | BQ45: 0 | BR45: 0 | BS45: 0 | BT45: 0 | BU45: 0 | BV45: 0 | BW45: 0 | BX45: 0 | BY45: 0 | BZ45: 0 | CA45: 0 | CB45: 0 | CC45: 0 | CD45: 0 | CE45: 0 | CF45: 0 | CG45: 0 | CH45: 0 | CI45: 0 | CJ45: 0 | CK45: 0 | CL45: 0 | CM45: 0 | CN45: 0 | CO45: 0 | CP45: 0 | CQ45: 0 | CR45: 0 | CS45: 0 | CT45: 0 | CU45: 0 | CV45: 0 | CW45: 0 | CX45: 0 | CY45: 0 | CZ45: 0 | DA45: 0 | DB45: 0 | DC45: 0 | DD45: 0 | DE45: 0 | DF45: 0 | DG45: 0 | DH45: 0 | DI45: 0 | DJ45: =$T25*DJ25 -> 0 | DK45: 0 | DL45: 0 | DM45: 0 | DN45: 0 | DO45: 0 | DP45: 0 | DQ45: 0 | DR45: 0 | DS45: 0 | DT45: 0 | DU45: 0 | DV45: 0 | DW45: 0 | DX45: 0 | DY45: 0 | DZ45: 0 | EA45: 0 | EB45: 0 | EC45: 0 | ED45: 0 | EE45: 0 | EF45: 0 | EG45: 0 | EH45: 0 | EI45: 0 | EJ45: 0 | EK45: 0 | EL45: 0 | EM45: 0 | EN45: 0 | EO45: 0 | EP45: 0 | EQ45: 0 | ER45: 0 | ES45: 0 | ET45: 0 | EU45: 0 | EV45: 0 | EW45: 0 | EX45: 0 | EY45: 0 | EZ45: 0 | FA45: 0 | FB45: 0 | FC45: 0 | FD45: 0 | FE45: 0 | FF45: 0 | FG45: 0 | FH45: 0 | FI45: 0 | FJ45: 0 | FK45: 0 | FL45: 0 | FM45: 0 | FN45: 0 | FO45: 0 | FP45: =$T25*FP25 -> 0
K46: 0 | N46: 0 | Q46: руб. | T46: 0 | W46: 0 | AA46: =$T26*AA26 -> 0 | AB46: 0 | AC46: 0 | AD46: 0 | AE46: 0 | AF46: 0 | AG46: 0 | AH46: 0 | AI46: 0 | AJ46: 0 | AK46: 0 | AL46: 0 | AM46: 0 | AN46: 0 | AO46: 0 | AP46: 0 | AQ46: 0 | AR46: 0 | AS46: 0 | AT46: 0 | AU46: 0 | AV46: 0 | AW46: 0 | AX46: =$T26*AX26 -> 0 | AY46: 0 | AZ46: 0 | BA46: 0 | BB46: 0 | BC46: 0 | BD46: 0 | BE46: 0 | BF46: 0 | BG46: 0 | BH46: 0 | BI46: 0 | BJ46: 0 | BK46: 0 | BL46: 0 | BM46: 0 | BN46: 0 | BO46: 0 | BP46: 0 | BQ46: 0 | BR46: 0 | BS46: 0 | BT46: 0 | BU46: 0 | BV46: 0 | BW46: 0 | BX46: 0 | BY46: 0 | BZ46: 0 | CA46: 0 | CB46: 0 | CC46: 0 | CD46: 0 | CE46: 0 | CF46: 0 | CG46: 0 | CH46: 0 | CI46: 0 | CJ46: 0 | CK46: 0 | CL46: 0 | CM46: 0 | CN46: 0 | CO46: 0 | CP46: 0 | CQ46: 0 | CR46: 0 | CS46: 0 | CT46: 0 | CU46: 0 | CV46: 0 | CW46: 0 | CX46: 0 | CY46: 0 | CZ46: 0 | DA46: 0 | DB46: 0 | DC46: 0 | DD46: 0 | DE46: 0 | DF46: 0 | DG46: 0 | DH46: 0 | DI46: 0 | DJ46: =$T26*DJ26 -> 0 | DK46: 0 | DL46: 0 | DM46: 0 | DN46: 0 | DO46: 0 | DP46: 0 | DQ46: 0 | DR46: 0 | DS46: 0 | DT46: 0 | DU46: 0 | DV46: 0 | DW46: 0 | DX46: 0 | DY46: 0 | DZ46: 0 | EA46: 0 | EB46: 0 | EC46: 0 | ED46: 0 | EE46: 0 | EF46: 0 | EG46: 0 | EH46: 0 | EI46: 0 | EJ46: 0 | EK46: 0 | EL46: 0 | EM46: 0 | EN46: 0 | EO46: 0 | EP46: 0 | EQ46: 0 | ER46: 0 | ES46: 0 | ET46: 0 | EU46: 0 | EV46: 0 | EW46: 0 | EX46: 0 | EY46: 0 | EZ46: 0 | FA46: 0 | FB46: 0 | FC46: 0 | FD46: 0 | FE46: 0 | FF46: 0 | FG46: 0 | FH46: 0 | FI46: 0 | FJ46: 0 | FK46: 0 | FL46: 0 | FM46: 0 | FN46: 0 | FO46: 0 | FP46: =$T26*FP26 -> 0
K47: 0 | N47: 0 | Q47: руб. | T47: 0 | W47: 0 | AA47: =$T27*AA27 -> 0 | AB47: 0 | AC47: 0 | AD47: 0 | AE47: 0 | AF47: 0 | AG47: 0 | AH47: 0 | AI47: 0 | AJ47: 0 | AK47: 0 | AL47: 0 | AM47: 0 | AN47: 0 | AO47: 0 | AP47: 0 | AQ47: 0 | AR47: 0 | AS47: 0 | AT47: 0 | AU47: 0 | AV47: 0 | AW47: 0 | AX47: =$T27*AX27 -> 0 | AY47: 0 | AZ47: 0 | BA47: 0 | BB47: 0 | BC47: 0 | BD47: 0 | BE47: 0 | BF47: 0 | BG47: 0 | BH47: 0 | BI47: 0 | BJ47: 0 | BK47: 0 | BL47: 0 | BM47: 0 | BN47: 0 | BO47: 0 | BP47: 0 | BQ47: 0 | BR47: 0 | BS47: 0 | BT47: 0 | BU47: 0 | BV47: 0 | BW47: 0 | BX47: 0 | BY47: 0 | BZ47: 0 | CA47: 0 | CB47: 0 | CC47: 0 | CD47: 0 | CE47: 0 | CF47: 0 | CG47: 0 | CH47: 0 | CI47: 0 | CJ47: 0 | CK47: 0 | CL47: 0 | CM47: 0 | CN47: 0 | CO47: 0 | CP47: 0 | CQ47: 0 | CR47: 0 | CS47: 0 | CT47: 0 | CU47: 0 | CV47: 0 | CW47: 0 | CX47: 0 | CY47: 0 | CZ47: 0 | DA47: 0 | DB47: 0 | DC47: 0 | DD47: 0 | DE47: 0 | DF47: 0 | DG47: 0 | DH47: 0 | DI47: 0 | DJ47: =$T27*DJ27 -> 0 | DK47: 0 | DL47: 0 | DM47: 0 | DN47: 0 | DO47: 0 | DP47: 0 | DQ47: 0 | DR47: 0 | DS47: 0 | DT47: 0 | DU47: 0 | DV47: 0 | DW47: 0 | DX47: 0 | DY47: 0 | DZ47: 0 | EA47: 0 | EB47: 0 | EC47: 0 | ED47: 0 | EE47: 0 | EF47: 0 | EG47: 0 | EH47: 0 | EI47: 0 | EJ47: 0 | EK47: 0 | EL47: 0 | EM47: 0 | EN47: 0 | EO47: 0 | EP47: 0 | EQ47: 0 | ER47: 0 | ES47: 0 | ET47: 0 | EU47: 0 | EV47: 0 | EW47: 0 | EX47: 0 | EY47: 0 | EZ47: 0 | FA47: 0 | FB47: 0 | FC47: 0 | FD47: 0 | FE47: 0 | FF47: 0 | FG47: 0 | FH47: 0 | FI47: 0 | FJ47: 0 | FK47: 0 | FL47: 0 | FM47: 0 | FN47: 0 | FO47: 0 | FP47: =$T27*FP27 -> 0
K48: 0 | N48: 0 | Q48: руб. | T48: 0 | W48: 0 | AA48: =$T28*AA28 -> 0 | AB48: 0 | AC48: 0 | AD48: 0 | AE48: 0 | AF48: 0 | AG48: 0 | AH48: 0 | AI48: 0 | AJ48: 0 | AK48: 0 | AL48: 0 | AM48: 0 | AN48: 0 | AO48: 0 | AP48: 0 | AQ48: 0 | AR48: 0 | AS48: 0 | AT48: 0 | AU48: 0 | AV48: 0 | AW48: 0 | AX48: =$T28*AX28 -> 0 | AY48: 0 | AZ48: 0 | BA48: 0 | BB48: 0 | BC48: 0 | BD48: 0 | BE48: 0 | BF48: 0 | BG48: 0 | BH48: 0 | BI48: 0 | BJ48: 0 | BK48: 0 | BL48: 0 | BM48: 0 | BN48: 0 | BO48: 0 | BP48: 0 | BQ48: 0 | BR48: 0 | BS48: 0 | BT48: 0 | BU48: 0 | BV48: 0 | BW48: 0 | BX48: 0 | BY48: 0 | BZ48: 0 | CA48: 0 | CB48: 0 | CC48: 0 | CD48: 0 | CE48: 0 | CF48: 0 | CG48: 0 | CH48: 0 | CI48: 0 | CJ48: 0 | CK48: 0 | CL48: 0 | CM48: 0 | CN48: 0 | CO48: 0 | CP48: 0 | CQ48: 0 | CR48: 0 | CS48: 0 | CT48: 0 | CU48: 0 | CV48: 0 | CW48: 0 | CX48: 0 | CY48: 0 | CZ48: 0 | DA48: 0 | DB48: 0 | DC48: 0 | DD48: 0 | DE48: 0 | DF48: 0 | DG48: 0 | DH48: 0 | DI48: 0 | DJ48: =$T28*DJ28 -> 0 | DK48: 0 | DL48: 0 | DM48: 0 | DN48: 0 | DO48: 0 | DP48: 0 | DQ48: 0 | DR48: 0 | DS48: 0 | DT48: 0 | DU48: 0 | DV48: 0 | DW48: 0 | DX48: 0 | DY48: 0 | DZ48: 0 | EA48: 0 | EB48: 0 | EC48: 0 | ED48: 0 | EE48: 0 | EF48: 0 | EG48: 0 | EH48: 0 | EI48: 0 | EJ48: 0 | EK48: 0 | EL48: 0 | EM48: 0 | EN48: 0 | EO48: 0 | EP48: 0 | EQ48: 0 | ER48: 0 | ES48: 0 | ET48: 0 | EU48: 0 | EV48: 0 | EW48: 0 | EX48: 0 | EY48: 0 | EZ48: 0 | FA48: 0 | FB48: 0 | FC48: 0 | FD48: 0 | FE48: 0 | FF48: 0 | FG48: 0 | FH48: 0 | FI48: 0 | FJ48: 0 | FK48: 0 | FL48: 0 | FM48: 0 | FN48: 0 | FO48: 0 | FP48: =$T28*FP28 -> 0
K49: 0 | N49: 0 | Q49: руб. | T49: 0 | W49: 0 | AA49: =$T29*AA29 -> 0 | AB49: 0 | AC49: 0 | AD49: 0 | AE49: 0 | AF49: 0 | AG49: 0 | AH49: 0 | AI49: 0 | AJ49: 0 | AK49: 0 | AL49: 0 | AM49: 0 | AN49: 0 | AO49: 0 | AP49: 0 | AQ49: 0 | AR49: 0 | AS49: 0 | AT49: 0 | AU49: 0 | AV49: 0 | AW49: 0 | AX49: =$T29*AX29 -> 0 | AY49: 0 | AZ49: 0 | BA49: 0 | BB49: 0 | BC49: 0 | BD49: 0 | BE49: 0 | BF49: 0 | BG49: 0 | BH49: 0 | BI49: 0 | BJ49: 0 | BK49: 0 | BL49: 0 | BM49: 0 | BN49: 0 | BO49: 0 | BP49: 0 | BQ49: 0 | BR49: 0 | BS49: 0 | BT49: 0 | BU49: 0 | BV49: 0 | BW49: 0 | BX49: 0 | BY49: 0 | BZ49: 0 | CA49: 0 | CB49: 0 | CC49: 0 | CD49: 0 | CE49: 0 | CF49: 0 | CG49: 0 | CH49: 0 | CI49: 0 | CJ49: 0 | CK49: 0 | CL49: 0 | CM49: 0 | CN49: 0 | CO49: 0 | CP49: 0 | CQ49: 0 | CR49: 0 | CS49: 0 | CT49: 0 | CU49: 0 | CV49: 0 | CW49: 0 | CX49: 0 | CY49: 0 | CZ49: 0 | DA49: 0 | DB49: 0 | DC49: 0 | DD49: 0 | DE49: 0 | DF49: 0 | DG49: 0 | DH49: 0 | DI49: 0 | DJ49: =$T29*DJ29 -> 0 | DK49: 0 | DL49: 0 | DM49: 0 | DN49: 0 | DO49: 0 | DP49: 0 | DQ49: 0 | DR49: 0 | DS49: 0 | DT49: 0 | DU49: 0 | DV49: 0 | DW49: 0 | DX49: 0 | DY49: 0 | DZ49: 0 | EA49: 0 | EB49: 0 | EC49: 0 | ED49: 0 | EE49: 0 | EF49: 0 | EG49: 0 | EH49: 0 | EI49: 0 | EJ49: 0 | EK49: 0 | EL49: 0 | EM49: 0 | EN49: 0 | EO49: 0 | EP49: 0 | EQ49: 0 | ER49: 0 | ES49: 0 | ET49: 0 | EU49: 0 | EV49: 0 | EW49: 0 | EX49: 0 | EY49: 0 | EZ49: 0 | FA49: 0 | FB49: 0 | FC49: 0 | FD49: 0 | FE49: 0 | FF49: 0 | FG49: 0 | FH49: 0 | FI49: 0 | FJ49: 0 | FK49: 0 | FL49: 0 | FM49: 0 | FN49: 0 | FO49: 0 | FP49: =$T29*FP29 -> 0
B52: вкл. ндс | H52: =H12 -> Капитальные затраты Проекта | N52: =MAX(N53:N70) -> 10 | T52: =SUM(T53:T70) -> 100000000 | W52: =SUM($Y52:$FQ52) -> 1 | AA52: =IF(AA$8="",0,SUM(AA54:AA70)) -> 0.125 | AB52: 0.125 | AC52: 0.195 | AD52: 0.195 | AE52: 0.12 | AF52: 0.12 | AG52: 0.12 | AH52: 0 | AI52: 0 | AJ52: 0 | AK52: 0 | AL52: 0 | AM52: 0 | AN52: 0 | AO52: 0 | AP52: 0 | AQ52: 0 | AR52: 0 | AS52: 0 | AT52: 0 | AU52: 0 | AV52: 0 | AW52: 0 | AX52: =IF(AX$8="",0,SUM(AX54:AX70)) -> 0 | AY52: 0 | AZ52: 0 | BA52: 0 | BB52: 0 | BC52: 0 | BD52: 0 | BE52: 0 | BF52: 0 | BG52: 0 | BH52: 0 | BI52: 0 | BJ52: 0 | BK52: 0 | BL52: 0 | BM52: 0 | BN52: 0 | BO52: 0 | BP52: 0 | BQ52: 0 | BR52: 0 | BS52: 0 | BT52: 0 | BU52: 0 | BV52: 0 | BW52: 0 | BX52: 0 | BY52: 0 | BZ52: 0 | CA52: 0 | CB52: 0 | CC52: 0 | CD52: 0 | CE52: 0 | CF52: 0 | CG52: 0 | CH52: 0 | CI52: 0 | CJ52: 0 | CK52: 0 | CL52: 0 | CM52: 0 | CN52: 0 | CO52: 0 | CP52: 0 | CQ52: 0 | CR52: 0 | CS52: 0 | CT52: 0 | CU52: 0 | CV52: 0 | CW52: 0 | CX52: 0 | CY52: 0 | CZ52: 0 | DA52: 0 | DB52: 0 | DC52: 0 | DD52: 0 | DE52: 0 | DF52: 0 | DG52: 0 | DH52: 0 | DI52: 0 | DJ52: =IF(DJ$8="",0,SUM(DJ54:DJ70)) -> 0 | DK52: 0 | DL52: 0 | DM52: 0 | DN52: 0 | DO52: 0 | DP52: 0 | DQ52: 0 | DR52: 0 | DS52: 0 | DT52: 0 | DU52: 0 | DV52: 0 | DW52: 0 | DX52: 0 | DY52: 0 | DZ52: 0 | EA52: 0 | EB52: 0 | EC52: 0 | ED52: 0 | EE52: 0 | EF52: 0 | EG52: 0 | EH52: 0 | EI52: 0 | EJ52: 0 | EK52: 0 | EL52: 0 | EM52: 0 | EN52: 0 | EO52: 0 | EP52: 0 | EQ52: 0 | ER52: 0 | ES52: 0 | ET52: 0 | EU52: 0 | EV52: 0 | EW52: 0 | EX52: 0 | EY52: 0 | EZ52: 0 | FA52: 0 | FB52: 0 | FC52: 0 | FD52: 0 | FE52: 0 | FF52: 0 | FG52: 0 | FH52: 0 | FI52: 0 | FJ52: 0 | FK52: 0 | FL52: 0 | FM52: 0 | FN52: 0 | FO52: 0 | FP52: =IF(FP$8="",0,SUM(FP54:FP70)) -> 0
K55: =K35 -> Работы по созданию онлайн сервиса - 1 | N55: =N35 -> 1 | Q55: руб/% | T55: =T35 -> 10000000 | W55: =SUM($Y55:$FQ55) -> 0.1 | AA55: =IF($W$32=0,0,AA35/$W$32) -> 0.05 | AB55: 0.05 | AC55: 0 | AD55: 0 | AE55: 0 | AF55: 0 | AG55: 0 | AH55: 0 | AI55: 0 | AJ55: 0 | AK55: 0 | AL55: 0 | AM55: 0 | AN55: 0 | AO55: 0 | AP55: 0 | AQ55: 0 | AR55: 0 | AS55: 0 | AT55: 0 | AU55: 0 | AV55: 0 | AW55: 0 | AX55: =IF($W$32=0,0,AX35/$W$32) -> 0 | AY55: 0 | AZ55: 0 | BA55: 0 | BB55: 0 | BC55: 0 | BD55: 0 | BE55: 0 | BF55: 0 | BG55: 0 | BH55: 0 | BI55: 0 | BJ55: 0 | BK55: 0 | BL55: 0 | BM55: 0 | BN55: 0 | BO55: 0 | BP55: 0 | BQ55: 0 | BR55: 0 | BS55: 0 | BT55: 0 | BU55: 0 | BV55: 0 | BW55: 0 | BX55: 0 | BY55: 0 | BZ55: 0 | CA55: 0 | CB55: 0 | CC55: 0 | CD55: 0 | CE55: 0 | CF55: 0 | CG55: 0 | CH55: 0 | CI55: 0 | CJ55: 0 | CK55: 0 | CL55: 0 | CM55: 0 | CN55: 0 | CO55: 0 | CP55: 0 | CQ55: 0 | CR55: 0 | CS55: 0 | CT55: 0 | CU55: 0 | CV55: 0 | CW55: 0 | CX55: 0 | CY55: 0 | CZ55: 0 | DA55: 0 | DB55: 0 | DC55: 0 | DD55: 0 | DE55: 0 | DF55: 0 | DG55: 0 | DH55: 0 | DI55: 0 | DJ55: =IF($W$32=0,0,DJ35/$W$32) -> 0 | DK55: 0 | DL55: 0 | DM55: 0 | DN55: 0 | DO55: 0 | DP55: 0 | DQ55: 0 | DR55: 0 | DS55: 0 | DT55: 0 | DU55: 0 | DV55: 0 | DW55: 0 | DX55: 0 | DY55: 0 | DZ55: 0 | EA55: 0 | EB55: 0 | EC55: 0 | ED55: 0 | EE55: 0 | EF55: 0 | EG55: 0 | EH55: 0 | EI55: 0 | EJ55: 0 | EK55: 0 | EL55: 0 | EM55: 0 | EN55: 0 | EO55: 0 | EP55: 0 | EQ55: 0 | ER55: 0 | ES55: 0 | ET55: 0 | EU55: 0 | EV55: 0 | EW55: 0 | EX55: 0 | EY55: 0 | EZ55: 0 | FA55: 0 | FB55: 0 | FC55: 0 | FD55: 0 | FE55: 0 | FF55: 0 | FG55: 0 | FH55: 0 | FI55: 0 | FJ55: 0 | FK55: 0 | FL55: 0 | FM55: 0 | FN55: 0 | FO55: 0 | FP55: =IF($W$32=0,0,FP35/$W$32) -> 0
K56: Работы по созданию онлайн сервиса - 2 | N56: 2 | Q56: руб/% | T56: 10000000 | W56: 0.1 | AA56: =IF($W$32=0,0,AA36/$W$32) -> 0.025 | AB56: 0.025 | AC56: 0.025 | AD56: 0.025 | AE56: 0 | AF56: 0 | AG56: 0 | AH56: 0 | AI56: 0 | AJ56: 0 | AK56: 0 | AL56: 0 | AM56: 0 | AN56: 0 | AO56: 0 | AP56: 0 | AQ56: 0 | AR56: 0 | AS56: 0 | AT56: 0 | AU56: 0 | AV56: 0 | AW56: 0 | AX56: =IF($W$32=0,0,AX36/$W$32) -> 0 | AY56: 0 | AZ56: 0 | BA56: 0 | BB56: 0 | BC56: 0 | BD56: 0 | BE56: 0 | BF56: 0 | BG56: 0 | BH56: 0 | BI56: 0 | BJ56: 0 | BK56: 0 | BL56: 0 | BM56: 0 | BN56: 0 | BO56: 0 | BP56: 0 | BQ56: 0 | BR56: 0 | BS56: 0 | BT56: 0 | BU56: 0 | BV56: 0 | BW56: 0 | BX56: 0 | BY56: 0 | BZ56: 0 | CA56: 0 | CB56: 0 | CC56: 0 | CD56: 0 | CE56: 0 | CF56: 0 | CG56: 0 | CH56: 0 | CI56: 0 | CJ56: 0 | CK56: 0 | CL56: 0 | CM56: 0 | CN56: 0 | CO56: 0 | CP56: 0 | CQ56: 0 | CR56: 0 | CS56: 0 | CT56: 0 | CU56: 0 | CV56: 0 | CW56: 0 | CX56: 0 | CY56: 0 | CZ56: 0 | DA56: 0 | DB56: 0 | DC56: 0 | DD56: 0 | DE56: 0 | DF56: 0 | DG56: 0 | DH56: 0 | DI56: 0 | DJ56: =IF($W$32=0,0,DJ36/$W$32) -> 0 | DK56: 0 | DL56: 0 | DM56: 0 | DN56: 0 | DO56: 0 | DP56: 0 | DQ56: 0 | DR56: 0 | DS56: 0 | DT56: 0 | DU56: 0 | DV56: 0 | DW56: 0 | DX56: 0 | DY56: 0 | DZ56: 0 | EA56: 0 | EB56: 0 | EC56: 0 | ED56: 0 | EE56: 0 | EF56: 0 | EG56: 0 | EH56: 0 | EI56: 0 | EJ56: 0 | EK56: 0 | EL56: 0 | EM56: 0 | EN56: 0 | EO56: 0 | EP56: 0 | EQ56: 0 | ER56: 0 | ES56: 0 | ET56: 0 | EU56: 0 | EV56: 0 | EW56: 0 | EX56: 0 | EY56: 0 | EZ56: 0 | FA56: 0 | FB56: 0 | FC56: 0 | FD56: 0 | FE56: 0 | FF56: 0 | FG56: 0 | FH56: 0 | FI56: 0 | FJ56: 0 | FK56: 0 | FL56: 0 | FM56: 0 | FN56: 0 | FO56: 0 | FP56: =IF($W$32=0,0,FP36/$W$32) -> 0
K57: Работы по созданию онлайн сервиса - 3 | N57: 3 | Q57: руб/% | T57: 10000000 | W57: 0.1 | AA57: =IF($W$32=0,0,AA37/$W$32) -> 0.025 | AB57: 0.025 | AC57: 0.025 | AD57: 0.025 | AE57: 0 | AF57: 0 | AG57: 0 | AH57: 0 | AI57: 0 | AJ57: 0 | AK57: 0 | AL57: 0 | AM57: 0 | AN57: 0 | AO57: 0 | AP57: 0 | AQ57: 0 | AR57: 0 | AS57: 0 | AT57: 0 | AU57: 0 | AV57: 0 | AW57: 0 | AX57: =IF($W$32=0,0,AX37/$W$32) -> 0 | AY57: 0 | AZ57: 0 | BA57: 0 | BB57: 0 | BC57: 0 | BD57: 0 | BE57: 0 | BF57: 0 | BG57: 0 | BH57: 0 | BI57: 0 | BJ57: 0 | BK57: 0 | BL57: 0 | BM57: 0 | BN57: 0 | BO57: 0 | BP57: 0 | BQ57: 0 | BR57: 0 | BS57: 0 | BT57: 0 | BU57: 0 | BV57: 0 | BW57: 0 | BX57: 0 | BY57: 0 | BZ57: 0 | CA57: 0 | CB57: 0 | CC57: 0 | CD57: 0 | CE57: 0 | CF57: 0 | CG57: 0 | CH57: 0 | CI57: 0 | CJ57: 0 | CK57: 0 | CL57: 0 | CM57: 0 | CN57: 0 | CO57: 0 | CP57: 0 | CQ57: 0 | CR57: 0 | CS57: 0 | CT57: 0 | CU57: 0 | CV57: 0 | CW57: 0 | CX57: 0 | CY57: 0 | CZ57: 0 | DA57: 0 | DB57: 0 | DC57: 0 | DD57: 0 | DE57: 0 | DF57: 0 | DG57: 0 | DH57: 0 | DI57: 0 | DJ57: =IF($W$32=0,0,DJ37/$W$32) -> 0 | DK57: 0 | DL57: 0 | DM57: 0 | DN57: 0 | DO57: 0 | DP57: 0 | DQ57: 0 | DR57: 0 | DS57: 0 | DT57: 0 | DU57: 0 | DV57: 0 | DW57: 0 | DX57: 0 | DY57: 0 | DZ57: 0 | EA57: 0 | EB57: 0 | EC57: 0 | ED57: 0 | EE57: 0 | EF57: 0 | EG57: 0 | EH57: 0 | EI57: 0 | EJ57: 0 | EK57: 0 | EL57: 0 | EM57: 0 | EN57: 0 | EO57: 0 | EP57: 0 | EQ57: 0 | ER57: 0 | ES57: 0 | ET57: 0 | EU57: 0 | EV57: 0 | EW57: 0 | EX57: 0 | EY57: 0 | EZ57: 0 | FA57: 0 | FB57: 0 | FC57: 0 | FD57: 0 | FE57: 0 | FF57: 0 | FG57: 0 | FH57: 0 | FI57: 0 | FJ57: 0 | FK57: 0 | FL57: 0 | FM57: 0 | FN57: 0 | FO57: 0 | FP57: =IF($W$32=0,0,FP37/$W$32) -> 0
K58: Работы по созданию онлайн сервиса - 4 | N58: 4 | Q58: руб/% | T58: 10000000 | W58: 0.1 | AA58: =IF($W$32=0,0,AA38/$W$32) -> 0.025 | AB58: 0.025 | AC58: 0.025 | AD58: 0.025 | AE58: 0 | AF58: 0 | AG58: 0 | AH58: 0 | AI58: 0 | AJ58: 0 | AK58: 0 | AL58: 0 | AM58: 0 | AN58: 0 | AO58: 0 | AP58: 0 | AQ58: 0 | AR58: 0 | AS58: 0 | AT58: 0 | AU58: 0 | AV58: 0 | AW58: 0 | AX58: =IF($W$32=0,0,AX38/$W$32) -> 0 | AY58: 0 | AZ58: 0 | BA58: 0 | BB58: 0 | BC58: 0 | BD58: 0 | BE58: 0 | BF58: 0 | BG58: 0 | BH58: 0 | BI58: 0 | BJ58: 0 | BK58: 0 | BL58: 0 | BM58: 0 | BN58: 0 | BO58: 0 | BP58: 0 | BQ58: 0 | BR58: 0 | BS58: 0 | BT58: 0 | BU58: 0 | BV58: 0 | BW58: 0 | BX58: 0 | BY58: 0 | BZ58: 0 | CA58: 0 | CB58: 0 | CC58: 0 | CD58: 0 | CE58: 0 | CF58: 0 | CG58: 0 | CH58: 0 | CI58: 0 | CJ58: 0 | CK58: 0 | CL58: 0 | CM58: 0 | CN58: 0 | CO58: 0 | CP58: 0 | CQ58: 0 | CR58: 0 | CS58: 0 | CT58: 0 | CU58: 0 | CV58: 0 | CW58: 0 | CX58: 0 | CY58: 0 | CZ58: 0 | DA58: 0 | DB58: 0 | DC58: 0 | DD58: 0 | DE58: 0 | DF58: 0 | DG58: 0 | DH58: 0 | DI58: 0 | DJ58: =IF($W$32=0,0,DJ38/$W$32) -> 0 | DK58: 0 | DL58: 0 | DM58: 0 | DN58: 0 | DO58: 0 | DP58: 0 | DQ58: 0 | DR58: 0 | DS58: 0 | DT58: 0 | DU58: 0 | DV58: 0 | DW58: 0 | DX58: 0 | DY58: 0 | DZ58: 0 | EA58: 0 | EB58: 0 | EC58: 0 | ED58: 0 | EE58: 0 | EF58: 0 | EG58: 0 | EH58: 0 | EI58: 0 | EJ58: 0 | EK58: 0 | EL58: 0 | EM58: 0 | EN58: 0 | EO58: 0 | EP58: 0 | EQ58: 0 | ER58: 0 | ES58: 0 | ET58: 0 | EU58: 0 | EV58: 0 | EW58: 0 | EX58: 0 | EY58: 0 | EZ58: 0 | FA58: 0 | FB58: 0 | FC58: 0 | FD58: 0 | FE58: 0 | FF58: 0 | FG58: 0 | FH58: 0 | FI58: 0 | FJ58: 0 | FK58: 0 | FL58: 0 | FM58: 0 | FN58: 0 | FO58: 0 | FP58: =IF($W$32=0,0,FP38/$W$32) -> 0
K59: Работы по созданию онлайн сервиса - 5 | N59: 5 | Q59: руб/% | T59: 10000000 | W59: 0.1 | AA59: =IF($W$32=0,0,AA39/$W$32) -> 0 | AB59: 0 | AC59: 0.02 | AD59: 0.02 | AE59: 0.02 | AF59: 0.02 | AG59: 0.02 | AH59: 0 | AI59: 0 | AJ59: 0 | AK59: 0 | AL59: 0 | AM59: 0 | AN59: 0 | AO59: 0 | AP59: 0 | AQ59: 0 | AR59: 0 | AS59: 0 | AT59: 0 | AU59: 0 | AV59: 0 | AW59: 0 | AX59: =IF($W$32=0,0,AX39/$W$32) -> 0 | AY59: 0 | AZ59: 0 | BA59: 0 | BB59: 0 | BC59: 0 | BD59: 0 | BE59: 0 | BF59: 0 | BG59: 0 | BH59: 0 | BI59: 0 | BJ59: 0 | BK59: 0 | BL59: 0 | BM59: 0 | BN59: 0 | BO59: 0 | BP59: 0 | BQ59: 0 | BR59: 0 | BS59: 0 | BT59: 0 | BU59: 0 | BV59: 0 | BW59: 0 | BX59: 0 | BY59: 0 | BZ59: 0 | CA59: 0 | CB59: 0 | CC59: 0 | CD59: 0 | CE59: 0 | CF59: 0 | CG59: 0 | CH59: 0 | CI59: 0 | CJ59: 0 | CK59: 0 | CL59: 0 | CM59: 0 | CN59: 0 | CO59: 0 | CP59: 0 | CQ59: 0 | CR59: 0 | CS59: 0 | CT59: 0 | CU59: 0 | CV59: 0 | CW59: 0 | CX59: 0 | CY59: 0 | CZ59: 0 | DA59: 0 | DB59: 0 | DC59: 0 | DD59: 0 | DE59: 0 | DF59: 0 | DG59: 0 | DH59: 0 | DI59: 0 | DJ59: =IF($W$32=0,0,DJ39/$W$32) -> 0 | DK59: 0 | DL59: 0 | DM59: 0 | DN59: 0 | DO59: 0 | DP59: 0 | DQ59: 0 | DR59: 0 | DS59: 0 | DT59: 0 | DU59: 0 | DV59: 0 | DW59: 0 | DX59: 0 | DY59: 0 | DZ59: 0 | EA59: 0 | EB59: 0 | EC59: 0 | ED59: 0 | EE59: 0 | EF59: 0 | EG59: 0 | EH59: 0 | EI59: 0 | EJ59: 0 | EK59: 0 | EL59: 0 | EM59: 0 | EN59: 0 | EO59: 0 | EP59: 0 | EQ59: 0 | ER59: 0 | ES59: 0 | ET59: 0 | EU59: 0 | EV59: 0 | EW59: 0 | EX59: 0 | EY59: 0 | EZ59: 0 | FA59: 0 | FB59: 0 | FC59: 0 | FD59: 0 | FE59: 0 | FF59: 0 | FG59: 0 | FH59: 0 | FI59: 0 | FJ59: 0 | FK59: 0 | FL59: 0 | FM59: 0 | FN59: 0 | FO59: 0 | FP59: =IF($W$32=0,0,FP39/$W$32) -> 0
K60: Работы по созданию онлайн сервиса - 6 | N60: 6 | Q60: руб/% | T60: 10000000 | W60: 0.1 | AA60: =IF($W$32=0,0,AA40/$W$32) -> 0 | AB60: 0 | AC60: 0.02 | AD60: 0.02 | AE60: 0.02 | AF60: 0.02 | AG60: 0.02 | AH60: 0 | AI60: 0 | AJ60: 0 | AK60: 0 | AL60: 0 | AM60: 0 | AN60: 0 | AO60: 0 | AP60: 0 | AQ60: 0 | AR60: 0 | AS60: 0 | AT60: 0 | AU60: 0 | AV60: 0 | AW60: 0 | AX60: =IF($W$32=0,0,AX40/$W$32) -> 0 | AY60: 0 | AZ60: 0 | BA60: 0 | BB60: 0 | BC60: 0 | BD60: 0 | BE60: 0 | BF60: 0 | BG60: 0 | BH60: 0 | BI60: 0 | BJ60: 0 | BK60: 0 | BL60: 0 | BM60: 0 | BN60: 0 | BO60: 0 | BP60: 0 | BQ60: 0 | BR60: 0 | BS60: 0 | BT60: 0 | BU60: 0 | BV60: 0 | BW60: 0 | BX60: 0 | BY60: 0 | BZ60: 0 | CA60: 0 | CB60: 0 | CC60: 0 | CD60: 0 | CE60: 0 | CF60: 0 | CG60: 0 | CH60: 0 | CI60: 0 | CJ60: 0 | CK60: 0 | CL60: 0 | CM60: 0 | CN60: 0 | CO60: 0 | CP60: 0 | CQ60: 0 | CR60: 0 | CS60: 0 | CT60: 0 | CU60: 0 | CV60: 0 | CW60: 0 | CX60: 0 | CY60: 0 | CZ60: 0 | DA60: 0 | DB60: 0 | DC60: 0 | DD60: 0 | DE60: 0 | DF60: 0 | DG60: 0 | DH60: 0 | DI60: 0 | DJ60: =IF($W$32=0,0,DJ40/$W$32) -> 0 | DK60: 0 | DL60: 0 | DM60: 0 | DN60: 0 | DO60: 0 | DP60: 0 | DQ60: 0 | DR60: 0 | DS60: 0 | DT60: 0 | DU60: 0 | DV60: 0 | DW60: 0 | DX60: 0 | DY60: 0 | DZ60: 0 | EA60: 0 | EB60: 0 | EC60: 0 | ED60: 0 | EE60: 0 | EF60: 0 | EG60: 0 | EH60: 0 | EI60: 0 | EJ60: 0 | EK60: 0 | EL60: 0 | EM60: 0 | EN60: 0 | EO60: 0 | EP60: 0 | EQ60: 0 | ER60: 0 | ES60: 0 | ET60: 0 | EU60: 0 | EV60: 0 | EW60: 0 | EX60: 0 | EY60: 0 | EZ60: 0 | FA60: 0 | FB60: 0 | FC60: 0 | FD60: 0 | FE60: 0 | FF60: 0 | FG60: 0 | FH60: 0 | FI60: 0 | FJ60: 0 | FK60: 0 | FL60: 0 | FM60: 0 | FN60: 0 | FO60: 0 | FP60: =IF($W$32=0,0,FP40/$W$32) -> 0
K61: Работы по созданию онлайн сервиса - 7 | N61: 7 | Q61: руб/% | T61: 10000000 | W61: 0.1 | AA61: =IF($W$32=0,0,AA41/$W$32) -> 0 | AB61: 0 | AC61: 0.02 | AD61: 0.02 | AE61: 0.02 | AF61: 0.02 | AG61: 0.02 | AH61: 0 | AI61: 0 | AJ61: 0 | AK61: 0 | AL61: 0 | AM61: 0 | AN61: 0 | AO61: 0 | AP61: 0 | AQ61: 0 | AR61: 0 | AS61: 0 | AT61: 0 | AU61: 0 | AV61: 0 | AW61: 0 | AX61: =IF($W$32=0,0,AX41/$W$32) -> 0 | AY61: 0 | AZ61: 0 | BA61: 0 | BB61: 0 | BC61: 0 | BD61: 0 | BE61: 0 | BF61: 0 | BG61: 0 | BH61: 0 | BI61: 0 | BJ61: 0 | BK61: 0 | BL61: 0 | BM61: 0 | BN61: 0 | BO61: 0 | BP61: 0 | BQ61: 0 | BR61: 0 | BS61: 0 | BT61: 0 | BU61: 0 | BV61: 0 | BW61: 0 | BX61: 0 | BY61: 0 | BZ61: 0 | CA61: 0 | CB61: 0 | CC61: 0 | CD61: 0 | CE61: 0 | CF61: 0 | CG61: 0 | CH61: 0 | CI61: 0 | CJ61: 0 | CK61: 0 | CL61: 0 | CM61: 0 | CN61: 0 | CO61: 0 | CP61: 0 | CQ61: 0 | CR61: 0 | CS61: 0 | CT61: 0 | CU61: 0 | CV61: 0 | CW61: 0 | CX61: 0 | CY61: 0 | CZ61: 0 | DA61: 0 | DB61: 0 | DC61: 0 | DD61: 0 | DE61: 0 | DF61: 0 | DG61: 0 | DH61: 0 | DI61: 0 | DJ61: =IF($W$32=0,0,DJ41/$W$32) -> 0 | DK61: 0 | DL61: 0 | DM61: 0 | DN61: 0 | DO61: 0 | DP61: 0 | DQ61: 0 | DR61: 0 | DS61: 0 | DT61: 0 | DU61: 0 | DV61: 0 | DW61: 0 | DX61: 0 | DY61: 0 | DZ61: 0 | EA61: 0 | EB61: 0 | EC61: 0 | ED61: 0 | EE61: 0 | EF61: 0 | EG61: 0 | EH61: 0 | EI61: 0 | EJ61: 0 | EK61: 0 | EL61: 0 | EM61: 0 | EN61: 0 | EO61: 0 | EP61: 0 | EQ61: 0 | ER61: 0 | ES61: 0 | ET61: 0 | EU61: 0 | EV61: 0 | EW61: 0 | EX61: 0 | EY61: 0 | EZ61: 0 | FA61: 0 | FB61: 0 | FC61: 0 | FD61: 0 | FE61: 0 | FF61: 0 | FG61: 0 | FH61: 0 | FI61: 0 | FJ61: 0 | FK61: 0 | FL61: 0 | FM61: 0 | FN61: 0 | FO61: 0 | FP61: =IF($W$32=0,0,FP41/$W$32) -> 0
K62: Работы по созданию онлайн сервиса - 8 | N62: 8 | Q62: руб/% | T62: 10000000 | W62: 0.1 | AA62: =IF($W$32=0,0,AA42/$W$32) -> 0 | AB62: 0 | AC62: 0.02 | AD62: 0.02 | AE62: 0.02 | AF62: 0.02 | AG62: 0.02 | AH62: 0 | AI62: 0 | AJ62: 0 | AK62: 0 | AL62: 0 | AM62: 0 | AN62: 0 | AO62: 0 | AP62: 0 | AQ62: 0 | AR62: 0 | AS62: 0 | AT62: 0 | AU62: 0 | AV62: 0 | AW62: 0 | AX62: =IF($W$32=0,0,AX42/$W$32) -> 0 | AY62: 0 | AZ62: 0 | BA62: 0 | BB62: 0 | BC62: 0 | BD62: 0 | BE62: 0 | BF62: 0 | BG62: 0 | BH62: 0 | BI62: 0 | BJ62: 0 | BK62: 0 | BL62: 0 | BM62: 0 | BN62: 0 | BO62: 0 | BP62: 0 | BQ62: 0 | BR62: 0 | BS62: 0 | BT62: 0 | BU62: 0 | BV62: 0 | BW62: 0 | BX62: 0 | BY62: 0 | BZ62: 0 | CA62: 0 | CB62: 0 | CC62: 0 | CD62: 0 | CE62: 0 | CF62: 0 | CG62: 0 | CH62: 0 | CI62: 0 | CJ62: 0 | CK62: 0 | CL62: 0 | CM62: 0 | CN62: 0 | CO62: 0 | CP62: 0 | CQ62: 0 | CR62: 0 | CS62: 0 | CT62: 0 | CU62: 0 | CV62: 0 | CW62: 0 | CX62: 0 | CY62: 0 | CZ62: 0 | DA62: 0 | DB62: 0 | DC62: 0 | DD62: 0 | DE62: 0 | DF62: 0 | DG62: 0 | DH62: 0 | DI62: 0 | DJ62: =IF($W$32=0,0,DJ42/$W$32) -> 0 | DK62: 0 | DL62: 0 | DM62: 0 | DN62: 0 | DO62: 0 | DP62: 0 | DQ62: 0 | DR62: 0 | DS62: 0 | DT62: 0 | DU62: 0 | DV62: 0 | DW62: 0 | DX62: 0 | DY62: 0 | DZ62: 0 | EA62: 0 | EB62: 0 | EC62: 0 | ED62: 0 | EE62: 0 | EF62: 0 | EG62: 0 | EH62: 0 | EI62: 0 | EJ62: 0 | EK62: 0 | EL62: 0 | EM62: 0 | EN62: 0 | EO62: 0 | EP62: 0 | EQ62: 0 | ER62: 0 | ES62: 0 | ET62: 0 | EU62: 0 | EV62: 0 | EW62: 0 | EX62: 0 | EY62: 0 | EZ62: 0 | FA62: 0 | FB62: 0 | FC62: 0 | FD62: 0 | FE62: 0 | FF62: 0 | FG62: 0 | FH62: 0 | FI62: 0 | FJ62: 0 | FK62: 0 | FL62: 0 | FM62: 0 | FN62: 0 | FO62: 0 | FP62: =IF($W$32=0,0,FP42/$W$32) -> 0
K63: Работы по созданию онлайн сервиса - 9 | N63: 9 | Q63: руб/% | T63: 10000000 | W63: 0.1 | AA63: =IF($W$32=0,0,AA43/$W$32) -> 0 | AB63: 0 | AC63: 0.02 | AD63: 0.02 | AE63: 0.02 | AF63: 0.02 | AG63: 0.02 | AH63: 0 | AI63: 0 | AJ63: 0 | AK63: 0 | AL63: 0 | AM63: 0 | AN63: 0 | AO63: 0 | AP63: 0 | AQ63: 0 | AR63: 0 | AS63: 0 | AT63: 0 | AU63: 0 | AV63: 0 | AW63: 0 | AX63: =IF($W$32=0,0,AX43/$W$32) -> 0 | AY63: 0 | AZ63: 0 | BA63: 0 | BB63: 0 | BC63: 0 | BD63: 0 | BE63: 0 | BF63: 0 | BG63: 0 | BH63: 0 | BI63: 0 | BJ63: 0 | BK63: 0 | BL63: 0 | BM63: 0 | BN63: 0 | BO63: 0 | BP63: 0 | BQ63: 0 | BR63: 0 | BS63: 0 | BT63: 0 | BU63: 0 | BV63: 0 | BW63: 0 | BX63: 0 | BY63: 0 | BZ63: 0 | CA63: 0 | CB63: 0 | CC63: 0 | CD63: 0 | CE63: 0 | CF63: 0 | CG63: 0 | CH63: 0 | CI63: 0 | CJ63: 0 | CK63: 0 | CL63: 0 | CM63: 0 | CN63: 0 | CO63: 0 | CP63: 0 | CQ63: 0 | CR63: 0 | CS63: 0 | CT63: 0 | CU63: 0 | CV63: 0 | CW63: 0 | CX63: 0 | CY63: 0 | CZ63: 0 | DA63: 0 | DB63: 0 | DC63: 0 | DD63: 0 | DE63: 0 | DF63: 0 | DG63: 0 | DH63: 0 | DI63: 0 | DJ63: =IF($W$32=0,0,DJ43/$W$32) -> 0 | DK63: 0 | DL63: 0 | DM63: 0 | DN63: 0 | DO63: 0 | DP63: 0 | DQ63: 0 | DR63: 0 | DS63: 0 | DT63: 0 | DU63: 0 | DV63: 0 | DW63: 0 | DX63: 0 | DY63: 0 | DZ63: 0 | EA63: 0 | EB63: 0 | EC63: 0 | ED63: 0 | EE63: 0 | EF63: 0 | EG63: 0 | EH63: 0 | EI63: 0 | EJ63: 0 | EK63: 0 | EL63: 0 | EM63: 0 | EN63: 0 | EO63: 0 | EP63: 0 | EQ63: 0 | ER63: 0 | ES63: 0 | ET63: 0 | EU63: 0 | EV63: 0 | EW63: 0 | EX63: 0 | EY63: 0 | EZ63: 0 | FA63: 0 | FB63: 0 | FC63: 0 | FD63: 0 | FE63: 0 | FF63: 0 | FG63: 0 | FH63: 0 | FI63: 0 | FJ63: 0 | FK63: 0 | FL63: 0 | FM63: 0 | FN63: 0 | FO63: 0 | FP63: =IF($W$32=0,0,FP43/$W$32) -> 0
K64: Работы по созданию онлайн сервиса - 10 | N64: 10 | Q64: руб/% | T64: 10000000 | W64: 0.1 | AA64: =IF($W$32=0,0,AA44/$W$32) -> 0 | AB64: 0 | AC64: 0.02 | AD64: 0.02 | AE64: 0.02 | AF64: 0.02 | AG64: 0.02 | AH64: 0 | AI64: 0 | AJ64: 0 | AK64: 0 | AL64: 0 | AM64: 0 | AN64: 0 | AO64: 0 | AP64: 0 | AQ64: 0 | AR64: 0 | AS64: 0 | AT64: 0 | AU64: 0 | AV64: 0 | AW64: 0 | AX64: =IF($W$32=0,0,AX44/$W$32) -> 0 | AY64: 0 | AZ64: 0 | BA64: 0 | BB64: 0 | BC64: 0 | BD64: 0 | BE64: 0 | BF64: 0 | BG64: 0 | BH64: 0 | BI64: 0 | BJ64: 0 | BK64: 0 | BL64: 0 | BM64: 0 | BN64: 0 | BO64: 0 | BP64: 0 | BQ64: 0 | BR64: 0 | BS64: 0 | BT64: 0 | BU64: 0 | BV64: 0 | BW64: 0 | BX64: 0 | BY64: 0 | BZ64: 0 | CA64: 0 | CB64: 0 | CC64: 0 | CD64: 0 | CE64: 0 | CF64: 0 | CG64: 0 | CH64: 0 | CI64: 0 | CJ64: 0 | CK64: 0 | CL64: 0 | CM64: 0 | CN64: 0 | CO64: 0 | CP64: 0 | CQ64: 0 | CR64: 0 | CS64: 0 | CT64: 0 | CU64: 0 | CV64: 0 | CW64: 0 | CX64: 0 | CY64: 0 | CZ64: 0 | DA64: 0 | DB64: 0 | DC64: 0 | DD64: 0 | DE64: 0 | DF64: 0 | DG64: 0 | DH64: 0 | DI64: 0 | DJ64: =IF($W$32=0,0,DJ44/$W$32) -> 0 | DK64: 0 | DL64: 0 | DM64: 0 | DN64: 0 | DO64: 0 | DP64: 0 | DQ64: 0 | DR64: 0 | DS64: 0 | DT64: 0 | DU64: 0 | DV64: 0 | DW64: 0 | DX64: 0 | DY64: 0 | DZ64: 0 | EA64: 0 | EB64: 0 | EC64: 0 | ED64: 0 | EE64: 0 | EF64: 0 | EG64: 0 | EH64: 0 | EI64: 0 | EJ64: 0 | EK64: 0 | EL64: 0 | EM64: 0 | EN64: 0 | EO64: 0 | EP64: 0 | EQ64: 0 | ER64: 0 | ES64: 0 | ET64: 0 | EU64: 0 | EV64: 0 | EW64: 0 | EX64: 0 | EY64: 0 | EZ64: 0 | FA64: 0 | FB64: 0 | FC64: 0 | FD64: 0 | FE64: 0 | FF64: 0 | FG64: 0 | FH64: 0 | FI64: 0 | FJ64: 0 | FK64: 0 | FL64: 0 | FM64: 0 | FN64: 0 | FO64: 0 | FP64: =IF($W$32=0,0,FP44/$W$32) -> 0
K65: 0 | N65: 0 | Q65: руб/% | T65: 0 | W65: 0 | AA65: =IF($W$32=0,0,AA45/$W$32) -> 0 | AB65: 0 | AC65: 0 | AD65: 0 | AE65: 0 | AF65: 0 | AG65: 0 | AH65: 0 | AI65: 0 | AJ65: 0 | AK65: 0 | AL65: 0 | AM65: 0 | AN65: 0 | AO65: 0 | AP65: 0 | AQ65: 0 | AR65: 0 | AS65: 0 | AT65: 0 | AU65: 0 | AV65: 0 | AW65: 0 | AX65: =IF($W$32=0,0,AX45/$W$32) -> 0 | AY65: 0 | AZ65: 0 | BA65: 0 | BB65: 0 | BC65: 0 | BD65: 0 | BE65: 0 | BF65: 0 | BG65: 0 | BH65: 0 | BI65: 0 | BJ65: 0 | BK65: 0 | BL65: 0 | BM65: 0 | BN65: 0 | BO65: 0 | BP65: 0 | BQ65: 0 | BR65: 0 | BS65: 0 | BT65: 0 | BU65: 0 | BV65: 0 | BW65: 0 | BX65: 0 | BY65: 0 | BZ65: 0 | CA65: 0 | CB65: 0 | CC65: 0 | CD65: 0 | CE65: 0 | CF65: 0 | CG65: 0 | CH65: 0 | CI65: 0 | CJ65: 0 | CK65: 0 | CL65: 0 | CM65: 0 | CN65: 0 | CO65: 0 | CP65: 0 | CQ65: 0 | CR65: 0 | CS65: 0 | CT65: 0 | CU65: 0 | CV65: 0 | CW65: 0 | CX65: 0 | CY65: 0 | CZ65: 0 | DA65: 0 | DB65: 0 | DC65: 0 | DD65: 0 | DE65: 0 | DF65: 0 | DG65: 0 | DH65: 0 | DI65: 0 | DJ65: =IF($W$32=0,0,DJ45/$W$32) -> 0 | DK65: 0 | DL65: 0 | DM65: 0 | DN65: 0 | DO65: 0 | DP65: 0 | DQ65: 0 | DR65: 0 | DS65: 0 | DT65: 0 | DU65: 0 | DV65: 0 | DW65: 0 | DX65: 0 | DY65: 0 | DZ65: 0 | EA65: 0 | EB65: 0 | EC65: 0 | ED65: 0 | EE65: 0 | EF65: 0 | EG65: 0 | EH65: 0 | EI65: 0 | EJ65: 0 | EK65: 0 | EL65: 0 | EM65: 0 | EN65: 0 | EO65: 0 | EP65: 0 | EQ65: 0 | ER65: 0 | ES65: 0 | ET65: 0 | EU65: 0 | EV65: 0 | EW65: 0 | EX65: 0 | EY65: 0 | EZ65: 0 | FA65: 0 | FB65: 0 | FC65: 0 | FD65: 0 | FE65: 0 | FF65: 0 | FG65: 0 | FH65: 0 | FI65: 0 | FJ65: 0 | FK65: 0 | FL65: 0 | FM65: 0 | FN65: 0 | FO65: 0 | FP65: =IF($W$32=0,0,FP45/$W$32) -> 0
K66: 0 | N66: 0 | Q66: руб/% | T66: 0 | W66: 0 | AA66: =IF($W$32=0,0,AA46/$W$32) -> 0 | AB66: 0 | AC66: 0 | AD66: 0 | AE66: 0 | AF66: 0 | AG66: 0 | AH66: 0 | AI66: 0 | AJ66: 0 | AK66: 0 | AL66: 0 | AM66: 0 | AN66: 0 | AO66: 0 | AP66: 0 | AQ66: 0 | AR66: 0 | AS66: 0 | AT66: 0 | AU66: 0 | AV66: 0 | AW66: 0 | AX66: =IF($W$32=0,0,AX46/$W$32) -> 0 | AY66: 0 | AZ66: 0 | BA66: 0 | BB66: 0 | BC66: 0 | BD66: 0 | BE66: 0 | BF66: 0 | BG66: 0 | BH66: 0 | BI66: 0 | BJ66: 0 | BK66: 0 | BL66: 0 | BM66: 0 | BN66: 0 | BO66: 0 | BP66: 0 | BQ66: 0 | BR66: 0 | BS66: 0 | BT66: 0 | BU66: 0 | BV66: 0 | BW66: 0 | BX66: 0 | BY66: 0 | BZ66: 0 | CA66: 0 | CB66: 0 | CC66: 0 | CD66: 0 | CE66: 0 | CF66: 0 | CG66: 0 | CH66: 0 | CI66: 0 | CJ66: 0 | CK66: 0 | CL66: 0 | CM66: 0 | CN66: 0 | CO66: 0 | CP66: 0 | CQ66: 0 | CR66: 0 | CS66: 0 | CT66: 0 | CU66: 0 | CV66: 0 | CW66: 0 | CX66: 0 | CY66: 0 | CZ66: 0 | DA66: 0 | DB66: 0 | DC66: 0 | DD66: 0 | DE66: 0 | DF66: 0 | DG66: 0 | DH66: 0 | DI66: 0 | DJ66: =IF($W$32=0,0,DJ46/$W$32) -> 0 | DK66: 0 | DL66: 0 | DM66: 0 | DN66: 0 | DO66: 0 | DP66: 0 | DQ66: 0 | DR66: 0 | DS66: 0 | DT66: 0 | DU66: 0 | DV66: 0 | DW66: 0 | DX66: 0 | DY66: 0 | DZ66: 0 | EA66: 0 | EB66: 0 | EC66: 0 | ED66: 0 | EE66: 0 | EF66: 0 | EG66: 0 | EH66: 0 | EI66: 0 | EJ66: 0 | EK66: 0 | EL66: 0 | EM66: 0 | EN66: 0 | EO66: 0 | EP66: 0 | EQ66: 0 | ER66: 0 | ES66: 0 | ET66: 0 | EU66: 0 | EV66: 0 | EW66: 0 | EX66: 0 | EY66: 0 | EZ66: 0 | FA66: 0 | FB66: 0 | FC66: 0 | FD66: 0 | FE66: 0 | FF66: 0 | FG66: 0 | FH66: 0 | FI66: 0 | FJ66: 0 | FK66: 0 | FL66: 0 | FM66: 0 | FN66: 0 | FO66: 0 | FP66: =IF($W$32=0,0,FP46/$W$32) -> 0
K67: 0 | N67: 0 | Q67: руб/% | T67: 0 | W67: 0 | AA67: =IF($W$32=0,0,AA47/$W$32) -> 0 | AB67: 0 | AC67: 0 | AD67: 0 | AE67: 0 | AF67: 0 | AG67: 0 | AH67: 0 | AI67: 0 | AJ67: 0 | AK67: 0 | AL67: 0 | AM67: 0 | AN67: 0 | AO67: 0 | AP67: 0 | AQ67: 0 | AR67: 0 | AS67: 0 | AT67: 0 | AU67: 0 | AV67: 0 | AW67: 0 | AX67: =IF($W$32=0,0,AX47/$W$32) -> 0 | AY67: 0 | AZ67: 0 | BA67: 0 | BB67: 0 | BC67: 0 | BD67: 0 | BE67: 0 | BF67: 0 | BG67: 0 | BH67: 0 | BI67: 0 | BJ67: 0 | BK67: 0 | BL67: 0 | BM67: 0 | BN67: 0 | BO67: 0 | BP67: 0 | BQ67: 0 | BR67: 0 | BS67: 0 | BT67: 0 | BU67: 0 | BV67: 0 | BW67: 0 | BX67: 0 | BY67: 0 | BZ67: 0 | CA67: 0 | CB67: 0 | CC67: 0 | CD67: 0 | CE67: 0 | CF67: 0 | CG67: 0 | CH67: 0 | CI67: 0 | CJ67: 0 | CK67: 0 | CL67: 0 | CM67: 0 | CN67: 0 | CO67: 0 | CP67: 0 | CQ67: 0 | CR67: 0 | CS67: 0 | CT67: 0 | CU67: 0 | CV67: 0 | CW67: 0 | CX67: 0 | CY67: 0 | CZ67: 0 | DA67: 0 | DB67: 0 | DC67: 0 | DD67: 0 | DE67: 0 | DF67: 0 | DG67: 0 | DH67: 0 | DI67: 0 | DJ67: =IF($W$32=0,0,DJ47/$W$32) -> 0 | DK67: 0 | DL67: 0 | DM67: 0 | DN67: 0 | DO67: 0 | DP67: 0 | DQ67: 0 | DR67: 0 | DS67: 0 | DT67: 0 | DU67: 0 | DV67: 0 | DW67: 0 | DX67: 0 | DY67: 0 | DZ67: 0 | EA67: 0 | EB67: 0 | EC67: 0 | ED67: 0 | EE67: 0 | EF67: 0 | EG67: 0 | EH67: 0 | EI67: 0 | EJ67: 0 | EK67: 0 | EL67: 0 | EM67: 0 | EN67: 0 | EO67: 0 | EP67: 0 | EQ67: 0 | ER67: 0 | ES67: 0 | ET67: 0 | EU67: 0 | EV67: 0 | EW67: 0 | EX67: 0 | EY67: 0 | EZ67: 0 | FA67: 0 | FB67: 0 | FC67: 0 | FD67: 0 | FE67: 0 | FF67: 0 | FG67: 0 | FH67: 0 | FI67: 0 | FJ67: 0 | FK67: 0 | FL67: 0 | FM67: 0 | FN67: 0 | FO67: 0 | FP67: =IF($W$32=0,0,FP47/$W$32) -> 0
K68: 0 | N68: 0 | Q68: руб/% | T68: 0 | W68: 0 | AA68: =IF($W$32=0,0,AA48/$W$32) -> 0 | AB68: 0 | AC68: 0 | AD68: 0 | AE68: 0 | AF68: 0 | AG68: 0 | AH68: 0 | AI68: 0 | AJ68: 0 | AK68: 0 | AL68: 0 | AM68: 0 | AN68: 0 | AO68: 0 | AP68: 0 | AQ68: 0 | AR68: 0 | AS68: 0 | AT68: 0 | AU68: 0 | AV68: 0 | AW68: 0 | AX68: =IF($W$32=0,0,AX48/$W$32) -> 0 | AY68: 0 | AZ68: 0 | BA68: 0 | BB68: 0 | BC68: 0 | BD68: 0 | BE68: 0 | BF68: 0 | BG68: 0 | BH68: 0 | BI68: 0 | BJ68: 0 | BK68: 0 | BL68: 0 | BM68: 0 | BN68: 0 | BO68: 0 | BP68: 0 | BQ68: 0 | BR68: 0 | BS68: 0 | BT68: 0 | BU68: 0 | BV68: 0 | BW68: 0 | BX68: 0 | BY68: 0 | BZ68: 0 | CA68: 0 | CB68: 0 | CC68: 0 | CD68: 0 | CE68: 0 | CF68: 0 | CG68: 0 | CH68: 0 | CI68: 0 | CJ68: 0 | CK68: 0 | CL68: 0 | CM68: 0 | CN68: 0 | CO68: 0 | CP68: 0 | CQ68: 0 | CR68: 0 | CS68: 0 | CT68: 0 | CU68: 0 | CV68: 0 | CW68: 0 | CX68: 0 | CY68: 0 | CZ68: 0 | DA68: 0 | DB68: 0 | DC68: 0 | DD68: 0 | DE68: 0 | DF68: 0 | DG68: 0 | DH68: 0 | DI68: 0 | DJ68: =IF($W$32=0,0,DJ48/$W$32) -> 0 | DK68: 0 | DL68: 0 | DM68: 0 | DN68: 0 | DO68: 0 | DP68: 0 | DQ68: 0 | DR68: 0 | DS68: 0 | DT68: 0 | DU68: 0 | DV68: 0 | DW68: 0 | DX68: 0 | DY68: 0 | DZ68: 0 | EA68: 0 | EB68: 0 | EC68: 0 | ED68: 0 | EE68: 0 | EF68: 0 | EG68: 0 | EH68: 0 | EI68: 0 | EJ68: 0 | EK68: 0 | EL68: 0 | EM68: 0 | EN68: 0 | EO68: 0 | EP68: 0 | EQ68: 0 | ER68: 0 | ES68: 0 | ET68: 0 | EU68: 0 | EV68: 0 | EW68: 0 | EX68: 0 | EY68: 0 | EZ68: 0 | FA68: 0 | FB68: 0 | FC68: 0 | FD68: 0 | FE68: 0 | FF68: 0 | FG68: 0 | FH68: 0 | FI68: 0 | FJ68: 0 | FK68: 0 | FL68: 0 | FM68: 0 | FN68: 0 | FO68: 0 | FP68: =IF($W$32=0,0,FP48/$W$32) -> 0
K69: 0 | N69: 0 | Q69: руб/% | T69: 0 | W69: 0 | AA69: =IF($W$32=0,0,AA49/$W$32) -> 0 | AB69: 0 | AC69: 0 | AD69: 0 | AE69: 0 | AF69: 0 | AG69: 0 | AH69: 0 | AI69: 0 | AJ69: 0 | AK69: 0 | AL69: 0 | AM69: 0 | AN69: 0 | AO69: 0 | AP69: 0 | AQ69: 0 | AR69: 0 | AS69: 0 | AT69: 0 | AU69: 0 | AV69: 0 | AW69: 0 | AX69: =IF($W$32=0,0,AX49/$W$32) -> 0 | AY69: 0 | AZ69: 0 | BA69: 0 | BB69: 0 | BC69: 0 | BD69: 0 | BE69: 0 | BF69: 0 | BG69: 0 | BH69: 0 | BI69: 0 | BJ69: 0 | BK69: 0 | BL69: 0 | BM69: 0 | BN69: 0 | BO69: 0 | BP69: 0 | BQ69: 0 | BR69: 0 | BS69: 0 | BT69: 0 | BU69: 0 | BV69: 0 | BW69: 0 | BX69: 0 | BY69: 0 | BZ69: 0 | CA69: 0 | CB69: 0 | CC69: 0 | CD69: 0 | CE69: 0 | CF69: 0 | CG69: 0 | CH69: 0 | CI69: 0 | CJ69: 0 | CK69: 0 | CL69: 0 | CM69: 0 | CN69: 0 | CO69: 0 | CP69: 0 | CQ69: 0 | CR69: 0 | CS69: 0 | CT69: 0 | CU69: 0 | CV69: 0 | CW69: 0 | CX69: 0 | CY69: 0 | CZ69: 0 | DA69: 0 | DB69: 0 | DC69: 0 | DD69: 0 | DE69: 0 | DF69: 0 | DG69: 0 | DH69: 0 | DI69: 0 | DJ69: =IF($W$32=0,0,DJ49/$W$32) -> 0 | DK69: 0 | DL69: 0 | DM69: 0 | DN69: 0 | DO69: 0 | DP69: 0 | DQ69: 0 | DR69: 0 | DS69: 0 | DT69: 0 | DU69: 0 | DV69: 0 | DW69: 0 | DX69: 0 | DY69: 0 | DZ69: 0 | EA69: 0 | EB69: 0 | EC69: 0 | ED69: 0 | EE69: 0 | EF69: 0 | EG69: 0 | EH69: 0 | EI69: 0 | EJ69: 0 | EK69: 0 | EL69: 0 | EM69: 0 | EN69: 0 | EO69: 0 | EP69: 0 | EQ69: 0 | ER69: 0 | ES69: 0 | ET69: 0 | EU69: 0 | EV69: 0 | EW69: 0 | EX69: 0 | EY69: 0 | EZ69: 0 | FA69: 0 | FB69: 0 | FC69: 0 | FD69: 0 | FE69: 0 | FF69: 0 | FG69: 0 | FH69: 0 | FI69: 0 | FJ69: 0 | FK69: 0 | FL69: 0 | FM69: 0 | FN69: 0 | FO69: 0 | FP69: =IF($W$32=0,0,FP49/$W$32) -> 0
B72: вкл. ндс | H72: =H12 -> Капитальные затраты Проекта | N72: =MAX(N73:N90) -> 10 | T72: =T12 -> 100000000 | W72: =SUM($Y72:$FQ72) -> 100000000 | AA72: =IF(AA$8="",0,SUM(AA74:AA90)) -> 12500000 | AB72: 12500000 | AC72: 19500000 | AD72: 19500000 | AE72: 12000000 | AF72: 12000000 | AG72: 12000000 | AH72: 0 | AI72: 0 | AJ72: 0 | AK72: 0 | AL72: 0 | AM72: 0 | AN72: 0 | AO72: 0 | AP72: 0 | AQ72: 0 | AR72: 0 | AS72: 0 | AT72: 0 | AU72: 0 | AV72: 0 | AW72: 0 | AX72: =IF(AX$8="",0,SUM(AX74:AX90)) -> 0 | AY72: 0 | AZ72: 0 | BA72: 0 | BB72: 0 | BC72: 0 | BD72: 0 | BE72: 0 | BF72: 0 | BG72: 0 | BH72: 0 | BI72: 0 | BJ72: 0 | BK72: 0 | BL72: 0 | BM72: 0 | BN72: 0 | BO72: 0 | BP72: 0 | BQ72: 0 | BR72: 0 | BS72: 0 | BT72: 0 | BU72: 0 | BV72: 0 | BW72: 0 | BX72: 0 | BY72: 0 | BZ72: 0 | CA72: 0 | CB72: 0 | CC72: 0 | CD72: 0 | CE72: 0 | CF72: 0 | CG72: 0 | CH72: 0 | CI72: 0 | CJ72: 0 | CK72: 0 | CL72: 0 | CM72: 0 | CN72: 0 | CO72: 0 | CP72: 0 | CQ72: 0 | CR72: 0 | CS72: 0 | CT72: 0 | CU72: 0 | CV72: 0 | CW72: 0 | CX72: 0 | CY72: 0 | CZ72: 0 | DA72: 0 | DB72: 0 | DC72: 0 | DD72: 0 | DE72: 0 | DF72: 0 | DG72: 0 | DH72: 0 | DI72: 0 | DJ72: =IF(DJ$8="",0,SUM(DJ74:DJ90)) -> 0 | DK72: 0 | DL72: 0 | DM72: 0 | DN72: 0 | DO72: 0 | DP72: 0 | DQ72: 0 | DR72: 0 | DS72: 0 | DT72: 0 | DU72: 0 | DV72: 0 | DW72: 0 | DX72: 0 | DY72: 0 | DZ72: 0 | EA72: 0 | EB72: 0 | EC72: 0 | ED72: 0 | EE72: 0 | EF72: 0 | EG72: 0 | EH72: 0 | EI72: 0 | EJ72: 0 | EK72: 0 | EL72: 0 | EM72: 0 | EN72: 0 | EO72: 0 | EP72: 0 | EQ72: 0 | ER72: 0 | ES72: 0 | ET72: 0 | EU72: 0 | EV72: 0 | EW72: 0 | EX72: 0 | EY72: 0 | EZ72: 0 | FA72: 0 | FB72: 0 | FC72: 0 | FD72: 0 | FE72: 0 | FF72: 0 | FG72: 0 | FH72: 0 | FI72: 0 | FJ72: 0 | FK72: 0 | FL72: 0 | FM72: 0 | FN72: 0 | FO72: 0 | FP72: =IF(FP$8="",0,SUM(FP74:FP90)) -> 0
K75: =K55 -> Работы по созданию онлайн сервиса - 1 | N75: =N55 -> 1 | Q75: руб. | T75: =$T$72*W55 -> 10000000 | W75: =SUM($Y75:$FQ75) -> 10000000 | AA75: =$T$72*AA55 -> 5000000 | AB75: 5000000 | AC75: 0 | AD75: 0 | AE75: 0 | AF75: 0 | AG75: 0 | AH75: 0 | AI75: 0 | AJ75: 0 | AK75: 0 | AL75: 0 | AM75: 0 | AN75: 0 | AO75: 0 | AP75: 0 | AQ75: 0 | AR75: 0 | AS75: 0 | AT75: 0 | AU75: 0 | AV75: 0 | AW75: 0 | AX75: =$T$72*AX55 -> 0 | AY75: 0 | AZ75: 0 | BA75: 0 | BB75: 0 | BC75: 0 | BD75: 0 | BE75: 0 | BF75: 0 | BG75: 0 | BH75: 0 | BI75: 0 | BJ75: 0 | BK75: 0 | BL75: 0 | BM75: 0 | BN75: 0 | BO75: 0 | BP75: 0 | BQ75: 0 | BR75: 0 | BS75: 0 | BT75: 0 | BU75: 0 | BV75: 0 | BW75: 0 | BX75: 0 | BY75: 0 | BZ75: 0 | CA75: 0 | CB75: 0 | CC75: 0 | CD75: 0 | CE75: 0 | CF75: 0 | CG75: 0 | CH75: 0 | CI75: 0 | CJ75: 0 | CK75: 0 | CL75: 0 | CM75: 0 | CN75: 0 | CO75: 0 | CP75: 0 | CQ75: 0 | CR75: 0 | CS75: 0 | CT75: 0 | CU75: 0 | CV75: 0 | CW75: 0 | CX75: 0 | CY75: 0 | CZ75: 0 | DA75: 0 | DB75: 0 | DC75: 0 | DD75: 0 | DE75: 0 | DF75: 0 | DG75: 0 | DH75: 0 | DI75: 0 | DJ75: =$T$72*DJ55 -> 0 | DK75: 0 | DL75: 0 | DM75: 0 | DN75: 0 | DO75: 0 | DP75: 0 | DQ75: 0 | DR75: 0 | DS75: 0 | DT75: 0 | DU75: 0 | DV75: 0 | DW75: 0 | DX75: 0 | DY75: 0 | DZ75: 0 | EA75: 0 | EB75: 0 | EC75: 0 | ED75: 0 | EE75: 0 | EF75: 0 | EG75: 0 | EH75: 0 | EI75: 0 | EJ75: 0 | EK75: 0 | EL75: 0 | EM75: 0 | EN75: 0 | EO75: 0 | EP75: 0 | EQ75: 0 | ER75: 0 | ES75: 0 | ET75: 0 | EU75: 0 | EV75: 0 | EW75: 0 | EX75: 0 | EY75: 0 | EZ75: 0 | FA75: 0 | FB75: 0 | FC75: 0 | FD75: 0 | FE75: 0 | FF75: 0 | FG75: 0 | FH75: 0 | FI75: 0 | FJ75: 0 | FK75: 0 | FL75: 0 | FM75: 0 | FN75: 0 | FO75: 0 | FP75: =$T$72*FP55 -> 0
K76: Работы по созданию онлайн сервиса - 2 | N76: 2 | Q76: руб. | T76: 10000000 | W76: 10000000 | AA76: =$T$72*AA56 -> 2500000 | AB76: 2500000 | AC76: 2500000 | AD76: 2500000 | AE76: 0 | AF76: 0 | AG76: 0 | AH76: 0 | AI76: 0 | AJ76: 0 | AK76: 0 | AL76: 0 | AM76: 0 | AN76: 0 | AO76: 0 | AP76: 0 | AQ76: 0 | AR76: 0 | AS76: 0 | AT76: 0 | AU76: 0 | AV76: 0 | AW76: 0 | AX76: =$T$72*AX56 -> 0 | AY76: 0 | AZ76: 0 | BA76: 0 | BB76: 0 | BC76: 0 | BD76: 0 | BE76: 0 | BF76: 0 | BG76: 0 | BH76: 0 | BI76: 0 | BJ76: 0 | BK76: 0 | BL76: 0 | BM76: 0 | BN76: 0 | BO76: 0 | BP76: 0 | BQ76: 0 | BR76: 0 | BS76: 0 | BT76: 0 | BU76: 0 | BV76: 0 | BW76: 0 | BX76: 0 | BY76: 0 | BZ76: 0 | CA76: 0 | CB76: 0 | CC76: 0 | CD76: 0 | CE76: 0 | CF76: 0 | CG76: 0 | CH76: 0 | CI76: 0 | CJ76: 0 | CK76: 0 | CL76: 0 | CM76: 0 | CN76: 0 | CO76: 0 | CP76: 0 | CQ76: 0 | CR76: 0 | CS76: 0 | CT76: 0 | CU76: 0 | CV76: 0 | CW76: 0 | CX76: 0 | CY76: 0 | CZ76: 0 | DA76: 0 | DB76: 0 | DC76: 0 | DD76: 0 | DE76: 0 | DF76: 0 | DG76: 0 | DH76: 0 | DI76: 0 | DJ76: =$T$72*DJ56 -> 0 | DK76: 0 | DL76: 0 | DM76: 0 | DN76: 0 | DO76: 0 | DP76: 0 | DQ76: 0 | DR76: 0 | DS76: 0 | DT76: 0 | DU76: 0 | DV76: 0 | DW76: 0 | DX76: 0 | DY76: 0 | DZ76: 0 | EA76: 0 | EB76: 0 | EC76: 0 | ED76: 0 | EE76: 0 | EF76: 0 | EG76: 0 | EH76: 0 | EI76: 0 | EJ76: 0 | EK76: 0 | EL76: 0 | EM76: 0 | EN76: 0 | EO76: 0 | EP76: 0 | EQ76: 0 | ER76: 0 | ES76: 0 | ET76: 0 | EU76: 0 | EV76: 0 | EW76: 0 | EX76: 0 | EY76: 0 | EZ76: 0 | FA76: 0 | FB76: 0 | FC76: 0 | FD76: 0 | FE76: 0 | FF76: 0 | FG76: 0 | FH76: 0 | FI76: 0 | FJ76: 0 | FK76: 0 | FL76: 0 | FM76: 0 | FN76: 0 | FO76: 0 | FP76: =$T$72*FP56 -> 0
K77: Работы по созданию онлайн сервиса - 3 | N77: 3 | Q77: руб. | T77: 10000000 | W77: 10000000 | AA77: =$T$72*AA57 -> 2500000 | AB77: 2500000 | AC77: 2500000 | AD77: 2500000 | AE77: 0 | AF77: 0 | AG77: 0 | AH77: 0 | AI77: 0 | AJ77: 0 | AK77: 0 | AL77: 0 | AM77: 0 | AN77: 0 | AO77: 0 | AP77: 0 | AQ77: 0 | AR77: 0 | AS77: 0 | AT77: 0 | AU77: 0 | AV77: 0 | AW77: 0 | AX77: =$T$72*AX57 -> 0 | AY77: 0 | AZ77: 0 | BA77: 0 | BB77: 0 | BC77: 0 | BD77: 0 | BE77: 0 | BF77: 0 | BG77: 0 | BH77: 0 | BI77: 0 | BJ77: 0 | BK77: 0 | BL77: 0 | BM77: 0 | BN77: 0 | BO77: 0 | BP77: 0 | BQ77: 0 | BR77: 0 | BS77: 0 | BT77: 0 | BU77: 0 | BV77: 0 | BW77: 0 | BX77: 0 | BY77: 0 | BZ77: 0 | CA77: 0 | CB77: 0 | CC77: 0 | CD77: 0 | CE77: 0 | CF77: 0 | CG77: 0 | CH77: 0 | CI77: 0 | CJ77: 0 | CK77: 0 | CL77: 0 | CM77: 0 | CN77: 0 | CO77: 0 | CP77: 0 | CQ77: 0 | CR77: 0 | CS77: 0 | CT77: 0 | CU77: 0 | CV77: 0 | CW77: 0 | CX77: 0 | CY77: 0 | CZ77: 0 | DA77: 0 | DB77: 0 | DC77: 0 | DD77: 0 | DE77: 0 | DF77: 0 | DG77: 0 | DH77: 0 | DI77: 0 | DJ77: =$T$72*DJ57 -> 0 | DK77: 0 | DL77: 0 | DM77: 0 | DN77: 0 | DO77: 0 | DP77: 0 | DQ77: 0 | DR77: 0 | DS77: 0 | DT77: 0 | DU77: 0 | DV77: 0 | DW77: 0 | DX77: 0 | DY77: 0 | DZ77: 0 | EA77: 0 | EB77: 0 | EC77: 0 | ED77: 0 | EE77: 0 | EF77: 0 | EG77: 0 | EH77: 0 | EI77: 0 | EJ77: 0 | EK77: 0 | EL77: 0 | EM77: 0 | EN77: 0 | EO77: 0 | EP77: 0 | EQ77: 0 | ER77: 0 | ES77: 0 | ET77: 0 | EU77: 0 | EV77: 0 | EW77: 0 | EX77: 0 | EY77: 0 | EZ77: 0 | FA77: 0 | FB77: 0 | FC77: 0 | FD77: 0 | FE77: 0 | FF77: 0 | FG77: 0 | FH77: 0 | FI77: 0 | FJ77: 0 | FK77: 0 | FL77: 0 | FM77: 0 | FN77: 0 | FO77: 0 | FP77: =$T$72*FP57 -> 0
K78: Работы по созданию онлайн сервиса - 4 | N78: 4 | Q78: руб. | T78: 10000000 | W78: 10000000 | AA78: =$T$72*AA58 -> 2500000 | AB78: 2500000 | AC78: 2500000 | AD78: 2500000 | AE78: 0 | AF78: 0 | AG78: 0 | AH78: 0 | AI78: 0 | AJ78: 0 | AK78: 0 | AL78: 0 | AM78: 0 | AN78: 0 | AO78: 0 | AP78: 0 | AQ78: 0 | AR78: 0 | AS78: 0 | AT78: 0 | AU78: 0 | AV78: 0 | AW78: 0 | AX78: =$T$72*AX58 -> 0 | AY78: 0 | AZ78: 0 | BA78: 0 | BB78: 0 | BC78: 0 | BD78: 0 | BE78: 0 | BF78: 0 | BG78: 0 | BH78: 0 | BI78: 0 | BJ78: 0 | BK78: 0 | BL78: 0 | BM78: 0 | BN78: 0 | BO78: 0 | BP78: 0 | BQ78: 0 | BR78: 0 | BS78: 0 | BT78: 0 | BU78: 0 | BV78: 0 | BW78: 0 | BX78: 0 | BY78: 0 | BZ78: 0 | CA78: 0 | CB78: 0 | CC78: 0 | CD78: 0 | CE78: 0 | CF78: 0 | CG78: 0 | CH78: 0 | CI78: 0 | CJ78: 0 | CK78: 0 | CL78: 0 | CM78: 0 | CN78: 0 | CO78: 0 | CP78: 0 | CQ78: 0 | CR78: 0 | CS78: 0 | CT78: 0 | CU78: 0 | CV78: 0 | CW78: 0 | CX78: 0 | CY78: 0 | CZ78: 0 | DA78: 0 | DB78: 0 | DC78: 0 | DD78: 0 | DE78: 0 | DF78: 0 | DG78: 0 | DH78: 0 | DI78: 0 | DJ78: =$T$72*DJ58 -> 0 | DK78: 0 | DL78: 0 | DM78: 0 | DN78: 0 | DO78: 0 | DP78: 0 | DQ78: 0 | DR78: 0 | DS78: 0 | DT78: 0 | DU78: 0 | DV78: 0 | DW78: 0 | DX78: 0 | DY78: 0 | DZ78: 0 | EA78: 0 | EB78: 0 | EC78: 0 | ED78: 0 | EE78: 0 | EF78: 0 | EG78: 0 | EH78: 0 | EI78: 0 | EJ78: 0 | EK78: 0 | EL78: 0 | EM78: 0 | EN78: 0 | EO78: 0 | EP78: 0 | EQ78: 0 | ER78: 0 | ES78: 0 | ET78: 0 | EU78: 0 | EV78: 0 | EW78: 0 | EX78: 0 | EY78: 0 | EZ78: 0 | FA78: 0 | FB78: 0 | FC78: 0 | FD78: 0 | FE78: 0 | FF78: 0 | FG78: 0 | FH78: 0 | FI78: 0 | FJ78: 0 | FK78: 0 | FL78: 0 | FM78: 0 | FN78: 0 | FO78: 0 | FP78: =$T$72*FP58 -> 0
K79: Работы по созданию онлайн сервиса - 5 | N79: 5 | Q79: руб. | T79: 10000000 | W79: 10000000 | AA79: =$T$72*AA59 -> 0 | AB79: 0 | AC79: 2000000 | AD79: 2000000 | AE79: 2000000 | AF79: 2000000 | AG79: 2000000 | AH79: 0 | AI79: 0 | AJ79: 0 | AK79: 0 | AL79: 0 | AM79: 0 | AN79: 0 | AO79: 0 | AP79: 0 | AQ79: 0 | AR79: 0 | AS79: 0 | AT79: 0 | AU79: 0 | AV79: 0 | AW79: 0 | AX79: =$T$72*AX59 -> 0 | AY79: 0 | AZ79: 0 | BA79: 0 | BB79: 0 | BC79: 0 | BD79: 0 | BE79: 0 | BF79: 0 | BG79: 0 | BH79: 0 | BI79: 0 | BJ79: 0 | BK79: 0 | BL79: 0 | BM79: 0 | BN79: 0 | BO79: 0 | BP79: 0 | BQ79: 0 | BR79: 0 | BS79: 0 | BT79: 0 | BU79: 0 | BV79: 0 | BW79: 0 | BX79: 0 | BY79: 0 | BZ79: 0 | CA79: 0 | CB79: 0 | CC79: 0 | CD79: 0 | CE79: 0 | CF79: 0 | CG79: 0 | CH79: 0 | CI79: 0 | CJ79: 0 | CK79: 0 | CL79: 0 | CM79: 0 | CN79: 0 | CO79: 0 | CP79: 0 | CQ79: 0 | CR79: 0 | CS79: 0 | CT79: 0 | CU79: 0 | CV79: 0 | CW79: 0 | CX79: 0 | CY79: 0 | CZ79: 0 | DA79: 0 | DB79: 0 | DC79: 0 | DD79: 0 | DE79: 0 | DF79: 0 | DG79: 0 | DH79: 0 | DI79: 0 | DJ79: =$T$72*DJ59 -> 0 | DK79: 0 | DL79: 0 | DM79: 0 | DN79: 0 | DO79: 0 | DP79: 0 | DQ79: 0 | DR79: 0 | DS79: 0 | DT79: 0 | DU79: 0 | DV79: 0 | DW79: 0 | DX79: 0 | DY79: 0 | DZ79: 0 | EA79: 0 | EB79: 0 | EC79: 0 | ED79: 0 | EE79: 0 | EF79: 0 | EG79: 0 | EH79: 0 | EI79: 0 | EJ79: 0 | EK79: 0 | EL79: 0 | EM79: 0 | EN79: 0 | EO79: 0 | EP79: 0 | EQ79: 0 | ER79: 0 | ES79: 0 | ET79: 0 | EU79: 0 | EV79: 0 | EW79: 0 | EX79: 0 | EY79: 0 | EZ79: 0 | FA79: 0 | FB79: 0 | FC79: 0 | FD79: 0 | FE79: 0 | FF79: 0 | FG79: 0 | FH79: 0 | FI79: 0 | FJ79: 0 | FK79: 0 | FL79: 0 | FM79: 0 | FN79: 0 | FO79: 0 | FP79: =$T$72*FP59 -> 0
K80: Работы по созданию онлайн сервиса - 6 | N80: 6 | Q80: руб. | T80: 10000000 | W80: 10000000 | AA80: =$T$72*AA60 -> 0 | AB80: 0 | AC80: 2000000 | AD80: 2000000 | AE80: 2000000 | AF80: 2000000 | AG80: 2000000 | AH80: 0 | AI80: 0 | AJ80: 0 | AK80: 0 | AL80: 0 | AM80: 0 | AN80: 0 | AO80: 0 | AP80: 0 | AQ80: 0 | AR80: 0 | AS80: 0 | AT80: 0 | AU80: 0 | AV80: 0 | AW80: 0 | AX80: =$T$72*AX60 -> 0 | AY80: 0 | AZ80: 0 | BA80: 0 | BB80: 0 | BC80: 0 | BD80: 0 | BE80: 0 | BF80: 0 | BG80: 0 | BH80: 0 | BI80: 0 | BJ80: 0 | BK80: 0 | BL80: 0 | BM80: 0 | BN80: 0 | BO80: 0 | BP80: 0 | BQ80: 0 | BR80: 0 | BS80: 0 | BT80: 0 | BU80: 0 | BV80: 0 | BW80: 0 | BX80: 0 | BY80: 0 | BZ80: 0 | CA80: 0 | CB80: 0 | CC80: 0 | CD80: 0 | CE80: 0 | CF80: 0 | CG80: 0 | CH80: 0 | CI80: 0 | CJ80: 0 | CK80: 0 | CL80: 0 | CM80: 0 | CN80: 0 | CO80: 0 | CP80: 0 | CQ80: 0 | CR80: 0 | CS80: 0 | CT80: 0 | CU80: 0 | CV80: 0 | CW80: 0 | CX80: 0 | CY80: 0 | CZ80: 0 | DA80: 0 | DB80: 0 | DC80: 0 | DD80: 0 | DE80: 0 | DF80: 0 | DG80: 0 | DH80: 0 | DI80: 0 | DJ80: =$T$72*DJ60 -> 0 | DK80: 0 | DL80: 0 | DM80: 0 | DN80: 0 | DO80: 0 | DP80: 0 | DQ80: 0 | DR80: 0 | DS80: 0 | DT80: 0 | DU80: 0 | DV80: 0 | DW80: 0 | DX80: 0 | DY80: 0 | DZ80: 0 | EA80: 0 | EB80: 0 | EC80: 0 | ED80: 0 | EE80: 0 | EF80: 0 | EG80: 0 | EH80: 0 | EI80: 0 | EJ80: 0 | EK80: 0 | EL80: 0 | EM80: 0 | EN80: 0 | EO80: 0 | EP80: 0 | EQ80: 0 | ER80: 0 | ES80: 0 | ET80: 0 | EU80: 0 | EV80: 0 | EW80: 0 | EX80: 0 | EY80: 0 | EZ80: 0 | FA80: 0 | FB80: 0 | FC80: 0 | FD80: 0 | FE80: 0 | FF80: 0 | FG80: 0 | FH80: 0 | FI80: 0 | FJ80: 0 | FK80: 0 | FL80: 0 | FM80: 0 | FN80: 0 | FO80: 0 | FP80: =$T$72*FP60 -> 0
K81: Работы по созданию онлайн сервиса - 7 | N81: 7 | Q81: руб. | T81: 10000000 | W81: 10000000 | AA81: =$T$72*AA61 -> 0 | AB81: 0 | AC81: 2000000 | AD81: 2000000 | AE81: 2000000 | AF81: 2000000 | AG81: 2000000 | AH81: 0 | AI81: 0 | AJ81: 0 | AK81: 0 | AL81: 0 | AM81: 0 | AN81: 0 | AO81: 0 | AP81: 0 | AQ81: 0 | AR81: 0 | AS81: 0 | AT81: 0 | AU81: 0 | AV81: 0 | AW81: 0 | AX81: =$T$72*AX61 -> 0 | AY81: 0 | AZ81: 0 | BA81: 0 | BB81: 0 | BC81: 0 | BD81: 0 | BE81: 0 | BF81: 0 | BG81: 0 | BH81: 0 | BI81: 0 | BJ81: 0 | BK81: 0 | BL81: 0 | BM81: 0 | BN81: 0 | BO81: 0 | BP81: 0 | BQ81: 0 | BR81: 0 | BS81: 0 | BT81: 0 | BU81: 0 | BV81: 0 | BW81: 0 | BX81: 0 | BY81: 0 | BZ81: 0 | CA81: 0 | CB81: 0 | CC81: 0 | CD81: 0 | CE81: 0 | CF81: 0 | CG81: 0 | CH81: 0 | CI81: 0 | CJ81: 0 | CK81: 0 | CL81: 0 | CM81: 0 | CN81: 0 | CO81: 0 | CP81: 0 | CQ81: 0 | CR81: 0 | CS81: 0 | CT81: 0 | CU81: 0 | CV81: 0 | CW81: 0 | CX81: 0 | CY81: 0 | CZ81: 0 | DA81: 0 | DB81: 0 | DC81: 0 | DD81: 0 | DE81: 0 | DF81: 0 | DG81: 0 | DH81: 0 | DI81: 0 | DJ81: =$T$72*DJ61 -> 0 | DK81: 0 | DL81: 0 | DM81: 0 | DN81: 0 | DO81: 0 | DP81: 0 | DQ81: 0 | DR81: 0 | DS81: 0 | DT81: 0 | DU81: 0 | DV81: 0 | DW81: 0 | DX81: 0 | DY81: 0 | DZ81: 0 | EA81: 0 | EB81: 0 | EC81: 0 | ED81: 0 | EE81: 0 | EF81: 0 | EG81: 0 | EH81: 0 | EI81: 0 | EJ81: 0 | EK81: 0 | EL81: 0 | EM81: 0 | EN81: 0 | EO81: 0 | EP81: 0 | EQ81: 0 | ER81: 0 | ES81: 0 | ET81: 0 | EU81: 0 | EV81: 0 | EW81: 0 | EX81: 0 | EY81: 0 | EZ81: 0 | FA81: 0 | FB81: 0 | FC81: 0 | FD81: 0 | FE81: 0 | FF81: 0 | FG81: 0 | FH81: 0 | FI81: 0 | FJ81: 0 | FK81: 0 | FL81: 0 | FM81: 0 | FN81: 0 | FO81: 0 | FP81: =$T$72*FP61 -> 0
K82: Работы по созданию онлайн сервиса - 8 | N82: 8 | Q82: руб. | T82: 10000000 | W82: 10000000 | AA82: =$T$72*AA62 -> 0 | AB82: 0 | AC82: 2000000 | AD82: 2000000 | AE82: 2000000 | AF82: 2000000 | AG82: 2000000 | AH82: 0 | AI82: 0 | AJ82: 0 | AK82: 0 | AL82: 0 | AM82: 0 | AN82: 0 | AO82: 0 | AP82: 0 | AQ82: 0 | AR82: 0 | AS82: 0 | AT82: 0 | AU82: 0 | AV82: 0 | AW82: 0 | AX82: =$T$72*AX62 -> 0 | AY82: 0 | AZ82: 0 | BA82: 0 | BB82: 0 | BC82: 0 | BD82: 0 | BE82: 0 | BF82: 0 | BG82: 0 | BH82: 0 | BI82: 0 | BJ82: 0 | BK82: 0 | BL82: 0 | BM82: 0 | BN82: 0 | BO82: 0 | BP82: 0 | BQ82: 0 | BR82: 0 | BS82: 0 | BT82: 0 | BU82: 0 | BV82: 0 | BW82: 0 | BX82: 0 | BY82: 0 | BZ82: 0 | CA82: 0 | CB82: 0 | CC82: 0 | CD82: 0 | CE82: 0 | CF82: 0 | CG82: 0 | CH82: 0 | CI82: 0 | CJ82: 0 | CK82: 0 | CL82: 0 | CM82: 0 | CN82: 0 | CO82: 0 | CP82: 0 | CQ82: 0 | CR82: 0 | CS82: 0 | CT82: 0 | CU82: 0 | CV82: 0 | CW82: 0 | CX82: 0 | CY82: 0 | CZ82: 0 | DA82: 0 | DB82: 0 | DC82: 0 | DD82: 0 | DE82: 0 | DF82: 0 | DG82: 0 | DH82: 0 | DI82: 0 | DJ82: =$T$72*DJ62 -> 0 | DK82: 0 | DL82: 0 | DM82: 0 | DN82: 0 | DO82: 0 | DP82: 0 | DQ82: 0 | DR82: 0 | DS82: 0 | DT82: 0 | DU82: 0 | DV82: 0 | DW82: 0 | DX82: 0 | DY82: 0 | DZ82: 0 | EA82: 0 | EB82: 0 | EC82: 0 | ED82: 0 | EE82: 0 | EF82: 0 | EG82: 0 | EH82: 0 | EI82: 0 | EJ82: 0 | EK82: 0 | EL82: 0 | EM82: 0 | EN82: 0 | EO82: 0 | EP82: 0 | EQ82: 0 | ER82: 0 | ES82: 0 | ET82: 0 | EU82: 0 | EV82: 0 | EW82: 0 | EX82: 0 | EY82: 0 | EZ82: 0 | FA82: 0 | FB82: 0 | FC82: 0 | FD82: 0 | FE82: 0 | FF82: 0 | FG82: 0 | FH82: 0 | FI82: 0 | FJ82: 0 | FK82: 0 | FL82: 0 | FM82: 0 | FN82: 0 | FO82: 0 | FP82: =$T$72*FP62 -> 0
K83: Работы по созданию онлайн сервиса - 9 | N83: 9 | Q83: руб. | T83: 10000000 | W83: 10000000 | AA83: =$T$72*AA63 -> 0 | AB83: 0 | AC83: 2000000 | AD83: 2000000 | AE83: 2000000 | AF83: 2000000 | AG83: 2000000 | AH83: 0 | AI83: 0 | AJ83: 0 | AK83: 0 | AL83: 0 | AM83: 0 | AN83: 0 | AO83: 0 | AP83: 0 | AQ83: 0 | AR83: 0 | AS83: 0 | AT83: 0 | AU83: 0 | AV83: 0 | AW83: 0 | AX83: =$T$72*AX63 -> 0 | AY83: 0 | AZ83: 0 | BA83: 0 | BB83: 0 | BC83: 0 | BD83: 0 | BE83: 0 | BF83: 0 | BG83: 0 | BH83: 0 | BI83: 0 | BJ83: 0 | BK83: 0 | BL83: 0 | BM83: 0 | BN83: 0 | BO83: 0 | BP83: 0 | BQ83: 0 | BR83: 0 | BS83: 0 | BT83: 0 | BU83: 0 | BV83: 0 | BW83: 0 | BX83: 0 | BY83: 0 | BZ83: 0 | CA83: 0 | CB83: 0 | CC83: 0 | CD83: 0 | CE83: 0 | CF83: 0 | CG83: 0 | CH83: 0 | CI83: 0 | CJ83: 0 | CK83: 0 | CL83: 0 | CM83: 0 | CN83: 0 | CO83: 0 | CP83: 0 | CQ83: 0 | CR83: 0 | CS83: 0 | CT83: 0 | CU83: 0 | CV83: 0 | CW83: 0 | CX83: 0 | CY83: 0 | CZ83: 0 | DA83: 0 | DB83: 0 | DC83: 0 | DD83: 0 | DE83: 0 | DF83: 0 | DG83: 0 | DH83: 0 | DI83: 0 | DJ83: =$T$72*DJ63 -> 0 | DK83: 0 | DL83: 0 | DM83: 0 | DN83: 0 | DO83: 0 | DP83: 0 | DQ83: 0 | DR83: 0 | DS83: 0 | DT83: 0 | DU83: 0 | DV83: 0 | DW83: 0 | DX83: 0 | DY83: 0 | DZ83: 0 | EA83: 0 | EB83: 0 | EC83: 0 | ED83: 0 | EE83: 0 | EF83: 0 | EG83: 0 | EH83: 0 | EI83: 0 | EJ83: 0 | EK83: 0 | EL83: 0 | EM83: 0 | EN83: 0 | EO83: 0 | EP83: 0 | EQ83: 0 | ER83: 0 | ES83: 0 | ET83: 0 | EU83: 0 | EV83: 0 | EW83: 0 | EX83: 0 | EY83: 0 | EZ83: 0 | FA83: 0 | FB83: 0 | FC83: 0 | FD83: 0 | FE83: 0 | FF83: 0 | FG83: 0 | FH83: 0 | FI83: 0 | FJ83: 0 | FK83: 0 | FL83: 0 | FM83: 0 | FN83: 0 | FO83: 0 | FP83: =$T$72*FP63 -> 0
K84: Работы по созданию онлайн сервиса - 10 | N84: 10 | Q84: руб. | T84: 10000000 | W84: 10000000 | AA84: =$T$72*AA64 -> 0 | AB84: 0 | AC84: 2000000 | AD84: 2000000 | AE84: 2000000 | AF84: 2000000 | AG84: 2000000 | AH84: 0 | AI84: 0 | AJ84: 0 | AK84: 0 | AL84: 0 | AM84: 0 | AN84: 0 | AO84: 0 | AP84: 0 | AQ84: 0 | AR84: 0 | AS84: 0 | AT84: 0 | AU84: 0 | AV84: 0 | AW84: 0 | AX84: =$T$72*AX64 -> 0 | AY84: 0 | AZ84: 0 | BA84: 0 | BB84: 0 | BC84: 0 | BD84: 0 | BE84: 0 | BF84: 0 | BG84: 0 | BH84: 0 | BI84: 0 | BJ84: 0 | BK84: 0 | BL84: 0 | BM84: 0 | BN84: 0 | BO84: 0 | BP84: 0 | BQ84: 0 | BR84: 0 | BS84: 0 | BT84: 0 | BU84: 0 | BV84: 0 | BW84: 0 | BX84: 0 | BY84: 0 | BZ84: 0 | CA84: 0 | CB84: 0 | CC84: 0 | CD84: 0 | CE84: 0 | CF84: 0 | CG84: 0 | CH84: 0 | CI84: 0 | CJ84: 0 | CK84: 0 | CL84: 0 | CM84: 0 | CN84: 0 | CO84: 0 | CP84: 0 | CQ84: 0 | CR84: 0 | CS84: 0 | CT84: 0 | CU84: 0 | CV84: 0 | CW84: 0 | CX84: 0 | CY84: 0 | CZ84: 0 | DA84: 0 | DB84: 0 | DC84: 0 | DD84: 0 | DE84: 0 | DF84: 0 | DG84: 0 | DH84: 0 | DI84: 0 | DJ84: =$T$72*DJ64 -> 0 | DK84: 0 | DL84: 0 | DM84: 0 | DN84: 0 | DO84: 0 | DP84: 0 | DQ84: 0 | DR84: 0 | DS84: 0 | DT84: 0 | DU84: 0 | DV84: 0 | DW84: 0 | DX84: 0 | DY84: 0 | DZ84: 0 | EA84: 0 | EB84: 0 | EC84: 0 | ED84: 0 | EE84: 0 | EF84: 0 | EG84: 0 | EH84: 0 | EI84: 0 | EJ84: 0 | EK84: 0 | EL84: 0 | EM84: 0 | EN84: 0 | EO84: 0 | EP84: 0 | EQ84: 0 | ER84: 0 | ES84: 0 | ET84: 0 | EU84: 0 | EV84: 0 | EW84: 0 | EX84: 0 | EY84: 0 | EZ84: 0 | FA84: 0 | FB84: 0 | FC84: 0 | FD84: 0 | FE84: 0 | FF84: 0 | FG84: 0 | FH84: 0 | FI84: 0 | FJ84: 0 | FK84: 0 | FL84: 0 | FM84: 0 | FN84: 0 | FO84: 0 | FP84: =$T$72*FP64 -> 0
K85: 0 | N85: 0 | Q85: руб. | T85: 0 | W85: 0 | AA85: =$T$72*AA65 -> 0 | AB85: 0 | AC85: 0 | AD85: 0 | AE85: 0 | AF85: 0 | AG85: 0 | AH85: 0 | AI85: 0 | AJ85: 0 | AK85: 0 | AL85: 0 | AM85: 0 | AN85: 0 | AO85: 0 | AP85: 0 | AQ85: 0 | AR85: 0 | AS85: 0 | AT85: 0 | AU85: 0 | AV85: 0 | AW85: 0 | AX85: =$T$72*AX65 -> 0 | AY85: 0 | AZ85: 0 | BA85: 0 | BB85: 0 | BC85: 0 | BD85: 0 | BE85: 0 | BF85: 0 | BG85: 0 | BH85: 0 | BI85: 0 | BJ85: 0 | BK85: 0 | BL85: 0 | BM85: 0 | BN85: 0 | BO85: 0 | BP85: 0 | BQ85: 0 | BR85: 0 | BS85: 0 | BT85: 0 | BU85: 0 | BV85: 0 | BW85: 0 | BX85: 0 | BY85: 0 | BZ85: 0 | CA85: 0 | CB85: 0 | CC85: 0 | CD85: 0 | CE85: 0 | CF85: 0 | CG85: 0 | CH85: 0 | CI85: 0 | CJ85: 0 | CK85: 0 | CL85: 0 | CM85: 0 | CN85: 0 | CO85: 0 | CP85: 0 | CQ85: 0 | CR85: 0 | CS85: 0 | CT85: 0 | CU85: 0 | CV85: 0 | CW85: 0 | CX85: 0 | CY85: 0 | CZ85: 0 | DA85: 0 | DB85: 0 | DC85: 0 | DD85: 0 | DE85: 0 | DF85: 0 | DG85: 0 | DH85: 0 | DI85: 0 | DJ85: =$T$72*DJ65 -> 0 | DK85: 0 | DL85: 0 | DM85: 0 | DN85: 0 | DO85: 0 | DP85: 0 | DQ85: 0 | DR85: 0 | DS85: 0 | DT85: 0 | DU85: 0 | DV85: 0 | DW85: 0 | DX85: 0 | DY85: 0 | DZ85: 0 | EA85: 0 | EB85: 0 | EC85: 0 | ED85: 0 | EE85: 0 | EF85: 0 | EG85: 0 | EH85: 0 | EI85: 0 | EJ85: 0 | EK85: 0 | EL85: 0 | EM85: 0 | EN85: 0 | EO85: 0 | EP85: 0 | EQ85: 0 | ER85: 0 | ES85: 0 | ET85: 0 | EU85: 0 | EV85: 0 | EW85: 0 | EX85: 0 | EY85: 0 | EZ85: 0 | FA85: 0 | FB85: 0 | FC85: 0 | FD85: 0 | FE85: 0 | FF85: 0 | FG85: 0 | FH85: 0 | FI85: 0 | FJ85: 0 | FK85: 0 | FL85: 0 | FM85: 0 | FN85: 0 | FO85: 0 | FP85: =$T$72*FP65 -> 0
K86: 0 | N86: 0 | Q86: руб. | T86: 0 | W86: 0 | AA86: =$T$72*AA66 -> 0 | AB86: 0 | AC86: 0 | AD86: 0 | AE86: 0 | AF86: 0 | AG86: 0 | AH86: 0 | AI86: 0 | AJ86: 0 | AK86: 0 | AL86: 0 | AM86: 0 | AN86: 0 | AO86: 0 | AP86: 0 | AQ86: 0 | AR86: 0 | AS86: 0 | AT86: 0 | AU86: 0 | AV86: 0 | AW86: 0 | AX86: =$T$72*AX66 -> 0 | AY86: 0 | AZ86: 0 | BA86: 0 | BB86: 0 | BC86: 0 | BD86: 0 | BE86: 0 | BF86: 0 | BG86: 0 | BH86: 0 | BI86: 0 | BJ86: 0 | BK86: 0 | BL86: 0 | BM86: 0 | BN86: 0 | BO86: 0 | BP86: 0 | BQ86: 0 | BR86: 0 | BS86: 0 | BT86: 0 | BU86: 0 | BV86: 0 | BW86: 0 | BX86: 0 | BY86: 0 | BZ86: 0 | CA86: 0 | CB86: 0 | CC86: 0 | CD86: 0 | CE86: 0 | CF86: 0 | CG86: 0 | CH86: 0 | CI86: 0 | CJ86: 0 | CK86: 0 | CL86: 0 | CM86: 0 | CN86: 0 | CO86: 0 | CP86: 0 | CQ86: 0 | CR86: 0 | CS86: 0 | CT86: 0 | CU86: 0 | CV86: 0 | CW86: 0 | CX86: 0 | CY86: 0 | CZ86: 0 | DA86: 0 | DB86: 0 | DC86: 0 | DD86: 0 | DE86: 0 | DF86: 0 | DG86: 0 | DH86: 0 | DI86: 0 | DJ86: =$T$72*DJ66 -> 0 | DK86: 0 | DL86: 0 | DM86: 0 | DN86: 0 | DO86: 0 | DP86: 0 | DQ86: 0 | DR86: 0 | DS86: 0 | DT86: 0 | DU86: 0 | DV86: 0 | DW86: 0 | DX86: 0 | DY86: 0 | DZ86: 0 | EA86: 0 | EB86: 0 | EC86: 0 | ED86: 0 | EE86: 0 | EF86: 0 | EG86: 0 | EH86: 0 | EI86: 0 | EJ86: 0 | EK86: 0 | EL86: 0 | EM86: 0 | EN86: 0 | EO86: 0 | EP86: 0 | EQ86: 0 | ER86: 0 | ES86: 0 | ET86: 0 | EU86: 0 | EV86: 0 | EW86: 0 | EX86: 0 | EY86: 0 | EZ86: 0 | FA86: 0 | FB86: 0 | FC86: 0 | FD86: 0 | FE86: 0 | FF86: 0 | FG86: 0 | FH86: 0 | FI86: 0 | FJ86: 0 | FK86: 0 | FL86: 0 | FM86: 0 | FN86: 0 | FO86: 0 | FP86: =$T$72*FP66 -> 0
K87: 0 | N87: 0 | Q87: руб. | T87: 0 | W87: 0 | AA87: =$T$72*AA67 -> 0 | AB87: 0 | AC87: 0 | AD87: 0 | AE87: 0 | AF87: 0 | AG87: 0 | AH87: 0 | AI87: 0 | AJ87: 0 | AK87: 0 | AL87: 0 | AM87: 0 | AN87: 0 | AO87: 0 | AP87: 0 | AQ87: 0 | AR87: 0 | AS87: 0 | AT87: 0 | AU87: 0 | AV87: 0 | AW87: 0 | AX87: =$T$72*AX67 -> 0 | AY87: 0 | AZ87: 0 | BA87: 0 | BB87: 0 | BC87: 0 | BD87: 0 | BE87: 0 | BF87: 0 | BG87: 0 | BH87: 0 | BI87: 0 | BJ87: 0 | BK87: 0 | BL87: 0 | BM87: 0 | BN87: 0 | BO87: 0 | BP87: 0 | BQ87: 0 | BR87: 0 | BS87: 0 | BT87: 0 | BU87: 0 | BV87: 0 | BW87: 0 | BX87: 0 | BY87: 0 | BZ87: 0 | CA87: 0 | CB87: 0 | CC87: 0 | CD87: 0 | CE87: 0 | CF87: 0 | CG87: 0 | CH87: 0 | CI87: 0 | CJ87: 0 | CK87: 0 | CL87: 0 | CM87: 0 | CN87: 0 | CO87: 0 | CP87: 0 | CQ87: 0 | CR87: 0 | CS87: 0 | CT87: 0 | CU87: 0 | CV87: 0 | CW87: 0 | CX87: 0 | CY87: 0 | CZ87: 0 | DA87: 0 | DB87: 0 | DC87: 0 | DD87: 0 | DE87: 0 | DF87: 0 | DG87: 0 | DH87: 0 | DI87: 0 | DJ87: =$T$72*DJ67 -> 0 | DK87: 0 | DL87: 0 | DM87: 0 | DN87: 0 | DO87: 0 | DP87: 0 | DQ87: 0 | DR87: 0 | DS87: 0 | DT87: 0 | DU87: 0 | DV87: 0 | DW87: 0 | DX87: 0 | DY87: 0 | DZ87: 0 | EA87: 0 | EB87: 0 | EC87: 0 | ED87: 0 | EE87: 0 | EF87: 0 | EG87: 0 | EH87: 0 | EI87: 0 | EJ87: 0 | EK87: 0 | EL87: 0 | EM87: 0 | EN87: 0 | EO87: 0 | EP87: 0 | EQ87: 0 | ER87: 0 | ES87: 0 | ET87: 0 | EU87: 0 | EV87: 0 | EW87: 0 | EX87: 0 | EY87: 0 | EZ87: 0 | FA87: 0 | FB87: 0 | FC87: 0 | FD87: 0 | FE87: 0 | FF87: 0 | FG87: 0 | FH87: 0 | FI87: 0 | FJ87: 0 | FK87: 0 | FL87: 0 | FM87: 0 | FN87: 0 | FO87: 0 | FP87: =$T$72*FP67 -> 0
K88: 0 | N88: 0 | Q88: руб. | T88: 0 | W88: 0 | AA88: =$T$72*AA68 -> 0 | AB88: 0 | AC88: 0 | AD88: 0 | AE88: 0 | AF88: 0 | AG88: 0 | AH88: 0 | AI88: 0 | AJ88: 0 | AK88: 0 | AL88: 0 | AM88: 0 | AN88: 0 | AO88: 0 | AP88: 0 | AQ88: 0 | AR88: 0 | AS88: 0 | AT88: 0 | AU88: 0 | AV88: 0 | AW88: 0 | AX88: =$T$72*AX68 -> 0 | AY88: 0 | AZ88: 0 | BA88: 0 | BB88: 0 | BC88: 0 | BD88: 0 | BE88: 0 | BF88: 0 | BG88: 0 | BH88: 0 | BI88: 0 | BJ88: 0 | BK88: 0 | BL88: 0 | BM88: 0 | BN88: 0 | BO88: 0 | BP88: 0 | BQ88: 0 | BR88: 0 | BS88: 0 | BT88: 0 | BU88: 0 | BV88: 0 | BW88: 0 | BX88: 0 | BY88: 0 | BZ88: 0 | CA88: 0 | CB88: 0 | CC88: 0 | CD88: 0 | CE88: 0 | CF88: 0 | CG88: 0 | CH88: 0 | CI88: 0 | CJ88: 0 | CK88: 0 | CL88: 0 | CM88: 0 | CN88: 0 | CO88: 0 | CP88: 0 | CQ88: 0 | CR88: 0 | CS88: 0 | CT88: 0 | CU88: 0 | CV88: 0 | CW88: 0 | CX88: 0 | CY88: 0 | CZ88: 0 | DA88: 0 | DB88: 0 | DC88: 0 | DD88: 0 | DE88: 0 | DF88: 0 | DG88: 0 | DH88: 0 | DI88: 0 | DJ88: =$T$72*DJ68 -> 0 | DK88: 0 | DL88: 0 | DM88: 0 | DN88: 0 | DO88: 0 | DP88: 0 | DQ88: 0 | DR88: 0 | DS88: 0 | DT88: 0 | DU88: 0 | DV88: 0 | DW88: 0 | DX88: 0 | DY88: 0 | DZ88: 0 | EA88: 0 | EB88: 0 | EC88: 0 | ED88: 0 | EE88: 0 | EF88: 0 | EG88: 0 | EH88: 0 | EI88: 0 | EJ88: 0 | EK88: 0 | EL88: 0 | EM88: 0 | EN88: 0 | EO88: 0 | EP88: 0 | EQ88: 0 | ER88: 0 | ES88: 0 | ET88: 0 | EU88: 0 | EV88: 0 | EW88: 0 | EX88: 0 | EY88: 0 | EZ88: 0 | FA88: 0 | FB88: 0 | FC88: 0 | FD88: 0 | FE88: 0 | FF88: 0 | FG88: 0 | FH88: 0 | FI88: 0 | FJ88: 0 | FK88: 0 | FL88: 0 | FM88: 0 | FN88: 0 | FO88: 0 | FP88: =$T$72*FP68 -> 0
K89: 0 | N89: 0 | Q89: руб. | T89: 0 | W89: 0 | AA89: =$T$72*AA69 -> 0 | AB89: 0 | AC89: 0 | AD89: 0 | AE89: 0 | AF89: 0 | AG89: 0 | AH89: 0 | AI89: 0 | AJ89: 0 | AK89: 0 | AL89: 0 | AM89: 0 | AN89: 0 | AO89: 0 | AP89: 0 | AQ89: 0 | AR89: 0 | AS89: 0 | AT89: 0 | AU89: 0 | AV89: 0 | AW89: 0 | AX89: =$T$72*AX69 -> 0 | AY89: 0 | AZ89: 0 | BA89: 0 | BB89: 0 | BC89: 0 | BD89: 0 | BE89: 0 | BF89: 0 | BG89: 0 | BH89: 0 | BI89: 0 | BJ89: 0 | BK89: 0 | BL89: 0 | BM89: 0 | BN89: 0 | BO89: 0 | BP89: 0 | BQ89: 0 | BR89: 0 | BS89: 0 | BT89: 0 | BU89: 0 | BV89: 0 | BW89: 0 | BX89: 0 | BY89: 0 | BZ89: 0 | CA89: 0 | CB89: 0 | CC89: 0 | CD89: 0 | CE89: 0 | CF89: 0 | CG89: 0 | CH89: 0 | CI89: 0 | CJ89: 0 | CK89: 0 | CL89: 0 | CM89: 0 | CN89: 0 | CO89: 0 | CP89: 0 | CQ89: 0 | CR89: 0 | CS89: 0 | CT89: 0 | CU89: 0 | CV89: 0 | CW89: 0 | CX89: 0 | CY89: 0 | CZ89: 0 | DA89: 0 | DB89: 0 | DC89: 0 | DD89: 0 | DE89: 0 | DF89: 0 | DG89: 0 | DH89: 0 | DI89: 0 | DJ89: =$T$72*DJ69 -> 0 | DK89: 0 | DL89: 0 | DM89: 0 | DN89: 0 | DO89: 0 | DP89: 0 | DQ89: 0 | DR89: 0 | DS89: 0 | DT89: 0 | DU89: 0 | DV89: 0 | DW89: 0 | DX89: 0 | DY89: 0 | DZ89: 0 | EA89: 0 | EB89: 0 | EC89: 0 | ED89: 0 | EE89: 0 | EF89: 0 | EG89: 0 | EH89: 0 | EI89: 0 | EJ89: 0 | EK89: 0 | EL89: 0 | EM89: 0 | EN89: 0 | EO89: 0 | EP89: 0 | EQ89: 0 | ER89: 0 | ES89: 0 | ET89: 0 | EU89: 0 | EV89: 0 | EW89: 0 | EX89: 0 | EY89: 0 | EZ89: 0 | FA89: 0 | FB89: 0 | FC89: 0 | FD89: 0 | FE89: 0 | FF89: 0 | FG89: 0 | FH89: 0 | FI89: 0 | FJ89: 0 | FK89: 0 | FL89: 0 | FM89: 0 | FN89: 0 | FO89: 0 | FP89: =$T$72*FP69 -> 0
G92: * | H92: Месяц / Индикатор старта Проекта | T92: =IF(W92=1,SUMIFS($Y$8:$FR$8,$Y92:$FR92,1),0) -> 2021-01-01 | W92: =SUM($Y92:$FQ92) -> 1 | AA92: =IF(AND(AA72<>0,SUM($Z72:Z72)=0),1,0) -> 1 | AB92: =IF(AND(AB72<>0,SUM($Z72:AA72)=0),1,0) -> 0 | AC92: =IF(AND(AC72<>0,SUM($Z72:AB72)=0),1,0) -> 0 | AD92: =IF(AND(AD72<>0,SUM($Z72:AC72)=0),1,0) -> 0 | AE92: =IF(AND(AE72<>0,SUM($Z72:AD72)=0),1,0) -> 0 | AF92: =IF(AND(AF72<>0,SUM($Z72:AE72)=0),1,0) -> 0 | AG92: =IF(AND(AG72<>0,SUM($Z72:AF72)=0),1,0) -> 0 | AH92: =IF(AND(AH72<>0,SUM($Z72:AG72)=0),1,0) -> 0 | AI92: =IF(AND(AI72<>0,SUM($Z72:AH72)=0),1,0) -> 0 | AJ92: =IF(AND(AJ72<>0,SUM($Z72:AI72)=0),1,0) -> 0 | AK92: =IF(AND(AK72<>0,SUM($Z72:AJ72)=0),1,0) -> 0 | AL92: =IF(AND(AL72<>0,SUM($Z72:AK72)=0),1,0) -> 0 | AM92: =IF(AND(AM72<>0,SUM($Z72:AL72)=0),1,0) -> 0 | AN92: =IF(AND(AN72<>0,SUM($Z72:AM72)=0),1,0) -> 0 | AO92: =IF(AND(AO72<>0,SUM($Z72:AN72)=0),1,0) -> 0 | AP92: =IF(AND(AP72<>0,SUM($Z72:AO72)=0),1,0) -> 0 | AQ92: =IF(AND(AQ72<>0,SUM($Z72:AP72)=0),1,0) -> 0 | AR92: =IF(AND(AR72<>0,SUM($Z72:AQ72)=0),1,0) -> 0 | AS92: =IF(AND(AS72<>0,SUM($Z72:AR72)=0),1,0) -> 0 | AT92: =IF(AND(AT72<>0,SUM($Z72:AS72)=0),1,0) -> 0 | AU92: =IF(AND(AU72<>0,SUM($Z72:AT72)=0),1,0) -> 0 | AV92: =IF(AND(AV72<>0,SUM($Z72:AU72)=0),1,0) -> 0 | AW92: =IF(AND(AW72<>0,SUM($Z72:AV72)=0),1,0) -> 0 | AX92: =IF(AND(AX72<>0,SUM($Z72:AW72)=0),1,0) -> 0 | AY92: =IF(AND(AY72<>0,SUM($Z72:AX72)=0),1,0) -> 0 | AZ92: =IF(AND(AZ72<>0,SUM($Z72:AY72)=0),1,0) -> 0 | BA92: =IF(AND(BA72<>0,SUM($Z72:AZ72)=0),1,0) -> 0 | BB92: =IF(AND(BB72<>0,SUM($Z72:BA72)=0),1,0) -> 0 | BC92: =IF(AND(BC72<>0,SUM($Z72:BB72)=0),1,0) -> 0 | BD92: =IF(AND(BD72<>0,SUM($Z72:BC72)=0),1,0) -> 0 | BE92: =IF(AND(BE72<>0,SUM($Z72:BD72)=0),1,0) -> 0 | BF92: =IF(AND(BF72<>0,SUM($Z72:BE72)=0),1,0) -> 0 | BG92: =IF(AND(BG72<>0,SUM($Z72:BF72)=0),1,0) -> 0 | BH92: =IF(AND(BH72<>0,SUM($Z72:BG72)=0),1,0) -> 0 | BI92: =IF(AND(BI72<>0,SUM($Z72:BH72)=0),1,0) -> 0 | BJ92: =IF(AND(BJ72<>0,SUM($Z72:BI72)=0),1,0) -> 0 | BK92: =IF(AND(BK72<>0,SUM($Z72:BJ72)=0),1,0) -> 0 | BL92: =IF(AND(BL72<>0,SUM($Z72:BK72)=0),1,0) -> 0 | BM92: =IF(AND(BM72<>0,SUM($Z72:BL72)=0),1,0) -> 0 | BN92: =IF(AND(BN72<>0,SUM($Z72:BM72)=0),1,0) -> 0 | BO92: =IF(AND(BO72<>0,SUM($Z72:BN72)=0),1,0) -> 0 | BP92: =IF(AND(BP72<>0,SUM($Z72:BO72)=0),1,0) -> 0 | BQ92: =IF(AND(BQ72<>0,SUM($Z72:BP72)=0),1,0) -> 0 | BR92: =IF(AND(BR72<>0,SUM($Z72:BQ72)=0),1,0) -> 0 | BS92: =IF(AND(BS72<>0,SUM($Z72:BR72)=0),1,0) -> 0 | BT92: =IF(AND(BT72<>0,SUM($Z72:BS72)=0),1,0) -> 0 | BU92: =IF(AND(BU72<>0,SUM($Z72:BT72)=0),1,0) -> 0 | BV92: =IF(AND(BV72<>0,SUM($Z72:BU72)=0),1,0) -> 0 | BW92: =IF(AND(BW72<>0,SUM($Z72:BV72)=0),1,0) -> 0 | BX92: =IF(AND(BX72<>0,SUM($Z72:BW72)=0),1,0) -> 0 | BY92: =IF(AND(BY72<>0,SUM($Z72:BX72)=0),1,0) -> 0 | BZ92: =IF(AND(BZ72<>0,SUM($Z72:BY72)=0),1,0) -> 0 | CA92: =IF(AND(CA72<>0,SUM($Z72:BZ72)=0),1,0) -> 0 | CB92: =IF(AND(CB72<>0,SUM($Z72:CA72)=0),1,0) -> 0 | CC92: =IF(AND(CC72<>0,SUM($Z72:CB72)=0),1,0) -> 0 | CD92: =IF(AND(CD72<>0,SUM($Z72:CC72)=0),1,0) -> 0 | CE92: =IF(AND(CE72<>0,SUM($Z72:CD72)=0),1,0) -> 0 | CF92: =IF(AND(CF72<>0,SUM($Z72:CE72)=0),1,0) -> 0 | CG92: =IF(AND(CG72<>0,SUM($Z72:CF72)=0),1,0) -> 0 | CH92: =IF(AND(CH72<>0,SUM($Z72:CG72)=0),1,0) -> 0 | CI92: =IF(AND(CI72<>0,SUM($Z72:CH72)=0),1,0) -> 0 | CJ92: =IF(AND(CJ72<>0,SUM($Z72:CI72)=0),1,0) -> 0 | CK92: =IF(AND(CK72<>0,SUM($Z72:CJ72)=0),1,0) -> 0 | CL92: =IF(AND(CL72<>0,SUM($Z72:CK72)=0),1,0) -> 0 | CM92: =IF(AND(CM72<>0,SUM($Z72:CL72)=0),1,0) -> 0 | CN92: =IF(AND(CN72<>0,SUM($Z72:CM72)=0),1,0) -> 0 | CO92: =IF(AND(CO72<>0,SUM($Z72:CN72)=0),1,0) -> 0 | CP92: =IF(AND(CP72<>0,SUM($Z72:CO72)=0),1,0) -> 0 | CQ92: =IF(AND(CQ72<>0,SUM($Z72:CP72)=0),1,0) -> 0 | CR92: =IF(AND(CR72<>0,SUM($Z72:CQ72)=0),1,0) -> 0 | CS92: =IF(AND(CS72<>0,SUM($Z72:CR72)=0),1,0) -> 0 | CT92: =IF(AND(CT72<>0,SUM($Z72:CS72)=0),1,0) -> 0 | CU92: =IF(AND(CU72<>0,SUM($Z72:CT72)=0),1,0) -> 0 | CV92: =IF(AND(CV72<>0,SUM($Z72:CU72)=0),1,0) -> 0 | CW92: =IF(AND(CW72<>0,SUM($Z72:CV72)=0),1,0) -> 0 | CX92: =IF(AND(CX72<>0,SUM($Z72:CW72)=0),1,0) -> 0 | CY92: =IF(AND(CY72<>0,SUM($Z72:CX72)=0),1,0) -> 0 | CZ92: =IF(AND(CZ72<>0,SUM($Z72:CY72)=0),1,0) -> 0 | DA92: =IF(AND(DA72<>0,SUM($Z72:CZ72)=0),1,0) -> 0 | DB92: =IF(AND(DB72<>0,SUM($Z72:DA72)=0),1,0) -> 0 | DC92: =IF(AND(DC72<>0,SUM($Z72:DB72)=0),1,0) -> 0 | DD92: =IF(AND(DD72<>0,SUM($Z72:DC72)=0),1,0) -> 0 | DE92: =IF(AND(DE72<>0,SUM($Z72:DD72)=0),1,0) -> 0 | DF92: =IF(AND(DF72<>0,SUM($Z72:DE72)=0),1,0) -> 0 | DG92: =IF(AND(DG72<>0,SUM($Z72:DF72)=0),1,0) -> 0 | DH92: =IF(AND(DH72<>0,SUM($Z72:DG72)=0),1,0) -> 0 | DI92: =IF(AND(DI72<>0,SUM($Z72:DH72)=0),1,0) -> 0 | DJ92: =IF(AND(DJ72<>0,SUM($Z72:DI72)=0),1,0) -> 0 | DK92: =IF(AND(DK72<>0,SUM($Z72:DJ72)=0),1,0) -> 0 | DL92: =IF(AND(DL72<>0,SUM($Z72:DK72)=0),1,0) -> 0 | DM92: =IF(AND(DM72<>0,SUM($Z72:DL72)=0),1,0) -> 0 | DN92: =IF(AND(DN72<>0,SUM($Z72:DM72)=0),1,0) -> 0 | DO92: =IF(AND(DO72<>0,SUM($Z72:DN72)=0),1,0) -> 0 | DP92: =IF(AND(DP72<>0,SUM($Z72:DO72)=0),1,0) -> 0 | DQ92: =IF(AND(DQ72<>0,SUM($Z72:DP72)=0),1,0) -> 0 | DR92: =IF(AND(DR72<>0,SUM($Z72:DQ72)=0),1,0) -> 0 | DS92: =IF(AND(DS72<>0,SUM($Z72:DR72)=0),1,0) -> 0 | DT92: =IF(AND(DT72<>0,SUM($Z72:DS72)=0),1,0) -> 0 | DU92: =IF(AND(DU72<>0,SUM($Z72:DT72)=0),1,0) -> 0 | DV92: =IF(AND(DV72<>0,SUM($Z72:DU72)=0),1,0) -> 0 | DW92: =IF(AND(DW72<>0,SUM($Z72:DV72)=0),1,0) -> 0 | DX92: =IF(AND(DX72<>0,SUM($Z72:DW72)=0),1,0) -> 0 | DY92: =IF(AND(DY72<>0,SUM($Z72:DX72)=0),1,0) -> 0 | DZ92: =IF(AND(DZ72<>0,SUM($Z72:DY72)=0),1,0) -> 0 | EA92: =IF(AND(EA72<>0,SUM($Z72:DZ72)=0),1,0) -> 0 | EB92: =IF(AND(EB72<>0,SUM($Z72:EA72)=0),1,0) -> 0 | EC92: =IF(AND(EC72<>0,SUM($Z72:EB72)=0),1,0) -> 0 | ED92: =IF(AND(ED72<>0,SUM($Z72:EC72)=0),1,0) -> 0 | EE92: =IF(AND(EE72<>0,SUM($Z72:ED72)=0),1,0) -> 0 | EF92: =IF(AND(EF72<>0,SUM($Z72:EE72)=0),1,0) -> 0 | EG92: =IF(AND(EG72<>0,SUM($Z72:EF72)=0),1,0) -> 0 | EH92: =IF(AND(EH72<>0,SUM($Z72:EG72)=0),1,0) -> 0 | EI92: =IF(AND(EI72<>0,SUM($Z72:EH72)=0),1,0) -> 0 | EJ92: =IF(AND(EJ72<>0,SUM($Z72:EI72)=0),1,0) -> 0 | EK92: =IF(AND(EK72<>0,SUM($Z72:EJ72)=0),1,0) -> 0 | EL92: =IF(AND(EL72<>0,SUM($Z72:EK72)=0),1,0) -> 0 | EM92: =IF(AND(EM72<>0,SUM($Z72:EL72)=0),1,0) -> 0 | EN92: =IF(AND(EN72<>0,SUM($Z72:EM72)=0),1,0) -> 0 | EO92: =IF(AND(EO72<>0,SUM($Z72:EN72)=0),1,0) -> 0 | EP92: =IF(AND(EP72<>0,SUM($Z72:EO72)=0),1,0) -> 0 | EQ92: =IF(AND(EQ72<>0,SUM($Z72:EP72)=0),1,0) -> 0 | ER92: =IF(AND(ER72<>0,SUM($Z72:EQ72)=0),1,0) -> 0 | ES92: =IF(AND(ES72<>0,SUM($Z72:ER72)=0),1,0) -> 0 | ET92: =IF(AND(ET72<>0,SUM($Z72:ES72)=0),1,0) -> 0 | EU92: =IF(AND(EU72<>0,SUM($Z72:ET72)=0),1,0) -> 0 | EV92: =IF(AND(EV72<>0,SUM($Z72:EU72)=0),1,0) -> 0 | EW92: =IF(AND(EW72<>0,SUM($Z72:EV72)=0),1,0) -> 0 | EX92: =IF(AND(EX72<>0,SUM($Z72:EW72)=0),1,0) -> 0 | EY92: =IF(AND(EY72<>0,SUM($Z72:EX72)=0),1,0) -> 0 | EZ92: =IF(AND(EZ72<>0,SUM($Z72:EY72)=0),1,0) -> 0 | FA92: =IF(AND(FA72<>0,SUM($Z72:EZ72)=0),1,0) -> 0 | FB92: =IF(AND(FB72<>0,SUM($Z72:FA72)=0),1,0) -> 0 | FC92: =IF(AND(FC72<>0,SUM($Z72:FB72)=0),1,0) -> 0 | FD92: =IF(AND(FD72<>0,SUM($Z72:FC72)=0),1,0) -> 0 | FE92: =IF(AND(FE72<>0,SUM($Z72:FD72)=0),1,0) -> 0 | FF92: =IF(AND(FF72<>0,SUM($Z72:FE72)=0),1,0) -> 0 | FG92: =IF(AND(FG72<>0,SUM($Z72:FF72)=0),1,0) -> 0 | FH92: =IF(AND(FH72<>0,SUM($Z72:FG72)=0),1,0) -> 0 | FI92: =IF(AND(FI72<>0,SUM($Z72:FH72)=0),1,0) -> 0 | FJ92: =IF(AND(FJ72<>0,SUM($Z72:FI72)=0),1,0) -> 0 | FK92: =IF(AND(FK72<>0,SUM($Z72:FJ72)=0),1,0) -> 0 | FL92: =IF(AND(FL72<>0,SUM($Z72:FK72)=0),1,0) -> 0 | FM92: =IF(AND(FM72<>0,SUM($Z72:FL72)=0),1,0) -> 0 | FN92: =IF(AND(FN72<>0,SUM($Z72:FM72)=0),1,0) -> 0 | FO92: =IF(AND(FO72<>0,SUM($Z72:FN72)=0),1,0) -> 0 | FP92: =IF(AND(FP72<>0,SUM($Z72:FO72)=0),1,0) -> 0
G95: * | H95: Месяц / Индикатор ввода в эксплуатацию производства | T95: =IF(W95=1,SUMIFS($Y$8:$FR$8,$Y95:$FR95,1),0) -> 2021-07-01 | W95: =SUM($Y95:$FQ95) -> 1 | AA95: =IF(AND(AA72<>0,SUM(AB72:$FR72)=0),1,0) -> 0 | AB95: =IF(AND(AB72<>0,SUM(AC72:$FR72)=0),1,0) -> 0 | AC95: =IF(AND(AC72<>0,SUM(AD72:$FR72)=0),1,0) -> 0 | AD95: =IF(AND(AD72<>0,SUM(AE72:$FR72)=0),1,0) -> 0 | AE95: =IF(AND(AE72<>0,SUM(AF72:$FR72)=0),1,0) -> 0 | AF95: =IF(AND(AF72<>0,SUM(AG72:$FR72)=0),1,0) -> 0 | AG95: =IF(AND(AG72<>0,SUM(AH72:$FR72)=0),1,0) -> 1 | AH95: =IF(AND(AH72<>0,SUM(AI72:$FR72)=0),1,0) -> 0 | AI95: =IF(AND(AI72<>0,SUM(AJ72:$FR72)=0),1,0) -> 0 | AJ95: =IF(AND(AJ72<>0,SUM(AK72:$FR72)=0),1,0) -> 0 | AK95: =IF(AND(AK72<>0,SUM(AL72:$FR72)=0),1,0) -> 0 | AL95: =IF(AND(AL72<>0,SUM(AM72:$FR72)=0),1,0) -> 0 | AM95: =IF(AND(AM72<>0,SUM(AN72:$FR72)=0),1,0) -> 0 | AN95: =IF(AND(AN72<>0,SUM(AO72:$FR72)=0),1,0) -> 0 | AO95: =IF(AND(AO72<>0,SUM(AP72:$FR72)=0),1,0) -> 0 | AP95: =IF(AND(AP72<>0,SUM(AQ72:$FR72)=0),1,0) -> 0 | AQ95: =IF(AND(AQ72<>0,SUM(AR72:$FR72)=0),1,0) -> 0 | AR95: =IF(AND(AR72<>0,SUM(AS72:$FR72)=0),1,0) -> 0 | AS95: =IF(AND(AS72<>0,SUM(AT72:$FR72)=0),1,0) -> 0 | AT95: =IF(AND(AT72<>0,SUM(AU72:$FR72)=0),1,0) -> 0 | AU95: =IF(AND(AU72<>0,SUM(AV72:$FR72)=0),1,0) -> 0 | AV95: =IF(AND(AV72<>0,SUM(AW72:$FR72)=0),1,0) -> 0 | AW95: =IF(AND(AW72<>0,SUM(AX72:$FR72)=0),1,0) -> 0 | AX95: =IF(AND(AX72<>0,SUM(AY72:$FR72)=0),1,0) -> 0 | AY95: =IF(AND(AY72<>0,SUM(AZ72:$FR72)=0),1,0) -> 0 | AZ95: =IF(AND(AZ72<>0,SUM(BA72:$FR72)=0),1,0) -> 0 | BA95: =IF(AND(BA72<>0,SUM(BB72:$FR72)=0),1,0) -> 0 | BB95: =IF(AND(BB72<>0,SUM(BC72:$FR72)=0),1,0) -> 0 | BC95: =IF(AND(BC72<>0,SUM(BD72:$FR72)=0),1,0) -> 0 | BD95: =IF(AND(BD72<>0,SUM(BE72:$FR72)=0),1,0) -> 0 | BE95: =IF(AND(BE72<>0,SUM(BF72:$FR72)=0),1,0) -> 0 | BF95: =IF(AND(BF72<>0,SUM(BG72:$FR72)=0),1,0) -> 0 | BG95: =IF(AND(BG72<>0,SUM(BH72:$FR72)=0),1,0) -> 0 | BH95: =IF(AND(BH72<>0,SUM(BI72:$FR72)=0),1,0) -> 0 | BI95: =IF(AND(BI72<>0,SUM(BJ72:$FR72)=0),1,0) -> 0 | BJ95: =IF(AND(BJ72<>0,SUM(BK72:$FR72)=0),1,0) -> 0 | BK95: =IF(AND(BK72<>0,SUM(BL72:$FR72)=0),1,0) -> 0 | BL95: =IF(AND(BL72<>0,SUM(BM72:$FR72)=0),1,0) -> 0 | BM95: =IF(AND(BM72<>0,SUM(BN72:$FR72)=0),1,0) -> 0 | BN95: =IF(AND(BN72<>0,SUM(BO72:$FR72)=0),1,0) -> 0 | BO95: =IF(AND(BO72<>0,SUM(BP72:$FR72)=0),1,0) -> 0 | BP95: =IF(AND(BP72<>0,SUM(BQ72:$FR72)=0),1,0) -> 0 | BQ95: =IF(AND(BQ72<>0,SUM(BR72:$FR72)=0),1,0) -> 0 | BR95: =IF(AND(BR72<>0,SUM(BS72:$FR72)=0),1,0) -> 0 | BS95: =IF(AND(BS72<>0,SUM(BT72:$FR72)=0),1,0) -> 0 | BT95: =IF(AND(BT72<>0,SUM(BU72:$FR72)=0),1,0) -> 0 | BU95: =IF(AND(BU72<>0,SUM(BV72:$FR72)=0),1,0) -> 0 | BV95: =IF(AND(BV72<>0,SUM(BW72:$FR72)=0),1,0) -> 0 | BW95: =IF(AND(BW72<>0,SUM(BX72:$FR72)=0),1,0) -> 0 | BX95: =IF(AND(BX72<>0,SUM(BY72:$FR72)=0),1,0) -> 0 | BY95: =IF(AND(BY72<>0,SUM(BZ72:$FR72)=0),1,0) -> 0 | BZ95: =IF(AND(BZ72<>0,SUM(CA72:$FR72)=0),1,0) -> 0 | CA95: =IF(AND(CA72<>0,SUM(CB72:$FR72)=0),1,0) -> 0 | CB95: =IF(AND(CB72<>0,SUM(CC72:$FR72)=0),1,0) -> 0 | CC95: =IF(AND(CC72<>0,SUM(CD72:$FR72)=0),1,0) -> 0 | CD95: =IF(AND(CD72<>0,SUM(CE72:$FR72)=0),1,0) -> 0 | CE95: =IF(AND(CE72<>0,SUM(CF72:$FR72)=0),1,0) -> 0 | CF95: =IF(AND(CF72<>0,SUM(CG72:$FR72)=0),1,0) -> 0 | CG95: =IF(AND(CG72<>0,SUM(CH72:$FR72)=0),1,0) -> 0 | CH95: =IF(AND(CH72<>0,SUM(CI72:$FR72)=0),1,0) -> 0 | CI95: =IF(AND(CI72<>0,SUM(CJ72:$FR72)=0),1,0) -> 0 | CJ95: =IF(AND(CJ72<>0,SUM(CK72:$FR72)=0),1,0) -> 0 | CK95: =IF(AND(CK72<>0,SUM(CL72:$FR72)=0),1,0) -> 0 | CL95: =IF(AND(CL72<>0,SUM(CM72:$FR72)=0),1,0) -> 0 | CM95: =IF(AND(CM72<>0,SUM(CN72:$FR72)=0),1,0) -> 0 | CN95: =IF(AND(CN72<>0,SUM(CO72:$FR72)=0),1,0) -> 0 | CO95: =IF(AND(CO72<>0,SUM(CP72:$FR72)=0),1,0) -> 0 | CP95: =IF(AND(CP72<>0,SUM(CQ72:$FR72)=0),1,0) -> 0 | CQ95: =IF(AND(CQ72<>0,SUM(CR72:$FR72)=0),1,0) -> 0 | CR95: =IF(AND(CR72<>0,SUM(CS72:$FR72)=0),1,0) -> 0 | CS95: =IF(AND(CS72<>0,SUM(CT72:$FR72)=0),1,0) -> 0 | CT95: =IF(AND(CT72<>0,SUM(CU72:$FR72)=0),1,0) -> 0 | CU95: =IF(AND(CU72<>0,SUM(CV72:$FR72)=0),1,0) -> 0 | CV95: =IF(AND(CV72<>0,SUM(CW72:$FR72)=0),1,0) -> 0 | CW95: =IF(AND(CW72<>0,SUM(CX72:$FR72)=0),1,0) -> 0 | CX95: =IF(AND(CX72<>0,SUM(CY72:$FR72)=0),1,0) -> 0 | CY95: =IF(AND(CY72<>0,SUM(CZ72:$FR72)=0),1,0) -> 0 | CZ95: =IF(AND(CZ72<>0,SUM(DA72:$FR72)=0),1,0) -> 0 | DA95: =IF(AND(DA72<>0,SUM(DB72:$FR72)=0),1,0) -> 0 | DB95: =IF(AND(DB72<>0,SUM(DC72:$FR72)=0),1,0) -> 0 | DC95: =IF(AND(DC72<>0,SUM(DD72:$FR72)=0),1,0) -> 0 | DD95: =IF(AND(DD72<>0,SUM(DE72:$FR72)=0),1,0) -> 0 | DE95: =IF(AND(DE72<>0,SUM(DF72:$FR72)=0),1,0) -> 0 | DF95: =IF(AND(DF72<>0,SUM(DG72:$FR72)=0),1,0) -> 0 | DG95: =IF(AND(DG72<>0,SUM(DH72:$FR72)=0),1,0) -> 0 | DH95: =IF(AND(DH72<>0,SUM(DI72:$FR72)=0),1,0) -> 0 | DI95: =IF(AND(DI72<>0,SUM(DJ72:$FR72)=0),1,0) -> 0 | DJ95: =IF(AND(DJ72<>0,SUM(DK72:$FR72)=0),1,0) -> 0 | DK95: =IF(AND(DK72<>0,SUM(DL72:$FR72)=0),1,0) -> 0 | DL95: =IF(AND(DL72<>0,SUM(DM72:$FR72)=0),1,0) -> 0 | DM95: =IF(AND(DM72<>0,SUM(DN72:$FR72)=0),1,0) -> 0 | DN95: =IF(AND(DN72<>0,SUM(DO72:$FR72)=0),1,0) -> 0 | DO95: =IF(AND(DO72<>0,SUM(DP72:$FR72)=0),1,0) -> 0 | DP95: =IF(AND(DP72<>0,SUM(DQ72:$FR72)=0),1,0) -> 0 | DQ95: =IF(AND(DQ72<>0,SUM(DR72:$FR72)=0),1,0) -> 0 | DR95: =IF(AND(DR72<>0,SUM(DS72:$FR72)=0),1,0) -> 0 | DS95: =IF(AND(DS72<>0,SUM(DT72:$FR72)=0),1,0) -> 0 | DT95: =IF(AND(DT72<>0,SUM(DU72:$FR72)=0),1,0) -> 0 | DU95: =IF(AND(DU72<>0,SUM(DV72:$FR72)=0),1,0) -> 0 | DV95: =IF(AND(DV72<>0,SUM(DW72:$FR72)=0),1,0) -> 0 | DW95: =IF(AND(DW72<>0,SUM(DX72:$FR72)=0),1,0) -> 0 | DX95: =IF(AND(DX72<>0,SUM(DY72:$FR72)=0),1,0) -> 0 | DY95: =IF(AND(DY72<>0,SUM(DZ72:$FR72)=0),1,0) -> 0 | DZ95: =IF(AND(DZ72<>0,SUM(EA72:$FR72)=0),1,0) -> 0 | EA95: =IF(AND(EA72<>0,SUM(EB72:$FR72)=0),1,0) -> 0 | EB95: =IF(AND(EB72<>0,SUM(EC72:$FR72)=0),1,0) -> 0 | EC95: =IF(AND(EC72<>0,SUM(ED72:$FR72)=0),1,0) -> 0 | ED95: =IF(AND(ED72<>0,SUM(EE72:$FR72)=0),1,0) -> 0 | EE95: =IF(AND(EE72<>0,SUM(EF72:$FR72)=0),1,0) -> 0 | EF95: =IF(AND(EF72<>0,SUM(EG72:$FR72)=0),1,0) -> 0 | EG95: =IF(AND(EG72<>0,SUM(EH72:$FR72)=0),1,0) -> 0 | EH95: =IF(AND(EH72<>0,SUM(EI72:$FR72)=0),1,0) -> 0 | EI95: =IF(AND(EI72<>0,SUM(EJ72:$FR72)=0),1,0) -> 0 | EJ95: =IF(AND(EJ72<>0,SUM(EK72:$FR72)=0),1,0) -> 0 | EK95: =IF(AND(EK72<>0,SUM(EL72:$FR72)=0),1,0) -> 0 | EL95: =IF(AND(EL72<>0,SUM(EM72:$FR72)=0),1,0) -> 0 | EM95: =IF(AND(EM72<>0,SUM(EN72:$FR72)=0),1,0) -> 0 | EN95: =IF(AND(EN72<>0,SUM(EO72:$FR72)=0),1,0) -> 0 | EO95: =IF(AND(EO72<>0,SUM(EP72:$FR72)=0),1,0) -> 0 | EP95: =IF(AND(EP72<>0,SUM(EQ72:$FR72)=0),1,0) -> 0 | EQ95: =IF(AND(EQ72<>0,SUM(ER72:$FR72)=0),1,0) -> 0 | ER95: =IF(AND(ER72<>0,SUM(ES72:$FR72)=0),1,0) -> 0 | ES95: =IF(AND(ES72<>0,SUM(ET72:$FR72)=0),1,0) -> 0 | ET95: =IF(AND(ET72<>0,SUM(EU72:$FR72)=0),1,0) -> 0 | EU95: =IF(AND(EU72<>0,SUM(EV72:$FR72)=0),1,0) -> 0 | EV95: =IF(AND(EV72<>0,SUM(EW72:$FR72)=0),1,0) -> 0 | EW95: =IF(AND(EW72<>0,SUM(EX72:$FR72)=0),1,0) -> 0 | EX95: =IF(AND(EX72<>0,SUM(EY72:$FR72)=0),1,0) -> 0 | EY95: =IF(AND(EY72<>0,SUM(EZ72:$FR72)=0),1,0) -> 0 | EZ95: =IF(AND(EZ72<>0,SUM(FA72:$FR72)=0),1,0) -> 0 | FA95: =IF(AND(FA72<>0,SUM(FB72:$FR72)=0),1,0) -> 0 | FB95: =IF(AND(FB72<>0,SUM(FC72:$FR72)=0),1,0) -> 0 | FC95: =IF(AND(FC72<>0,SUM(FD72:$FR72)=0),1,0) -> 0 | FD95: =IF(AND(FD72<>0,SUM(FE72:$FR72)=0),1,0) -> 0 | FE95: =IF(AND(FE72<>0,SUM(FF72:$FR72)=0),1,0) -> 0 | FF95: =IF(AND(FF72<>0,SUM(FG72:$FR72)=0),1,0) -> 0 | FG95: =IF(AND(FG72<>0,SUM(FH72:$FR72)=0),1,0) -> 0 | FH95: =IF(AND(FH72<>0,SUM(FI72:$FR72)=0),1,0) -> 0 | FI95: =IF(AND(FI72<>0,SUM(FJ72:$FR72)=0),1,0) -> 0 | FJ95: =IF(AND(FJ72<>0,SUM(FK72:$FR72)=0),1,0) -> 0 | FK95: =IF(AND(FK72<>0,SUM(FL72:$FR72)=0),1,0) -> 0 | FL95: =IF(AND(FL72<>0,SUM(FM72:$FR72)=0),1,0) -> 0 | FM95: =IF(AND(FM72<>0,SUM(FN72:$FR72)=0),1,0) -> 0 | FN95: =IF(AND(FN72<>0,SUM(FO72:$FR72)=0),1,0) -> 0 | FO95: =IF(AND(FO72<>0,SUM(FP72:$FR72)=0),1,0) -> 0 | FP95: =IF(AND(FP72<>0,SUM(FQ72:$FR72)=0),1,0) -> 0
G98: * | H98: Количество месяцев создания производства | W98: =SUM($Y98:$FQ98) -> 7 | AA98: =IF(OR(SUM($Z72:AA72)=0,SUM(AA72:$FR72)=0),0,1) -> 1 | AB98: =IF(OR(SUM($Z72:AB72)=0,SUM(AB72:$FR72)=0),0,1) -> 1 | AC98: =IF(OR(SUM($Z72:AC72)=0,SUM(AC72:$FR72)=0),0,1) -> 1 | AD98: =IF(OR(SUM($Z72:AD72)=0,SUM(AD72:$FR72)=0),0,1) -> 1 | AE98: =IF(OR(SUM($Z72:AE72)=0,SUM(AE72:$FR72)=0),0,1) -> 1 | AF98: =IF(OR(SUM($Z72:AF72)=0,SUM(AF72:$FR72)=0),0,1) -> 1 | AG98: =IF(OR(SUM($Z72:AG72)=0,SUM(AG72:$FR72)=0),0,1) -> 1 | AH98: =IF(OR(SUM($Z72:AH72)=0,SUM(AH72:$FR72)=0),0,1) -> 0 | AI98: =IF(OR(SUM($Z72:AI72)=0,SUM(AI72:$FR72)=0),0,1) -> 0 | AJ98: =IF(OR(SUM($Z72:AJ72)=0,SUM(AJ72:$FR72)=0),0,1) -> 0 | AK98: =IF(OR(SUM($Z72:AK72)=0,SUM(AK72:$FR72)=0),0,1) -> 0 | AL98: =IF(OR(SUM($Z72:AL72)=0,SUM(AL72:$FR72)=0),0,1) -> 0 | AM98: =IF(OR(SUM($Z72:AM72)=0,SUM(AM72:$FR72)=0),0,1) -> 0 | AN98: =IF(OR(SUM($Z72:AN72)=0,SUM(AN72:$FR72)=0),0,1) -> 0 | AO98: =IF(OR(SUM($Z72:AO72)=0,SUM(AO72:$FR72)=0),0,1) -> 0 | AP98: =IF(OR(SUM($Z72:AP72)=0,SUM(AP72:$FR72)=0),0,1) -> 0 | AQ98: =IF(OR(SUM($Z72:AQ72)=0,SUM(AQ72:$FR72)=0),0,1) -> 0 | AR98: =IF(OR(SUM($Z72:AR72)=0,SUM(AR72:$FR72)=0),0,1) -> 0 | AS98: =IF(OR(SUM($Z72:AS72)=0,SUM(AS72:$FR72)=0),0,1) -> 0 | AT98: =IF(OR(SUM($Z72:AT72)=0,SUM(AT72:$FR72)=0),0,1) -> 0 | AU98: =IF(OR(SUM($Z72:AU72)=0,SUM(AU72:$FR72)=0),0,1) -> 0 | AV98: =IF(OR(SUM($Z72:AV72)=0,SUM(AV72:$FR72)=0),0,1) -> 0 | AW98: =IF(OR(SUM($Z72:AW72)=0,SUM(AW72:$FR72)=0),0,1) -> 0 | AX98: =IF(OR(SUM($Z72:AX72)=0,SUM(AX72:$FR72)=0),0,1) -> 0 | AY98: =IF(OR(SUM($Z72:AY72)=0,SUM(AY72:$FR72)=0),0,1) -> 0 | AZ98: =IF(OR(SUM($Z72:AZ72)=0,SUM(AZ72:$FR72)=0),0,1) -> 0 | BA98: =IF(OR(SUM($Z72:BA72)=0,SUM(BA72:$FR72)=0),0,1) -> 0 | BB98: =IF(OR(SUM($Z72:BB72)=0,SUM(BB72:$FR72)=0),0,1) -> 0 | BC98: =IF(OR(SUM($Z72:BC72)=0,SUM(BC72:$FR72)=0),0,1) -> 0 | BD98: =IF(OR(SUM($Z72:BD72)=0,SUM(BD72:$FR72)=0),0,1) -> 0 | BE98: =IF(OR(SUM($Z72:BE72)=0,SUM(BE72:$FR72)=0),0,1) -> 0 | BF98: =IF(OR(SUM($Z72:BF72)=0,SUM(BF72:$FR72)=0),0,1) -> 0 | BG98: =IF(OR(SUM($Z72:BG72)=0,SUM(BG72:$FR72)=0),0,1) -> 0 | BH98: =IF(OR(SUM($Z72:BH72)=0,SUM(BH72:$FR72)=0),0,1) -> 0 | BI98: =IF(OR(SUM($Z72:BI72)=0,SUM(BI72:$FR72)=0),0,1) -> 0 | BJ98: =IF(OR(SUM($Z72:BJ72)=0,SUM(BJ72:$FR72)=0),0,1) -> 0 | BK98: =IF(OR(SUM($Z72:BK72)=0,SUM(BK72:$FR72)=0),0,1) -> 0 | BL98: =IF(OR(SUM($Z72:BL72)=0,SUM(BL72:$FR72)=0),0,1) -> 0 | BM98: =IF(OR(SUM($Z72:BM72)=0,SUM(BM72:$FR72)=0),0,1) -> 0 | BN98: =IF(OR(SUM($Z72:BN72)=0,SUM(BN72:$FR72)=0),0,1) -> 0 | BO98: =IF(OR(SUM($Z72:BO72)=0,SUM(BO72:$FR72)=0),0,1) -> 0 | BP98: =IF(OR(SUM($Z72:BP72)=0,SUM(BP72:$FR72)=0),0,1) -> 0 | BQ98: =IF(OR(SUM($Z72:BQ72)=0,SUM(BQ72:$FR72)=0),0,1) -> 0 | BR98: =IF(OR(SUM($Z72:BR72)=0,SUM(BR72:$FR72)=0),0,1) -> 0 | BS98: =IF(OR(SUM($Z72:BS72)=0,SUM(BS72:$FR72)=0),0,1) -> 0 | BT98: =IF(OR(SUM($Z72:BT72)=0,SUM(BT72:$FR72)=0),0,1) -> 0 | BU98: =IF(OR(SUM($Z72:BU72)=0,SUM(BU72:$FR72)=0),0,1) -> 0 | BV98: =IF(OR(SUM($Z72:BV72)=0,SUM(BV72:$FR72)=0),0,1) -> 0 | BW98: =IF(OR(SUM($Z72:BW72)=0,SUM(BW72:$FR72)=0),0,1) -> 0 | BX98: =IF(OR(SUM($Z72:BX72)=0,SUM(BX72:$FR72)=0),0,1) -> 0 | BY98: =IF(OR(SUM($Z72:BY72)=0,SUM(BY72:$FR72)=0),0,1) -> 0 | BZ98: =IF(OR(SUM($Z72:BZ72)=0,SUM(BZ72:$FR72)=0),0,1) -> 0 | CA98: =IF(OR(SUM($Z72:CA72)=0,SUM(CA72:$FR72)=0),0,1) -> 0 | CB98: =IF(OR(SUM($Z72:CB72)=0,SUM(CB72:$FR72)=0),0,1) -> 0 | CC98: =IF(OR(SUM($Z72:CC72)=0,SUM(CC72:$FR72)=0),0,1) -> 0 | CD98: =IF(OR(SUM($Z72:CD72)=0,SUM(CD72:$FR72)=0),0,1) -> 0 | CE98: =IF(OR(SUM($Z72:CE72)=0,SUM(CE72:$FR72)=0),0,1) -> 0 | CF98: =IF(OR(SUM($Z72:CF72)=0,SUM(CF72:$FR72)=0),0,1) -> 0 | CG98: =IF(OR(SUM($Z72:CG72)=0,SUM(CG72:$FR72)=0),0,1) -> 0 | CH98: =IF(OR(SUM($Z72:CH72)=0,SUM(CH72:$FR72)=0),0,1) -> 0 | CI98: =IF(OR(SUM($Z72:CI72)=0,SUM(CI72:$FR72)=0),0,1) -> 0 | CJ98: =IF(OR(SUM($Z72:CJ72)=0,SUM(CJ72:$FR72)=0),0,1) -> 0 | CK98: =IF(OR(SUM($Z72:CK72)=0,SUM(CK72:$FR72)=0),0,1) -> 0 | CL98: =IF(OR(SUM($Z72:CL72)=0,SUM(CL72:$FR72)=0),0,1) -> 0 | CM98: =IF(OR(SUM($Z72:CM72)=0,SUM(CM72:$FR72)=0),0,1) -> 0 | CN98: =IF(OR(SUM($Z72:CN72)=0,SUM(CN72:$FR72)=0),0,1) -> 0 | CO98: =IF(OR(SUM($Z72:CO72)=0,SUM(CO72:$FR72)=0),0,1) -> 0 | CP98: =IF(OR(SUM($Z72:CP72)=0,SUM(CP72:$FR72)=0),0,1) -> 0 | CQ98: =IF(OR(SUM($Z72:CQ72)=0,SUM(CQ72:$FR72)=0),0,1) -> 0 | CR98: =IF(OR(SUM($Z72:CR72)=0,SUM(CR72:$FR72)=0),0,1) -> 0 | CS98: =IF(OR(SUM($Z72:CS72)=0,SUM(CS72:$FR72)=0),0,1) -> 0 | CT98: =IF(OR(SUM($Z72:CT72)=0,SUM(CT72:$FR72)=0),0,1) -> 0 | CU98: =IF(OR(SUM($Z72:CU72)=0,SUM(CU72:$FR72)=0),0,1) -> 0 | CV98: =IF(OR(SUM($Z72:CV72)=0,SUM(CV72:$FR72)=0),0,1) -> 0 | CW98: =IF(OR(SUM($Z72:CW72)=0,SUM(CW72:$FR72)=0),0,1) -> 0 | CX98: =IF(OR(SUM($Z72:CX72)=0,SUM(CX72:$FR72)=0),0,1) -> 0 | CY98: =IF(OR(SUM($Z72:CY72)=0,SUM(CY72:$FR72)=0),0,1) -> 0 | CZ98: =IF(OR(SUM($Z72:CZ72)=0,SUM(CZ72:$FR72)=0),0,1) -> 0 | DA98: =IF(OR(SUM($Z72:DA72)=0,SUM(DA72:$FR72)=0),0,1) -> 0 | DB98: =IF(OR(SUM($Z72:DB72)=0,SUM(DB72:$FR72)=0),0,1) -> 0 | DC98: =IF(OR(SUM($Z72:DC72)=0,SUM(DC72:$FR72)=0),0,1) -> 0 | DD98: =IF(OR(SUM($Z72:DD72)=0,SUM(DD72:$FR72)=0),0,1) -> 0 | DE98: =IF(OR(SUM($Z72:DE72)=0,SUM(DE72:$FR72)=0),0,1) -> 0 | DF98: =IF(OR(SUM($Z72:DF72)=0,SUM(DF72:$FR72)=0),0,1) -> 0 | DG98: =IF(OR(SUM($Z72:DG72)=0,SUM(DG72:$FR72)=0),0,1) -> 0 | DH98: =IF(OR(SUM($Z72:DH72)=0,SUM(DH72:$FR72)=0),0,1) -> 0 | DI98: =IF(OR(SUM($Z72:DI72)=0,SUM(DI72:$FR72)=0),0,1) -> 0 | DJ98: =IF(OR(SUM($Z72:DJ72)=0,SUM(DJ72:$FR72)=0),0,1) -> 0 | DK98: =IF(OR(SUM($Z72:DK72)=0,SUM(DK72:$FR72)=0),0,1) -> 0 | DL98: =IF(OR(SUM($Z72:DL72)=0,SUM(DL72:$FR72)=0),0,1) -> 0 | DM98: =IF(OR(SUM($Z72:DM72)=0,SUM(DM72:$FR72)=0),0,1) -> 0 | DN98: =IF(OR(SUM($Z72:DN72)=0,SUM(DN72:$FR72)=0),0,1) -> 0 | DO98: =IF(OR(SUM($Z72:DO72)=0,SUM(DO72:$FR72)=0),0,1) -> 0 | DP98: =IF(OR(SUM($Z72:DP72)=0,SUM(DP72:$FR72)=0),0,1) -> 0 | DQ98: =IF(OR(SUM($Z72:DQ72)=0,SUM(DQ72:$FR72)=0),0,1) -> 0 | DR98: =IF(OR(SUM($Z72:DR72)=0,SUM(DR72:$FR72)=0),0,1) -> 0 | DS98: =IF(OR(SUM($Z72:DS72)=0,SUM(DS72:$FR72)=0),0,1) -> 0 | DT98: =IF(OR(SUM($Z72:DT72)=0,SUM(DT72:$FR72)=0),0,1) -> 0 | DU98: =IF(OR(SUM($Z72:DU72)=0,SUM(DU72:$FR72)=0),0,1) -> 0 | DV98: =IF(OR(SUM($Z72:DV72)=0,SUM(DV72:$FR72)=0),0,1) -> 0 | DW98: =IF(OR(SUM($Z72:DW72)=0,SUM(DW72:$FR72)=0),0,1) -> 0 | DX98: =IF(OR(SUM($Z72:DX72)=0,SUM(DX72:$FR72)=0),0,1) -> 0 | DY98: =IF(OR(SUM($Z72:DY72)=0,SUM(DY72:$FR72)=0),0,1) -> 0 | DZ98: =IF(OR(SUM($Z72:DZ72)=0,SUM(DZ72:$FR72)=0),0,1) -> 0 | EA98: =IF(OR(SUM($Z72:EA72)=0,SUM(EA72:$FR72)=0),0,1) -> 0 | EB98: =IF(OR(SUM($Z72:EB72)=0,SUM(EB72:$FR72)=0),0,1) -> 0 | EC98: =IF(OR(SUM($Z72:EC72)=0,SUM(EC72:$FR72)=0),0,1) -> 0 | ED98: =IF(OR(SUM($Z72:ED72)=0,SUM(ED72:$FR72)=0),0,1) -> 0 | EE98: =IF(OR(SUM($Z72:EE72)=0,SUM(EE72:$FR72)=0),0,1) -> 0 | EF98: =IF(OR(SUM($Z72:EF72)=0,SUM(EF72:$FR72)=0),0,1) -> 0 | EG98: =IF(OR(SUM($Z72:EG72)=0,SUM(EG72:$FR72)=0),0,1) -> 0 | EH98: =IF(OR(SUM($Z72:EH72)=0,SUM(EH72:$FR72)=0),0,1) -> 0 | EI98: =IF(OR(SUM($Z72:EI72)=0,SUM(EI72:$FR72)=0),0,1) -> 0 | EJ98: =IF(OR(SUM($Z72:EJ72)=0,SUM(EJ72:$FR72)=0),0,1) -> 0 | EK98: =IF(OR(SUM($Z72:EK72)=0,SUM(EK72:$FR72)=0),0,1) -> 0 | EL98: =IF(OR(SUM($Z72:EL72)=0,SUM(EL72:$FR72)=0),0,1) -> 0 | EM98: =IF(OR(SUM($Z72:EM72)=0,SUM(EM72:$FR72)=0),0,1) -> 0 | EN98: =IF(OR(SUM($Z72:EN72)=0,SUM(EN72:$FR72)=0),0,1) -> 0 | EO98: =IF(OR(SUM($Z72:EO72)=0,SUM(EO72:$FR72)=0),0,1) -> 0 | EP98: =IF(OR(SUM($Z72:EP72)=0,SUM(EP72:$FR72)=0),0,1) -> 0 | EQ98: =IF(OR(SUM($Z72:EQ72)=0,SUM(EQ72:$FR72)=0),0,1) -> 0 | ER98: =IF(OR(SUM($Z72:ER72)=0,SUM(ER72:$FR72)=0),0,1) -> 0 | ES98: =IF(OR(SUM($Z72:ES72)=0,SUM(ES72:$FR72)=0),0,1) -> 0 | ET98: =IF(OR(SUM($Z72:ET72)=0,SUM(ET72:$FR72)=0),0,1) -> 0 | EU98: =IF(OR(SUM($Z72:EU72)=0,SUM(EU72:$FR72)=0),0,1) -> 0 | EV98: =IF(OR(SUM($Z72:EV72)=0,SUM(EV72:$FR72)=0),0,1) -> 0 | EW98: =IF(OR(SUM($Z72:EW72)=0,SUM(EW72:$FR72)=0),0,1) -> 0 | EX98: =IF(OR(SUM($Z72:EX72)=0,SUM(EX72:$FR72)=0),0,1) -> 0 | EY98: =IF(OR(SUM($Z72:EY72)=0,SUM(EY72:$FR72)=0),0,1) -> 0 | EZ98: =IF(OR(SUM($Z72:EZ72)=0,SUM(EZ72:$FR72)=0),0,1) -> 0 | FA98: =IF(OR(SUM($Z72:FA72)=0,SUM(FA72:$FR72)=0),0,1) -> 0 | FB98: =IF(OR(SUM($Z72:FB72)=0,SUM(FB72:$FR72)=0),0,1) -> 0 | FC98: =IF(OR(SUM($Z72:FC72)=0,SUM(FC72:$FR72)=0),0,1) -> 0 | FD98: =IF(OR(SUM($Z72:FD72)=0,SUM(FD72:$FR72)=0),0,1) -> 0 | FE98: =IF(OR(SUM($Z72:FE72)=0,SUM(FE72:$FR72)=0),0,1) -> 0 | FF98: =IF(OR(SUM($Z72:FF72)=0,SUM(FF72:$FR72)=0),0,1) -> 0 | FG98: =IF(OR(SUM($Z72:FG72)=0,SUM(FG72:$FR72)=0),0,1) -> 0 | FH98: =IF(OR(SUM($Z72:FH72)=0,SUM(FH72:$FR72)=0),0,1) -> 0 | FI98: =IF(OR(SUM($Z72:FI72)=0,SUM(FI72:$FR72)=0),0,1) -> 0 | FJ98: =IF(OR(SUM($Z72:FJ72)=0,SUM(FJ72:$FR72)=0),0,1) -> 0 | FK98: =IF(OR(SUM($Z72:FK72)=0,SUM(FK72:$FR72)=0),0,1) -> 0 | FL98: =IF(OR(SUM($Z72:FL72)=0,SUM(FL72:$FR72)=0),0,1) -> 0 | FM98: =IF(OR(SUM($Z72:FM72)=0,SUM(FM72:$FR72)=0),0,1) -> 0 | FN98: =IF(OR(SUM($Z72:FN72)=0,SUM(FN72:$FR72)=0),0,1) -> 0 | FO98: =IF(OR(SUM($Z72:FO72)=0,SUM(FO72:$FR72)=0),0,1) -> 0 | FP98: =IF(OR(SUM($Z72:FP72)=0,SUM(FP72:$FR72)=0),0,1) -> 0

Sheet HR
Z1: 1 | AA1: =Z1+1 -> 2 | AB1: =AA1+1 -> 3 | AC1: 4 | AD1: 5 | AE1: 6 | AF1: 7 | AG1: 8 | AH1: 9 | AI1: 10 | AJ1: 11 | AK1: 12
D2: =MAIN!$D$2 -> Финансовая модель
D3: =MAIN!$D$3 -> Проект: разработка онлайн сервиса
F5: * | G5: Штатное расписание
Z7: сезонность
B8: коммент | H8: =MAIN!$F$8 -> показатель | M8: * | N8: месяц старта | P8: * | Q8: кол-во чел | T8: з/п в месяц | W8: индексация | Z8: 2020-01-01 | AA8: =EOMONTH(Z8,0)+1 -> 2020-02-01 | AB8: =EOMONTH(AA8,0)+1 -> 2020-03-01 | AC8: 2020-04-01 | AD8: 2020-05-01 | AE8: 2020-06-01 | AF8: 2020-07-01 | AG8: 2020-08-01 | AH8: 2020-09-01 | AI8: 2020-10-01 | AJ8: 2020-11-01 | AK8: 2020-12-01
B12: вкл. ндфл | G12: * | H12: Штатное расписание | Q12: =SUM(Q13:Q43) -> 26 | T12: =SUMPRODUCT(Q13:Q43,T13:T43) -> 2990000
J15: * | K15: Производственный персонал | M15: * | O15: ^ | P15: * | S15: * | V15: * | Y15: *
J16: * | K16: Руководитель подразделения инноваций | M16: * | N16: =MAIN!$N$11 -> 2021-01-01 | O16: ^ | P16: * | Q16: 1 | S16: * | T16: 280000 | V16: * | W16: 0.03 | Y16: * | Z16: 1 | AA16: 1 | AB16: 1 | AC16: 1 | AD16: 1 | AE16: 1 | AF16: 1 | AG16: 1 | AH16: 1 | AI16: 1 | AJ16: 1 | AK16: 1
J17: * | K17: Главный инженер | M17: * | N17: =MAIN!$N$11 -> 2021-01-01 | O17: ^ | P17: * | Q17: 1 | S17: * | T17: 170000 | V17: * | W17: 0.03 | Y17: * | Z17: 1 | AA17: 1 | AB17: 1 | AC17: 1 | AD17: 1 | AE17: 1 | AF17: 1 | AG17: 1 | AH17: 1 | AI17: 1 | AJ17: 1 | AK17: 1
J18: * | K18: Программист | M18: * | N18: =MAIN!$N$11 -> 2021-01-01 | O18: ^ | P18: * | Q18: 1 | S18: * | T18: 70000 | V18: * | W18: 0.03 | Y18: * | Z18: =IF(SUMIFS(MAIN!$N$68:$N$90,MAIN!$J$68:$J$90,Z$1)>0,1,0) -> 1 | AA18: =IF(SUMIFS(MAIN!$N$68:$N$90,MAIN!$J$68:$J$90,AA$1)>0,1,0) -> 1 | AB18: =IF(SUMIFS(MAIN!$N$68:$N$90,MAIN!$J$68:$J$90,AB$1)>0,1,0) -> 1 | AC18: =IF(SUMIFS(MAIN!$N$68:$N$90,MAIN!$J$68:$J$90,AC$1)>0,1,0) -> 1 | AD18: =IF(SUMIFS(MAIN!$N$68:$N$90,MAIN!$J$68:$J$90,AD$1)>0,1,0) -> 1 | AE18: =IF(SUMIFS(MAIN!$N$68:$N$90,MAIN!$J$68:$J$90,AE$1)>0,1,0) -> 1 | AF18: =IF(SUMIFS(MAIN!$N$68:$N$90,MAIN!$J$68:$J$90,AF$1)>0,1,0) -> 1 | AG18: =IF(SUMIFS(MAIN!$N$68:$N$90,MAIN!$J$68:$J$90,AG$1)>0,1,0) -> 1 | AH18: =IF(SUMIFS(MAIN!$N$68:$N$90,MAIN!$J$68:$J$90,AH$1)>0,1,0) -> 1 | AI18: =IF(SUMIFS(MAIN!$N$68:$N$90,MAIN!$J$68:$J$90,AI$1)>0,1,0) -> 1 | AJ18: =IF(SUMIFS(MAIN!$N$68:$N$90,MAIN!$J$68:$J$90,AJ$1)>0,1,0) -> 1 | AK18: =IF(SUMIFS(MAIN!$N$68:$N$90,MAIN!$J$68:$J$90,AK$1)>0,1,0) -> 1
J19: * | K19: Программист | M19: * | N19: =EOMONTH(CAPEX!$T$95,0)+1 -> 2021-08-01 | O19: ^ | P19: * | Q19: 1 | S19: * | T19: 70000 | V19: * | W19: 0.03 | Y19: * | Z19: =IF(SUMIFS(MAIN!$N$68:$N$90,MAIN!$J$68:$J$90,Z$1)>0,1,0) -> 1 | AA19: =IF(SUMIFS(MAIN!$N$68:$N$90,MAIN!$J$68:$J$90,AA$1)>0,1,0) -> 1 | AB19: =IF(SUMIFS(MAIN!$N$68:$N$90,MAIN!$J$68:$J$90,AB$1)>0,1,0) -> 1 | AC19: =IF(SUMIFS(MAIN!$N$68:$N$90,MAIN!$J$68:$J$90,AC$1)>0,1,0) -> 1 | AD19: =IF(SUMIFS(MAIN!$N$68:$N$90,MAIN!$J$68:$J$90,AD$1)>0,1,0) -> 1 | AE19: =IF(SUMIFS(MAIN!$N$68:$N$90,MAIN!$J$68:$J$90,AE$1)>0,1,0) -> 1 | AF19: =IF(SUMIFS(MAIN!$N$68:$N$90,MAIN!$J$68:$J$90,AF$1)>0,1,0) -> 1 | AG19: =IF(SUMIFS(MAIN!$N$68:$N$90,MAIN!$J$68:$J$90,AG$1)>0,1,0) -> 1 | AH19: =IF(SUMIFS(MAIN!$N$68:$N$90,MAIN!$J$68:$J$90,AH$1)>0,1,0) -> 1 | AI19: =IF(SUMIFS(MAIN!$N$68:$N$90,MAIN!$J$68:$J$90,AI$1)>0,1,0) -> 1 | AJ19: =IF(SUMIFS(MAIN!$N$68:$N$90,MAIN!$J$68:$J$90,AJ$1)>0,1,0) -> 1 | AK19: =IF(SUMIFS(MAIN!$N$68:$N$90,MAIN!$J$68:$J$90,AK$1)>0,1,0) -> 1
J20: * | K20: ВЕБ-Программист | M20: * | N20: =MAIN!$N$11 -> 2021-01-01 | O20: ^ | P20: * | Q20: 1 | S20: * | T20: 115000 | V20: * | W20: 0.03 | Y20: * | Z20: 1 | AA20: 1 | AB20: 1 | AC20: 1 | AD20: 1 | AE20: 1 | AF20: 1 | AG20: 1 | AH20: 1 | AI20: 1 | AJ20: 1 | AK20: 1
J21: * | K21: Дизайнер приложений | M21: * | N21: =MAIN!$N$11 -> 2021-01-01 | O21: ^ | P21: * | Q21: 1 | S21: * | T21: 70000 | V21: * | W21: 0.03 | Y21: * | Z21: 1 | AA21: 1 | AB21: 1 | AC21: 1 | AD21: 1 | AE21: 1 | AF21: 1 | AG21: 1 | AH21: 1 | AI21: 1 | AJ21: 1 | AK21: 1
J22: * | K22: Системный администратор | M22: * | N22: =MAIN!$N$11 -> 2021-01-01 | O22: ^ | P22: * | Q22: 1 | S22: * | T22: 115000 | V22: * | W22: 0.03 | Y22: * | Z22: 1 | AA22: 1 | AB22: 1 | AC22: 1 | AD22: 1 | AE22: 1 | AF22: 1 | AG22: 1 | AH22: 1 | AI22: 1 | AJ22: 1 | AK22: 1
J23: * | K23: Администратор базы дынных | M23: * | N23: =MAIN!$N$11 -> 2021-01-01 | O23: ^ | P23: * | Q23: 1 | S23: * | T23: 115000 | V23: * | W23: 0.03 | Y23: * | Z23: 1 | AA23: 1 | AB23: 1 | AC23: 1 | AD23: 1 | AE23: 1 | AF23: 1 | AG23: 1 | AH23: 1 | AI23: 1 | AJ23: 1 | AK23: 1
J24: * | K24: Инженер-конструктор | M24: * | N24: =MAIN!$N$11 -> 2021-01-01 | O24: ^ | P24: * | Q24: 1 | S24: * | T24: 115000 | V24: * | W24: 0.03 | Y24: * | Z24: 1 | AA24: 1 | AB24: 1 | AC24: 1 | AD24: 1 | AE24: 1 | AF24: 1 | AG24: 1 | AH24: 1 | AI24: 1 | AJ24: 1 | AK24: 1
J25: * | K25: Инженер | M25: * | N25: =MAIN!$N$11 -> 2021-01-01 | O25: ^ | P25: * | Q25: 1 | S25: * | T25: 115000 | V25: * | W25: 0.03 | Y25: * | Z25: 1 | AA25: 1 | AB25: 1 | AC25: 1 | AD25: 1 | AE25: 1 | AF25: 1 | AG25: 1 | AH25: 1 | AI25: 1 | AJ25: 1 | AK25: 1
J26: * | K26: Сборщик-электронщик | M26: * | N26: =MAIN!$N$11 -> 2021-01-01 | O26: ^ | P26: * | Q26: 1 | S26: * | T26: 90000 | V26: * | W26: 0.03 | Y26: * | Z26: 1 | AA26: 1 | AB26: 1 | AC26: 1 | AD26: 1 | AE26: 1 | AF26: 1 | AG26: 1 | AH26: 1 | AI26: 1 | AJ26: 1 | AK26: 1
J27: * | K27: Электронщик-схематехник | M27: * | N27: =MAIN!$N$11 -> 2021-01-01 | O27: ^ | P27: * | Q27: 1 | S27: * | T27: 110000 | V27: * | W27: 0.03 | Y27: * | Z27: 1 | AA27: 1 | AB27: 1 | AC27: 1 | AD27: 1 | AE27: 1 | AF27: 1 | AG27: 1 | AH27: 1 | AI27: 1 | AJ27: 1 | AK27: 1
J28: * | K28: Тестировщик | M28: * | N28: =MAIN!$N$11 -> 2021-01-01 | O28: ^ | P28: * | Q28: 1 | S28: * | T28: 70000 | V28: * | W28: 0.03 | Y28: * | Z28: 1 | AA28: 1 | AB28: 1 | AC28: 1 | AD28: 1 | AE28: 1 | AF28: 1 | AG28: 1 | AH28: 1 | AI28: 1 | AJ28: 1 | AK28: 1
J29: * | K29: Тестировщик | M29: * | N29: =EOMONTH(CAPEX!$T$95,0)+1 -> 2021-08-01 | O29: ^ | P29: * | Q29: 1 | S29: * | T29: 70000 | V29: * | W29: 0.03 | Y29: * | Z29: 1 | AA29: 1 | AB29: 1 | AC29: 1 | AD29: 1 | AE29: 1 | AF29: 1 | AG29: 1 | AH29: 1 | AI29: 1 | AJ29: 1 | AK29: 1
J30: * | K30: Сборщики | M30: * | N30: =MAIN!$N$11 -> 2021-01-01 | O30: ^ | P30: * | Q30: 1 | S30: * | T30: 70000 | V30: * | W30: 0.03 | Y30: * | Z30: 1 | AA30: 1 | AB30: 1 | AC30: 1 | AD30: 1 | AE30: 1 | AF30: 1 | AG30: 1 | AH30: 1 | AI30: 1 | AJ30: 1 | AK30: 1
J31: * | K31: Сборщики | M31: * | N31: =EOMONTH(CAPEX!$T$95,0)+1 -> 2021-08-01 | O31: ^ | P31: * | Q31: 2 | S31: * | T31: 70000 | V31: * | W31: 0.03 | Y31: * | Z31: 1 | AA31: 1 | AB31: 1 | AC31: 1 | AD31: 1 | AE31: 1 | AF31: 1 | AG31: 1 | AH31: 1 | AI31: 1 | AJ31: 1 | AK31: 1
J32: * | K32: Установщик | M32: * | N32: =EOMONTH(CAPEX!$T$95,0)+1 -> 2021-08-01 | O32: ^ | P32: * | Q32: 2 | S32: * | T32: 55000 | V32: * | W32: 0.03 | Y32: * | Z32: 1 | AA32: 1 | AB32: 1 | AC32: 1 | AD32: 1 | AE32: 1 | AF32: 1 | AG32: 1 | AH32: 1 | AI32: 1 | AJ32: 1 | AK32: 1
J33: * | K33: Административный персонал | M33: * | O33: ^ | P33: * | S33: * | V33: * | Y33: *
J34: * | K34: Генеральный директор | M34: * | N34: =MAIN!$N$11 -> 2021-01-01 | O34: ^ | P34: * | Q34: 1 | S34: * | T34: 350000 | V34: * | W34: 0.03 | Y34: * | Z34: 1 | AA34: 1 | AB34: 1 | AC34: 1 | AD34: 1 | AE34: 1 | AF34: 1 | AG34: 1 | AH34: 1 | AI34: 1 | AJ34: 1 | AK34: 1
J35: * | K35: Главный бухгалтер | M35: * | N35: =MAIN!$N$11 -> 2021-01-01 | O35: ^ | P35: * | Q35: 1 | S35: * | T35: 130000 | V35: * | W35: 0.03 | Y35: * | Z35: 1 | AA35: 1 | AB35: 1 | AC35: 1 | AD35: 1 | AE35: 1 | AF35: 1 | AG35: 1 | AH35: 1 | AI35: 1 | AJ35: 1 | AK35: 1
J36: * | K36: Бухгалтер | M36: * | N36: =EOMONTH(CAPEX!$T$95,0)+1 -> 2021-08-01 | O36: ^ | P36: * | Q36: 1 | S36: * | T36: 70000 | V36: * | W36: 0.03 | Y36: * | Z36: 1 | AA36: 1 | AB36: 1 | AC36: 1 | AD36: 1 | AE36: 1 | AF36: 1 | AG36: 1 | AH36: 1 | AI36: 1 | AJ36: 1 | AK36: 1
J37: * | K37: Ассистент по работе с клиентами | M37: * | N37: =MAIN!$N$11 -> 2021-01-01 | O37: ^ | P37: * | Q37: 1 | S37: * | T37: 120000 | V37: * | W37: 0.03 | Y37: * | Z37: 1 | AA37: 1 | AB37: 1 | AC37: 1 | AD37: 1 | AE37: 1 | AF37: 1 | AG37: 1 | AH37: 1 | AI37: 1 | AJ37: 1 | AK37: 1
J38: * | K38: Руководитель отдела продаж | M38: * | N38: =MAIN!$N$11 -> 2021-01-01 | O38: ^ | P38: * | Q38: 1 | S38: * | T38: 180000 | V38: * | W38: 0.03 | Y38: * | Z38: 1 | AA38: 1 | AB38: 1 | AC38: 1 | AD38: 1 | AE38: 1 | AF38: 1 | AG38: 1 | AH38: 1 | AI38: 1 | AJ38: 1 | AK38: 1
J39: * | K39: Бизнес-ассистент | M39: * | N39: =MAIN!$N$11 -> 2021-01-01 | O39: ^ | P39: * | Q39: 1 | S39: * | T39: 75000 | V39: * | W39: 0.03 | Y39: * | Z39: 1 | AA39: 1 | AB39: 1 | AC39: 1 | AD39: 1 | AE39: 1 | AF39: 1 | AG39: 1 | AH39: 1 | AI39: 1 | AJ39: 1 | AK39: 1
J40: * | K40: Руководитель отдела маркетинга | M40: * | N40: =MAIN!$N$11 -> 2021-01-01 | O40: ^ | P40: * | Q40: 1 | S40: * | T40: 170000 | V40: * | W40: 0.03 | Y40: * | Z40: 1 | AA40: 1 | AB40: 1 | AC40: 1 | AD40: 1 | AE40: 1 | AF40: 1 | AG40: 1 | AH40: 1 | AI40: 1 | AJ40: 1 | AK40: 1
J41: * | M41: * | O41: ^ | P41: * | S41: * | V41: * | Y41: *
J42: * | M42: * | O42: ^ | P42: * | S42: * | V42: * | Y42: *
Y43: *

Sheet Reports
C1: Ключевые отчеты проекта, период: год
C2: в рублях | E2: ИТОГО | G2: =MAIN!AB8 -> 1 год | H2: =MAIN!AC8 -> 2 год | I2: =MAIN!AD8 -> 3 год | J2: =MAIN!AE8 -> 4 год | K2: =MAIN!AF8 -> 5 год | L2: =MAIN!AG8 -> 6 год | M2: =MAIN!AH8 -> 7 год | N2: =MAIN!AI8 -> 8 год | O2: =MAIN!AJ8 -> 9 год | P2: =MAIN!AK8 -> 10 год | Q2: =MAIN!AL8 -> 11 год | R2: =MAIN!AM8 -> 12 год
B3: PL | C3: =Calc!$H$19 -> Выручка | E3: =SUM($F3:$S3) -> 609467871.6 | G3: =IF(G$2="",0,SUMIFS(Reports_М!3:3,Reports_М!$2:$2,">="&MAIN!AB$6,Reports_М!$2:$2,"<="&MAIN!AB$7)) -> 3523614.583 | H3: =IF(H$2="",0,SUMIFS(Reports_М!3:3,Reports_М!$2:$2,">="&MAIN!AC$6,Reports_М!$2:$2,"<="&MAIN!AC$7)) -> 16944761.32 | I3: =IF(I$2="",0,SUMIFS(Reports_М!3:3,Reports_М!$2:$2,">="&MAIN!AD$6,Reports_М!$2:$2,"<="&MAIN!AD$7)) -> 47042763.33 | J3: =IF(J$2="",0,SUMIFS(Reports_М!3:3,Reports_М!$2:$2,">="&MAIN!AE$6,Reports_М!$2:$2,"<="&MAIN!AE$7)) -> 105294278.9 | K3: =IF(K$2="",0,SUMIFS(Reports_М!3:3,Reports_М!$2:$2,">="&MAIN!AF$6,Reports_М!$2:$2,"<="&MAIN!AF$7)) -> 174597099.1 | L3: =IF(L$2="",0,SUMIFS(Reports_М!3:3,Reports_М!$2:$2,">="&MAIN!AG$6,Reports_М!$2:$2,"<="&MAIN!AG$7)) -> 262065354.4 | M3: =IF(M$2="",0,SUMIFS(Reports_М!3:3,Reports_М!$2:$2,">="&MAIN!AH$6,Reports_М!$2:$2,"<="&MAIN!AH$7)) -> 0 | N3: =IF(N$2="",0,SUMIFS(Reports_М!3:3,Reports_М!$2:$2,">="&MAIN!AI$6,Reports_М!$2:$2,"<="&MAIN!AI$7)) -> 0 | O3: =IF(O$2="",0,SUMIFS(Reports_М!3:3,Reports_М!$2:$2,">="&MAIN!AJ$6,Reports_М!$2:$2,"<="&MAIN!AJ$7)) -> 0 | P3: =IF(P$2="",0,SUMIFS(Reports_М!3:3,Reports_М!$2:$2,">="&MAIN!AK$6,Reports_М!$2:$2,"<="&MAIN!AK$7)) -> 0 | Q3: =IF(Q$2="",0,SUMIFS(Reports_М!3:3,Reports_М!$2:$2,">="&MAIN!AL$6,Reports_М!$2:$2,"<="&MAIN!AL$7)) -> 0 | R3: =IF(R$2="",0,SUMIFS(Reports_М!3:3,Reports_М!$2:$2,">="&MAIN!AM$6,Reports_М!$2:$2,"<="&MAIN!AM$7)) -> 0
C4: в т.ч.
C5: =Calc!$N$48 -> Продажа аппаратов | E5: =SUM($F5:$S5) -> 133401984.9 | G5: =IF(G$2="",0,SUMIFS(Reports_М!5:5,Reports_М!$2:$2,">="&MAIN!AB$6,Reports_М!$2:$2,"<="&MAIN!AB$7)) -> 2440000 | H5: =IF(H$2="",0,SUMIFS(Reports_М!5:5,Reports_М!$2:$2,">="&MAIN!AC$6,Reports_М!$2:$2,"<="&MAIN!AC$7)) -> 8040900 | I5: =IF(I$2="",0,SUMIFS(Reports_М!5:5,Reports_М!$2:$2,">="&MAIN!AD$6,Reports_М!$2:$2,"<="&MAIN!AD$7)) -> 15931125 | J5: =IF(J$2="",0,SUMIFS(Reports_М!5:5,Reports_М!$2:$2,">="&MAIN!AE$6,Reports_М!$2:$2,"<="&MAIN!AE$7)) -> 26694832.5 | K5: =IF(K$2="",0,SUMIFS(Reports_М!5:5,Reports_М!$2:$2,">="&MAIN!AF$6,Reports_М!$2:$2,"<="&MAIN!AF$7)) -> 35395542 | L5: =IF(L$2="",0,SUMIFS(Reports_М!5:5,Reports_М!$2:$2,">="&MAIN!AG$6,Reports_М!$2:$2,"<="&MAIN!AG$7)) -> 44899585.37 | M5: =IF(M$2="",0,SUMIFS(Reports_М!5:5,Reports_М!$2:$2,">="&MAIN!AH$6,Reports_М!$2:$2,"<="&MAIN!AH$7)) -> 0 | N5: =IF(N$2="",0,SUMIFS(Reports_М!5:5,Reports_М!$2:$2,">="&MAIN!AI$6,Reports_М!$2:$2,"<="&MAIN!AI$7)) -> 0 | O5: =IF(O$2="",0,SUMIFS(Reports_М!5:5,Reports_М!$2:$2,">="&MAIN!AJ$6,Reports_М!$2:$2,"<="&MAIN!AJ$7)) -> 0 | P5: =IF(P$2="",0,SUMIFS(Reports_М!5:5,Reports_М!$2:$2,">="&MAIN!AK$6,Reports_М!$2:$2,"<="&MAIN!AK$7)) -> 0 | Q5: =IF(Q$2="",0,SUMIFS(Reports_М!5:5,Reports_М!$2:$2,">="&MAIN!AL$6,Reports_М!$2:$2,"<="&MAIN!AL$7)) -> 0 | R5: =IF(R$2="",0,SUMIFS(Reports_М!5:5,Reports_М!$2:$2,">="&MAIN!AM$6,Reports_М!$2:$2,"<="&MAIN!AM$7)) -> 0
C6: =Calc!$N$390 -> Продажа годовых подписок на онлайн сервис | E6: =SUM($F6:$S6) -> 476065886.7 | G6: =IF(G$2="",0,SUMIFS(Reports_М!6:6,Reports_М!$2:$2,">="&MAIN!AB$6,Reports_М!$2:$2,"<="&MAIN!AB$7)) -> 1083614.583 | H6: =IF(H$2="",0,SUMIFS(Reports_М!6:6,Reports_М!$2:$2,">="&MAIN!AC$6,Reports_М!$2:$2,"<="&MAIN!AC$7)) -> 8903861.322 | I6: =IF(I$2="",0,SUMIFS(Reports_М!6:6,Reports_М!$2:$2,">="&MAIN!AD$6,Reports_М!$2:$2,"<="&MAIN!AD$7)) -> 31111638.33 | J6: =IF(J$2="",0,SUMIFS(Reports_М!6:6,Reports_М!$2:$2,">="&MAIN!AE$6,Reports_М!$2:$2,"<="&MAIN!AE$7)) -> 78599446.37 | K6: =IF(K$2="",0,SUMIFS(Reports_М!6:6,Reports_М!$2:$2,">="&MAIN!AF$6,Reports_М!$2:$2,"<="&MAIN!AF$7)) -> 139201557.1 | L6: =IF(L$2="",0,SUMIFS(Reports_М!6:6,Reports_М!$2:$2,">="&MAIN!AG$6,Reports_М!$2:$2,"<="&MAIN!AG$7)) -> 217165769 | M6: =IF(M$2="",0,SUMIFS(Reports_М!6:6,Reports_М!$2:$2,">="&MAIN!AH$6,Reports_М!$2:$2,"<="&MAIN!AH$7)) -> 0 | N6: =IF(N$2="",0,SUMIFS(Reports_М!6:6,Reports_М!$2:$2,">="&MAIN!AI$6,Reports_М!$2:$2,"<="&MAIN!AI$7)) -> 0 | O6: =IF(O$2="",0,SUMIFS(Reports_М!6:6,Reports_М!$2:$2,">="&MAIN!AJ$6,Reports_М!$2:$2,"<="&MAIN!AJ$7)) -> 0 | P6: =IF(P$2="",0,SUMIFS(Reports_М!6:6,Reports_М!$2:$2,">="&MAIN!AK$6,Reports_М!$2:$2,"<="&MAIN!AK$7)) -> 0 | Q6: =IF(Q$2="",0,SUMIFS(Reports_М!6:6,Reports_М!$2:$2,">="&MAIN!AL$6,Reports_М!$2:$2,"<="&MAIN!AL$7)) -> 0 | R6: =IF(R$2="",0,SUMIFS(Reports_М!6:6,Reports_М!$2:$2,">="&MAIN!AM$6,Reports_М!$2:$2,"<="&MAIN!AM$7)) -> 0
C8: прочее | E8: =SUM($F8:$S8) -> 0 | G8: =G3-SUM(G5:G7) -> 0 | H8: 0 | I8: 0 | J8: 0 | K8: 0 | L8: 0 | M8: 0 | N8: 0 | O8: 0 | P8: 0 | Q8: 0 | R8: 0
C9: =Calc!$H$20 -> Себестоимость | E9: =SUM($F9:$S9) -> 47580041.27 | G9: =IF(G$2="",0,SUMIFS(Reports_М!9:9,Reports_М!$2:$2,">="&MAIN!AB$6,Reports_М!$2:$2,"<="&MAIN!AB$7)) -> 870266.6667 | H9: =IF(H$2="",0,SUMIFS(Reports_М!9:9,Reports_М!$2:$2,">="&MAIN!AC$6,Reports_М!$2:$2,"<="&MAIN!AC$7)) -> 2867921 | I9: =IF(I$2="",0,SUMIFS(Reports_М!9:9,Reports_М!$2:$2,">="&MAIN!AD$6,Reports_М!$2:$2,"<="&MAIN!AD$7)) -> 5682101.25 | J9: =IF(J$2="",0,SUMIFS(Reports_М!9:9,Reports_М!$2:$2,">="&MAIN!AE$6,Reports_М!$2:$2,"<="&MAIN!AE$7)) -> 9521156.925 | K9: =IF(K$2="",0,SUMIFS(Reports_М!9:9,Reports_М!$2:$2,">="&MAIN!AF$6,Reports_М!$2:$2,"<="&MAIN!AF$7)) -> 12624409.98 | L9: =IF(L$2="",0,SUMIFS(Reports_М!9:9,Reports_М!$2:$2,">="&MAIN!AG$6,Reports_М!$2:$2,"<="&MAIN!AG$7)) -> 16014185.45 | M9: =IF(M$2="",0,SUMIFS(Reports_М!9:9,Reports_М!$2:$2,">="&MAIN!AH$6,Reports_М!$2:$2,"<="&MAIN!AH$7)) -> 0 | N9: =IF(N$2="",0,SUMIFS(Reports_М!9:9,Reports_М!$2:$2,">="&MAIN!AI$6,Reports_М!$2:$2,"<="&MAIN!AI$7)) -> 0 | O9: =IF(O$2="",0,SUMIFS(Reports_М!9:9,Reports_М!$2:$2,">="&MAIN!AJ$6,Reports_М!$2:$2,"<="&MAIN!AJ$7)) -> 0 | P9: =IF(P$2="",0,SUMIFS(Reports_М!9:9,Reports_М!$2:$2,">="&MAIN!AK$6,Reports_М!$2:$2,"<="&MAIN!AK$7)) -> 0 | Q9: =IF(Q$2="",0,SUMIFS(Reports_М!9:9,Reports_М!$2:$2,">="&MAIN!AL$6,Reports_М!$2:$2,"<="&MAIN!AL$7)) -> 0 | R9: =IF(R$2="",0,SUMIFS(Reports_М!9:9,Reports_М!$2:$2,">="&MAIN!AM$6,Reports_М!$2:$2,"<="&MAIN!AM$7)) -> 0
C10: =Calc!$H$21 -> Валовая прибыль | E10: =SUM($F10:$S10) -> 561887830.3 | G10: =IF(G$2="",0,SUMIFS(Reports_М!10:10,Reports_М!$2:$2,">="&MAIN!AB$6,Reports_М!$2:$2,"<="&MAIN!AB$7)) -> 2653347.917 | H10: =IF(H$2="",0,SUMIFS(Reports_М!10:10,Reports_М!$2:$2,">="&MAIN!AC$6,Reports_М!$2:$2,"<="&MAIN!AC$7)) -> 14076840.32 | I10: =IF(I$2="",0,SUMIFS(Reports_М!10:10,Reports_М!$2:$2,">="&MAIN!AD$6,Reports_М!$2:$2,"<="&MAIN!AD$7)) -> 41360662.08 | J10: =IF(J$2="",0,SUMIFS(Reports_М!10:10,Reports_М!$2:$2,">="&MAIN!AE$6,Reports_М!$2:$2,"<="&MAIN!AE$7)) -> 95773121.95 | K10: =IF(K$2="",0,SUMIFS(Reports_М!10:10,Reports_М!$2:$2,">="&MAIN!AF$6,Reports_М!$2:$2,"<="&MAIN!AF$7)) -> 161972689.1 | L10: =IF(L$2="",0,SUMIFS(Reports_М!10:10,Reports_М!$2:$2,">="&MAIN!AG$6,Reports_М!$2:$2,"<="&MAIN!AG$7)) -> 246051168.9 | M10: =IF(M$2="",0,SUMIFS(Reports_М!10:10,Reports_М!$2:$2,">="&MAIN!AH$6,Reports_М!$2:$2,"<="&MAIN!AH$7)) -> 0 | N10: =IF(N$2="",0,SUMIFS(Reports_М!10:10,Reports_М!$2:$2,">="&MAIN!AI$6,Reports_М!$2:$2,"<="&MAIN!AI$7)) -> 0 | O10: =IF(O$2="",0,SUMIFS(Reports_М!10:10,Reports_М!$2:$2,">="&MAIN!AJ$6,Reports_М!$2:$2,"<="&MAIN!AJ$7)) -> 0 | P10: =IF(P$2="",0,SUMIFS(Reports_М!10:10,Reports_М!$2:$2,">="&MAIN!AK$6,Reports_М!$2:$2,"<="&MAIN!AK$7)) -> 0 | Q10: =IF(Q$2="",0,SUMIFS(Reports_М!10:10,Reports_М!$2:$2,">="&MAIN!AL$6,Reports_М!$2:$2,"<="&MAIN!AL$7)) -> 0 | R10: =IF(R$2="",0,SUMIFS(Reports_М!10:10,Reports_М!$2:$2,">="&MAIN!AM$6,Reports_М!$2:$2,"<="&MAIN!AM$7)) -> 0
C11: =Calc!$H$22 -> Рентабельность продаж | E11: =IF(E$3=0,0,E10/E$3) -> 0.9219318302 | G11: =IF(G$3=0,0,G10/G$3) -> 0.7530187692 | H11: 0.8307488111 | I11: =IF(I$3=0,0,I10/I$3) -> 0.8792141267 | J11: 0.9095757431 | K11: 0.9276940451 | L11: 0.9388923977 | M11: 0 | N11: 0 | O11: 0 | P11: 0 | Q11: 0 | R11: 0
C12: =Calc!$H$23 -> Начисление прямых расходов | E12: =SUM($F12:$S12) -> 22573805.96 | G12: =IF(G$2="",0,SUMIFS(Reports_М!12:12,Reports_М!$2:$2,">="&MAIN!AB$6,Reports_М!$2:$2,"<="&MAIN!AB$7)) -> 222290.3646 | H12: =IF(H$2="",0,SUMIFS(Reports_М!12:12,Reports_М!$2:$2,">="&MAIN!AC$6,Reports_М!$2:$2,"<="&MAIN!AC$7)) -> 865868.5331 | I12: =IF(I$2="",0,SUMIFS(Reports_М!12:12,Reports_М!$2:$2,">="&MAIN!AD$6,Reports_М!$2:$2,"<="&MAIN!AD$7)) -> 2052280.958 | J12: =IF(J$2="",0,SUMIFS(Reports_М!12:12,Reports_М!$2:$2,">="&MAIN!AE$6,Reports_М!$2:$2,"<="&MAIN!AE$7)) -> 4100572.759 | K12: =IF(K$2="",0,SUMIFS(Reports_М!12:12,Reports_М!$2:$2,">="&MAIN!AF$6,Reports_М!$2:$2,"<="&MAIN!AF$7)) -> 6311682.288 | L12: =IF(L$2="",0,SUMIFS(Reports_М!12:12,Reports_М!$2:$2,">="&MAIN!AG$6,Reports_М!$2:$2,"<="&MAIN!AG$7)) -> 9021111.054 | M12: =IF(M$2="",0,SUMIFS(Reports_М!12:12,Reports_М!$2:$2,">="&MAIN!AH$6,Reports_М!$2:$2,"<="&MAIN!AH$7)) -> 0 | N12: =IF(N$2="",0,SUMIFS(Reports_М!12:12,Reports_М!$2:$2,">="&MAIN!AI$6,Reports_М!$2:$2,"<="&MAIN!AI$7)) -> 0 | O12: =IF(O$2="",0,SUMIFS(Reports_М!12:12,Reports_М!$2:$2,">="&MAIN!AJ$6,Reports_М!$2:$2,"<="&MAIN!AJ$7)) -> 0 | P12: =IF(P$2="",0,SUMIFS(Reports_М!12:12,Reports_М!$2:$2,">="&MAIN!AK$6,Reports_М!$2:$2,"<="&MAIN!AK$7)) -> 0 | Q12: =IF(Q$2="",0,SUMIFS(Reports_М!12:12,Reports_М!$2:$2,">="&MAIN!AL$6,Reports_М!$2:$2,"<="&MAIN!AL$7)) -> 0 | R12: =IF(R$2="",0,SUMIFS(Reports_М!12:12,Reports_М!$2:$2,">="&MAIN!AM$6,Reports_М!$2:$2,"<="&MAIN!AM$7)) -> 0
C13: =Calc!$H$24 -> Прибыль от коммерческой деятельности | E13: =SUM($F13:$S13) -> 539314024.4 | G13: =IF(G$2="",0,SUMIFS(Reports_М!13:13,Reports_М!$2:$2,">="&MAIN!AB$6,Reports_М!$2:$2,"<="&MAIN!AB$7)) -> 2431057.552 | H13: =IF(H$2="",0,SUMIFS(Reports_М!13:13,Reports_М!$2:$2,">="&MAIN!AC$6,Reports_М!$2:$2,"<="&MAIN!AC$7)) -> 13210971.79 | I13: =IF(I$2="",0,SUMIFS(Reports_М!13:13,Reports_М!$2:$2,">="&MAIN!AD$6,Reports_М!$2:$2,"<="&MAIN!AD$7)) -> 39308381.13 | J13: =IF(J$2="",0,SUMIFS(Reports_М!13:13,Reports_М!$2:$2,">="&MAIN!AE$6,Reports_М!$2:$2,"<="&MAIN!AE$7)) -> 91672549.19 | K13: =IF(K$2="",0,SUMIFS(Reports_М!13:13,Reports_М!$2:$2,">="&MAIN!AF$6,Reports_М!$2:$2,"<="&MAIN!AF$7)) -> 155661006.9 | L13: =IF(L$2="",0,SUMIFS(Reports_М!13:13,Reports_М!$2:$2,">="&MAIN!AG$6,Reports_М!$2:$2,"<="&MAIN!AG$7)) -> 237030057.9 | M13: =IF(M$2="",0,SUMIFS(Reports_М!13:13,Reports_М!$2:$2,">="&MAIN!AH$6,Reports_М!$2:$2,"<="&MAIN!AH$7)) -> 0 | N13: =IF(N$2="",0,SUMIFS(Reports_М!13:13,Reports_М!$2:$2,">="&MAIN!AI$6,Reports_М!$2:$2,"<="&MAIN!AI$7)) -> 0 | O13: =IF(O$2="",0,SUMIFS(Reports_М!13:13,Reports_М!$2:$2,">="&MAIN!AJ$6,Reports_М!$2:$2,"<="&MAIN!AJ$7)) -> 0 | P13: =IF(P$2="",0,SUMIFS(Reports_М!13:13,Reports_М!$2:$2,">="&MAIN!AK$6,Reports_М!$2:$2,"<="&MAIN!AK$7)) -> 0 | Q13: =IF(Q$2="",0,SUMIFS(Reports_М!13:13,Reports_М!$2:$2,">="&MAIN!AL$6,Reports_М!$2:$2,"<="&MAIN!AL$7)) -> 0 | R13: =IF(R$2="",0,SUMIFS(Reports_М!13:13,Reports_М!$2:$2,">="&MAIN!AM$6,Reports_М!$2:$2,"<="&MAIN!AM$7)) -> 0
C14: =Calc!$H$25 -> Рентабельность коммерческой деятельности | E14: =IF(E$3=0,0,E13/E$3) -> 0.8848932807 | G14: =IF(G$3=0,0,G13/G$3) -> 0.6899328785 | H14: 0.7796493287 | I14: =IF(I$3=0,0,I13/I$3) -> 0.8355882678 | J14: 0.8706318156 | K14: 0.8915440614 | L14: 0.9044692628 | M14: 0 | N14: 0 | O14: 0 | P14: 0 | Q14: 0 | R14: 0
C15: =Calc!$H$737 -> Начисление переменных расходов | E15: =SUM($F15:$S15) -> 36568072.3 | G15: =IF(G$2="",0,SUMIFS(Reports_М!15:15,Reports_М!$2:$2,">="&MAIN!AB$6,Reports_М!$2:$2,"<="&MAIN!AB$7)) -> 211416.875 | H15: =IF(H$2="",0,SUMIFS(Reports_М!15:15,Reports_М!$2:$2,">="&MAIN!AC$6,Reports_М!$2:$2,"<="&MAIN!AC$7)) -> 1016685.679 | I15: =IF(I$2="",0,SUMIFS(Reports_М!15:15,Reports_М!$2:$2,">="&MAIN!AD$6,Reports_М!$2:$2,"<="&MAIN!AD$7)) -> 2822565.8 | J15: =IF(J$2="",0,SUMIFS(Reports_М!15:15,Reports_М!$2:$2,">="&MAIN!AE$6,Reports_М!$2:$2,"<="&MAIN!AE$7)) -> 6317656.732 | K15: =IF(K$2="",0,SUMIFS(Reports_М!15:15,Reports_М!$2:$2,">="&MAIN!AF$6,Reports_М!$2:$2,"<="&MAIN!AF$7)) -> 10475825.95 | L15: =IF(L$2="",0,SUMIFS(Reports_М!15:15,Reports_М!$2:$2,">="&MAIN!AG$6,Reports_М!$2:$2,"<="&MAIN!AG$7)) -> 15723921.26 | M15: =IF(M$2="",0,SUMIFS(Reports_М!15:15,Reports_М!$2:$2,">="&MAIN!AH$6,Reports_М!$2:$2,"<="&MAIN!AH$7)) -> 0 | N15: =IF(N$2="",0,SUMIFS(Reports_М!15:15,Reports_М!$2:$2,">="&MAIN!AI$6,Reports_М!$2:$2,"<="&MAIN!AI$7)) -> 0 | O15: =IF(O$2="",0,SUMIFS(Reports_М!15:15,Reports_М!$2:$2,">="&MAIN!AJ$6,Reports_М!$2:$2,"<="&MAIN!AJ$7)) -> 0 | P15: =IF(P$2="",0,SUMIFS(Reports_М!15:15,Reports_М!$2:$2,">="&MAIN!AK$6,Reports_М!$2:$2,"<="&MAIN!AK$7)) -> 0 | Q15: =IF(Q$2="",0,SUMIFS(Reports_М!15:15,Reports_М!$2:$2,">="&MAIN!AL$6,Reports_М!$2:$2,"<="&MAIN!AL$7)) -> 0 | R15: =IF(R$2="",0,SUMIFS(Reports_М!15:15,Reports_М!$2:$2,">="&MAIN!AM$6,Reports_М!$2:$2,"<="&MAIN!AM$7)) -> 0
C16: =Calc!$H$804 -> Маржинальная прибыль | E16: =SUM($F16:$S16) -> 502745952.1 | G16: =IF(G$2="",0,SUMIFS(Reports_М!16:16,Reports_М!$2:$2,">="&MAIN!AB$6,Reports_М!$2:$2,"<="&MAIN!AB$7)) -> 2219640.677 | H16: =IF(H$2="",0,SUMIFS(Reports_М!16:16,Reports_М!$2:$2,">="&MAIN!AC$6,Reports_М!$2:$2,"<="&MAIN!AC$7)) -> 12194286.11 | I16: =IF(I$2="",0,SUMIFS(Reports_М!16:16,Reports_М!$2:$2,">="&MAIN!AD$6,Reports_М!$2:$2,"<="&MAIN!AD$7)) -> 36485815.33 | J16: =IF(J$2="",0,SUMIFS(Reports_М!16:16,Reports_М!$2:$2,">="&MAIN!AE$6,Reports_М!$2:$2,"<="&MAIN!AE$7)) -> 85354892.46 | K16: =IF(K$2="",0,SUMIFS(Reports_М!16:16,Reports_М!$2:$2,">="&MAIN!AF$6,Reports_М!$2:$2,"<="&MAIN!AF$7)) -> 145185180.9 | L16: =IF(L$2="",0,SUMIFS(Reports_М!16:16,Reports_М!$2:$2,">="&MAIN!AG$6,Reports_М!$2:$2,"<="&MAIN!AG$7)) -> 221306136.6 | M16: =IF(M$2="",0,SUMIFS(Reports_М!16:16,Reports_М!$2:$2,">="&MAIN!AH$6,Reports_М!$2:$2,"<="&MAIN!AH$7)) -> 0 | N16: =IF(N$2="",0,SUMIFS(Reports_М!16:16,Reports_М!$2:$2,">="&MAIN!AI$6,Reports_М!$2:$2,"<="&MAIN!AI$7)) -> 0 | O16: =IF(O$2="",0,SUMIFS(Reports_М!16:16,Reports_М!$2:$2,">="&MAIN!AJ$6,Reports_М!$2:$2,"<="&MAIN!AJ$7)) -> 0 | P16: =IF(P$2="",0,SUMIFS(Reports_М!16:16,Reports_М!$2:$2,">="&MAIN!AK$6,Reports_М!$2:$2,"<="&MAIN!AK$7)) -> 0 | Q16: =IF(Q$2="",0,SUMIFS(Reports_М!16:16,Reports_М!$2:$2,">="&MAIN!AL$6,Reports_М!$2:$2,"<="&MAIN!AL$7)) -> 0 | R16: =IF(R$2="",0,SUMIFS(Reports_М!16:16,Reports_М!$2:$2,">="&MAIN!AM$6,Reports_М!$2:$2,"<="&MAIN!AM$7)) -> 0
C17: =Calc!$H$805 -> Рентабельность до постоянных расходов | E17: =IF(E$3=0,0,E16/E$3) -> 0.8248932807 | G17: =IF(G$3=0,0,G16/G$3) -> 0.6299328785 | H17: 0.7196493287 | I17: =IF(I$3=0,0,I16/I$3) -> 0.7755882678 | J17: 0.8106318156 | K17: 0.8315440614 | L17: 0.8444692628 | M17: 0 | N17: 0 | O17: 0 | P17: 0 | Q17: 0 | R17: 0
C18: =Calc!$H$824 -> Начисление постоянных расходов | E18: =SUM($F18:$S18) -> 311594539.7 | G18: =IF(G$2="",0,SUMIFS(Reports_М!18:18,Reports_М!$2:$2,">="&MAIN!AB$6,Reports_М!$2:$2,"<="&MAIN!AB$7)) -> 51351053.33 | H18: =IF(H$2="",0,SUMIFS(Reports_М!18:18,Reports_М!$2:$2,">="&MAIN!AC$6,Reports_М!$2:$2,"<="&MAIN!AC$7)) -> 48371308.8 | I18: =IF(I$2="",0,SUMIFS(Reports_М!18:18,Reports_М!$2:$2,">="&MAIN!AD$6,Reports_М!$2:$2,"<="&MAIN!AD$7)) -> 50124968.06 | J18: =IF(J$2="",0,SUMIFS(Reports_М!18:18,Reports_М!$2:$2,">="&MAIN!AE$6,Reports_М!$2:$2,"<="&MAIN!AE$7)) -> 51960919.41 | K18: =IF(K$2="",0,SUMIFS(Reports_М!18:18,Reports_М!$2:$2,">="&MAIN!AF$6,Reports_М!$2:$2,"<="&MAIN!AF$7)) -> 53884558.13 | L18: =IF(L$2="",0,SUMIFS(Reports_М!18:18,Reports_М!$2:$2,">="&MAIN!AG$6,Reports_М!$2:$2,"<="&MAIN!AG$7)) -> 55901731.99 | M18: =IF(M$2="",0,SUMIFS(Reports_М!18:18,Reports_М!$2:$2,">="&MAIN!AH$6,Reports_М!$2:$2,"<="&MAIN!AH$7)) -> 0 | N18: =IF(N$2="",0,SUMIFS(Reports_М!18:18,Reports_М!$2:$2,">="&MAIN!AI$6,Reports_М!$2:$2,"<="&MAIN!AI$7)) -> 0 | O18: =IF(O$2="",0,SUMIFS(Reports_М!18:18,Reports_М!$2:$2,">="&MAIN!AJ$6,Reports_М!$2:$2,"<="&MAIN!AJ$7)) -> 0 | P18: =IF(P$2="",0,SUMIFS(Reports_М!18:18,Reports_М!$2:$2,">="&MAIN!AK$6,Reports_М!$2:$2,"<="&MAIN!AK$7)) -> 0 | Q18: =IF(Q$2="",0,SUMIFS(Reports_М!18:18,Reports_М!$2:$2,">="&MAIN!AL$6,Reports_М!$2:$2,"<="&MAIN!AL$7)) -> 0 | R18: =IF(R$2="",0,SUMIFS(Reports_М!18:18,Reports_М!$2:$2,">="&MAIN!AM$6,Reports_М!$2:$2,"<="&MAIN!AM$7)) -> 0
C20: =Calc!$H$1183 -> EBITDA | E20: =SUM($F20:$S20) -> 191151412.4 | G20: =IF(G$2="",0,SUMIFS(Reports_М!20:20,Reports_М!$2:$2,">="&MAIN!AB$6,Reports_М!$2:$2,"<="&MAIN!AB$7)) -> -49131412.66 | H20: =IF(H$2="",0,SUMIFS(Reports_М!20:20,Reports_М!$2:$2,">="&MAIN!AC$6,Reports_М!$2:$2,"<="&MAIN!AC$7)) -> -36177022.69 | I20: =IF(I$2="",0,SUMIFS(Reports_М!20:20,Reports_М!$2:$2,">="&MAIN!AD$6,Reports_М!$2:$2,"<="&MAIN!AD$7)) -> -13639152.74 | J20: =IF(J$2="",0,SUMIFS(Reports_М!20:20,Reports_М!$2:$2,">="&MAIN!AE$6,Reports_М!$2:$2,"<="&MAIN!AE$7)) -> 33393973.05 | K20: =IF(K$2="",0,SUMIFS(Reports_М!20:20,Reports_М!$2:$2,">="&MAIN!AF$6,Reports_М!$2:$2,"<="&MAIN!AF$7)) -> 91300622.78 | L20: =IF(L$2="",0,SUMIFS(Reports_М!20:20,Reports_М!$2:$2,">="&MAIN!AG$6,Reports_М!$2:$2,"<="&MAIN!AG$7)) -> 165404404.6 | M20: =IF(M$2="",0,SUMIFS(Reports_М!20:20,Reports_М!$2:$2,">="&MAIN!AH$6,Reports_М!$2:$2,"<="&MAIN!AH$7)) -> 0 | N20: =IF(N$2="",0,SUMIFS(Reports_М!20:20,Reports_М!$2:$2,">="&MAIN!AI$6,Reports_М!$2:$2,"<="&MAIN!AI$7)) -> 0 | O20: =IF(O$2="",0,SUMIFS(Reports_М!20:20,Reports_М!$2:$2,">="&MAIN!AJ$6,Reports_М!$2:$2,"<="&MAIN!AJ$7)) -> 0 | P20: =IF(P$2="",0,SUMIFS(Reports_М!20:20,Reports_М!$2:$2,">="&MAIN!AK$6,Reports_М!$2:$2,"<="&MAIN!AK$7)) -> 0 | Q20: =IF(Q$2="",0,SUMIFS(Reports_М!20:20,Reports_М!$2:$2,">="&MAIN!AL$6,Reports_М!$2:$2,"<="&MAIN!AL$7)) -> 0 | R20: =IF(R$2="",0,SUMIFS(Reports_М!20:20,Reports_М!$2:$2,">="&MAIN!AM$6,Reports_М!$2:$2,"<="&MAIN!AM$7)) -> 0
C21: =Calc!$H$1184 -> Рентабельность операционной деятельности | E21: =IF(E$3=0,0,E20/E$3) -> 0.3136365693 | G21: =IF(G$3=0,0,G20/G$3) -> -13.94346955 | H21: -2.134997478 | I21: =IF(I$3=0,0,I20/I$3) -> -0.2899309431 | J21: 0.3171489791 | K21: 0.5229217624 | L21: 0.631157083 | M21: 0 | N21: 0 | O21: 0 | P21: 0 | Q21: 0 | R21: 0
C22: =Calc!$H$1263 -> начисление %% по кредиту за период | E22: =SUM($F22:$S22) -> 39092456.23 | G22: =IF(G$2="",0,SUMIFS(Reports_М!22:22,Reports_М!$2:$2,">="&MAIN!AB$6,Reports_М!$2:$2,"<="&MAIN!AB$7)) -> 8960000 | H22: =IF(H$2="",0,SUMIFS(Reports_М!22:22,Reports_М!$2:$2,">="&MAIN!AC$6,Reports_М!$2:$2,"<="&MAIN!AC$7)) -> 9130352.976 | I22: =IF(I$2="",0,SUMIFS(Reports_М!22:22,Reports_М!$2:$2,">="&MAIN!AD$6,Reports_М!$2:$2,"<="&MAIN!AD$7)) -> 9938285.587 | J22: =IF(J$2="",0,SUMIFS(Reports_М!22:22,Reports_М!$2:$2,">="&MAIN!AE$6,Reports_М!$2:$2,"<="&MAIN!AE$7)) -> 6915669.519 | K22: =IF(K$2="",0,SUMIFS(Reports_М!22:22,Reports_М!$2:$2,">="&MAIN!AF$6,Reports_М!$2:$2,"<="&MAIN!AF$7)) -> 3069629.63 | L22: =IF(L$2="",0,SUMIFS(Reports_М!22:22,Reports_М!$2:$2,">="&MAIN!AG$6,Reports_М!$2:$2,"<="&MAIN!AG$7)) -> 1078518.519 | M22: =IF(M$2="",0,SUMIFS(Reports_М!22:22,Reports_М!$2:$2,">="&MAIN!AH$6,Reports_М!$2:$2,"<="&MAIN!AH$7)) -> 0 | N22: =IF(N$2="",0,SUMIFS(Reports_М!22:22,Reports_М!$2:$2,">="&MAIN!AI$6,Reports_М!$2:$2,"<="&MAIN!AI$7)) -> 0 | O22: =IF(O$2="",0,SUMIFS(Reports_М!22:22,Reports_М!$2:$2,">="&MAIN!AJ$6,Reports_М!$2:$2,"<="&MAIN!AJ$7)) -> 0 | P22: =IF(P$2="",0,SUMIFS(Reports_М!22:22,Reports_М!$2:$2,">="&MAIN!AK$6,Reports_М!$2:$2,"<="&MAIN!AK$7)) -> 0 | Q22: =IF(Q$2="",0,SUMIFS(Reports_М!22:22,Reports_М!$2:$2,">="&MAIN!AL$6,Reports_М!$2:$2,"<="&MAIN!AL$7)) -> 0 | R22: =IF(R$2="",0,SUMIFS(Reports_М!22:22,Reports_М!$2:$2,">="&MAIN!AM$6,Reports_М!$2:$2,"<="&MAIN!AM$7)) -> 0
C23: =Calc!$H$1260 -> Начисление налога на имущество | E23: =SUM($F23:$S23) -> 2523003.472 | G23: =IF(G$2="",0,SUMIFS(Reports_М!23:23,Reports_М!$2:$2,">="&MAIN!AB$6,Reports_М!$2:$2,"<="&MAIN!AB$7)) -> 400607.6389 | H23: =IF(H$2="",0,SUMIFS(Reports_М!23:23,Reports_М!$2:$2,">="&MAIN!AC$6,Reports_М!$2:$2,"<="&MAIN!AC$7)) -> 549479.1667 | I23: =IF(I$2="",0,SUMIFS(Reports_М!23:23,Reports_М!$2:$2,">="&MAIN!AD$6,Reports_М!$2:$2,"<="&MAIN!AD$7)) -> 486979.1667 | J23: =IF(J$2="",0,SUMIFS(Reports_М!23:23,Reports_М!$2:$2,">="&MAIN!AE$6,Reports_М!$2:$2,"<="&MAIN!AE$7)) -> 424479.1667 | K23: =IF(K$2="",0,SUMIFS(Reports_М!23:23,Reports_М!$2:$2,">="&MAIN!AF$6,Reports_М!$2:$2,"<="&MAIN!AF$7)) -> 361979.1667 | L23: =IF(L$2="",0,SUMIFS(Reports_М!23:23,Reports_М!$2:$2,">="&MAIN!AG$6,Reports_М!$2:$2,"<="&MAIN!AG$7)) -> 299479.1667 | M23: =IF(M$2="",0,SUMIFS(Reports_М!23:23,Reports_М!$2:$2,">="&MAIN!AH$6,Reports_М!$2:$2,"<="&MAIN!AH$7)) -> 0 | N23: =IF(N$2="",0,SUMIFS(Reports_М!23:23,Reports_М!$2:$2,">="&MAIN!AI$6,Reports_М!$2:$2,"<="&MAIN!AI$7)) -> 0 | O23: =IF(O$2="",0,SUMIFS(Reports_М!23:23,Reports_М!$2:$2,">="&MAIN!AJ$6,Reports_М!$2:$2,"<="&MAIN!AJ$7)) -> 0 | P23: =IF(P$2="",0,SUMIFS(Reports_М!23:23,Reports_М!$2:$2,">="&MAIN!AK$6,Reports_М!$2:$2,"<="&MAIN!AK$7)) -> 0 | Q23: =IF(Q$2="",0,SUMIFS(Reports_М!23:23,Reports_М!$2:$2,">="&MAIN!AL$6,Reports_М!$2:$2,"<="&MAIN!AL$7)) -> 0 | R23: =IF(R$2="",0,SUMIFS(Reports_М!23:23,Reports_М!$2:$2,">="&MAIN!AM$6,Reports_М!$2:$2,"<="&MAIN!AM$7)) -> 0
C24: =Calc!$H$1272 -> Налог на прибыль | E24: =SUM($F24:$S24) -> 20309968.31 | G24: =IF(G$2="",0,SUMIFS(Reports_М!24:24,Reports_М!$2:$2,">="&MAIN!AB$6,Reports_М!$2:$2,"<="&MAIN!AB$7)) -> 0 | H24: =IF(H$2="",0,SUMIFS(Reports_М!24:24,Reports_М!$2:$2,">="&MAIN!AC$6,Reports_М!$2:$2,"<="&MAIN!AC$7)) -> 0 | I24: =IF(I$2="",0,SUMIFS(Reports_М!24:24,Reports_М!$2:$2,">="&MAIN!AD$6,Reports_М!$2:$2,"<="&MAIN!AD$7)) -> 0 | J24: =IF(J$2="",0,SUMIFS(Reports_М!24:24,Reports_М!$2:$2,">="&MAIN!AE$6,Reports_М!$2:$2,"<="&MAIN!AE$7)) -> 0 | K24: =IF(K$2="",0,SUMIFS(Reports_М!24:24,Reports_М!$2:$2,">="&MAIN!AF$6,Reports_М!$2:$2,"<="&MAIN!AF$7)) -> 0 | L24: =IF(L$2="",0,SUMIFS(Reports_М!24:24,Reports_М!$2:$2,">="&MAIN!AG$6,Reports_М!$2:$2,"<="&MAIN!AG$7)) -> 20309968.31 | M24: =IF(M$2="",0,SUMIFS(Reports_М!24:24,Reports_М!$2:$2,">="&MAIN!AH$6,Reports_М!$2:$2,"<="&MAIN!AH$7)) -> 0 | N24: =IF(N$2="",0,SUMIFS(Reports_М!24:24,Reports_М!$2:$2,">="&MAIN!AI$6,Reports_М!$2:$2,"<="&MAIN!AI$7)) -> 0 | O24: =IF(O$2="",0,SUMIFS(Reports_М!24:24,Reports_М!$2:$2,">="&MAIN!AJ$6,Reports_М!$2:$2,"<="&MAIN!AJ$7)) -> 0 | P24: =IF(P$2="",0,SUMIFS(Reports_М!24:24,Reports_М!$2:$2,">="&MAIN!AK$6,Reports_М!$2:$2,"<="&MAIN!AK$7)) -> 0 | Q24: =IF(Q$2="",0,SUMIFS(Reports_М!24:24,Reports_М!$2:$2,">="&MAIN!AL$6,Reports_М!$2:$2,"<="&MAIN!AL$7)) -> 0 | R24: =IF(R$2="",0,SUMIFS(Reports_М!24:24,Reports_М!$2:$2,">="&MAIN!AM$6,Reports_М!$2:$2,"<="&MAIN!AM$7)) -> 0
C25: =Calc!$H$1238 -> Амортизация | E25: =SUM($F25:$S25) -> 47986111.11 | G25: =IF(G$2="",0,SUMIFS(Reports_М!25:25,Reports_М!$2:$2,">="&MAIN!AB$6,Reports_М!$2:$2,"<="&MAIN!AB$7)) -> 6319444.444 | H25: =IF(H$2="",0,SUMIFS(Reports_М!25:25,Reports_М!$2:$2,">="&MAIN!AC$6,Reports_М!$2:$2,"<="&MAIN!AC$7)) -> 8333333.333 | I25: =IF(I$2="",0,SUMIFS(Reports_М!25:25,Reports_М!$2:$2,">="&MAIN!AD$6,Reports_М!$2:$2,"<="&MAIN!AD$7)) -> 8333333.333 | J25: =IF(J$2="",0,SUMIFS(Reports_М!25:25,Reports_М!$2:$2,">="&MAIN!AE$6,Reports_М!$2:$2,"<="&MAIN!AE$7)) -> 8333333.333 | K25: =IF(K$2="",0,SUMIFS(Reports_М!25:25,Reports_М!$2:$2,">="&MAIN!AF$6,Reports_М!$2:$2,"<="&MAIN!AF$7)) -> 8333333.333 | L25: =IF(L$2="",0,SUMIFS(Reports_М!25:25,Reports_М!$2:$2,">="&MAIN!AG$6,Reports_М!$2:$2,"<="&MAIN!AG$7)) -> 8333333.333 | M25: =IF(M$2="",0,SUMIFS(Reports_М!25:25,Reports_М!$2:$2,">="&MAIN!AH$6,Reports_М!$2:$2,"<="&MAIN!AH$7)) -> 0 | N25: =IF(N$2="",0,SUMIFS(Reports_М!25:25,Reports_М!$2:$2,">="&MAIN!AI$6,Reports_М!$2:$2,"<="&MAIN!AI$7)) -> 0 | O25: =IF(O$2="",0,SUMIFS(Reports_М!25:25,Reports_М!$2:$2,">="&MAIN!AJ$6,Reports_М!$2:$2,"<="&MAIN!AJ$7)) -> 0 | P25: =IF(P$2="",0,SUMIFS(Reports_М!25:25,Reports_М!$2:$2,">="&MAIN!AK$6,Reports_М!$2:$2,"<="&MAIN!AK$7)) -> 0 | Q25: =IF(Q$2="",0,SUMIFS(Reports_М!25:25,Reports_М!$2:$2,">="&MAIN!AL$6,Reports_М!$2:$2,"<="&MAIN!AL$7)) -> 0 | R25: =IF(R$2="",0,SUMIFS(Reports_М!25:25,Reports_М!$2:$2,">="&MAIN!AM$6,Reports_М!$2:$2,"<="&MAIN!AM$7)) -> 0
C26: =Calc!$H$1276 -> Чистая прибыль | E26: =SUM($F26:$S26) -> 81239873.23 | G26: =IF(G$2="",0,SUMIFS(Reports_М!26:26,Reports_М!$2:$2,">="&MAIN!AB$6,Reports_М!$2:$2,"<="&MAIN!AB$7)) -> -64811464.74 | H26: =IF(H$2="",0,SUMIFS(Reports_М!26:26,Reports_М!$2:$2,">="&MAIN!AC$6,Reports_М!$2:$2,"<="&MAIN!AC$7)) -> -54190188.17 | I26: =IF(I$2="",0,SUMIFS(Reports_М!26:26,Reports_М!$2:$2,">="&MAIN!AD$6,Reports_М!$2:$2,"<="&MAIN!AD$7)) -> -32397750.82 | J26: =IF(J$2="",0,SUMIFS(Reports_М!26:26,Reports_М!$2:$2,">="&MAIN!AE$6,Reports_М!$2:$2,"<="&MAIN!AE$7)) -> 17720491.03 | K26: =IF(K$2="",0,SUMIFS(Reports_М!26:26,Reports_М!$2:$2,">="&MAIN!AF$6,Reports_М!$2:$2,"<="&MAIN!AF$7)) -> 79535680.65 | L26: =IF(L$2="",0,SUMIFS(Reports_М!26:26,Reports_М!$2:$2,">="&MAIN!AG$6,Reports_М!$2:$2,"<="&MAIN!AG$7)) -> 135383105.3 | M26: =IF(M$2="",0,SUMIFS(Reports_М!26:26,Reports_М!$2:$2,">="&MAIN!AH$6,Reports_М!$2:$2,"<="&MAIN!AH$7)) -> 0 | N26: =IF(N$2="",0,SUMIFS(Reports_М!26:26,Reports_М!$2:$2,">="&MAIN!AI$6,Reports_М!$2:$2,"<="&MAIN!AI$7)) -> 0 | O26: =IF(O$2="",0,SUMIFS(Reports_М!26:26,Reports_М!$2:$2,">="&MAIN!AJ$6,Reports_М!$2:$2,"<="&MAIN!AJ$7)) -> 0 | P26: =IF(P$2="",0,SUMIFS(Reports_М!26:26,Reports_М!$2:$2,">="&MAIN!AK$6,Reports_М!$2:$2,"<="&MAIN!AK$7)) -> 0 | Q26: =IF(Q$2="",0,SUMIFS(Reports_М!26:26,Reports_М!$2:$2,">="&MAIN!AL$6,Reports_М!$2:$2,"<="&MAIN!AL$7)) -> 0 | R26: =IF(R$2="",0,SUMIFS(Reports_М!26:26,Reports_М!$2:$2,">="&MAIN!AM$6,Reports_М!$2:$2,"<="&MAIN!AM$7)) -> 0
B28: CF | C28: =Calc!$H$30 -> Поступление ДС | E28: =SUM($F28:$S28) -> 1018350475 | G28: =IF(G$2="",0,SUMIFS(Reports_М!28:28,Reports_М!$2:$2,">="&MAIN!AB$6,Reports_М!$2:$2,"<="&MAIN!AB$7)) -> 9662000 | H28: =IF(H$2="",0,SUMIFS(Reports_М!28:28,Reports_М!$2:$2,">="&MAIN!AC$6,Reports_М!$2:$2,"<="&MAIN!AC$7)) -> 38602172 | I28: =IF(I$2="",0,SUMIFS(Reports_М!28:28,Reports_М!$2:$2,">="&MAIN!AD$6,Reports_М!$2:$2,"<="&MAIN!AD$7)) -> 91806664.46 | J28: =IF(J$2="",0,SUMIFS(Reports_М!28:28,Reports_М!$2:$2,">="&MAIN!AE$6,Reports_М!$2:$2,"<="&MAIN!AE$7)) -> 177385143.6 | K28: =IF(K$2="",0,SUMIFS(Reports_М!28:28,Reports_М!$2:$2,">="&MAIN!AF$6,Reports_М!$2:$2,"<="&MAIN!AF$7)) -> 284032440.4 | L28: =IF(L$2="",0,SUMIFS(Reports_М!28:28,Reports_М!$2:$2,">="&MAIN!AG$6,Reports_М!$2:$2,"<="&MAIN!AG$7)) -> 416862054.9 | M28: =IF(M$2="",0,SUMIFS(Reports_М!28:28,Reports_М!$2:$2,">="&MAIN!AH$6,Reports_М!$2:$2,"<="&MAIN!AH$7)) -> 0 | N28: =IF(N$2="",0,SUMIFS(Reports_М!28:28,Reports_М!$2:$2,">="&MAIN!AI$6,Reports_М!$2:$2,"<="&MAIN!AI$7)) -> 0 | O28: =IF(O$2="",0,SUMIFS(Reports_М!28:28,Reports_М!$2:$2,">="&MAIN!AJ$6,Reports_М!$2:$2,"<="&MAIN!AJ$7)) -> 0 | P28: =IF(P$2="",0,SUMIFS(Reports_М!28:28,Reports_М!$2:$2,">="&MAIN!AK$6,Reports_М!$2:$2,"<="&MAIN!AK$7)) -> 0 | Q28: =IF(Q$2="",0,SUMIFS(Reports_М!28:28,Reports_М!$2:$2,">="&MAIN!AL$6,Reports_М!$2:$2,"<="&MAIN!AL$7)) -> 0 | R28: =IF(R$2="",0,SUMIFS(Reports_М!28:28,Reports_М!$2:$2,">="&MAIN!AM$6,Reports_М!$2:$2,"<="&MAIN!AM$7)) -> 0
C29: в т.ч.
C30: =Calc!$N$48 -> Продажа аппаратов | E30: =SUM($F30:$S30) -> 158760154.1 | G30: =IF(G$2="",0,SUMIFS(Reports_М!30:30,Reports_М!$2:$2,">="&MAIN!AB$6,Reports_М!$2:$2,"<="&MAIN!AB$7)) -> 2830000 | H30: =IF(H$2="",0,SUMIFS(Reports_М!30:30,Reports_М!$2:$2,">="&MAIN!AC$6,Reports_М!$2:$2,"<="&MAIN!AC$7)) -> 9479540 | I30: =IF(I$2="",0,SUMIFS(Reports_М!30:30,Reports_М!$2:$2,">="&MAIN!AD$6,Reports_М!$2:$2,"<="&MAIN!AD$7)) -> 18886339.5 | J30: =IF(J$2="",0,SUMIFS(Reports_М!30:30,Reports_М!$2:$2,">="&MAIN!AE$6,Reports_М!$2:$2,"<="&MAIN!AE$7)) -> 31722012 | K30: =IF(K$2="",0,SUMIFS(Reports_М!30:30,Reports_М!$2:$2,">="&MAIN!AF$6,Reports_М!$2:$2,"<="&MAIN!AF$7)) -> 42229928.47 | L30: =IF(L$2="",0,SUMIFS(Reports_М!30:30,Reports_М!$2:$2,">="&MAIN!AG$6,Reports_М!$2:$2,"<="&MAIN!AG$7)) -> 53612334.17 | M30: =IF(M$2="",0,SUMIFS(Reports_М!30:30,Reports_М!$2:$2,">="&MAIN!AH$6,Reports_М!$2:$2,"<="&MAIN!AH$7)) -> 0 | N30: =IF(N$2="",0,SUMIFS(Reports_М!30:30,Reports_М!$2:$2,">="&MAIN!AI$6,Reports_М!$2:$2,"<="&MAIN!AI$7)) -> 0 | O30: =IF(O$2="",0,SUMIFS(Reports_М!30:30,Reports_М!$2:$2,">="&MAIN!AJ$6,Reports_М!$2:$2,"<="&MAIN!AJ$7)) -> 0 | P30: =IF(P$2="",0,SUMIFS(Reports_М!30:30,Reports_М!$2:$2,">="&MAIN!AK$6,Reports_М!$2:$2,"<="&MAIN!AK$7)) -> 0 | Q30: =IF(Q$2="",0,SUMIFS(Reports_М!30:30,Reports_М!$2:$2,">="&MAIN!AL$6,Reports_М!$2:$2,"<="&MAIN!AL$7)) -> 0 | R30: =IF(R$2="",0,SUMIFS(Reports_М!30:30,Reports_М!$2:$2,">="&MAIN!AM$6,Reports_М!$2:$2,"<="&MAIN!AM$7)) -> 0
C31: =Calc!$N$390 -> Продажа годовых подписок на онлайн сервис | E31: =SUM($F31:$S31) -> 859590321.2 | G31: =IF(G$2="",0,SUMIFS(Reports_М!31:31,Reports_М!$2:$2,">="&MAIN!AB$6,Reports_М!$2:$2,"<="&MAIN!AB$7)) -> 6832000 | H31: =IF(H$2="",0,SUMIFS(Reports_М!31:31,Reports_М!$2:$2,">="&MAIN!AC$6,Reports_М!$2:$2,"<="&MAIN!AC$7)) -> 29122632 | I31: =IF(I$2="",0,SUMIFS(Reports_М!31:31,Reports_М!$2:$2,">="&MAIN!AD$6,Reports_М!$2:$2,"<="&MAIN!AD$7)) -> 72920324.96 | J31: =IF(J$2="",0,SUMIFS(Reports_М!31:31,Reports_М!$2:$2,">="&MAIN!AE$6,Reports_М!$2:$2,"<="&MAIN!AE$7)) -> 145663131.6 | K31: =IF(K$2="",0,SUMIFS(Reports_М!31:31,Reports_М!$2:$2,">="&MAIN!AF$6,Reports_М!$2:$2,"<="&MAIN!AF$7)) -> 241802511.9 | L31: =IF(L$2="",0,SUMIFS(Reports_М!31:31,Reports_М!$2:$2,">="&MAIN!AG$6,Reports_М!$2:$2,"<="&MAIN!AG$7)) -> 363249720.7 | M31: =IF(M$2="",0,SUMIFS(Reports_М!31:31,Reports_М!$2:$2,">="&MAIN!AH$6,Reports_М!$2:$2,"<="&MAIN!AH$7)) -> 0 | N31: =IF(N$2="",0,SUMIFS(Reports_М!31:31,Reports_М!$2:$2,">="&MAIN!AI$6,Reports_М!$2:$2,"<="&MAIN!AI$7)) -> 0 | O31: =IF(O$2="",0,SUMIFS(Reports_М!31:31,Reports_М!$2:$2,">="&MAIN!AJ$6,Reports_М!$2:$2,"<="&MAIN!AJ$7)) -> 0 | P31: =IF(P$2="",0,SUMIFS(Reports_М!31:31,Reports_М!$2:$2,">="&MAIN!AK$6,Reports_М!$2:$2,"<="&MAIN!AK$7)) -> 0 | Q31: =IF(Q$2="",0,SUMIFS(Reports_М!31:31,Reports_М!$2:$2,">="&MAIN!AL$6,Reports_М!$2:$2,"<="&MAIN!AL$7)) -> 0 | R31: =IF(R$2="",0,SUMIFS(Reports_М!31:31,Reports_М!$2:$2,">="&MAIN!AM$6,Reports_М!$2:$2,"<="&MAIN!AM$7)) -> 0
C33: прочее | E33: =SUM($F33:$S33) -> 0 | G33: =G28-SUM(G30:G32) -> 0 | H33: 0 | I33: 0 | J33: 0 | K33: 0 | L33: 0 | M33: 0 | N33: 0 | O33: 0 | P33: 0 | Q33: 0 | R33: 0
C34: =Calc!$H$31 -> Оплаты за комплектующие и проч. с/ст ингредиенты | E34: 56969504.99 | G34: =IF(G$2="",0,SUMIFS(Reports_М!34:34,Reports_М!$2:$2,">="&MAIN!AB$6,Reports_М!$2:$2,"<="&MAIN!AB$7)) -> 1118530.878 | H34: =IF(H$2="",0,SUMIFS(Reports_М!34:34,Reports_М!$2:$2,">="&MAIN!AC$6,Reports_М!$2:$2,"<="&MAIN!AC$7)) -> 3523497.557 | I34: =IF(I$2="",0,SUMIFS(Reports_М!34:34,Reports_М!$2:$2,">="&MAIN!AD$6,Reports_М!$2:$2,"<="&MAIN!AD$7)) -> 6932123.372 | J34: =IF(J$2="",0,SUMIFS(Reports_М!34:34,Reports_М!$2:$2,">="&MAIN!AE$6,Reports_М!$2:$2,"<="&MAIN!AE$7)) -> 11509003.58 | K34: =IF(K$2="",0,SUMIFS(Reports_М!34:34,Reports_М!$2:$2,">="&MAIN!AF$6,Reports_М!$2:$2,"<="&MAIN!AF$7)) -> 15249877.45 | L34: =IF(L$2="",0,SUMIFS(Reports_М!34:34,Reports_М!$2:$2,">="&MAIN!AG$6,Reports_М!$2:$2,"<="&MAIN!AG$7)) -> 18636472.15 | M34: =IF(M$2="",0,SUMIFS(Reports_М!34:34,Reports_М!$2:$2,">="&MAIN!AH$6,Reports_М!$2:$2,"<="&MAIN!AH$7)) -> 0 | N34: =IF(N$2="",0,SUMIFS(Reports_М!34:34,Reports_М!$2:$2,">="&MAIN!AI$6,Reports_М!$2:$2,"<="&MAIN!AI$7)) -> 0 | O34: =IF(O$2="",0,SUMIFS(Reports_М!34:34,Reports_М!$2:$2,">="&MAIN!AJ$6,Reports_М!$2:$2,"<="&MAIN!AJ$7)) -> 0 | P34: =IF(P$2="",0,SUMIFS(Reports_М!34:34,Reports_М!$2:$2,">="&MAIN!AK$6,Reports_М!$2:$2,"<="&MAIN!AK$7)) -> 0 | Q34: =IF(Q$2="",0,SUMIFS(Reports_М!34:34,Reports_М!$2:$2,">="&MAIN!AL$6,Reports_М!$2:$2,"<="&MAIN!AL$7)) -> 0 | R34: =IF(R$2="",0,SUMIFS(Reports_М!34:34,Reports_М!$2:$2,">="&MAIN!AM$6,Reports_М!$2:$2,"<="&MAIN!AM$7)) -> 0
C35: =Calc!$H$33 -> Оплата прямых расходов | E35: 27044933.64 | G35: =IF(G$2="",0,SUMIFS(Reports_М!35:35,Reports_М!$2:$2,">="&MAIN!AB$6,Reports_М!$2:$2,"<="&MAIN!AB$7)) -> 263514.4375 | H35: =IF(H$2="",0,SUMIFS(Reports_М!35:35,Reports_М!$2:$2,">="&MAIN!AC$6,Reports_М!$2:$2,"<="&MAIN!AC$7)) -> 1033447.42 | I35: =IF(I$2="",0,SUMIFS(Reports_М!35:35,Reports_М!$2:$2,">="&MAIN!AD$6,Reports_М!$2:$2,"<="&MAIN!AD$7)) -> 2455113.804 | J35: =IF(J$2="",0,SUMIFS(Reports_М!35:35,Reports_М!$2:$2,">="&MAIN!AE$6,Reports_М!$2:$2,"<="&MAIN!AE$7)) -> 4910398.34 | K35: =IF(K$2="",0,SUMIFS(Reports_М!35:35,Reports_М!$2:$2,">="&MAIN!AF$6,Reports_М!$2:$2,"<="&MAIN!AF$7)) -> 7565942.922 | L35: =IF(L$2="",0,SUMIFS(Reports_М!35:35,Reports_М!$2:$2,">="&MAIN!AG$6,Reports_М!$2:$2,"<="&MAIN!AG$7)) -> 10816516.71 | M35: =IF(M$2="",0,SUMIFS(Reports_М!35:35,Reports_М!$2:$2,">="&MAIN!AH$6,Reports_М!$2:$2,"<="&MAIN!AH$7)) -> 0 | N35: =IF(N$2="",0,SUMIFS(Reports_М!35:35,Reports_М!$2:$2,">="&MAIN!AI$6,Reports_М!$2:$2,"<="&MAIN!AI$7)) -> 0 | O35: =IF(O$2="",0,SUMIFS(Reports_М!35:35,Reports_М!$2:$2,">="&MAIN!AJ$6,Reports_М!$2:$2,"<="&MAIN!AJ$7)) -> 0 | P35: =IF(P$2="",0,SUMIFS(Reports_М!35:35,Reports_М!$2:$2,">="&MAIN!AK$6,Reports_М!$2:$2,"<="&MAIN!AK$7)) -> 0 | Q35: =IF(Q$2="",0,SUMIFS(Reports_М!35:35,Reports_М!$2:$2,">="&MAIN!AL$6,Reports_М!$2:$2,"<="&MAIN!AL$7)) -> 0 | R35: =IF(R$2="",0,SUMIFS(Reports_М!35:35,Reports_М!$2:$2,">="&MAIN!AM$6,Reports_М!$2:$2,"<="&MAIN!AM$7)) -> 0
C36: =Calc!$H$739 -> Оплата переменных расходов | E36: 43378561.75 | G36: =IF(G$2="",0,SUMIFS(Reports_М!36:36,Reports_М!$2:$2,">="&MAIN!AB$6,Reports_М!$2:$2,"<="&MAIN!AB$7)) -> 243834.9167 | H36: =IF(H$2="",0,SUMIFS(Reports_М!36:36,Reports_М!$2:$2,">="&MAIN!AC$6,Reports_М!$2:$2,"<="&MAIN!AC$7)) -> 1190052.266 | I36: =IF(I$2="",0,SUMIFS(Reports_М!36:36,Reports_М!$2:$2,">="&MAIN!AD$6,Reports_М!$2:$2,"<="&MAIN!AD$7)) -> 3324689.157 | J36: =IF(J$2="",0,SUMIFS(Reports_М!36:36,Reports_М!$2:$2,">="&MAIN!AE$6,Reports_М!$2:$2,"<="&MAIN!AE$7)) -> 7464853.194 | K36: =IF(K$2="",0,SUMIFS(Reports_М!36:36,Reports_М!$2:$2,">="&MAIN!AF$6,Reports_М!$2:$2,"<="&MAIN!AF$7)) -> 12444145.21 | L36: =IF(L$2="",0,SUMIFS(Reports_М!36:36,Reports_М!$2:$2,">="&MAIN!AG$6,Reports_М!$2:$2,"<="&MAIN!AG$7)) -> 18710987.01 | M36: =IF(M$2="",0,SUMIFS(Reports_М!36:36,Reports_М!$2:$2,">="&MAIN!AH$6,Reports_М!$2:$2,"<="&MAIN!AH$7)) -> 0 | N36: =IF(N$2="",0,SUMIFS(Reports_М!36:36,Reports_М!$2:$2,">="&MAIN!AI$6,Reports_М!$2:$2,"<="&MAIN!AI$7)) -> 0 | O36: =IF(O$2="",0,SUMIFS(Reports_М!36:36,Reports_М!$2:$2,">="&MAIN!AJ$6,Reports_М!$2:$2,"<="&MAIN!AJ$7)) -> 0 | P36: =IF(P$2="",0,SUMIFS(Reports_М!36:36,Reports_М!$2:$2,">="&MAIN!AK$6,Reports_М!$2:$2,"<="&MAIN!AK$7)) -> 0 | Q36: =IF(Q$2="",0,SUMIFS(Reports_М!36:36,Reports_М!$2:$2,">="&MAIN!AL$6,Reports_М!$2:$2,"<="&MAIN!AL$7)) -> 0 | R36: =IF(R$2="",0,SUMIFS(Reports_М!36:36,Reports_М!$2:$2,">="&MAIN!AM$6,Reports_М!$2:$2,"<="&MAIN!AM$7)) -> 0
C37: =Calc!$H$826 -> Оплата постоянных расходов | E37: 315859130 | G37: =IF(G$2="",0,SUMIFS(Reports_М!37:37,Reports_М!$2:$2,">="&MAIN!AB$6,Reports_М!$2:$2,"<="&MAIN!AB$7)) -> 53359386.67 | H37: =IF(H$2="",0,SUMIFS(Reports_М!37:37,Reports_М!$2:$2,">="&MAIN!AC$6,Reports_М!$2:$2,"<="&MAIN!AC$7)) -> 48785725.47 | I37: =IF(I$2="",0,SUMIFS(Reports_М!37:37,Reports_М!$2:$2,">="&MAIN!AD$6,Reports_М!$2:$2,"<="&MAIN!AD$7)) -> 50556856.9 | J37: =IF(J$2="",0,SUMIFS(Reports_М!37:37,Reports_М!$2:$2,">="&MAIN!AE$6,Reports_М!$2:$2,"<="&MAIN!AE$7)) -> 52411195.99 | K37: =IF(K$2="",0,SUMIFS(Reports_М!37:37,Reports_М!$2:$2,">="&MAIN!AF$6,Reports_М!$2:$2,"<="&MAIN!AF$7)) -> 54354196.38 | L37: =IF(L$2="",0,SUMIFS(Reports_М!37:37,Reports_М!$2:$2,">="&MAIN!AG$6,Reports_М!$2:$2,"<="&MAIN!AG$7)) -> 56391768.56 | M37: =IF(M$2="",0,SUMIFS(Reports_М!37:37,Reports_М!$2:$2,">="&MAIN!AH$6,Reports_М!$2:$2,"<="&MAIN!AH$7)) -> 0 | N37: =IF(N$2="",0,SUMIFS(Reports_М!37:37,Reports_М!$2:$2,">="&MAIN!AI$6,Reports_М!$2:$2,"<="&MAIN!AI$7)) -> 0 | O37: =IF(O$2="",0,SUMIFS(Reports_М!37:37,Reports_М!$2:$2,">="&MAIN!AJ$6,Reports_М!$2:$2,"<="&MAIN!AJ$7)) -> 0 | P37: =IF(P$2="",0,SUMIFS(Reports_М!37:37,Reports_М!$2:$2,">="&MAIN!AK$6,Reports_М!$2:$2,"<="&MAIN!AK$7)) -> 0 | Q37: =IF(Q$2="",0,SUMIFS(Reports_М!37:37,Reports_М!$2:$2,">="&MAIN!AL$6,Reports_М!$2:$2,"<="&MAIN!AL$7)) -> 0 | R37: =IF(R$2="",0,SUMIFS(Reports_М!37:37,Reports_М!$2:$2,">="&MAIN!AM$6,Reports_М!$2:$2,"<="&MAIN!AM$7)) -> 0
C38: =Calc!$H$1172 -> Оплата НДС по операционной деят-ти | E38: 92545364.4 | G38: =IF(G$2="",0,SUMIFS(Reports_М!38:38,Reports_М!$2:$2,">="&MAIN!AB$6,Reports_М!$2:$2,"<="&MAIN!AB$7)) -> -1657833.63 | H38: =IF(H$2="",0,SUMIFS(Reports_М!38:38,Reports_М!$2:$2,">="&MAIN!AC$6,Reports_М!$2:$2,"<="&MAIN!AC$7)) -> 1808221.148 | I38: =IF(I$2="",0,SUMIFS(Reports_М!38:38,Reports_М!$2:$2,">="&MAIN!AD$6,Reports_М!$2:$2,"<="&MAIN!AD$7)) -> 6406563.877 | J38: =IF(J$2="",0,SUMIFS(Reports_М!38:38,Reports_М!$2:$2,">="&MAIN!AE$6,Reports_М!$2:$2,"<="&MAIN!AE$7)) -> 15759075.74 | K38: =IF(K$2="",0,SUMIFS(Reports_М!38:38,Reports_М!$2:$2,">="&MAIN!AF$6,Reports_М!$2:$2,"<="&MAIN!AF$7)) -> 27618848.84 | L38: =IF(L$2="",0,SUMIFS(Reports_М!38:38,Reports_М!$2:$2,">="&MAIN!AG$6,Reports_М!$2:$2,"<="&MAIN!AG$7)) -> 42610488.43 | M38: =IF(M$2="",0,SUMIFS(Reports_М!38:38,Reports_М!$2:$2,">="&MAIN!AH$6,Reports_М!$2:$2,"<="&MAIN!AH$7)) -> 0 | N38: =IF(N$2="",0,SUMIFS(Reports_М!38:38,Reports_М!$2:$2,">="&MAIN!AI$6,Reports_М!$2:$2,"<="&MAIN!AI$7)) -> 0 | O38: =IF(O$2="",0,SUMIFS(Reports_М!38:38,Reports_М!$2:$2,">="&MAIN!AJ$6,Reports_М!$2:$2,"<="&MAIN!AJ$7)) -> 0 | P38: =IF(P$2="",0,SUMIFS(Reports_М!38:38,Reports_М!$2:$2,">="&MAIN!AK$6,Reports_М!$2:$2,"<="&MAIN!AK$7)) -> 0 | Q38: =IF(Q$2="",0,SUMIFS(Reports_М!38:38,Reports_М!$2:$2,">="&MAIN!AL$6,Reports_М!$2:$2,"<="&MAIN!AL$7)) -> 0 | R38: =IF(R$2="",0,SUMIFS(Reports_М!38:38,Reports_М!$2:$2,">="&MAIN!AM$6,Reports_М!$2:$2,"<="&MAIN!AM$7)) -> 0
C40: =Calc!$H$1188 -> Финпоток по операционной деятельности | E40: =SUM($F40:$S40) -> 482552980.6 | G40: =IF(G$2="",0,SUMIFS(Reports_М!40:40,Reports_М!$2:$2,">="&MAIN!AB$6,Reports_М!$2:$2,"<="&MAIN!AB$7)) -> -43665433.27 | H40: =IF(H$2="",0,SUMIFS(Reports_М!40:40,Reports_М!$2:$2,">="&MAIN!AC$6,Reports_М!$2:$2,"<="&MAIN!AC$7)) -> -17738771.86 | I40: =IF(I$2="",0,SUMIFS(Reports_М!40:40,Reports_М!$2:$2,">="&MAIN!AD$6,Reports_М!$2:$2,"<="&MAIN!AD$7)) -> 22131317.35 | J40: =IF(J$2="",0,SUMIFS(Reports_М!40:40,Reports_М!$2:$2,">="&MAIN!AE$6,Reports_М!$2:$2,"<="&MAIN!AE$7)) -> 85330616.8 | K40: =IF(K$2="",0,SUMIFS(Reports_М!40:40,Reports_М!$2:$2,">="&MAIN!AF$6,Reports_М!$2:$2,"<="&MAIN!AF$7)) -> 166799429.6 | L40: =IF(L$2="",0,SUMIFS(Reports_М!40:40,Reports_М!$2:$2,">="&MAIN!AG$6,Reports_М!$2:$2,"<="&MAIN!AG$7)) -> 269695822 | M40: =IF(M$2="",0,SUMIFS(Reports_М!40:40,Reports_М!$2:$2,">="&MAIN!AH$6,Reports_М!$2:$2,"<="&MAIN!AH$7)) -> 0 | N40: =IF(N$2="",0,SUMIFS(Reports_М!40:40,Reports_М!$2:$2,">="&MAIN!AI$6,Reports_М!$2:$2,"<="&MAIN!AI$7)) -> 0 | O40: =IF(O$2="",0,SUMIFS(Reports_М!40:40,Reports_М!$2:$2,">="&MAIN!AJ$6,Reports_М!$2:$2,"<="&MAIN!AJ$7)) -> 0 | P40: =IF(P$2="",0,SUMIFS(Reports_М!40:40,Reports_М!$2:$2,">="&MAIN!AK$6,Reports_М!$2:$2,"<="&MAIN!AK$7)) -> 0 | Q40: =IF(Q$2="",0,SUMIFS(Reports_М!40:40,Reports_М!$2:$2,">="&MAIN!AL$6,Reports_М!$2:$2,"<="&MAIN!AL$7)) -> 0 | R40: =IF(R$2="",0,SUMIFS(Reports_М!40:40,Reports_М!$2:$2,">="&MAIN!AM$6,Reports_М!$2:$2,"<="&MAIN!AM$7)) -> 0
C41: =Calc!$H$1335 -> Возмещение ндс по капзатратам | E41: 16666666.67 | G41: =IF(G$2="",0,SUMIFS(Reports_М!41:41,Reports_М!$2:$2,">="&MAIN!AB$6,Reports_М!$2:$2,"<="&MAIN!AB$7)) -> 14666666.67 | H41: =IF(H$2="",0,SUMIFS(Reports_М!41:41,Reports_М!$2:$2,">="&MAIN!AC$6,Reports_М!$2:$2,"<="&MAIN!AC$7)) -> 2000000 | I41: =IF(I$2="",0,SUMIFS(Reports_М!41:41,Reports_М!$2:$2,">="&MAIN!AD$6,Reports_М!$2:$2,"<="&MAIN!AD$7)) -> 0 | J41: =IF(J$2="",0,SUMIFS(Reports_М!41:41,Reports_М!$2:$2,">="&MAIN!AE$6,Reports_М!$2:$2,"<="&MAIN!AE$7)) -> 0 | K41: =IF(K$2="",0,SUMIFS(Reports_М!41:41,Reports_М!$2:$2,">="&MAIN!AF$6,Reports_М!$2:$2,"<="&MAIN!AF$7)) -> 0 | L41: =IF(L$2="",0,SUMIFS(Reports_М!41:41,Reports_М!$2:$2,">="&MAIN!AG$6,Reports_М!$2:$2,"<="&MAIN!AG$7)) -> 0 | M41: =IF(M$2="",0,SUMIFS(Reports_М!41:41,Reports_М!$2:$2,">="&MAIN!AH$6,Reports_М!$2:$2,"<="&MAIN!AH$7)) -> 0 | N41: =IF(N$2="",0,SUMIFS(Reports_М!41:41,Reports_М!$2:$2,">="&MAIN!AI$6,Reports_М!$2:$2,"<="&MAIN!AI$7)) -> 0 | O41: =IF(O$2="",0,SUMIFS(Reports_М!41:41,Reports_М!$2:$2,">="&MAIN!AJ$6,Reports_М!$2:$2,"<="&MAIN!AJ$7)) -> 0 | P41: =IF(P$2="",0,SUMIFS(Reports_М!41:41,Reports_М!$2:$2,">="&MAIN!AK$6,Reports_М!$2:$2,"<="&MAIN!AK$7)) -> 0 | Q41: =IF(Q$2="",0,SUMIFS(Reports_М!41:41,Reports_М!$2:$2,">="&MAIN!AL$6,Reports_М!$2:$2,"<="&MAIN!AL$7)) -> 0 | R41: =IF(R$2="",0,SUMIFS(Reports_М!41:41,Reports_М!$2:$2,">="&MAIN!AM$6,Reports_М!$2:$2,"<="&MAIN!AM$7)) -> 0
C42: =Calc!$H$1288 -> Оплата капитальных затрат | E42: 100000000 | G42: =IF(G$2="",0,SUMIFS(Reports_М!42:42,Reports_М!$2:$2,">="&MAIN!AB$6,Reports_М!$2:$2,"<="&MAIN!AB$7)) -> 100000000 | H42: =IF(H$2="",0,SUMIFS(Reports_М!42:42,Reports_М!$2:$2,">="&MAIN!AC$6,Reports_М!$2:$2,"<="&MAIN!AC$7)) -> 0 | I42: =IF(I$2="",0,SUMIFS(Reports_М!42:42,Reports_М!$2:$2,">="&MAIN!AD$6,Reports_М!$2:$2,"<="&MAIN!AD$7)) -> 0 | J42: =IF(J$2="",0,SUMIFS(Reports_М!42:42,Reports_М!$2:$2,">="&MAIN!AE$6,Reports_М!$2:$2,"<="&MAIN!AE$7)) -> 0 | K42: =IF(K$2="",0,SUMIFS(Reports_М!42:42,Reports_М!$2:$2,">="&MAIN!AF$6,Reports_М!$2:$2,"<="&MAIN!AF$7)) -> 0 | L42: =IF(L$2="",0,SUMIFS(Reports_М!42:42,Reports_М!$2:$2,">="&MAIN!AG$6,Reports_М!$2:$2,"<="&MAIN!AG$7)) -> 0 | M42: =IF(M$2="",0,SUMIFS(Reports_М!42:42,Reports_М!$2:$2,">="&MAIN!AH$6,Reports_М!$2:$2,"<="&MAIN!AH$7)) -> 0 | N42: =IF(N$2="",0,SUMIFS(Reports_М!42:42,Reports_М!$2:$2,">="&MAIN!AI$6,Reports_М!$2:$2,"<="&MAIN!AI$7)) -> 0 | O42: =IF(O$2="",0,SUMIFS(Reports_М!42:42,Reports_М!$2:$2,">="&MAIN!AJ$6,Reports_М!$2:$2,"<="&MAIN!AJ$7)) -> 0 | P42: =IF(P$2="",0,SUMIFS(Reports_М!42:42,Reports_М!$2:$2,">="&MAIN!AK$6,Reports_М!$2:$2,"<="&MAIN!AK$7)) -> 0 | Q42: =IF(Q$2="",0,SUMIFS(Reports_М!42:42,Reports_М!$2:$2,">="&MAIN!AL$6,Reports_М!$2:$2,"<="&MAIN!AL$7)) -> 0 | R42: =IF(R$2="",0,SUMIFS(Reports_М!42:42,Reports_М!$2:$2,">="&MAIN!AM$6,Reports_М!$2:$2,"<="&MAIN!AM$7)) -> 0
C43: =Calc!H1317 -> Оплата налога на имущество | E43: 2523003.472 | G43: =IF(G$2="",0,SUMIFS(Reports_М!43:43,Reports_М!$2:$2,">="&MAIN!AB$6,Reports_М!$2:$2,"<="&MAIN!AB$7)) -> 400607.6389 | H43: =IF(H$2="",0,SUMIFS(Reports_М!43:43,Reports_М!$2:$2,">="&MAIN!AC$6,Reports_М!$2:$2,"<="&MAIN!AC$7)) -> 549479.1667 | I43: =IF(I$2="",0,SUMIFS(Reports_М!43:43,Reports_М!$2:$2,">="&MAIN!AD$6,Reports_М!$2:$2,"<="&MAIN!AD$7)) -> 486979.1667 | J43: =IF(J$2="",0,SUMIFS(Reports_М!43:43,Reports_М!$2:$2,">="&MAIN!AE$6,Reports_М!$2:$2,"<="&MAIN!AE$7)) -> 424479.1667 | K43: =IF(K$2="",0,SUMIFS(Reports_М!43:43,Reports_М!$2:$2,">="&MAIN!AF$6,Reports_М!$2:$2,"<="&MAIN!AF$7)) -> 361979.1667 | L43: =IF(L$2="",0,SUMIFS(Reports_М!43:43,Reports_М!$2:$2,">="&MAIN!AG$6,Reports_М!$2:$2,"<="&MAIN!AG$7)) -> 299479.1667 | M43: =IF(M$2="",0,SUMIFS(Reports_М!43:43,Reports_М!$2:$2,">="&MAIN!AH$6,Reports_М!$2:$2,"<="&MAIN!AH$7)) -> 0 | N43: =IF(N$2="",0,SUMIFS(Reports_М!43:43,Reports_М!$2:$2,">="&MAIN!AI$6,Reports_М!$2:$2,"<="&MAIN!AI$7)) -> 0 | O43: =IF(O$2="",0,SUMIFS(Reports_М!43:43,Reports_М!$2:$2,">="&MAIN!AJ$6,Reports_М!$2:$2,"<="&MAIN!AJ$7)) -> 0 | P43: =IF(P$2="",0,SUMIFS(Reports_М!43:43,Reports_М!$2:$2,">="&MAIN!AK$6,Reports_М!$2:$2,"<="&MAIN!AK$7)) -> 0 | Q43: =IF(Q$2="",0,SUMIFS(Reports_М!43:43,Reports_М!$2:$2,">="&MAIN!AL$6,Reports_М!$2:$2,"<="&MAIN!AL$7)) -> 0 | R43: =IF(R$2="",0,SUMIFS(Reports_М!43:43,Reports_М!$2:$2,">="&MAIN!AM$6,Reports_М!$2:$2,"<="&MAIN!AM$7)) -> 0
C44: =Calc!$H$1326 -> Оплата налога на прибыль | E44: 17823662.44 | G44: =IF(G$2="",0,SUMIFS(Reports_М!44:44,Reports_М!$2:$2,">="&MAIN!AB$6,Reports_М!$2:$2,"<="&MAIN!AB$7)) -> 0 | H44: =IF(H$2="",0,SUMIFS(Reports_М!44:44,Reports_М!$2:$2,">="&MAIN!AC$6,Reports_М!$2:$2,"<="&MAIN!AC$7)) -> 0 | I44: =IF(I$2="",0,SUMIFS(Reports_М!44:44,Reports_М!$2:$2,">="&MAIN!AD$6,Reports_М!$2:$2,"<="&MAIN!AD$7)) -> 0 | J44: =IF(J$2="",0,SUMIFS(Reports_М!44:44,Reports_М!$2:$2,">="&MAIN!AE$6,Reports_М!$2:$2,"<="&MAIN!AE$7)) -> 0 | K44: =IF(K$2="",0,SUMIFS(Reports_М!44:44,Reports_М!$2:$2,">="&MAIN!AF$6,Reports_М!$2:$2,"<="&MAIN!AF$7)) -> 0 | L44: =IF(L$2="",0,SUMIFS(Reports_М!44:44,Reports_М!$2:$2,">="&MAIN!AG$6,Reports_М!$2:$2,"<="&MAIN!AG$7)) -> 17823662.44 | M44: =IF(M$2="",0,SUMIFS(Reports_М!44:44,Reports_М!$2:$2,">="&MAIN!AH$6,Reports_М!$2:$2,"<="&MAIN!AH$7)) -> 0 | N44: =IF(N$2="",0,SUMIFS(Reports_М!44:44,Reports_М!$2:$2,">="&MAIN!AI$6,Reports_М!$2:$2,"<="&MAIN!AI$7)) -> 0 | O44: =IF(O$2="",0,SUMIFS(Reports_М!44:44,Reports_М!$2:$2,">="&MAIN!AJ$6,Reports_М!$2:$2,"<="&MAIN!AJ$7)) -> 0 | P44: =IF(P$2="",0,SUMIFS(Reports_М!44:44,Reports_М!$2:$2,">="&MAIN!AK$6,Reports_М!$2:$2,"<="&MAIN!AK$7)) -> 0 | Q44: =IF(Q$2="",0,SUMIFS(Reports_М!44:44,Reports_М!$2:$2,">="&MAIN!AL$6,Reports_М!$2:$2,"<="&MAIN!AL$7)) -> 0 | R44: =IF(R$2="",0,SUMIFS(Reports_М!44:44,Reports_М!$2:$2,">="&MAIN!AM$6,Reports_М!$2:$2,"<="&MAIN!AM$7)) -> 0
C45: =Calc!$H$1340 -> Финпоток проекта (по осн. деят-ти) | E45: 378872981.4 | G45: =IF(G$2="",0,SUMIFS(Reports_М!45:45,Reports_М!$2:$2,">="&MAIN!AB$6,Reports_М!$2:$2,"<="&MAIN!AB$7)) -> -129399374.2 | H45: =IF(H$2="",0,SUMIFS(Reports_М!45:45,Reports_М!$2:$2,">="&MAIN!AC$6,Reports_М!$2:$2,"<="&MAIN!AC$7)) -> -16288251.02 | I45: =IF(I$2="",0,SUMIFS(Reports_М!45:45,Reports_М!$2:$2,">="&MAIN!AD$6,Reports_М!$2:$2,"<="&MAIN!AD$7)) -> 21644338.19 | J45: =IF(J$2="",0,SUMIFS(Reports_М!45:45,Reports_М!$2:$2,">="&MAIN!AE$6,Reports_М!$2:$2,"<="&MAIN!AE$7)) -> 84906137.63 | K45: =IF(K$2="",0,SUMIFS(Reports_М!45:45,Reports_М!$2:$2,">="&MAIN!AF$6,Reports_М!$2:$2,"<="&MAIN!AF$7)) -> 166437450.4 | L45: =IF(L$2="",0,SUMIFS(Reports_М!45:45,Reports_М!$2:$2,">="&MAIN!AG$6,Reports_М!$2:$2,"<="&MAIN!AG$7)) -> 251572680.4 | M45: =IF(M$2="",0,SUMIFS(Reports_М!45:45,Reports_М!$2:$2,">="&MAIN!AH$6,Reports_М!$2:$2,"<="&MAIN!AH$7)) -> 0 | N45: =IF(N$2="",0,SUMIFS(Reports_М!45:45,Reports_М!$2:$2,">="&MAIN!AI$6,Reports_М!$2:$2,"<="&MAIN!AI$7)) -> 0 | O45: =IF(O$2="",0,SUMIFS(Reports_М!45:45,Reports_М!$2:$2,">="&MAIN!AJ$6,Reports_М!$2:$2,"<="&MAIN!AJ$7)) -> 0 | P45: =IF(P$2="",0,SUMIFS(Reports_М!45:45,Reports_М!$2:$2,">="&MAIN!AK$6,Reports_М!$2:$2,"<="&MAIN!AK$7)) -> 0 | Q45: =IF(Q$2="",0,SUMIFS(Reports_М!45:45,Reports_М!$2:$2,">="&MAIN!AL$6,Reports_М!$2:$2,"<="&MAIN!AL$7)) -> 0 | R45: =IF(R$2="",0,SUMIFS(Reports_М!45:45,Reports_М!$2:$2,">="&MAIN!AM$6,Reports_М!$2:$2,"<="&MAIN!AM$7)) -> 0
C46: =Calc!$H$1400 -> Поступления кредитных средств за период | E46: 33810852.02 | G46: =IF(G$2="",0,SUMIFS(Reports_М!46:46,Reports_М!$2:$2,">="&MAIN!AB$6,Reports_М!$2:$2,"<="&MAIN!AB$7)) -> 0 | H46: =IF(H$2="",0,SUMIFS(Reports_М!46:46,Reports_М!$2:$2,">="&MAIN!AC$6,Reports_М!$2:$2,"<="&MAIN!AC$7)) -> 17622440.08 | I46: =IF(I$2="",0,SUMIFS(Reports_М!46:46,Reports_М!$2:$2,">="&MAIN!AD$6,Reports_М!$2:$2,"<="&MAIN!AD$7)) -> 14748377.44 | J46: =IF(J$2="",0,SUMIFS(Reports_М!46:46,Reports_М!$2:$2,">="&MAIN!AE$6,Reports_М!$2:$2,"<="&MAIN!AE$7)) -> 1440034.506 | K46: =IF(K$2="",0,SUMIFS(Reports_М!46:46,Reports_М!$2:$2,">="&MAIN!AF$6,Reports_М!$2:$2,"<="&MAIN!AF$7)) -> 0 | L46: =IF(L$2="",0,SUMIFS(Reports_М!46:46,Reports_М!$2:$2,">="&MAIN!AG$6,Reports_М!$2:$2,"<="&MAIN!AG$7)) -> 0 | M46: =IF(M$2="",0,SUMIFS(Reports_М!46:46,Reports_М!$2:$2,">="&MAIN!AH$6,Reports_М!$2:$2,"<="&MAIN!AH$7)) -> 0 | N46: =IF(N$2="",0,SUMIFS(Reports_М!46:46,Reports_М!$2:$2,">="&MAIN!AI$6,Reports_М!$2:$2,"<="&MAIN!AI$7)) -> 0 | O46: =IF(O$2="",0,SUMIFS(Reports_М!46:46,Reports_М!$2:$2,">="&MAIN!AJ$6,Reports_М!$2:$2,"<="&MAIN!AJ$7)) -> 0 | P46: =IF(P$2="",0,SUMIFS(Reports_М!46:46,Reports_М!$2:$2,">="&MAIN!AK$6,Reports_М!$2:$2,"<="&MAIN!AK$7)) -> 0 | Q46: =IF(Q$2="",0,SUMIFS(Reports_М!46:46,Reports_М!$2:$2,">="&MAIN!AL$6,Reports_М!$2:$2,"<="&MAIN!AL$7)) -> 0 | R46: =IF(R$2="",0,SUMIFS(Reports_М!46:46,Reports_М!$2:$2,">="&MAIN!AM$6,Reports_М!$2:$2,"<="&MAIN!AM$7)) -> 0
C47: =Calc!$H$1402 -> Объем возврата кредитных средств за период | E47: 33810852.02 | G47: =IF(G$2="",0,SUMIFS(Reports_М!47:47,Reports_М!$2:$2,">="&MAIN!AB$6,Reports_М!$2:$2,"<="&MAIN!AB$7)) -> 0 | H47: =IF(H$2="",0,SUMIFS(Reports_М!47:47,Reports_М!$2:$2,">="&MAIN!AC$6,Reports_М!$2:$2,"<="&MAIN!AC$7)) -> 0 | I47: =IF(I$2="",0,SUMIFS(Reports_М!47:47,Reports_М!$2:$2,">="&MAIN!AD$6,Reports_М!$2:$2,"<="&MAIN!AD$7)) -> 0 | J47: =IF(J$2="",0,SUMIFS(Reports_М!47:47,Reports_М!$2:$2,">="&MAIN!AE$6,Reports_М!$2:$2,"<="&MAIN!AE$7)) -> 33810852.02 | K47: =IF(K$2="",0,SUMIFS(Reports_М!47:47,Reports_М!$2:$2,">="&MAIN!AF$6,Reports_М!$2:$2,"<="&MAIN!AF$7)) -> 0 | L47: =IF(L$2="",0,SUMIFS(Reports_М!47:47,Reports_М!$2:$2,">="&MAIN!AG$6,Reports_М!$2:$2,"<="&MAIN!AG$7)) -> 0 | M47: =IF(M$2="",0,SUMIFS(Reports_М!47:47,Reports_М!$2:$2,">="&MAIN!AH$6,Reports_М!$2:$2,"<="&MAIN!AH$7)) -> 0 | N47: =IF(N$2="",0,SUMIFS(Reports_М!47:47,Reports_М!$2:$2,">="&MAIN!AI$6,Reports_М!$2:$2,"<="&MAIN!AI$7)) -> 0 | O47: =IF(O$2="",0,SUMIFS(Reports_М!47:47,Reports_М!$2:$2,">="&MAIN!AJ$6,Reports_М!$2:$2,"<="&MAIN!AJ$7)) -> 0 | P47: =IF(P$2="",0,SUMIFS(Reports_М!47:47,Reports_М!$2:$2,">="&MAIN!AK$6,Reports_М!$2:$2,"<="&MAIN!AK$7)) -> 0 | Q47: =IF(Q$2="",0,SUMIFS(Reports_М!47:47,Reports_М!$2:$2,">="&MAIN!AL$6,Reports_М!$2:$2,"<="&MAIN!AL$7)) -> 0 | R47: =IF(R$2="",0,SUMIFS(Reports_М!47:47,Reports_М!$2:$2,">="&MAIN!AM$6,Reports_М!$2:$2,"<="&MAIN!AM$7)) -> 0
C48: =Calc!$H$1410 -> Оплата %% по кредиту | E48: 5119122.896 | G48: =IF(G$2="",0,SUMIFS(Reports_М!48:48,Reports_М!$2:$2,">="&MAIN!AB$6,Reports_М!$2:$2,"<="&MAIN!AB$7)) -> 0 | H48: =IF(H$2="",0,SUMIFS(Reports_М!48:48,Reports_М!$2:$2,">="&MAIN!AC$6,Reports_М!$2:$2,"<="&MAIN!AC$7)) -> 0 | I48: =IF(I$2="",0,SUMIFS(Reports_М!48:48,Reports_М!$2:$2,">="&MAIN!AD$6,Reports_М!$2:$2,"<="&MAIN!AD$7)) -> 896419.3254 | J48: =IF(J$2="",0,SUMIFS(Reports_М!48:48,Reports_М!$2:$2,">="&MAIN!AE$6,Reports_М!$2:$2,"<="&MAIN!AE$7)) -> 4222703.571 | K48: =IF(K$2="",0,SUMIFS(Reports_М!48:48,Reports_М!$2:$2,">="&MAIN!AF$6,Reports_М!$2:$2,"<="&MAIN!AF$7)) -> 0 | L48: =IF(L$2="",0,SUMIFS(Reports_М!48:48,Reports_М!$2:$2,">="&MAIN!AG$6,Reports_М!$2:$2,"<="&MAIN!AG$7)) -> 0 | M48: =IF(M$2="",0,SUMIFS(Reports_М!48:48,Reports_М!$2:$2,">="&MAIN!AH$6,Reports_М!$2:$2,"<="&MAIN!AH$7)) -> 0 | N48: =IF(N$2="",0,SUMIFS(Reports_М!48:48,Reports_М!$2:$2,">="&MAIN!AI$6,Reports_М!$2:$2,"<="&MAIN!AI$7)) -> 0 | O48: =IF(O$2="",0,SUMIFS(Reports_М!48:48,Reports_М!$2:$2,">="&MAIN!AJ$6,Reports_М!$2:$2,"<="&MAIN!AJ$7)) -> 0 | P48: =IF(P$2="",0,SUMIFS(Reports_М!48:48,Reports_М!$2:$2,">="&MAIN!AK$6,Reports_М!$2:$2,"<="&MAIN!AK$7)) -> 0 | Q48: =IF(Q$2="",0,SUMIFS(Reports_М!48:48,Reports_М!$2:$2,">="&MAIN!AL$6,Reports_М!$2:$2,"<="&MAIN!AL$7)) -> 0 | R48: =IF(R$2="",0,SUMIFS(Reports_М!48:48,Reports_М!$2:$2,">="&MAIN!AM$6,Reports_М!$2:$2,"<="&MAIN!AM$7)) -> 0
